Workbook

Sheet Input
A1: The RPEC_O2_v2019 model to construct a mortality improvement scale | N1: NOTE: THIS TOOL DOES NOT CREATE ANY | R1: Unrounded Historical Order 2 Rates
A2: Written Oct, 2014 by Bob Howard & modified October, 2019 | G2: bob@howardfamily.ca | N2: ORDER-3 SCALE, INCLUDING SCALE MP-2019! | R2: Male | T2: Female
R3: 2014 | S3: 2015 | T3: 2014 | U3: 2015
A4: Name of improvement scale | D4: O2-2019 | Q4: 20 | R4: -0.002197356827 | S4: -0.007985709195 | T4: -0.005127199884 | U4: -0.009829920142
A5: Long term rates | H5: Convergence | N5: Rounding | Q5: 21 | R5: -0.005156836719 | S5: -0.010779555 | T5: -0.008111284801 | U5: -0.0127154832 | W5: Manual Ultimate
C6: Age | D6: Rate | H6: The rates for intervening years are obtained by | N6: 4 | O6: decimals | Q6: 22 | R6: -0.00823021002 | S6: -0.01374099173 | T6: -0.01104344928 | U6: -0.01554542881 | X6: Male | Y6: Female
A7: Line segments | C7: 85 | D7: 0.01 | H7: combining cubics running from historical to long term | N7: Calculations are done without | Q7: 23 | R7: -0.01137570199 | S7: -0.01683189699 | T7: -0.01388404889 | U7: -0.01827967937 | W7: 20
C8: 95 | D8: 0.0085 | H8: 1. by attained age | N8: rounding until the final | Q8: 24 | R8: -0.01452601975 | S8: -0.01997670289 | T8: -0.01658016314 | U8: -0.02087356899 | W8: 21
C9: 115 | D9: 0 | H9: 2. by birth cohort | N9: numbers are displayed. | Q9: 25 | R9: -0.01760211733 | S9: -0.0230755671 | T9: -0.01906807077 | U9: -0.02327596699 | W9: 22
I10: Birth cohort proportion | Q10: 26 | R10: -0.02052115386 | S10: -0.02602261863 | T10: -0.02128717611 | U10: -0.02544513855 | W10: 23
H11: Male | I11: 0.5 | Q11: 27 | R11: -0.02319624658 | S11: -0.02872032833 | T11: -0.02317923668 | U11: -0.02734299915 | W11: 24
A12: The long term rates are developed as line segments. | H12: Female | I12: 0.5 | Q12: 28 | R12: -0.02554312035 | S12: -0.0310786654 | T12: -0.02469189255 | U12: -0.02891746193 | W12: 25
A13: The first line segment is flat from age 20 to the age specified. | Q13: 29 | R13: -0.02748909555 | S13: -0.03302184598 | T13: -0.02578357969 | U13: -0.03010032395 | W13: 26
A14: Tne next segment begins there and ends at the next age and rate | H14: Convergence to ultimate in year | Q14: 30 | R14: -0.02897165461 | S14: -0.03449444629 | T14: -0.02642450182 | U14: -0.03082178549 | W14: 27
A15: specified, until all the age-rates are used. The ages must be | H15: Age | I15: 2025 | Q15: 31 | R15: -0.0299382304 | S15: -0.03545583752 | T15: -0.02659398747 | U15: -0.03101836293 | W15: 28
A16: ascending order. | H16: Cohort | I16: 2035 | Q16: 32 | R16: -0.0303543082 | S16: -0.03587159886 | T16: -0.02628121783 | U16: -0.03064616479 | W16: 29
A17: Alternatively, cell C7 can be set to "Manual". In that case the | Q17: 33 | R17: -0.03019745713 | S17: -0.03571440127 | T17: -0.02548712955 | U17: -0.02969762883 | W17: 30
A18: values shown in cells X7:Y107 are used for the ultimate. | H18: Constraint on initial slope | Q18: 34 | R18: -0.0294566404 | S18: -0.0349625486 | T18: -0.02422553688 | U18: -0.02820767361 | W18: 31
A19: Otherwise the values in cells X7:Y107 are ignored. | H19: Age | I19: 0 | Q19: 35 | R19: -0.02813637658 | S19: -0.03360637694 | T19: -0.02252553159 | U19: -0.02623878349 | W19: 32
H20: Cohort | I20: 0 | Q20: 36 | R20: -0.02625611081 | S20: -0.03165635614 | T20: -0.02043366243 | U20: -0.02387265935 | W20: 33
Q21: 37 | R21: -0.02385620887 | S21: -0.02914985007 | T21: -0.01801659881 | U21: -0.02119582188 | W21: 34
A22: About RPEC_O2_v2019 | Q22: 38 | R22: -0.02101019018 | S22: -0.02615529285 | T22: -0.01536045826 | U22: -0.01829828258 | W22: 35
A23: This model includes historical data through 2017. Historical mortality improvement rates have been developed using Order 2 Whittaker-Henderson graduation. | Q23: 39 | R23: -0.01781863921 | S23: -0.02277397138 | T23: -0.01256308214 | U23: -0.01527554459 | W23: 36
Q24: 40 | R24: -0.01440581079 | S24: -0.01912811137 | T24: -0.009731443596 | U24: -0.01222267942 | W24: 37
Q25: 41 | R25: -0.01089961975 | S25: -0.01535278805 | T25: -0.006966185892 | U25: -0.009238958602 | W25: 38
A26: How to… | Q26: 42 | R26: -0.007431020147 | S26: -0.01158013703 | T26: -0.004363579946 | U26: -0.006422621355 | W26: 39
A27: You can enter values in any of the cells with a pale yellow background. These fields provide the parameters for the RPEC_O2_v2019 model, which along with the historical | Q27: 43 | R27: -0.004132606308 | S27: -0.007942913965 | T27: -0.002018069362 | U27: -0.003865968868 | W27: 40
A28: improvement rates, will be used to construct improvement scales in the worksheets "Male" and "Female". The rates in the new scales reflect historical data developed using | Q28: 44 | R28: -0.001136677428 | S28: -0.004571040665 | T28: -2.299750539e-05 | U28: -0.00165373818 | W28: 41
A29: Order 2 Whittaker-Henderson graduation through year 2015 (with a light blue or pink background); projected rates are shown for year 2016 and later (with a yellow | Q29: 45 | R29: 0.001447072497 | S29: -0.001586768219 | T29: 0.001545731606 | U29: 0.0001421123895 | W29: 42
A30: background). The name for your scale cannot include the text "O2-2019" or "MP-2019". Click on the button "Calculate" to calculate the new scale. | Q30: 46 | R30: 0.003539790208 | S30: 0.0009143202469 | T30: 0.002638875136 | U30: 0.001472844433 | W30: 43
A31: You can compute the scale (named "O2-2019" in this model) that uses the same projection assumptions as used in Scale MP-2019 by clicking the button, "Calculate | Q31: 47 | R31: 0.005099528454 | S31: 0.002873259093 | T31: 0.003239539956 | U31: 0.00231713662 | W31: 44
A32: Order-2 Scale with Committee-Selected Assumptions". | Q32: 48 | R32: 0.006119496016 | S32: 0.004272799252 | T32: 0.003363720389 | U32: 0.002681833762 | W32: 45
Q33: 49 | R33: 0.006626934796 | S33: 0.00513116543 | T33: 0.003059801798 | U33: 0.002598722354 | W33: 46
A34: Troubleshooting | Q34: 50 | R34: 0.006676232208 | S34: 0.005494536943 | T34: 0.002402099444 | U34: 0.002123534887 | W34: 47
A35: Some when clicking on the buttons on this worksheet have received the error, “Can’t find project or library”. This is most likely caused by a missing | Q35: 51 | R35: 0.006340369829 | S35: 0.005428863105 | T35: 0.001482830312 | U35: 0.001334296154 | W35: 48
A36: reference. It can be fixed by the following steps: | Q36: 52 | R36: 0.005700340474 | S36: 0.005011018371 | T36: 0.000405888846 | U36: 0.0003277155421 | W36: 49
B37: Bring up the list of workbook macros (Alt + T + M + M) | Q37: 53 | R37: 0.00483817424 | S37: 0.004320205873 | T37: -0.0007153092263 | U37: -0.0007848603155 | W37: 50
B38: Select “Edit” | Q38: 54 | R38: 0.003833059921 | S38: 0.003434156208 | T38: -0.001761374117 | U38: -0.00188453251 | W38: 51
B39: In the Visual Basic Window, select “Tools” -> “References” | Q39: 55 | R39: 0.00275919155 | S39: 0.002430507851 | T39: -0.002621023909 | U39: -0.002853100674 | W39: 52
B40: Look at the list of available references. If any have the text “MISSING” in front of them, uncheck the box for that reference | Q40: 56 | R40: 0.001686570915 | S40: 0.001386003064 | T40: -0.003201071707 | U40: -0.003587692875 | W40: 53
Q41: 57 | R41: 0.0006861041417 | S41: 0.0003798915665 | T41: -0.003435300614 | U41: -0.004008268717 | W41: 54
A42: Disclaimer | Q42: 58 | R42: -0.0001654472365 | S42: -0.0005052475081 | T42: -0.003287423965 | U42: -0.004061072698 | W42: 55
A43: This software is made available free of charge with the understanding that neither the author nor the Society of Actuaries accepts | Q43: 59 | R43: -0.0007890916116 | S43: -0.001185782415 | T43: -0.002752700916 | U43: -0.003719894902 | W43: 56
A44: any liability for its use. It may be used for any personal, research or commercial use provided that the user does not represent it | Q44: 60 | R44: -0.001112695114 | S44: -0.00158755775 | T44: -0.00185509452 | U44: -0.002986862462 | W44: 57
A45: as his or her own work and does not distribute it to others for a fee. | Q45: 61 | R45: -0.001083847242 | S45: -0.001656500516 | T45: -0.0006408366347 | U45: -0.00189109442 | W45: 58
Q46: 62 | R46: -0.0006834282043 | S46: -0.001369502673 | T46: 0.0008227947638 | U46: -0.0004910806554 | W46: 59
Q47: 63 | R47: 6.66655608e-05 | S47: -0.0007395839374 | T47: 0.002447651009 | U47: 0.001125368892 | W47: 60
Q48: 64 | R48: 0.001106396477 | S48: 0.0001867573372 | T48: 0.004130298732 | U48: 0.002848566325 | W48: 61
Q49: 65 | R49: 0.002350707463 | S49: 0.00133967537 | T49: 0.005766013349 | U49: 0.004561844798 | W49: 62
Q50: 66 | R50: 0.003705395923 | S50: 0.002639275303 | T50: 0.007261880476 | U50: 0.006159611066 | W50: 63
Q51: 67 | R51: 0.005082212633 | S51: 0.00400627621 | T51: 0.008550436685 | U51: 0.00756305584 | W51: 64
Q52: 68 | R52: 0.006407353058 | S52: 0.005368660599 | T52: 0.009600545083 | U52: 0.008728847105 | W52: 65
Q53: 69 | R53: 0.00764020924 | S53: 0.006662994078 | T53: 0.01041257559 | U53: 0.009646385247 | W53: 66
Q54: 70 | R54: 0.008755894542 | S54: 0.007850902108 | T54: 0.01100707706 | U54: 0.01033081975 | W54: 67
Q55: 71 | R55: 0.009740742956 | S55: 0.008906879892 | T55: 0.01141409856 | U55: 0.01080961571 | W55: 68
Q56: 72 | R56: 0.01058751035 | S56: 0.009816474555 | T56: 0.01166264064 | U56: 0.01111216968 | W56: 69
Q57: 73 | R57: 0.01129546912 | S57: 0.01057523171 | T57: 0.01177498187 | U57: 0.01126429027 | W57: 70
Q58: 74 | R58: 0.0118677614 | S58: 0.01118724042 | T58: 0.01176558203 | U58: 0.01128429589 | W58: 71
Q59: 75 | R59: 0.0123105503 | S59: 0.01166260701 | T59: 0.01164487746 | U59: 0.01118736189 | W59: 72
Q60: 76 | R60: 0.01263204837 | S60: 0.01201447476 | T60: 0.01142293797 | U60: 0.01098915727 | W60: 73
Q61: 77 | R61: 0.01284159083 | S61: 0.0122560176 | T61: 0.01111321987 | U61: 0.01070716422 | W61: 74
Q62: 78 | R62: 0.01294865765 | S62: 0.01239847947 | T62: 0.01073424701 | U62: 0.01036013905 | W62: 75
Q63: 79 | R63: 0.01296201718 | S63: 0.01245062968 | T63: 0.01030798012 | U63: 0.009967447149 | W63: 76
Q64: 80 | R64: 0.01288972923 | S64: 0.01241950933 | T64: 0.009856556457 | U64: 0.009547665077 | W64: 77
Q65: 81 | R65: 0.01273957309 | S65: 0.01231157831 | T65: 0.009399664746 | U65: 0.0091164763 | W65: 78
Q66: 82 | R66: 0.01251893454 | S66: 0.01213306091 | T66: 0.00895087775 | U66: 0.008685324182 | W66: 79
Q67: 83 | R67: 0.01223500316 | S67: 0.01189032129 | T67: 0.008516280619 | U67: 0.00826145472 | W67: 80
Q68: 84 | R68: 0.01189485888 | S68: 0.01158970417 | T68: 0.008095336678 | U68: 0.007848070773 | W68: 81
Q69: 85 | R69: 0.0115054784 | S69: 0.0112377474 | T69: 0.007683805939 | U69: 0.007445186829 | W69: 82
Q70: 86 | R70: 0.01107349994 | S70: 0.01084111633 | T70: 0.007276634691 | U70: 0.00705070178 | W70: 83
Q71: 87 | R71: 0.01060538346 | S71: 0.01040633863 | T71: 0.006869823536 | U71: 0.006661807928 | W71: 84
Q72: 88 | R72: 0.01010734555 | S72: 0.009940007615 | T72: 0.006461291866 | U72: 0.006276142149 | W72: 85
Q73: 89 | R73: 0.009584778644 | S73: 0.009448330959 | T73: 0.00605046101 | U73: 0.005892024331 | W73: 86
Q74: 90 | R74: 0.009042358869 | S74: 0.00893642344 | T74: 0.005637709885 | U74: 0.005508405582 | W74: 87
Q75: 91 | R75: 0.008484096914 | S75: 0.00840862359 | T75: 0.005223696081 | U75: 0.005124924361 | W75: 88
Q76: 92 | R76: 0.007913375784 | S76: 0.007868539271 | T76: 0.00480881721 | U76: 0.004741346473 | W76: 89
Q77: 93 | R77: 0.007333200088 | S77: 0.007319169098 | T77: 0.004393339878 | U77: 0.004357481584 | W77: 90
Q78: 94 | R78: 0.006746210381 | S78: 0.006763133442 | T78: 0.003977379802 | U78: 0.00397329775 | W78: 91
Q79: 95 | R79: 0.006154664643 | S79: 0.006202610864 | T79: 0.003560908215 | U79: 0.003588634375 | W79: 92
W80: 93
W81: 94
W82: 95
W83: 96
W84: 97
W85: 98
W86: 99
W87: 100
W88: 101
W89: 102
W90: 103
W91: 104
W92: 105
W93: 106
W94: 107
W95: 108
W96: 109
W97: 110
W98: 111
W99: 112
W100: 113
W101: 114
W102: 115
W103: 116
W104: 117
W105: 118
W106: 119
W107: 120

Sheet Male
A1: O2-2019 - Male
B2: 1951 | C2: 1952 | D2: 1953 | E2: 1954 | F2: 1955 | G2: 1956 | H2: 1957 | I2: 1958 | J2: 1959 | K2: 1960 | L2: 1961 | M2: 1962 | N2: 1963 | O2: 1964 | P2: 1965 | Q2: 1966 | R2: 1967 | S2: 1968 | T2: 1969 | U2: 1970 | V2: 1971 | W2: 1972 | X2: 1973 | Y2: 1974 | Z2: 1975 | AA2: 1976 | AB2: 1977 | AC2: 1978 | AD2: 1979 | AE2: 1980 | AF2: 1981 | AG2: 1982 | AH2: 1983 | AI2: 1984 | AJ2: 1985 | AK2: 1986 | AL2: 1987 | AM2: 1988 | AN2: 1989 | AO2: 1990 | AP2: 1991 | AQ2: 1992 | AR2: 1993 | AS2: 1994 | AT2: 1995 | AU2: 1996 | AV2: 1997 | AW2: 1998 | AX2: 1999 | AY2: 2000 | AZ2: 2001 | BA2: 2002 | BB2: 2003 | BC2: 2004 | BD2: 2005 | BE2: 2006 | BF2: 2007 | BG2: 2008 | BH2: 2009 | BI2: 2010 | BJ2: 2011 | BK2: 2012 | BL2: 2013 | BM2: 2014 | BN2: 2015 | BO2: 2016 | BP2: 2017 | BQ2: 2018 | BR2: 2019 | BS2: 2020 | BT2: 2021 | BU2: 2022 | BV2: 2023 | BW2: 2024 | BX2: 2025 | BY2: 2026 | BZ2: 2027 | CA2: 2028 | CB2: 2029 | CC2: 2030 | CD2: 2031 | CE2: 2032 | CF2: 2033 | CG2: 2034 | CH2: 2035+
A3: ≤ 20 | B3: 0.0121 | C3: 0.0125 | D3: 0.0131 | E3: 0.0136 | F3: 0.0135 | G3: 0.0129 | H3: 0.0118 | I3: 0.0098 | J3: 0.0066 | K3: 0.0024 | L3: -0.0028 | M3: -0.0085 | N3: -0.014 | O3: -0.019 | P3: -0.0228 | Q3: -0.025 | R3: -0.0251 | S3: -0.023 | T3: -0.0186 | U3: -0.0128 | V3: -0.0067 | W3: -0.0007 | X3: 0.005 | Y3: 0.0099 | Z3: 0.0135 | AA3: 0.0158 | AB3: 0.0173 | AC3: 0.019 | AD3: 0.021 | AE3: 0.0231 | AF3: 0.0246 | AG3: 0.0237 | AH3: 0.0205 | AI3: 0.0155 | AJ3: 0.0103 | AK3: 0.006 | AL3: 0.0035 | AM3: 0.0024 | AN3: 0.0029 | AO3: 0.0046 | AP3: 0.0077 | AQ3: 0.0117 | AR3: 0.0158 | AS3: 0.0199 | AT3: 0.0234 | AU3: 0.0254 | AV3: 0.0255 | AW3: 0.0235 | AX3: 0.0201 | AY3: 0.016 | AZ3: 0.0126 | BA3: 0.0104 | BB3: 0.0098 | BC3: 0.0107 | BD3: 0.0129 | BE3: 0.0164 | BF3: 0.0204 | BG3: 0.0232 | BH3: 0.0238 | BI3: 0.0216 | BJ3: 0.0173 | BK3: 0.0116 | BL3: 0.0048 | BM3: -0.0022 | BN3: -0.008 | BO3: -0.0077 | BP3: -0.0068 | BQ3: -0.0055 | BR3: -0.0039 | BS3: -0.0021 | BT3: -0.0002 | BU3: 0.0016 | BV3: 0.0032 | BW3: 0.0046 | BX3: 0.0055 | BY3: 0.0062 | BZ3: 0.0068 | CA3: 0.0075 | CB3: 0.0081 | CC3: 0.0086 | CD3: 0.0091 | CE3: 0.0095 | CF3: 0.0097 | CG3: 0.0099 | CH3: 0.01
A4: 21 | B4: 0.0122 | C4: 0.0125 | D4: 0.0131 | E4: 0.0135 | F4: 0.0133 | G4: 0.0127 | H4: 0.0115 | I4: 0.0093 | J4: 0.0061 | K4: 0.0018 | L4: -0.0033 | M4: -0.0088 | N4: -0.0141 | O4: -0.0188 | P4: -0.0224 | Q4: -0.0246 | R4: -0.0246 | S4: -0.0225 | T4: -0.0182 | U4: -0.0125 | V4: -0.0065 | W4: -0.0007 | X4: 0.0047 | Y4: 0.0093 | Z4: 0.0127 | AA4: 0.0149 | AB4: 0.0163 | AC4: 0.0178 | AD4: 0.0197 | AE4: 0.0218 | AF4: 0.0233 | AG4: 0.0226 | AH4: 0.0196 | AI4: 0.0148 | AJ4: 0.0098 | AK4: 0.0057 | AL4: 0.0035 | AM4: 0.0027 | AN4: 0.0035 | AO4: 0.0054 | AP4: 0.0086 | AQ4: 0.0126 | AR4: 0.0166 | AS4: 0.0205 | AT4: 0.0237 | AU4: 0.0254 | AV4: 0.025 | AW4: 0.0226 | AX4: 0.0187 | AY4: 0.0142 | AZ4: 0.0102 | BA4: 0.0077 | BB4: 0.0068 | BC4: 0.0074 | BD4: 0.0093 | BE4: 0.0126 | BF4: 0.0164 | BG4: 0.0193 | BH4: 0.02 | BI4: 0.0179 | BJ4: 0.0137 | BK4: 0.0082 | BL4: 0.0016 | BM4: -0.0052 | BN4: -0.0108 | BO4: -0.009 | BP4: -0.0081 | BQ4: -0.0066 | BR4: -0.0048 | BS4: -0.0028 | BT4: -0.0007 | BU4: 0.0013 | BV4: 0.0031 | BW4: 0.0045 | BX4: 0.0055 | BY4: 0.0062 | BZ4: 0.0068 | CA4: 0.0075 | CB4: 0.0081 | CC4: 0.0086 | CD4: 0.0091 | CE4: 0.0095 | CF4: 0.0097 | CG4: 0.0099 | CH4: 0.01
A5: 22 | B5: 0.0124 | C5: 0.0127 | D5: 0.0132 | E5: 0.0136 | F5: 0.0134 | G5: 0.0126 | H5: 0.0112 | I5: 0.0089 | J5: 0.0056 | K5: 0.0013 | L5: -0.0037 | M5: -0.009 | N5: -0.0141 | O5: -0.0185 | P5: -0.0219 | Q5: -0.0238 | R5: -0.0238 | S5: -0.0217 | T5: -0.0175 | U5: -0.012 | V5: -0.0061 | W5: -0.0005 | X5: 0.0046 | Y5: 0.009 | Z5: 0.0121 | AA5: 0.0142 | AB5: 0.0155 | AC5: 0.0167 | AD5: 0.0184 | AE5: 0.0203 | AF5: 0.0218 | AG5: 0.0213 | AH5: 0.0184 | AI5: 0.0137 | AJ5: 0.0089 | AK5: 0.005 | AL5: 0.0031 | AM5: 0.0026 | AN5: 0.0037 | AO5: 0.0059 | AP5: 0.0093 | AQ5: 0.0134 | AR5: 0.0175 | AS5: 0.0214 | AT5: 0.0245 | AU5: 0.0259 | AV5: 0.0252 | AW5: 0.0224 | AX5: 0.018 | AY5: 0.0129 | AZ5: 0.0085 | BA5: 0.0055 | BB5: 0.0041 | BC5: 0.0044 | BD5: 0.006 | BE5: 0.0091 | BF5: 0.0128 | BG5: 0.0156 | BH5: 0.0163 | BI5: 0.0144 | BJ5: 0.0103 | BK5: 0.0048 | BL5: -0.0016 | BM5: -0.0082 | BN5: -0.0137 | BO5: -0.0119 | BP5: -0.0094 | BQ5: -0.0078 | BR5: -0.0057 | BS5: -0.0035 | BT5: -0.0012 | BU5: 0.001 | BV5: 0.0029 | BW5: 0.0045 | BX5: 0.0055 | BY5: 0.0062 | BZ5: 0.0068 | CA5: 0.0075 | CB5: 0.0081 | CC5: 0.0086 | CD5: 0.0091 | CE5: 0.0095 | CF5: 0.0097 | CG5: 0.0099 | CH5: 0.01
A6: 23 | B6: 0.0129 | C6: 0.0132 | D6: 0.0137 | E6: 0.0139 | F6: 0.0135 | G6: 0.0126 | H6: 0.011 | I6: 0.0085 | J6: 0.0051 | K6: 0.0008 | L6: -0.0041 | M6: -0.0092 | N6: -0.014 | O6: -0.0181 | P6: -0.0212 | Q6: -0.0229 | R6: -0.0227 | S6: -0.0205 | T6: -0.0165 | U6: -0.0112 | V6: -0.0055 | W6: -0.0001 | X6: 0.0048 | Y6: 0.0089 | Z6: 0.0118 | AA6: 0.0137 | AB6: 0.0147 | AC6: 0.0158 | AD6: 0.0171 | AE6: 0.0188 | AF6: 0.0202 | AG6: 0.0196 | AH6: 0.0168 | AI6: 0.0122 | AJ6: 0.0076 | AK6: 0.0038 | AL6: 0.0021 | AM6: 0.0019 | AN6: 0.0034 | AO6: 0.006 | AP6: 0.0098 | AQ6: 0.0142 | AR6: 0.0184 | AS6: 0.0225 | AT6: 0.0257 | AU6: 0.0271 | AV6: 0.0261 | AW6: 0.0228 | AX6: 0.0179 | AY6: 0.0122 | AZ6: 0.0073 | BA6: 0.0039 | BB6: 0.0021 | BC6: 0.002 | BD6: 0.0033 | BE6: 0.0061 | BF6: 0.0096 | BG6: 0.0122 | BH6: 0.0129 | BI6: 0.0109 | BJ6: 0.0068 | BK6: 0.0015 | BL6: -0.0049 | BM6: -0.0114 | BN6: -0.0168 | BO6: -0.0148 | BP6: -0.0121 | BQ6: -0.009 | BR6: -0.0068 | BS6: -0.0043 | BT6: -0.0018 | BU6: 0.0006 | BV6: 0.0028 | BW6: 0.0045 | BX6: 0.0055 | BY6: 0.0062 | BZ6: 0.0068 | CA6: 0.0075 | CB6: 0.0081 | CC6: 0.0086 | CD6: 0.0091 | CE6: 0.0095 | CF6: 0.0097 | CG6: 0.0099 | CH6: 0.01
A7: 24 | B7: 0.0137 | C7: 0.0139 | D7: 0.0143 | E7: 0.0143 | F7: 0.0138 | G7: 0.0126 | H7: 0.0108 | I7: 0.0081 | J7: 0.0046 | K7: 0.0003 | L7: -0.0044 | M7: -0.0093 | N7: -0.0138 | O7: -0.0177 | P7: -0.0204 | Q7: -0.0218 | R7: -0.0214 | S7: -0.0192 | T7: -0.0152 | U7: -0.0101 | V7: -0.0047 | W7: 0.0005 | X7: 0.0052 | Y7: 0.0091 | Z7: 0.0118 | AA7: 0.0135 | AB7: 0.0142 | AC7: 0.0149 | AD7: 0.0159 | AE7: 0.0173 | AF7: 0.0184 | AG7: 0.0178 | AH7: 0.0149 | AI7: 0.0104 | AJ7: 0.0058 | AK7: 0.0022 | AL7: 0.0006 | AM7: 0.0007 | AN7: 0.0025 | AO7: 0.0057 | AP7: 0.01 | AQ7: 0.0148 | AR7: 0.0194 | AS7: 0.0238 | AT7: 0.0272 | AU7: 0.0287 | AV7: 0.0276 | AW7: 0.0239 | AX7: 0.0185 | AY7: 0.0123 | AZ7: 0.0068 | BA7: 0.0029 | BB7: 0.0006 | BC7: 0.0001 | BD7: 0.0011 | BE7: 0.0036 | BF7: 0.0068 | BG7: 0.0092 | BH7: 0.0096 | BI7: 0.0076 | BJ7: 0.0036 | BK7: -0.0018 | BL7: -0.0081 | BM7: -0.0145 | BN7: -0.02 | BO7: -0.0179 | BP7: -0.015 | BQ7: -0.0115 | BR7: -0.0078 | BS7: -0.0051 | BT7: -0.0023 | BU7: 0.0003 | BV7: 0.0026 | BW7: 0.0044 | BX7: 0.0055 | BY7: 0.0062 | BZ7: 0.0068 | CA7: 0.0075 | CB7: 0.0081 | CC7: 0.0086 | CD7: 0.0091 | CE7: 0.0095 | CF7: 0.0097 | CG7: 0.0099 | CH7: 0.01
A8: 25 | B8: 0.0145 | C8: 0.0148 | D8: 0.0151 | E8: 0.0149 | F8: 0.0141 | G8: 0.0127 | H8: 0.0106 | I8: 0.0077 | J8: 0.0041 | K8: -0.0001 | L8: -0.0046 | M8: -0.0093 | N8: -0.0137 | O8: -0.0171 | P8: -0.0195 | Q8: -0.0206 | R8: -0.02 | S8: -0.0177 | T8: -0.0138 | U8: -0.0088 | V8: -0.0036 | W8: 0.0014 | X8: 0.0059 | Y8: 0.0096 | Z8: 0.0121 | AA8: 0.0135 | AB8: 0.014 | AC8: 0.0143 | AD8: 0.0149 | AE8: 0.0158 | AF8: 0.0165 | AG8: 0.0157 | AH8: 0.0128 | AI8: 0.0083 | AJ8: 0.0037 | AK8: 0.0001 | AL8: -0.0013 | AM8: -0.001 | AN8: 0.0012 | AO8: 0.0049 | AP8: 0.0098 | AQ8: 0.0151 | AR8: 0.0203 | AS8: 0.0252 | AT8: 0.029 | AU8: 0.0308 | AV8: 0.0296 | AW8: 0.0257 | AX8: 0.0197 | AY8: 0.013 | AZ8: 0.0069 | BA8: 0.0025 | BB8: -0.0002 | BC8: -0.0012 | BD8: -0.0006 | BE8: 0.0016 | BF8: 0.0044 | BG8: 0.0065 | BH8: 0.0067 | BI8: 0.0046 | BJ8: 0.0004 | BK8: -0.005 | BL8: -0.0112 | BM8: -0.0176 | BN8: -0.0231 | BO8: -0.021 | BP8: -0.0179 | BQ8: -0.0141 | BR8: -0.01 | BS8: -0.0059 | BT8: -0.0029 | BU8: 0 | BV8: 0.0025 | BW8: 0.0044 | BX8: 0.0055 | BY8: 0.0062 | BZ8: 0.0068 | CA8: 0.0075 | CB8: 0.0081 | CC8: 0.0086 | CD8: 0.0091 | CE8: 0.0095 | CF8: 0.0097 | CG8: 0.0099 | CH8: 0.01
A9: 26 | B9: 0.0155 | C9: 0.0158 | D9: 0.0159 | E9: 0.0155 | F9: 0.0145 | G9: 0.0128 | H9: 0.0104 | I9: 0.0073 | J9: 0.0036 | K9: -0.0005 | L9: -0.0049 | M9: -0.0093 | N9: -0.0134 | O9: -0.0166 | P9: -0.0186 | Q9: -0.0193 | R9: -0.0185 | S9: -0.0161 | T9: -0.0122 | U9: -0.0074 | V9: -0.0024 | W9: 0.0025 | X9: 0.0068 | Y9: 0.0104 | Z9: 0.0126 | AA9: 0.0139 | AB9: 0.014 | AC9: 0.014 | AD9: 0.014 | AE9: 0.0144 | AF9: 0.0146 | AG9: 0.0135 | AH9: 0.0104 | AI9: 0.0058 | AJ9: 0.0012 | AK9: -0.0023 | AL9: -0.0036 | AM9: -0.003 | AN9: -0.0005 | AO9: 0.0038 | AP9: 0.0093 | AQ9: 0.0152 | AR9: 0.021 | AS9: 0.0265 | AT9: 0.0308 | AU9: 0.0331 | AV9: 0.032 | AW9: 0.0279 | AX9: 0.0215 | AY9: 0.0143 | AZ9: 0.0077 | BA9: 0.0029 | BB9: -0.0003 | BC9: -0.0018 | BD9: -0.0016 | BE9: 0.0001 | BF9: 0.0025 | BG9: 0.0042 | BH9: 0.0041 | BI9: 0.0018 | BJ9: -0.0024 | BK9: -0.0079 | BL9: -0.0141 | BM9: -0.0205 | BN9: -0.026 | BO9: -0.0239 | BP9: -0.0207 | BQ9: -0.0167 | BR9: -0.0123 | BS9: -0.0078 | BT9: -0.0034 | BU9: -0.0003 | BV9: 0.0023 | BW9: 0.0043 | BX9: 0.0055 | BY9: 0.0062 | BZ9: 0.0068 | CA9: 0.0075 | CB9: 0.0081 | CC9: 0.0086 | CD9: 0.0091 | CE9: 0.0095 | CF9: 0.0097 | CG9: 0.0099 | CH9: 0.01
A10: 27 | B10: 0.0166 | C10: 0.0168 | D10: 0.0168 | E10: 0.0162 | F10: 0.0148 | G10: 0.0128 | H10: 0.0102 | I10: 0.007 | J10: 0.0032 | K10: -0.0009 | L10: -0.005 | M10: -0.0093 | N10: -0.0131 | O10: -0.0159 | P10: -0.0176 | Q10: -0.018 | R10: -0.0169 | S10: -0.0145 | T10: -0.0106 | U10: -0.0059 | V10: -0.001 | W10: 0.0038 | X10: 0.0079 | Y10: 0.0114 | Z10: 0.0135 | AA10: 0.0146 | AB10: 0.0144 | AC10: 0.0139 | AD10: 0.0134 | AE10: 0.0132 | AF10: 0.0127 | AG10: 0.0112 | AH10: 0.0078 | AI10: 0.0031 | AJ10: -0.0016 | AK10: -0.005 | AL10: -0.0062 | AM10: -0.0053 | AN10: -0.0024 | AO10: 0.0024 | AP10: 0.0084 | AQ10: 0.0149 | AR10: 0.0213 | AS10: 0.0276 | AT10: 0.0326 | AU10: 0.0355 | AV10: 0.0347 | AW10: 0.0305 | AX10: 0.0238 | AY10: 0.0162 | AZ10: 0.0091 | BA10: 0.0038 | BB10: 0.0001 | BC10: -0.0018 | BD10: -0.002 | BE10: -0.0008 | BF10: 0.0011 | BG10: 0.0023 | BH10: 0.0019 | BI10: -0.0006 | BJ10: -0.005 | BK10: -0.0105 | BL10: -0.0168 | BM10: -0.0232 | BN10: -0.0287 | BO10: -0.0267 | BP10: -0.0234 | BQ10: -0.0193 | BR10: -0.0146 | BS10: -0.0097 | BT10: -0.005 | BU10: -0.0006 | BV10: 0.0022 | BW10: 0.0043 | BX10: 0.0055 | BY10: 0.0062 | BZ10: 0.0068 | CA10: 0.0075 | CB10: 0.0081 | CC10: 0.0086 | CD10: 0.0091 | CE10: 0.0095 | CF10: 0.0097 | CG10: 0.0099 | CH10: 0.01
A11: 28 | B11: 0.0176 | C11: 0.0178 | D11: 0.0176 | E11: 0.0168 | F11: 0.0151 | G11: 0.0128 | H11: 0.0099 | I11: 0.0066 | J11: 0.0028 | K11: -0.0011 | L11: -0.0051 | M11: -0.0092 | N11: -0.0127 | O11: -0.0153 | P11: -0.0166 | Q11: -0.0167 | R11: -0.0155 | S11: -0.0129 | T11: -0.009 | U11: -0.0044 | V11: 0.0004 | W11: 0.0051 | X11: 0.0092 | Y11: 0.0126 | Z11: 0.0147 | AA11: 0.0156 | AB11: 0.0151 | AC11: 0.0142 | AD11: 0.013 | AE11: 0.0122 | AF11: 0.0111 | AG11: 0.009 | AH11: 0.0052 | AI11: 0.0003 | AJ11: -0.0045 | AK11: -0.0079 | AL11: -0.0089 | AM11: -0.0077 | AN11: -0.0044 | AO11: 0.0007 | AP11: 0.0072 | AQ11: 0.0142 | AR11: 0.0213 | AS11: 0.0283 | AT11: 0.0342 | AU11: 0.0378 | AV11: 0.0374 | AW11: 0.0333 | AX11: 0.0264 | AY11: 0.0185 | AZ11: 0.011 | BA11: 0.0053 | BB11: 0.0012 | BC11: -0.0012 | BD11: -0.0019 | BE11: -0.0012 | BF11: 0.0002 | BG11: 0.0009 | BH11: 0.0001 | BI11: -0.0027 | BJ11: -0.0072 | BK11: -0.0128 | BL11: -0.0191 | BM11: -0.0255 | BN11: -0.0311 | BO11: -0.0292 | BP11: -0.0259 | BQ11: -0.0216 | BR11: -0.0167 | BS11: -0.0116 | BT11: -0.0065 | BU11: -0.0019 | BV11: 0.002 | BW11: 0.0043 | BX11: 0.0055 | BY11: 0.0062 | BZ11: 0.0068 | CA11: 0.0075 | CB11: 0.0081 | CC11: 0.0086 | CD11: 0.0091 | CE11: 0.0095 | CF11: 0.0097 | CG11: 0.0099 | CH11: 0.01
A12: 29 | B12: 0.0186 | C12: 0.0186 | D12: 0.0184 | E12: 0.0173 | F12: 0.0154 | G12: 0.0128 | H12: 0.0097 | I12: 0.0063 | J12: 0.0026 | K12: -0.0013 | L12: -0.0052 | M12: -0.009 | N12: -0.0123 | O12: -0.0146 | P12: -0.0157 | Q12: -0.0155 | R12: -0.0141 | S12: -0.0114 | T12: -0.0075 | U12: -0.0029 | V12: 0.0019 | W12: 0.0066 | X12: 0.0107 | Y12: 0.014 | Z12: 0.0161 | AA12: 0.0168 | AB12: 0.0161 | AC12: 0.0147 | AD12: 0.013 | AE12: 0.0115 | AF12: 0.0096 | AG12: 0.0068 | AH12: 0.0027 | AI12: -0.0025 | AJ12: -0.0074 | AK12: -0.0107 | AL12: -0.0115 | AM12: -0.0101 | AN12: -0.0066 | AO12: -0.001 | AP12: 0.0057 | AQ12: 0.0131 | AR12: 0.0209 | AS12: 0.0287 | AT12: 0.0355 | AU12: 0.0398 | AV12: 0.0399 | AW12: 0.036 | AX12: 0.0291 | AY12: 0.021 | AZ12: 0.0133 | BA12: 0.0072 | BB12: 0.0028 | BC12: 0 | BD12: -0.0012 | BE12: -0.001 | BF12: -0.0002 | BG12: 0 | BH12: -0.0012 | BI12: -0.0042 | BJ12: -0.0089 | BK12: -0.0147 | BL12: -0.0211 | BM12: -0.0275 | BN12: -0.033 | BO12: -0.0313 | BP12: -0.0281 | BQ12: -0.0238 | BR12: -0.0188 | BS12: -0.0134 | BT12: -0.0081 | BU12: -0.0032 | BV12: 0.001 | BW12: 0.0042 | BX12: 0.0055 | BY12: 0.0062 | BZ12: 0.0068 | CA12: 0.0075 | CB12: 0.0081 | CC12: 0.0086 | CD12: 0.0091 | CE12: 0.0095 | CF12: 0.0097 | CG12: 0.0099 | CH12: 0.01
A13: 30 | B13: 0.0195 | C13: 0.0194 | D13: 0.019 | E13: 0.0178 | F13: 0.0156 | G13: 0.0128 | H13: 0.0095 | I13: 0.0061 | J13: 0.0024 | K13: -0.0014 | L13: -0.0052 | M13: -0.0088 | N13: -0.0119 | O13: -0.0139 | P13: -0.0147 | Q13: -0.0144 | R13: -0.0128 | S13: -0.01 | T13: -0.0061 | U13: -0.0014 | V13: 0.0034 | W13: 0.008 | X13: 0.0122 | Y13: 0.0155 | Z13: 0.0176 | AA13: 0.0182 | AB13: 0.0173 | AC13: 0.0155 | AD13: 0.0133 | AE13: 0.0111 | AF13: 0.0085 | AG13: 0.005 | AH13: 0.0004 | AI13: -0.005 | AJ13: -0.0101 | AK13: -0.0135 | AL13: -0.0141 | AM13: -0.0125 | AN13: -0.0087 | AO13: -0.0029 | AP13: 0.0041 | AQ13: 0.0118 | AR13: 0.0201 | AS13: 0.0287 | AT13: 0.0363 | AU13: 0.0415 | AV13: 0.0421 | AW13: 0.0384 | AX13: 0.0316 | AY13: 0.0235 | AZ13: 0.0157 | BA13: 0.0094 | BB13: 0.0048 | BC13: 0.0017 | BD13: 0 | BE13: -0.0004 | BF13: -0.0001 | BG13: -0.0004 | BH13: -0.002 | BI13: -0.0053 | BJ13: -0.0101 | BK13: -0.016 | BL13: -0.0225 | BM13: -0.029 | BN13: -0.0345 | BO13: -0.033 | BP13: -0.0299 | BQ13: -0.0256 | BR13: -0.0206 | BS13: -0.0151 | BT13: -0.0096 | BU13: -0.0044 | BV13: 0 | BW13: 0.0034 | BX13: 0.0055 | BY13: 0.0062 | BZ13: 0.0068 | CA13: 0.0075 | CB13: 0.0081 | CC13: 0.0086 | CD13: 0.0091 | CE13: 0.0095 | CF13: 0.0097 | CG13: 0.0099 | CH13: 0.01
A14: 31 | B14: 0.0202 | C14: 0.02 | D14: 0.0195 | E14: 0.0181 | F14: 0.0158 | G14: 0.0127 | H14: 0.0094 | I14: 0.0059 | J14: 0.0023 | K14: -0.0014 | L14: -0.0051 | M14: -0.0086 | N14: -0.0114 | O14: -0.0133 | P14: -0.0138 | Q14: -0.0133 | R14: -0.0115 | S14: -0.0087 | T14: -0.0047 | U14: -0.0001 | V14: 0.0048 | W14: 0.0095 | X14: 0.0137 | Y14: 0.017 | Z14: 0.0191 | AA14: 0.0196 | AB14: 0.0186 | AC14: 0.0166 | AD14: 0.014 | AE14: 0.0111 | AF14: 0.0079 | AG14: 0.0037 | AH14: -0.0015 | AI14: -0.0072 | AJ14: -0.0124 | AK14: -0.0159 | AL14: -0.0165 | AM14: -0.0147 | AN14: -0.0107 | AO14: -0.0048 | AP14: 0.0023 | AQ14: 0.0103 | AR14: 0.0191 | AS14: 0.0283 | AT14: 0.0367 | AU14: 0.0426 | AV14: 0.0438 | AW14: 0.0404 | AX14: 0.0338 | AY14: 0.0259 | AZ14: 0.0181 | BA14: 0.0117 | BB14: 0.007 | BC14: 0.0038 | BD14: 0.0016 | BE14: 0.0008 | BF14: 0.0005 | BG14: -0.0003 | BH14: -0.0022 | BI14: -0.0058 | BJ14: -0.0108 | BK14: -0.0168 | BL14: -0.0234 | BM14: -0.0299 | BN14: -0.0355 | BO14: -0.0342 | BP14: -0.0313 | BQ14: -0.0271 | BR14: -0.0221 | BS14: -0.0166 | BT14: -0.011 | BU14: -0.0057 | BV14: -0.0011 | BW14: 0.0025 | BX14: 0.0048 | BY14: 0.0062 | BZ14: 0.0068 | CA14: 0.0075 | CB14: 0.0081 | CC14: 0.0086 | CD14: 0.0091 | CE14: 0.0095 | CF14: 0.0097 | CG14: 0.0099 | CH14: 0.01
A15: 32 | B15: 0.0207 | C15: 0.0205 | D15: 0.0199 | E15: 0.0184 | F15: 0.0159 | G15: 0.0127 | H15: 0.0092 | I15: 0.0058 | J15: 0.0022 | K15: -0.0014 | L15: -0.005 | M15: -0.0083 | N15: -0.0109 | O15: -0.0126 | P15: -0.0129 | Q15: -0.0123 | R15: -0.0104 | S15: -0.0075 | T15: -0.0034 | U15: 0.0012 | V15: 0.0061 | W15: 0.0108 | X15: 0.0151 | Y15: 0.0185 | Z15: 0.0205 | AA15: 0.021 | AB15: 0.0199 | AC15: 0.0177 | AD15: 0.0148 | AE15: 0.0115 | AF15: 0.0076 | AG15: 0.0029 | AH15: -0.0027 | AI15: -0.0088 | AJ15: -0.0143 | AK15: -0.0178 | AL15: -0.0184 | AM15: -0.0166 | AN15: -0.0126 | AO15: -0.0066 | AP15: 0.0005 | AQ15: 0.0088 | AR15: 0.0178 | AS15: 0.0276 | AT15: 0.0366 | AU15: 0.0431 | AV15: 0.0449 | AW15: 0.0417 | AX15: 0.0354 | AY15: 0.0277 | AZ15: 0.0202 | BA15: 0.014 | BB15: 0.0094 | BC15: 0.0061 | BD15: 0.0036 | BE15: 0.0024 | BF15: 0.0016 | BG15: 0.0004 | BH15: -0.0019 | BI15: -0.0057 | BJ15: -0.0109 | BK15: -0.0171 | BL15: -0.0238 | BM15: -0.0304 | BN15: -0.0359 | BO15: -0.0349 | BP15: -0.0322 | BQ15: -0.0282 | BR15: -0.0233 | BS15: -0.0178 | BT15: -0.0122 | BU15: -0.0068 | BV15: -0.0021 | BW15: 0.0016 | BX15: 0.0041 | BY15: 0.0056 | BZ15: 0.0068 | CA15: 0.0075 | CB15: 0.0081 | CC15: 0.0086 | CD15: 0.0091 | CE15: 0.0095 | CF15: 0.0097 | CG15: 0.0099 | CH15: 0.01
A16: 33 | B16: 0.0211 | C16: 0.0209 | D16: 0.0201 | E16: 0.0185 | F16: 0.0159 | G16: 0.0126 | H16: 0.0091 | I16: 0.0057 | J16: 0.0021 | K16: -0.0014 | L16: -0.0048 | M16: -0.008 | N16: -0.0104 | O16: -0.0119 | P16: -0.0121 | Q16: -0.0113 | R16: -0.0094 | S16: -0.0063 | T16: -0.0022 | U16: 0.0025 | V16: 0.0074 | W16: 0.0121 | X16: 0.0164 | Y16: 0.0198 | Z16: 0.0219 | AA16: 0.0223 | AB16: 0.0212 | AC16: 0.0189 | AD16: 0.0159 | AE16: 0.0122 | AF16: 0.0079 | AG16: 0.0027 | AH16: -0.0034 | AI16: -0.0098 | AJ16: -0.0155 | AK16: -0.0192 | AL16: -0.02 | AM16: -0.0183 | AN16: -0.0143 | AO16: -0.0083 | AP16: -0.0011 | AQ16: 0.0072 | AR16: 0.0165 | AS16: 0.0265 | AT16: 0.036 | AU16: 0.043 | AV16: 0.0452 | AW16: 0.0424 | AX16: 0.0364 | AY16: 0.0291 | AZ16: 0.0219 | BA16: 0.0161 | BB16: 0.0117 | BC16: 0.0084 | BD16: 0.0059 | BE16: 0.0043 | BF16: 0.0031 | BG16: 0.0015 | BH16: -0.0011 | BI16: -0.0051 | BJ16: -0.0105 | BK16: -0.0168 | BL16: -0.0236 | BM16: -0.0302 | BN16: -0.0357 | BO16: -0.035 | BP16: -0.0326 | BQ16: -0.0288 | BR16: -0.0241 | BS16: -0.0188 | BT16: -0.0132 | BU16: -0.0079 | BV16: -0.0031 | BW16: 0.0007 | BX16: 0.0033 | BY16: 0.005 | BZ16: 0.0063 | CA16: 0.0075 | CB16: 0.0081 | CC16: 0.0086 | CD16: 0.0091 | CE16: 0.0095 | CF16: 0.0097 | CG16: 0.0099 | CH16: 0.01
A17: 34 | B17: 0.0213 | C17: 0.0211 | D17: 0.0203 | E17: 0.0186 | F17: 0.0159 | G17: 0.0126 | H17: 0.0091 | I17: 0.0056 | J17: 0.0021 | K17: -0.0013 | L17: -0.0046 | M17: -0.0076 | N17: -0.0099 | O17: -0.0111 | P17: -0.0113 | Q17: -0.0104 | R17: -0.0084 | S17: -0.0053 | T17: -0.0011 | U17: 0.0036 | V17: 0.0085 | W17: 0.0133 | X17: 0.0176 | Y17: 0.021 | Z17: 0.0231 | AA17: 0.0235 | AB17: 0.0224 | AC17: 0.0202 | AD17: 0.0171 | AE17: 0.0132 | AF17: 0.0086 | AG17: 0.0031 | AH17: -0.0033 | AI17: -0.01 | AJ17: -0.0159 | AK17: -0.0199 | AL17: -0.0209 | AM17: -0.0194 | AN17: -0.0156 | AO17: -0.0098 | AP17: -0.0027 | AQ17: 0.0057 | AR17: 0.0151 | AS17: 0.0252 | AT17: 0.0349 | AU17: 0.0422 | AV17: 0.0448 | AW17: 0.0424 | AX17: 0.0367 | AY17: 0.0298 | AZ17: 0.0232 | BA17: 0.0179 | BB17: 0.0138 | BC17: 0.0108 | BD17: 0.0083 | BE17: 0.0065 | BF17: 0.005 | BG17: 0.0031 | BH17: 0.0002 | BI17: -0.004 | BJ17: -0.0095 | BK17: -0.0159 | BL17: -0.0228 | BM17: -0.0295 | BN17: -0.035 | BO17: -0.0345 | BP17: -0.0324 | BQ17: -0.029 | BR17: -0.0245 | BS17: -0.0194 | BT17: -0.014 | BU17: -0.0088 | BV17: -0.004 | BW17: -0.0001 | BX17: 0.0025 | BY17: 0.0043 | BZ17: 0.0058 | CA17: 0.0071 | CB17: 0.0081 | CC17: 0.0086 | CD17: 0.0091 | CE17: 0.0095 | CF17: 0.0097 | CG17: 0.0099 | CH17: 0.01
A18: 35 | B18: 0.0214 | C18: 0.0211 | D18: 0.0203 | E18: 0.0185 | F18: 0.0159 | G18: 0.0126 | H18: 0.0091 | I18: 0.0056 | J18: 0.0022 | K18: -0.0012 | L18: -0.0043 | M18: -0.0072 | N18: -0.0093 | O18: -0.0104 | P18: -0.0105 | Q18: -0.0095 | R18: -0.0074 | S18: -0.0043 | T18: -0.0001 | U18: 0.0046 | V18: 0.0096 | W18: 0.0144 | X18: 0.0186 | Y18: 0.022 | Z18: 0.0241 | AA18: 0.0246 | AB18: 0.0236 | AC18: 0.0214 | AD18: 0.0183 | AE18: 0.0144 | AF18: 0.0096 | AG18: 0.004 | AH18: -0.0026 | AI18: -0.0096 | AJ18: -0.0157 | AK18: -0.0198 | AL18: -0.0212 | AM18: -0.02 | AN18: -0.0165 | AO18: -0.011 | AP18: -0.004 | AQ18: 0.0042 | AR18: 0.0135 | AS18: 0.0236 | AT18: 0.0334 | AU18: 0.0408 | AV18: 0.0437 | AW18: 0.0416 | AX18: 0.0364 | AY18: 0.03 | AZ18: 0.0239 | BA18: 0.0192 | BB18: 0.0156 | BC18: 0.0129 | BD18: 0.0106 | BE18: 0.0088 | BF18: 0.0072 | BG18: 0.0051 | BH18: 0.002 | BI18: -0.0024 | BJ18: -0.008 | BK18: -0.0145 | BL18: -0.0215 | BM18: -0.0281 | BN18: -0.0336 | BO18: -0.0335 | BP18: -0.0318 | BQ18: -0.0286 | BR18: -0.0245 | BS18: -0.0197 | BT18: -0.0145 | BU18: -0.0095 | BV18: -0.0048 | BW18: -0.001 | BX18: 0.0017 | BY18: 0.0036 | BZ18: 0.0053 | CA18: 0.0067 | CB18: 0.0078 | CC18: 0.0086 | CD18: 0.0091 | CE18: 0.0095 | CF18: 0.0097 | CG18: 0.0099 | CH18: 0.01
A19: 36 | B19: 0.0212 | C19: 0.021 | D19: 0.0201 | E19: 0.0184 | F19: 0.0158 | G19: 0.0126 | H19: 0.0091 | I19: 0.0057 | J19: 0.0023 | K19: -0.001 | L19: -0.004 | M19: -0.0067 | N19: -0.0087 | O19: -0.0097 | P19: -0.0096 | Q19: -0.0086 | R19: -0.0065 | S19: -0.0034 | T19: 0.0008 | U19: 0.0056 | V19: 0.0105 | W19: 0.0153 | X19: 0.0195 | Y19: 0.0229 | Z19: 0.0249 | AA19: 0.0255 | AB19: 0.0246 | AC19: 0.0226 | AD19: 0.0196 | AE19: 0.0157 | AF19: 0.0109 | AG19: 0.0052 | AH19: -0.0015 | AI19: -0.0085 | AJ19: -0.0147 | AK19: -0.019 | AL19: -0.0208 | AM19: -0.0199 | AN19: -0.0168 | AO19: -0.0117 | AP19: -0.0051 | AQ19: 0.0028 | AR19: 0.0119 | AS19: 0.0218 | AT19: 0.0314 | AU19: 0.0389 | AV19: 0.042 | AW19: 0.0402 | AX19: 0.0355 | AY19: 0.0297 | AZ19: 0.0242 | BA19: 0.0201 | BB19: 0.017 | BC19: 0.0147 | BD19: 0.0127 | BE19: 0.011 | BF19: 0.0094 | BG19: 0.0072 | BH19: 0.004 | BI19: -0.0004 | BJ19: -0.0061 | BK19: -0.0127 | BL19: -0.0196 | BM19: -0.0263 | BN19: -0.0317 | BO19: -0.0319 | BP19: -0.0305 | BQ19: -0.0278 | BR19: -0.024 | BS19: -0.0196 | BT19: -0.0148 | BU19: -0.0099 | BV19: -0.0055 | BW19: -0.0017 | BX19: 0.001 | BY19: 0.003 | BZ19: 0.0047 | CA19: 0.0062 | CB19: 0.0074 | CC19: 0.0084 | CD19: 0.0091 | CE19: 0.0095 | CF19: 0.0097 | CG19: 0.0099 | CH19: 0.01
A20: 37 | B20: 0.0209 | C20: 0.0207 | D20: 0.0199 | E20: 0.0182 | F20: 0.0156 | G20: 0.0125 | H20: 0.0091 | I20: 0.0058 | J20: 0.0025 | K20: -0.0007 | L20: -0.0036 | M20: -0.0062 | N20: -0.008 | O20: -0.0089 | P20: -0.0088 | Q20: -0.0078 | R20: -0.0057 | S20: -0.0025 | T20: 0.0017 | U20: 0.0064 | V20: 0.0114 | W20: 0.0161 | X20: 0.0203 | Y20: 0.0236 | Z20: 0.0256 | AA20: 0.0263 | AB20: 0.0255 | AC20: 0.0237 | AD20: 0.0209 | AE20: 0.017 | AF20: 0.0123 | AG20: 0.0067 | AH20: 0.0001 | AI20: -0.0069 | AJ20: -0.0131 | AK20: -0.0175 | AL20: -0.0196 | AM20: -0.0192 | AN20: -0.0166 | AO20: -0.012 | AP20: -0.006 | AQ20: 0.0015 | AR20: 0.0102 | AS20: 0.0198 | AT20: 0.0291 | AU20: 0.0365 | AV20: 0.0397 | AW20: 0.0383 | AX20: 0.0341 | AY20: 0.0288 | AZ20: 0.024 | BA20: 0.0205 | BB20: 0.018 | BC20: 0.0161 | BD20: 0.0145 | BE20: 0.0131 | BF20: 0.0116 | BG20: 0.0095 | BH20: 0.0063 | BI20: 0.0019 | BJ20: -0.0039 | BK20: -0.0104 | BL20: -0.0173 | BM20: -0.0239 | BN20: -0.0291 | BO20: -0.0297 | BP20: -0.0287 | BQ20: -0.0265 | BR20: -0.0232 | BS20: -0.0191 | BT20: -0.0147 | BU20: -0.0102 | BV20: -0.006 | BW20: -0.0024 | BX20: 0.0003 | BY20: 0.0023 | BZ20: 0.0042 | CA20: 0.0058 | CB20: 0.0071 | CC20: 0.0081 | CD20: 0.0089 | CE20: 0.0095 | CF20: 0.0097 | CG20: 0.0099 | CH20: 0.01
A21: 38 | B21: 0.0205 | C21: 0.0203 | D21: 0.0195 | E21: 0.0179 | F21: 0.0154 | G21: 0.0124 | H21: 0.0091 | I21: 0.0059 | J21: 0.0027 | K21: -0.0003 | L21: -0.0031 | M21: -0.0055 | N21: -0.0073 | O21: -0.0081 | P21: -0.008 | Q21: -0.0069 | R21: -0.0049 | S21: -0.0017 | T21: 0.0024 | U21: 0.0072 | V21: 0.0121 | W21: 0.0168 | X21: 0.0209 | Y21: 0.0241 | Z21: 0.0261 | AA21: 0.0269 | AB21: 0.0263 | AC21: 0.0247 | AD21: 0.0221 | AE21: 0.0184 | AF21: 0.0138 | AG21: 0.0083 | AH21: 0.0019 | AI21: -0.0048 | AJ21: -0.0109 | AK21: -0.0153 | AL21: -0.0177 | AM21: -0.0178 | AN21: -0.0157 | AO21: -0.0119 | AP21: -0.0065 | AQ21: 0.0003 | AR21: 0.0085 | AS21: 0.0176 | AT21: 0.0266 | AU21: 0.0338 | AV21: 0.037 | AW21: 0.0359 | AX21: 0.0322 | AY21: 0.0276 | AZ21: 0.0233 | BA21: 0.0204 | BB21: 0.0184 | BC21: 0.0171 | BD21: 0.0159 | BE21: 0.0149 | BF21: 0.0136 | BG21: 0.0117 | BH21: 0.0086 | BI21: 0.0043 | BJ21: -0.0014 | BK21: -0.0079 | BL21: -0.0146 | BM21: -0.021 | BN21: -0.0262 | BO21: -0.027 | BP21: -0.0264 | BQ21: -0.0247 | BR21: -0.0219 | BS21: -0.0183 | BT21: -0.0143 | BU21: -0.0102 | BV21: -0.0063 | BW21: -0.0029 | BX21: -0.0003 | BY21: 0.0018 | BZ21: 0.0037 | CA21: 0.0053 | CB21: 0.0068 | CC21: 0.0079 | CD21: 0.0088 | CE21: 0.0094 | CF21: 0.0097 | CG21: 0.0099 | CH21: 0.01
A22: 39 | B22: 0.0199 | C22: 0.0197 | D22: 0.0191 | E22: 0.0176 | F22: 0.0151 | G22: 0.0122 | H22: 0.0091 | I22: 0.006 | J22: 0.003 | K22: 0.0001 | L22: -0.0026 | M22: -0.0049 | N22: -0.0065 | O22: -0.0073 | P22: -0.0072 | Q22: -0.0061 | R22: -0.004 | S22: -0.001 | T22: 0.0031 | U22: 0.0078 | V22: 0.0127 | W22: 0.0173 | X22: 0.0213 | Y22: 0.0245 | Z22: 0.0265 | AA22: 0.0274 | AB22: 0.027 | AC22: 0.0256 | AD22: 0.0231 | AE22: 0.0197 | AF22: 0.0154 | AG22: 0.0101 | AH22: 0.0039 | AI22: -0.0025 | AJ22: -0.0083 | AK22: -0.0126 | AL22: -0.0152 | AM22: -0.0158 | AN22: -0.0144 | AO22: -0.0112 | AP22: -0.0066 | AQ22: -0.0006 | AR22: 0.0069 | AS22: 0.0155 | AT22: 0.024 | AU22: 0.0308 | AV22: 0.034 | AW22: 0.0332 | AX22: 0.03 | AY22: 0.026 | AZ22: 0.0223 | BA22: 0.0199 | BB22: 0.0184 | BC22: 0.0176 | BD22: 0.0169 | BE22: 0.0163 | BF22: 0.0154 | BG22: 0.0137 | BH22: 0.0108 | BI22: 0.0067 | BJ22: 0.0012 | BK22: -0.0051 | BL22: -0.0117 | BM22: -0.0178 | BN22: -0.0228 | BO22: -0.0239 | BP22: -0.0237 | BQ22: -0.0224 | BR22: -0.0202 | BS22: -0.0172 | BT22: -0.0137 | BU22: -0.01 | BV22: -0.0064 | BW22: -0.0032 | BX22: -0.0008 | BY22: 0.0013 | BZ22: 0.0032 | CA22: 0.0049 | CB22: 0.0064 | CC22: 0.0077 | CD22: 0.0086 | CE22: 0.0093 | CF22: 0.0097 | CG22: 0.0099 | CH22: 0.01
A23: 40 | B23: 0.0192 | C23: 0.0191 | D23: 0.0185 | E23: 0.0171 | F23: 0.0148 | G23: 0.012 | H23: 0.009 | I23: 0.0061 | J23: 0.0033 | K23: 0.0005 | L23: -0.0021 | M23: -0.0042 | N23: -0.0057 | O23: -0.0065 | P23: -0.0064 | Q23: -0.0053 | R23: -0.0033 | S23: -0.0002 | T23: 0.0037 | U23: 0.0084 | V23: 0.0132 | W23: 0.0177 | X23: 0.0216 | Y23: 0.0248 | Z23: 0.0268 | AA23: 0.0277 | AB23: 0.0275 | AC23: 0.0263 | AD23: 0.0241 | AE23: 0.0209 | AF23: 0.0169 | AG23: 0.0119 | AH23: 0.0061 | AI23: 0.0001 | AJ23: -0.0054 | AK23: -0.0096 | AL23: -0.0123 | AM23: -0.0133 | AN23: -0.0125 | AO23: -0.0101 | AP23: -0.0064 | AQ23: -0.0012 | AR23: 0.0056 | AS23: 0.0135 | AT23: 0.0214 | AU23: 0.0278 | AV23: 0.0309 | AW23: 0.0303 | AX23: 0.0275 | AY23: 0.024 | AZ23: 0.021 | BA23: 0.0189 | BB23: 0.018 | BC23: 0.0177 | BD23: 0.0174 | BE23: 0.0173 | BF23: 0.0168 | BG23: 0.0155 | BH23: 0.0129 | BI23: 0.0091 | BJ23: 0.0037 | BK23: -0.0023 | BL23: -0.0086 | BM23: -0.0144 | BN23: -0.0191 | BO23: -0.0204 | BP23: -0.0206 | BQ23: -0.0198 | BR23: -0.0181 | BS23: -0.0157 | BT23: -0.0128 | BU23: -0.0096 | BV23: -0.0064 | BW23: -0.0035 | BX23: -0.0011 | BY23: 0.0009 | BZ23: 0.0028 | CA23: 0.0045 | CB23: 0.0061 | CC23: 0.0074 | CD23: 0.0084 | CE23: 0.0092 | CF23: 0.0097 | CG23: 0.0099 | CH23: 0.01
A24: 41 | B24: 0.0185 | C24: 0.0184 | D24: 0.0178 | E24: 0.0166 | F24: 0.0144 | G24: 0.0118 | H24: 0.0089 | I24: 0.0062 | J24: 0.0035 | K24: 0.0008 | L24: -0.0015 | M24: -0.0035 | N24: -0.005 | O24: -0.0057 | P24: -0.0055 | Q24: -0.0045 | R24: -0.0025 | S24: 0.0004 | T24: 0.0043 | U24: 0.0089 | V24: 0.0136 | W24: 0.018 | X24: 0.0218 | Y24: 0.0249 | Z24: 0.027 | AA24: 0.028 | AB24: 0.0279 | AC24: 0.0269 | AD24: 0.0249 | AE24: 0.022 | AF24: 0.0183 | AG24: 0.0137 | AH24: 0.0083 | AI24: 0.0027 | AJ24: -0.0023 | AK24: -0.0064 | AL24: -0.0091 | AM24: -0.0105 | AN24: -0.0103 | AO24: -0.0086 | AP24: -0.0056 | AQ24: -0.0013 | AR24: 0.0046 | AS24: 0.0117 | AT24: 0.0189 | AU24: 0.0248 | AV24: 0.0276 | AW24: 0.0272 | AX24: 0.0248 | AY24: 0.0219 | AZ24: 0.0193 | BA24: 0.0177 | BB24: 0.0173 | BC24: 0.0174 | BD24: 0.0176 | BE24: 0.0179 | BF24: 0.0178 | BG24: 0.0168 | BH24: 0.0145 | BI24: 0.0111 | BJ24: 0.0061 | BK24: 0.0005 | BL24: -0.0054 | BM24: -0.0109 | BN24: -0.0154 | BO24: -0.0168 | BP24: -0.0173 | BQ24: -0.0169 | BR24: -0.0158 | BS24: -0.0139 | BT24: -0.0116 | BU24: -0.0089 | BV24: -0.0061 | BW24: -0.0035 | BX24: -0.0014 | BY24: 0.0005 | BZ24: 0.0024 | CA24: 0.0042 | CB24: 0.0058 | CC24: 0.0072 | CD24: 0.0083 | CE24: 0.0091 | CF24: 0.0096 | CG24: 0.0099 | CH24: 0.01
A25: 42 | B25: 0.0177 | C25: 0.0176 | D25: 0.0171 | E25: 0.016 | F25: 0.014 | G25: 0.0115 | H25: 0.0088 | I25: 0.0063 | J25: 0.0037 | K25: 0.0012 | L25: -0.001 | M25: -0.0029 | N25: -0.0042 | O25: -0.0049 | P25: -0.0047 | Q25: -0.0037 | R25: -0.0017 | S25: 0.0011 | T25: 0.0049 | U25: 0.0093 | V25: 0.0138 | W25: 0.0181 | X25: 0.0219 | Y25: 0.025 | Z25: 0.0271 | AA25: 0.0282 | AB25: 0.0282 | AC25: 0.0274 | AD25: 0.0256 | AE25: 0.0229 | AF25: 0.0196 | AG25: 0.0154 | AH25: 0.0105 | AI25: 0.0054 | AJ25: 0.0007 | AK25: -0.0031 | AL25: -0.0059 | AM25: -0.0075 | AN25: -0.0078 | AO25: -0.0067 | AP25: -0.0045 | AQ25: -0.0009 | AR25: 0.0042 | AS25: 0.0103 | AT25: 0.0167 | AU25: 0.0219 | AV25: 0.0244 | AW25: 0.0241 | AX25: 0.0221 | AY25: 0.0196 | AZ25: 0.0175 | BA25: 0.0163 | BB25: 0.0162 | BC25: 0.0168 | BD25: 0.0173 | BE25: 0.0181 | BF25: 0.0184 | BG25: 0.0177 | BH25: 0.0158 | BI25: 0.0128 | BJ25: 0.0083 | BK25: 0.0031 | BL25: -0.0024 | BM25: -0.0074 | BN25: -0.0116 | BO25: -0.0131 | BP25: -0.0138 | BQ25: -0.0139 | BR25: -0.0132 | BS25: -0.0119 | BT25: -0.0101 | BU25: -0.008 | BV25: -0.0057 | BW25: -0.0034 | BX25: -0.0015 | BY25: 0.0003 | BZ25: 0.0022 | CA25: 0.0039 | CB25: 0.0056 | CC25: 0.007 | CD25: 0.0081 | CE25: 0.009 | CF25: 0.0096 | CG25: 0.0099 | CH25: 0.01
A26: 43 | B26: 0.0169 | C26: 0.0168 | D26: 0.0164 | E26: 0.0153 | F26: 0.0135 | G26: 0.0111 | H26: 0.0086 | I26: 0.0062 | J26: 0.0038 | K26: 0.0015 | L26: -0.0006 | M26: -0.0023 | N26: -0.0035 | O26: -0.0041 | P26: -0.0039 | Q26: -0.0029 | R26: -0.001 | S26: 0.0018 | T26: 0.0054 | U26: 0.0096 | V26: 0.014 | W26: 0.0181 | X26: 0.0218 | Y26: 0.0249 | Z26: 0.0271 | AA26: 0.0282 | AB26: 0.0284 | AC26: 0.0277 | AD26: 0.0261 | AE26: 0.0237 | AF26: 0.0207 | AG26: 0.017 | AH26: 0.0126 | AI26: 0.008 | AJ26: 0.0037 | AK26: 0.0001 | AL26: -0.0027 | AM26: -0.0045 | AN26: -0.0051 | AO26: -0.0045 | AP26: -0.0029 | AQ26: -0.0001 | AR26: 0.0042 | AS26: 0.0094 | AT26: 0.0148 | AU26: 0.0192 | AV26: 0.0214 | AW26: 0.0211 | AX26: 0.0193 | AY26: 0.0172 | AZ26: 0.0156 | BA26: 0.0148 | BB26: 0.015 | BC26: 0.0159 | BD26: 0.0168 | BE26: 0.0179 | BF26: 0.0185 | BG26: 0.0181 | BH26: 0.0166 | BI26: 0.014 | BJ26: 0.01 | BK26: 0.0054 | BL26: 0.0005 | BM26: -0.0041 | BN26: -0.0079 | BO26: -0.0094 | BP26: -0.0104 | BQ26: -0.0107 | BR26: -0.0105 | BS26: -0.0097 | BT26: -0.0085 | BU26: -0.0069 | BV26: -0.0051 | BW26: -0.0032 | BX26: -0.0014 | BY26: 0.0002 | BZ26: 0.002 | CA26: 0.0037 | CB26: 0.0054 | CC26: 0.0068 | CD26: 0.008 | CE26: 0.0089 | CF26: 0.0095 | CG26: 0.0099 | CH26: 0.01
A27: 44 | B27: 0.0161 | C27: 0.016 | D27: 0.0156 | E27: 0.0146 | F27: 0.0129 | G27: 0.0107 | H27: 0.0084 | I27: 0.0061 | J27: 0.0039 | K27: 0.0017 | L27: -0.0002 | M27: -0.0018 | N27: -0.0029 | O27: -0.0033 | P27: -0.0031 | Q27: -0.0021 | R27: -0.0002 | S27: 0.0024 | T27: 0.0059 | U27: 0.0099 | V27: 0.0141 | W27: 0.018 | X27: 0.0217 | Y27: 0.0248 | Z27: 0.027 | AA27: 0.0282 | AB27: 0.0285 | AC27: 0.0279 | AD27: 0.0265 | AE27: 0.0243 | AF27: 0.0217 | AG27: 0.0184 | AH27: 0.0146 | AI27: 0.0105 | AJ27: 0.0066 | AK27: 0.0032 | AL27: 0.0005 | AM27: -0.0015 | AN27: -0.0023 | AO27: -0.0022 | AP27: -0.001 | AQ27: 0.0012 | AR27: 0.0046 | AS27: 0.0089 | AT27: 0.0133 | AU27: 0.017 | AV27: 0.0187 | AW27: 0.0183 | AX27: 0.0167 | AY27: 0.0149 | AZ27: 0.0136 | BA27: 0.0132 | BB27: 0.0137 | BC27: 0.0148 | BD27: 0.016 | BE27: 0.0173 | BF27: 0.0181 | BG27: 0.0181 | BH27: 0.017 | BI27: 0.0147 | BJ27: 0.0114 | BK27: 0.0074 | BL27: 0.003 | BM27: -0.0011 | BN27: -0.0046 | BO27: -0.006 | BP27: -0.007 | BQ27: -0.0076 | BR27: -0.0078 | BS27: -0.0075 | BT27: -0.0067 | BU27: -0.0056 | BV27: -0.0043 | BW27: -0.0027 | BX27: -0.0012 | BY27: 0.0003 | BZ27: 0.0019 | CA27: 0.0036 | CB27: 0.0052 | CC27: 0.0066 | CD27: 0.0079 | CE27: 0.0088 | CF27: 0.0095 | CG27: 0.0099 | CH27: 0.01
A28: 45 | B28: 0.0153 | C28: 0.0152 | D28: 0.0148 | E28: 0.0139 | F28: 0.0123 | G28: 0.0103 | H28: 0.0081 | I28: 0.006 | J28: 0.0039 | K28: 0.0019 | L28: 0.0002 | M28: -0.0013 | N28: -0.0023 | O28: -0.0026 | P28: -0.0023 | Q28: -0.0013 | R28: 0.0005 | S28: 0.0031 | T28: 0.0064 | U28: 0.0102 | V28: 0.0142 | W28: 0.0179 | X28: 0.0215 | Y28: 0.0246 | Z28: 0.0268 | AA28: 0.0281 | AB28: 0.0284 | AC28: 0.0279 | AD28: 0.0267 | AE28: 0.0248 | AF28: 0.0225 | AG28: 0.0197 | AH28: 0.0163 | AI28: 0.0127 | AJ28: 0.0091 | AK28: 0.006 | AL28: 0.0034 | AM28: 0.0015 | AN28: 0.0005 | AO28: 0.0003 | AP28: 0.0011 | AQ28: 0.0028 | AR28: 0.0054 | AS28: 0.0088 | AT28: 0.0123 | AU28: 0.0151 | AV28: 0.0164 | AW28: 0.0159 | AX28: 0.0144 | AY28: 0.0128 | AZ28: 0.0117 | BA28: 0.0115 | BB28: 0.0122 | BC28: 0.0135 | BD28: 0.0149 | BE28: 0.0164 | BF28: 0.0174 | BG28: 0.0176 | BH28: 0.0169 | BI28: 0.0151 | BJ28: 0.0123 | BK28: 0.0089 | BL28: 0.0051 | BM28: 0.0014 | BN28: -0.0016 | BO28: -0.0029 | BP28: -0.0039 | BQ28: -0.0047 | BR28: -0.0051 | BS28: -0.0052 | BT28: -0.0049 | BU28: -0.0042 | BV28: -0.0033 | BW28: -0.0021 | BX28: -0.0009 | BY28: 0.0004 | BZ28: 0.002 | CA28: 0.0035 | CB28: 0.0051 | CC28: 0.0065 | CD28: 0.0078 | CE28: 0.0088 | CF28: 0.0095 | CG28: 0.0099 | CH28: 0.01
A29: 46 | B29: 0.0145 | C29: 0.0143 | D29: 0.0139 | E29: 0.0131 | F29: 0.0117 | G29: 0.0098 | H29: 0.0078 | I29: 0.0058 | J29: 0.0038 | K29: 0.002 | L29: 0.0005 | M29: -0.0009 | N29: -0.0017 | O29: -0.0019 | P29: -0.0016 | Q29: -0.0005 | R29: 0.0013 | S29: 0.0037 | T29: 0.007 | U29: 0.0105 | V29: 0.0142 | W29: 0.0178 | X29: 0.0213 | Y29: 0.0243 | Z29: 0.0266 | AA29: 0.0278 | AB29: 0.0282 | AC29: 0.0278 | AD29: 0.0268 | AE29: 0.0252 | AF29: 0.0232 | AG29: 0.0208 | AH29: 0.0179 | AI29: 0.0146 | AJ29: 0.0115 | AK29: 0.0086 | AL29: 0.0062 | AM29: 0.0043 | AN29: 0.0032 | AO29: 0.0029 | AP29: 0.0033 | AQ29: 0.0046 | AR29: 0.0065 | AS29: 0.009 | AT29: 0.0117 | AU29: 0.0138 | AV29: 0.0146 | AW29: 0.0139 | AX29: 0.0124 | AY29: 0.0109 | AZ29: 0.01 | BA29: 0.0099 | BB29: 0.0107 | BC29: 0.0121 | BD29: 0.0137 | BE29: 0.0153 | BF29: 0.0164 | BG29: 0.0169 | BH29: 0.0164 | BI29: 0.015 | BJ29: 0.0128 | BK29: 0.0099 | BL29: 0.0066 | BM29: 0.0035 | BN29: 0.0009 | BO29: -0.0002 | BP29: -0.0012 | BQ29: -0.002 | BR29: -0.0026 | BS29: -0.003 | BT29: -0.003 | BU29: -0.0028 | BV29: -0.0022 | BW29: -0.0014 | BX29: -0.0004 | BY29: 0.0007 | BZ29: 0.0021 | CA29: 0.0036 | CB29: 0.005 | CC29: 0.0064 | CD29: 0.0077 | CE29: 0.0087 | CF29: 0.0094 | CG29: 0.0099 | CH29: 0.01
A30: 47 | B30: 0.0137 | C30: 0.0135 | D30: 0.0131 | E30: 0.0124 | F30: 0.011 | G30: 0.0093 | H30: 0.0074 | I30: 0.0055 | J30: 0.0037 | K30: 0.002 | L30: 0.0007 | M30: -0.0005 | N30: -0.0012 | O30: -0.0013 | P30: -0.0009 | Q30: 0.0002 | R30: 0.002 | S30: 0.0044 | T30: 0.0075 | U30: 0.0109 | V30: 0.0144 | W30: 0.0177 | X30: 0.0211 | Y30: 0.024 | Z30: 0.0262 | AA30: 0.0274 | AB30: 0.0279 | AC30: 0.0276 | AD30: 0.0267 | AE30: 0.0254 | AF30: 0.0237 | AG30: 0.0216 | AH30: 0.0191 | AI30: 0.0163 | AJ30: 0.0134 | AK30: 0.0109 | AL30: 0.0087 | AM30: 0.007 | AN30: 0.0059 | AO30: 0.0055 | AP30: 0.0056 | AQ30: 0.0064 | AR30: 0.0078 | AS30: 0.0096 | AT30: 0.0115 | AU30: 0.013 | AV30: 0.0134 | AW30: 0.0125 | AX30: 0.011 | AY30: 0.0095 | AZ30: 0.0085 | BA30: 0.0085 | BB30: 0.0092 | BC30: 0.0106 | BD30: 0.0122 | BE30: 0.0139 | BF30: 0.0152 | BG30: 0.0158 | BH30: 0.0157 | BI30: 0.0146 | BJ30: 0.0129 | BK30: 0.0105 | BL30: 0.0077 | BM30: 0.0051 | BN30: 0.0029 | BO30: 0.002 | BP30: 0.0012 | BQ30: 0.0004 | BR30: -0.0003 | BS30: -0.0009 | BT30: -0.0012 | BU30: -0.0012 | BV30: -0.001 | BW30: -0.0005 | BX30: 0.0002 | BY30: 0.0011 | BZ30: 0.0023 | CA30: 0.0037 | CB30: 0.0051 | CC30: 0.0064 | CD30: 0.0076 | CE30: 0.0086 | CF30: 0.0094 | CG30: 0.0099 | CH30: 0.01
A31: 48 | B31: 0.0128 | C31: 0.0127 | D31: 0.0124 | E31: 0.0117 | F31: 0.0104 | G31: 0.0088 | H31: 0.007 | I31: 0.0053 | J31: 0.0036 | K31: 0.0021 | L31: 0.0009 | M31: -0.0002 | N31: -0.0008 | O31: -0.0008 | P31: -0.0003 | Q31: 0.0008 | R31: 0.0026 | S31: 0.005 | T31: 0.008 | U31: 0.0112 | V31: 0.0145 | W31: 0.0177 | X31: 0.0209 | Y31: 0.0236 | Z31: 0.0257 | AA31: 0.027 | AB31: 0.0274 | AC31: 0.0273 | AD31: 0.0266 | AE31: 0.0254 | AF31: 0.024 | AG31: 0.0222 | AH31: 0.0201 | AI31: 0.0176 | AJ31: 0.0151 | AK31: 0.0129 | AL31: 0.0109 | AM31: 0.0094 | AN31: 0.0084 | AO31: 0.0079 | AP31: 0.0078 | AQ31: 0.0083 | AR31: 0.0091 | AS31: 0.0103 | AT31: 0.0117 | AU31: 0.0127 | AV31: 0.0127 | AW31: 0.0117 | AX31: 0.01 | AY31: 0.0084 | AZ31: 0.0074 | BA31: 0.0072 | BB31: 0.0078 | BC31: 0.0091 | BD31: 0.0108 | BE31: 0.0125 | BF31: 0.0139 | BG31: 0.0146 | BH31: 0.0147 | BI31: 0.014 | BJ31: 0.0125 | BK31: 0.0106 | BL31: 0.0083 | BM31: 0.0061 | BN31: 0.0043 | BO31: 0.0037 | BP31: 0.003 | BQ31: 0.0023 | BR31: 0.0016 | BS31: 0.001 | BT31: 0.0005 | BU31: 0.0003 | BV31: 0.0003 | BW31: 0.0005 | BX31: 0.001 | BY31: 0.0017 | BZ31: 0.0027 | CA31: 0.0039 | CB31: 0.0051 | CC31: 0.0064 | CD31: 0.0076 | CE31: 0.0086 | CF31: 0.0094 | CG31: 0.0098 | CH31: 0.01
A32: 49 | B32: 0.012 | C32: 0.0119 | D32: 0.0116 | E32: 0.011 | F32: 0.0098 | G32: 0.0083 | H32: 0.0066 | I32: 0.0049 | J32: 0.0034 | K32: 0.0021 | L32: 0.001 | M32: 0.0001 | N32: -0.0004 | O32: -0.0003 | P32: 0.0003 | Q32: 0.0014 | R32: 0.0032 | S32: 0.0055 | T32: 0.0084 | U32: 0.0115 | V32: 0.0147 | W32: 0.0177 | X32: 0.0207 | Y32: 0.0233 | Z32: 0.0253 | AA32: 0.0264 | AB32: 0.0269 | AC32: 0.0268 | AD32: 0.0263 | AE32: 0.0254 | AF32: 0.0242 | AG32: 0.0226 | AH32: 0.0208 | AI32: 0.0186 | AJ32: 0.0165 | AK32: 0.0146 | AL32: 0.0129 | AM32: 0.0117 | AN32: 0.0108 | AO32: 0.0102 | AP32: 0.0099 | AQ32: 0.01 | AR32: 0.0105 | AS32: 0.0112 | AT32: 0.0122 | AU32: 0.0128 | AV32: 0.0126 | AW32: 0.0113 | AX32: 0.0096 | AY32: 0.0078 | AZ32: 0.0066 | BA32: 0.0062 | BB32: 0.0066 | BC32: 0.0078 | BD32: 0.0094 | BE32: 0.0111 | BF32: 0.0125 | BG32: 0.0133 | BH32: 0.0135 | BI32: 0.013 | BJ32: 0.0119 | BK32: 0.0103 | BL32: 0.0084 | BM32: 0.0066 | BN32: 0.0051 | BO32: 0.0048 | BP32: 0.0044 | BQ32: 0.0038 | BR32: 0.0032 | BS32: 0.0026 | BT32: 0.0021 | BU32: 0.0017 | BV32: 0.0015 | BW32: 0.0016 | BX32: 0.0018 | BY32: 0.0023 | BZ32: 0.0031 | CA32: 0.0041 | CB32: 0.0053 | CC32: 0.0065 | CD32: 0.0076 | CE32: 0.0086 | CF32: 0.0094 | CG32: 0.0098 | CH32: 0.01
A33: 50 | B33: 0.0112 | C33: 0.0111 | D33: 0.0109 | E33: 0.0103 | F33: 0.0092 | G33: 0.0077 | H33: 0.0061 | I33: 0.0046 | J33: 0.0033 | K33: 0.002 | L33: 0.0011 | M33: 0.0003 | N33: -0.0001 | O33: 0.0001 | P33: 0.0007 | Q33: 0.0019 | R33: 0.0037 | S33: 0.006 | T33: 0.0088 | U33: 0.0118 | V33: 0.0148 | W33: 0.0178 | X33: 0.0206 | Y33: 0.023 | Z33: 0.0248 | AA33: 0.0259 | AB33: 0.0264 | AC33: 0.0264 | AD33: 0.026 | AE33: 0.0252 | AF33: 0.0242 | AG33: 0.0228 | AH33: 0.0212 | AI33: 0.0194 | AJ33: 0.0176 | AK33: 0.016 | AL33: 0.0146 | AM33: 0.0136 | AN33: 0.0128 | AO33: 0.0123 | AP33: 0.0119 | AQ33: 0.0117 | AR33: 0.0118 | AS33: 0.0123 | AT33: 0.0129 | AU33: 0.0132 | AV33: 0.0128 | AW33: 0.0114 | AX33: 0.0095 | AY33: 0.0077 | AZ33: 0.0063 | BA33: 0.0056 | BB33: 0.0058 | BC33: 0.0068 | BD33: 0.0082 | BE33: 0.0098 | BF33: 0.0111 | BG33: 0.012 | BH33: 0.0123 | BI33: 0.0119 | BJ33: 0.0109 | BK33: 0.0096 | BL33: 0.0081 | BM33: 0.0067 | BN33: 0.0055 | BO33: 0.0054 | BP33: 0.0052 | BQ33: 0.0049 | BR33: 0.0045 | BS33: 0.004 | BT33: 0.0035 | BU33: 0.0031 | BV33: 0.0028 | BW33: 0.0027 | BX33: 0.0027 | BY33: 0.003 | BZ33: 0.0036 | CA33: 0.0045 | CB33: 0.0055 | CC33: 0.0066 | CD33: 0.0077 | CE33: 0.0086 | CF33: 0.0094 | CG33: 0.0098 | CH33: 0.01
A34: 51 | B34: 0.0104 | C34: 0.0104 | D34: 0.0102 | E34: 0.0096 | F34: 0.0086 | G34: 0.0072 | H34: 0.0057 | I34: 0.0043 | J34: 0.0031 | K34: 0.002 | L34: 0.0011 | M34: 0.0005 | N34: 0.0002 | O34: 0.0003 | P34: 0.001 | Q34: 0.0023 | R34: 0.0041 | S34: 0.0063 | T34: 0.0091 | U34: 0.012 | V34: 0.0149 | W34: 0.0178 | X34: 0.0205 | Y34: 0.0227 | Z34: 0.0244 | AA34: 0.0254 | AB34: 0.0259 | AC34: 0.0259 | AD34: 0.0255 | AE34: 0.0249 | AF34: 0.024 | AG34: 0.0228 | AH34: 0.0214 | AI34: 0.0199 | AJ34: 0.0184 | AK34: 0.0171 | AL34: 0.016 | AM34: 0.0153 | AN34: 0.0146 | AO34: 0.0141 | AP34: 0.0136 | AQ34: 0.0133 | AR34: 0.0132 | AS34: 0.0134 | AT34: 0.0137 | AU34: 0.0139 | AV34: 0.0133 | AW34: 0.0118 | AX34: 0.0099 | AY34: 0.008 | AZ34: 0.0064 | BA34: 0.0055 | BB34: 0.0054 | BC34: 0.0061 | BD34: 0.0072 | BE34: 0.0086 | BF34: 0.0099 | BG34: 0.0106 | BH34: 0.0109 | BI34: 0.0106 | BJ34: 0.0098 | BK34: 0.0087 | BL34: 0.0075 | BM34: 0.0063 | BN34: 0.0054 | BO34: 0.0055 | BP34: 0.0056 | BQ34: 0.0055 | BR34: 0.0053 | BS34: 0.005 | BT34: 0.0047 | BU34: 0.0043 | BV34: 0.0039 | BW34: 0.0037 | BX34: 0.0037 | BY34: 0.0038 | BZ34: 0.0042 | CA34: 0.0049 | CB34: 0.0058 | CC34: 0.0067 | CD34: 0.0077 | CE34: 0.0086 | CF34: 0.0094 | CG34: 0.0098 | CH34: 0.01
A35: 52 | B35: 0.0097 | C35: 0.0097 | D35: 0.0095 | E35: 0.009 | F35: 0.008 | G35: 0.0067 | H35: 0.0053 | I35: 0.004 | J35: 0.0029 | K35: 0.0019 | L35: 0.0012 | M35: 0.0006 | N35: 0.0003 | O35: 0.0006 | P35: 0.0012 | Q35: 0.0025 | R35: 0.0043 | S35: 0.0065 | T35: 0.0092 | U35: 0.0121 | V35: 0.015 | W35: 0.0178 | X35: 0.0204 | Y35: 0.0225 | Z35: 0.0241 | AA35: 0.025 | AB35: 0.0254 | AC35: 0.0254 | AD35: 0.025 | AE35: 0.0244 | AF35: 0.0236 | AG35: 0.0226 | AH35: 0.0214 | AI35: 0.0202 | AJ35: 0.019 | AK35: 0.018 | AL35: 0.0172 | AM35: 0.0166 | AN35: 0.0161 | AO35: 0.0156 | AP35: 0.0151 | AQ35: 0.0147 | AR35: 0.0145 | AS35: 0.0145 | AT35: 0.0147 | AU35: 0.0146 | AV35: 0.0139 | AW35: 0.0124 | AX35: 0.0105 | AY35: 0.0086 | AZ35: 0.007 | BA35: 0.0058 | BB35: 0.0056 | BC35: 0.0059 | BD35: 0.0067 | BE35: 0.0078 | BF35: 0.0087 | BG35: 0.0093 | BH35: 0.0095 | BI35: 0.0093 | BJ35: 0.0085 | BK35: 0.0075 | BL35: 0.0066 | BM35: 0.0057 | BN35: 0.005 | BO35: 0.0053 | BP35: 0.0056 | BQ35: 0.0058 | BR35: 0.0058 | BS35: 0.0057 | BT35: 0.0056 | BU35: 0.0053 | BV35: 0.005 | BW35: 0.0048 | BX35: 0.0046 | BY35: 0.0046 | BZ35: 0.0049 | CA35: 0.0054 | CB35: 0.0061 | CC35: 0.0069 | CD35: 0.0078 | CE35: 0.0087 | CF35: 0.0094 | CG35: 0.0098 | CH35: 0.01
A36: 53 | B36: 0.009 | C36: 0.009 | D36: 0.0089 | E36: 0.0084 | F36: 0.0074 | G36: 0.0062 | H36: 0.0049 | I36: 0.0037 | J36: 0.0027 | K36: 0.0018 | L36: 0.0011 | M36: 0.0006 | N36: 0.0004 | O36: 0.0007 | P36: 0.0014 | Q36: 0.0026 | R36: 0.0044 | S36: 0.0066 | T36: 0.0093 | U36: 0.0121 | V36: 0.015 | W36: 0.0177 | X36: 0.0203 | Y36: 0.0223 | Z36: 0.0238 | AA36: 0.0247 | AB36: 0.025 | AC36: 0.0249 | AD36: 0.0245 | AE36: 0.0239 | AF36: 0.0231 | AG36: 0.0223 | AH36: 0.0213 | AI36: 0.0203 | AJ36: 0.0194 | AK36: 0.0186 | AL36: 0.018 | AM36: 0.0176 | AN36: 0.0172 | AO36: 0.0168 | AP36: 0.0164 | AQ36: 0.016 | AR36: 0.0157 | AS36: 0.0156 | AT36: 0.0156 | AU36: 0.0154 | AV36: 0.0146 | AW36: 0.0132 | AX36: 0.0113 | AY36: 0.0095 | AZ36: 0.0079 | BA36: 0.0067 | BB36: 0.0062 | BC36: 0.0062 | BD36: 0.0066 | BE36: 0.0072 | BF36: 0.0078 | BG36: 0.0081 | BH36: 0.0082 | BI36: 0.0079 | BJ36: 0.0072 | BK36: 0.0063 | BL36: 0.0055 | BM36: 0.0048 | BN36: 0.0043 | BO36: 0.0048 | BP36: 0.0052 | BQ36: 0.0057 | BR36: 0.006 | BS36: 0.0062 | BT36: 0.0062 | BU36: 0.0061 | BV36: 0.006 | BW36: 0.0057 | BX36: 0.0055 | BY36: 0.0054 | BZ36: 0.0055 | CA36: 0.0059 | CB36: 0.0065 | CC36: 0.0072 | CD36: 0.008 | CE36: 0.0087 | CF36: 0.0094 | CG36: 0.0098 | CH36: 0.01
A37: 54 | B37: 0.0084 | C37: 0.0084 | D37: 0.0083 | E37: 0.0078 | F37: 0.0068 | G37: 0.0057 | H37: 0.0044 | I37: 0.0034 | J37: 0.0025 | K37: 0.0017 | L37: 0.0011 | M37: 0.0006 | N37: 0.0004 | O37: 0.0008 | P37: 0.0015 | Q37: 0.0027 | R37: 0.0044 | S37: 0.0066 | T37: 0.0092 | U37: 0.0121 | V37: 0.0149 | W37: 0.0176 | X37: 0.0201 | Y37: 0.0222 | Z37: 0.0236 | AA37: 0.0244 | AB37: 0.0247 | AC37: 0.0245 | AD37: 0.024 | AE37: 0.0233 | AF37: 0.0226 | AG37: 0.0218 | AH37: 0.021 | AI37: 0.0202 | AJ37: 0.0196 | AK37: 0.0191 | AL37: 0.0187 | AM37: 0.0184 | AN37: 0.0181 | AO37: 0.0178 | AP37: 0.0174 | AQ37: 0.0171 | AR37: 0.0168 | AS37: 0.0166 | AT37: 0.0165 | AU37: 0.0162 | AV37: 0.0154 | AW37: 0.014 | AX37: 0.0123 | AY37: 0.0106 | AZ37: 0.0091 | BA37: 0.0079 | BB37: 0.0072 | BC37: 0.0069 | BD37: 0.0069 | BE37: 0.007 | BF37: 0.0072 | BG37: 0.0072 | BH37: 0.007 | BI37: 0.0066 | BJ37: 0.0059 | BK37: 0.0051 | BL37: 0.0044 | BM37: 0.0038 | BN37: 0.0034 | BO37: 0.004 | BP37: 0.0046 | BQ37: 0.0053 | BR37: 0.0059 | BS37: 0.0063 | BT37: 0.0066 | BU37: 0.0067 | BV37: 0.0067 | BW37: 0.0066 | BX37: 0.0064 | BY37: 0.0062 | BZ37: 0.0062 | CA37: 0.0064 | CB37: 0.0069 | CC37: 0.0074 | CD37: 0.0081 | CE37: 0.0088 | CF37: 0.0094 | CG37: 0.0098 | CH37: 0.01
A38: 55 | B38: 0.0078 | C38: 0.0078 | D38: 0.0076 | E38: 0.0072 | F38: 0.0062 | G38: 0.0051 | H38: 0.004 | I38: 0.0031 | J38: 0.0022 | K38: 0.0015 | L38: 0.001 | M38: 0.0005 | N38: 0.0004 | O38: 0.0008 | P38: 0.0015 | Q38: 0.0027 | R38: 0.0044 | S38: 0.0066 | T38: 0.0092 | U38: 0.012 | V38: 0.0148 | W38: 0.0175 | X38: 0.02 | Y38: 0.022 | Z38: 0.0234 | AA38: 0.0242 | AB38: 0.0244 | AC38: 0.0241 | AD38: 0.0235 | AE38: 0.0227 | AF38: 0.022 | AG38: 0.0213 | AH38: 0.0206 | AI38: 0.02 | AJ38: 0.0196 | AK38: 0.0193 | AL38: 0.019 | AM38: 0.0188 | AN38: 0.0187 | AO38: 0.0185 | AP38: 0.0183 | AQ38: 0.018 | AR38: 0.0177 | AS38: 0.0176 | AT38: 0.0173 | AU38: 0.0169 | AV38: 0.0161 | AW38: 0.0149 | AX38: 0.0134 | AY38: 0.0119 | AZ38: 0.0105 | BA38: 0.0094 | BB38: 0.0085 | BC38: 0.008 | BD38: 0.0075 | BE38: 0.0072 | BF38: 0.0069 | BG38: 0.0066 | BH38: 0.0062 | BI38: 0.0056 | BJ38: 0.0048 | BK38: 0.004 | BL38: 0.0033 | BM38: 0.0028 | BN38: 0.0024 | BO38: 0.0031 | BP38: 0.0038 | BQ38: 0.0047 | BR38: 0.0055 | BS38: 0.0062 | BT38: 0.0068 | BU38: 0.0071 | BV38: 0.0073 | BW38: 0.0073 | BX38: 0.0071 | BY38: 0.0069 | BZ38: 0.0068 | CA38: 0.007 | CB38: 0.0073 | CC38: 0.0077 | CD38: 0.0083 | CE38: 0.0089 | CF38: 0.0095 | CG38: 0.0098 | CH38: 0.01
A39: 56 | B39: 0.0072 | C39: 0.0072 | D39: 0.007 | E39: 0.0065 | F39: 0.0056 | G39: 0.0046 | H39: 0.0036 | I39: 0.0027 | J39: 0.0019 | K39: 0.0013 | L39: 0.0008 | M39: 0.0004 | N39: 0.0003 | O39: 0.0007 | P39: 0.0015 | Q39: 0.0027 | R39: 0.0044 | S39: 0.0065 | T39: 0.0091 | U39: 0.0118 | V39: 0.0147 | W39: 0.0173 | X39: 0.0197 | Y39: 0.0218 | Z39: 0.0232 | AA39: 0.0239 | AB39: 0.024 | AC39: 0.0237 | AD39: 0.023 | AE39: 0.0222 | AF39: 0.0214 | AG39: 0.0208 | AH39: 0.0202 | AI39: 0.0197 | AJ39: 0.0194 | AK39: 0.0193 | AL39: 0.0192 | AM39: 0.0191 | AN39: 0.0191 | AO39: 0.019 | AP39: 0.0189 | AQ39: 0.0187 | AR39: 0.0185 | AS39: 0.0183 | AT39: 0.0181 | AU39: 0.0176 | AV39: 0.0169 | AW39: 0.0158 | AX39: 0.0145 | AY39: 0.0133 | AZ39: 0.012 | BA39: 0.011 | BB39: 0.01 | BC39: 0.0093 | BD39: 0.0085 | BE39: 0.0078 | BF39: 0.0071 | BG39: 0.0064 | BH39: 0.0056 | BI39: 0.0048 | BJ39: 0.0038 | BK39: 0.003 | BL39: 0.0022 | BM39: 0.0017 | BN39: 0.0014 | BO39: 0.0021 | BP39: 0.0029 | BQ39: 0.004 | BR39: 0.005 | BS39: 0.0059 | BT39: 0.0067 | BU39: 0.0073 | BV39: 0.0077 | BW39: 0.0078 | BX39: 0.0077 | BY39: 0.0075 | BZ39: 0.0074 | CA39: 0.0075 | CB39: 0.0077 | CC39: 0.008 | CD39: 0.0085 | CE39: 0.009 | CF39: 0.0095 | CG39: 0.0099 | CH39: 0.01
A40: 57 | B40: 0.0065 | C40: 0.0065 | D40: 0.0064 | E40: 0.0059 | F40: 0.005 | G40: 0.004 | H40: 0.0031 | I40: 0.0023 | J40: 0.0016 | K40: 0.001 | L40: 0.0006 | M40: 0.0002 | N40: 0.0002 | O40: 0.0006 | P40: 0.0014 | Q40: 0.0026 | R40: 0.0044 | S40: 0.0065 | T40: 0.009 | U40: 0.0117 | V40: 0.0145 | W40: 0.0171 | X40: 0.0195 | Y40: 0.0215 | Z40: 0.0228 | AA40: 0.0235 | AB40: 0.0236 | AC40: 0.0233 | AD40: 0.0225 | AE40: 0.0217 | AF40: 0.0209 | AG40: 0.0203 | AH40: 0.0197 | AI40: 0.0194 | AJ40: 0.0192 | AK40: 0.0192 | AL40: 0.0192 | AM40: 0.0192 | AN40: 0.0193 | AO40: 0.0193 | AP40: 0.0193 | AQ40: 0.0192 | AR40: 0.019 | AS40: 0.0189 | AT40: 0.0187 | AU40: 0.0183 | AV40: 0.0177 | AW40: 0.0168 | AX40: 0.0157 | AY40: 0.0147 | AZ40: 0.0136 | BA40: 0.0126 | BB40: 0.0116 | BC40: 0.0107 | BD40: 0.0097 | BE40: 0.0087 | BF40: 0.0076 | BG40: 0.0065 | BH40: 0.0055 | BI40: 0.0044 | BJ40: 0.0032 | BK40: 0.0021 | BL40: 0.0013 | BM40: 0.0007 | BN40: 0.0004 | BO40: 0.001 | BP40: 0.002 | BQ40: 0.0031 | BR40: 0.0043 | BS40: 0.0055 | BT40: 0.0065 | BU40: 0.0073 | BV40: 0.0079 | BW40: 0.0082 | BX40: 0.0082 | BY40: 0.0081 | BZ40: 0.008 | CA40: 0.0079 | CB40: 0.0081 | CC40: 0.0083 | CD40: 0.0087 | CE40: 0.0091 | CF40: 0.0095 | CG40: 0.0099 | CH40: 0.01
A41: 58 | B41: 0.0059 | C41: 0.0059 | D41: 0.0057 | E41: 0.0053 | F41: 0.0044 | G41: 0.0035 | H41: 0.0026 | I41: 0.0019 | J41: 0.0012 | K41: 0.0007 | L41: 0.0003 | M41: 0 | N41: 0 | O41: 0.0005 | P41: 0.0014 | Q41: 0.0027 | R41: 0.0044 | S41: 0.0065 | T41: 0.009 | U41: 0.0116 | V41: 0.0143 | W41: 0.0168 | X41: 0.0191 | Y41: 0.0211 | Z41: 0.0224 | AA41: 0.0231 | AB41: 0.0232 | AC41: 0.0228 | AD41: 0.0221 | AE41: 0.0213 | AF41: 0.0205 | AG41: 0.0198 | AH41: 0.0193 | AI41: 0.019 | AJ41: 0.0189 | AK41: 0.0189 | AL41: 0.019 | AM41: 0.0192 | AN41: 0.0194 | AO41: 0.0195 | AP41: 0.0195 | AQ41: 0.0195 | AR41: 0.0194 | AS41: 0.0193 | AT41: 0.0191 | AU41: 0.0189 | AV41: 0.0184 | AW41: 0.0178 | AX41: 0.0169 | AY41: 0.016 | AZ41: 0.0151 | BA41: 0.0142 | BB41: 0.0132 | BC41: 0.0122 | BD41: 0.0111 | BE41: 0.0098 | BF41: 0.0085 | BG41: 0.0071 | BH41: 0.0057 | BI41: 0.0043 | BJ41: 0.0029 | BK41: 0.0015 | BL41: 0.0005 | BM41: -0.0002 | BN41: -0.0005 | BO41: 0.0001 | BP41: 0.0011 | BQ41: 0.0023 | BR41: 0.0037 | BS41: 0.005 | BT41: 0.0062 | BU41: 0.0072 | BV41: 0.008 | BW41: 0.0085 | BX41: 0.0086 | BY41: 0.0085 | BZ41: 0.0084 | CA41: 0.0084 | CB41: 0.0084 | CC41: 0.0086 | CD41: 0.0089 | CE41: 0.0092 | CF41: 0.0096 | CG41: 0.0099 | CH41: 0.01
A42: 59 | B42: 0.0053 | C42: 0.0052 | D42: 0.0051 | E42: 0.0046 | F42: 0.0038 | G42: 0.0029 | H42: 0.0021 | I42: 0.0014 | J42: 0.0008 | K42: 0.0003 | L42: 0 | M42: -0.0002 | N42: -0.0001 | O42: 0.0005 | P42: 0.0014 | Q42: 0.0027 | R42: 0.0044 | S42: 0.0065 | T42: 0.0089 | U42: 0.0115 | V42: 0.014 | W42: 0.0164 | X42: 0.0187 | Y42: 0.0206 | Z42: 0.0219 | AA42: 0.0225 | AB42: 0.0227 | AC42: 0.0224 | AD42: 0.0217 | AE42: 0.0209 | AF42: 0.0201 | AG42: 0.0194 | AH42: 0.0188 | AI42: 0.0185 | AJ42: 0.0184 | AK42: 0.0186 | AL42: 0.0188 | AM42: 0.019 | AN42: 0.0193 | AO42: 0.0195 | AP42: 0.0196 | AQ42: 0.0196 | AR42: 0.0196 | AS42: 0.0196 | AT42: 0.0195 | AU42: 0.0194 | AV42: 0.0191 | AW42: 0.0187 | AX42: 0.018 | AY42: 0.0173 | AZ42: 0.0165 | BA42: 0.0157 | BB42: 0.0148 | BC42: 0.0138 | BD42: 0.0125 | BE42: 0.0112 | BF42: 0.0096 | BG42: 0.008 | BH42: 0.0064 | BI42: 0.0046 | BJ42: 0.0029 | BK42: 0.0013 | BL42: 0 | BM42: -0.0008 | BN42: -0.0012 | BO42: -0.0007 | BP42: 0.0003 | BQ42: 0.0016 | BR42: 0.003 | BS42: 0.0044 | BT42: 0.0058 | BU42: 0.007 | BV42: 0.0079 | BW42: 0.0085 | BX42: 0.0088 | BY42: 0.0088 | BZ42: 0.0087 | CA42: 0.0087 | CB42: 0.0087 | CC42: 0.0089 | CD42: 0.0091 | CE42: 0.0093 | CF42: 0.0096 | CG42: 0.0099 | CH42: 0.01
A43: 60 | B43: 0.0047 | C43: 0.0046 | D43: 0.0044 | E43: 0.004 | F43: 0.0032 | G43: 0.0024 | H43: 0.0016 | I43: 0.001 | J43: 0.0004 | K43: 0 | L43: -0.0003 | M43: -0.0004 | N43: -0.0002 | O43: 0.0004 | P43: 0.0014 | Q43: 0.0027 | R43: 0.0045 | S43: 0.0065 | T43: 0.0089 | U43: 0.0113 | V43: 0.0138 | W43: 0.0161 | X43: 0.0182 | Y43: 0.02 | Z43: 0.0213 | AA43: 0.0219 | AB43: 0.0221 | AC43: 0.0219 | AD43: 0.0213 | AE43: 0.0205 | AF43: 0.0197 | AG43: 0.019 | AH43: 0.0184 | AI43: 0.0181 | AJ43: 0.018 | AK43: 0.0182 | AL43: 0.0184 | AM43: 0.0188 | AN43: 0.0191 | AO43: 0.0194 | AP43: 0.0196 | AQ43: 0.0196 | AR43: 0.0196 | AS43: 0.0197 | AT43: 0.0197 | AU43: 0.0198 | AV43: 0.0197 | AW43: 0.0195 | AX43: 0.019 | AY43: 0.0185 | AZ43: 0.0178 | BA43: 0.0171 | BB43: 0.0162 | BC43: 0.0153 | BD43: 0.014 | BE43: 0.0126 | BF43: 0.011 | BG43: 0.0091 | BH43: 0.0073 | BI43: 0.0053 | BJ43: 0.0032 | BK43: 0.0013 | BL43: -0.0002 | BM43: -0.0011 | BN43: -0.0016 | BO43: -0.0012 | BP43: -0.0003 | BQ43: 0.0009 | BR43: 0.0024 | BS43: 0.0039 | BT43: 0.0054 | BU43: 0.0067 | BV43: 0.0078 | BW43: 0.0085 | BX43: 0.0089 | BY43: 0.009 | BZ43: 0.009 | CA43: 0.009 | CB43: 0.009 | CC43: 0.0091 | CD43: 0.0092 | CE43: 0.0095 | CF43: 0.0097 | CG43: 0.0099 | CH43: 0.01
A44: 61 | B44: 0.0041 | C44: 0.004 | D44: 0.0038 | E44: 0.0034 | F44: 0.0027 | G44: 0.0018 | H44: 0.0011 | I44: 0.0005 | J44: 0.0001 | K44: -0.0004 | L44: -0.0006 | M44: -0.0006 | N44: -0.0004 | O44: 0.0003 | P44: 0.0014 | Q44: 0.0028 | R44: 0.0045 | S44: 0.0065 | T44: 0.0088 | U44: 0.0112 | V44: 0.0135 | W44: 0.0156 | X44: 0.0177 | Y44: 0.0194 | Z44: 0.0206 | AA44: 0.0213 | AB44: 0.0215 | AC44: 0.0213 | AD44: 0.0209 | AE44: 0.0202 | AF44: 0.0193 | AG44: 0.0186 | AH44: 0.018 | AI44: 0.0176 | AJ44: 0.0176 | AK44: 0.0178 | AL44: 0.0181 | AM44: 0.0185 | AN44: 0.0189 | AO44: 0.0192 | AP44: 0.0194 | AQ44: 0.0195 | AR44: 0.0195 | AS44: 0.0196 | AT44: 0.0198 | AU44: 0.0201 | AV44: 0.0202 | AW44: 0.0202 | AX44: 0.0199 | AY44: 0.0195 | AZ44: 0.019 | BA44: 0.0184 | BB44: 0.0176 | BC44: 0.0167 | BD44: 0.0155 | BE44: 0.0141 | BF44: 0.0124 | BG44: 0.0104 | BH44: 0.0084 | BI44: 0.0062 | BJ44: 0.0038 | BK44: 0.0017 | BL44: 0 | BM44: -0.0011 | BN44: -0.0017 | BO44: -0.0014 | BP44: -0.0007 | BQ44: 0.0005 | BR44: 0.0019 | BS44: 0.0035 | BT44: 0.005 | BU44: 0.0064 | BV44: 0.0076 | BW44: 0.0084 | BX44: 0.0089 | BY44: 0.009 | BZ44: 0.0091 | CA44: 0.0092 | CB44: 0.0092 | CC44: 0.0093 | CD44: 0.0094 | CE44: 0.0096 | CF44: 0.0097 | CG44: 0.0099 | CH44: 0.01
A45: 62 | B45: 0.0035 | C45: 0.0034 | D45: 0.0032 | E45: 0.0028 | F45: 0.0021 | G45: 0.0013 | H45: 0.0007 | I45: 0.0002 | J45: -0.0003 | K45: -0.0006 | L45: -0.0008 | M45: -0.0008 | N45: -0.0004 | O45: 0.0003 | P45: 0.0014 | Q45: 0.0029 | R45: 0.0046 | S45: 0.0065 | T45: 0.0087 | U45: 0.0109 | V45: 0.0131 | W45: 0.0152 | X45: 0.0171 | Y45: 0.0188 | Z45: 0.0199 | AA45: 0.0206 | AB45: 0.0208 | AC45: 0.0207 | AD45: 0.0203 | AE45: 0.0197 | AF45: 0.0189 | AG45: 0.0182 | AH45: 0.0176 | AI45: 0.0172 | AJ45: 0.0172 | AK45: 0.0174 | AL45: 0.0177 | AM45: 0.0182 | AN45: 0.0186 | AO45: 0.0189 | AP45: 0.0191 | AQ45: 0.0192 | AR45: 0.0193 | AS45: 0.0195 | AT45: 0.0198 | AU45: 0.0202 | AV45: 0.0206 | AW45: 0.0207 | AX45: 0.0207 | AY45: 0.0205 | AZ45: 0.0201 | BA45: 0.0195 | BB45: 0.0189 | BC45: 0.018 | BD45: 0.0169 | BE45: 0.0155 | BF45: 0.0138 | BG45: 0.0117 | BH45: 0.0096 | BI45: 0.0072 | BJ45: 0.0047 | BK45: 0.0024 | BL45: 0.0006 | BM45: -0.0007 | BN45: -0.0014 | BO45: -0.0013 | BP45: -0.0007 | BQ45: 0.0003 | BR45: 0.0016 | BS45: 0.0031 | BT45: 0.0046 | BU45: 0.0061 | BV45: 0.0073 | BW45: 0.0082 | BX45: 0.0088 | BY45: 0.009 | BZ45: 0.0092 | CA45: 0.0093 | CB45: 0.0094 | CC45: 0.0094 | CD45: 0.0095 | CE45: 0.0096 | CF45: 0.0098 | CG45: 0.0099 | CH45: 0.01
A46: 63 | B46: 0.0029 | C46: 0.0028 | D46: 0.0026 | E46: 0.0022 | F46: 0.0016 | G46: 0.0009 | H46: 0.0003 | I46: -0.0002 | J46: -0.0006 | K46: -0.0009 | L46: -0.001 | M46: -0.0009 | N46: -0.0005 | O46: 0.0003 | P46: 0.0015 | Q46: 0.0029 | R46: 0.0046 | S46: 0.0065 | T46: 0.0086 | U46: 0.0107 | V46: 0.0127 | W46: 0.0147 | X46: 0.0165 | Y46: 0.0181 | Z46: 0.0192 | AA46: 0.0198 | AB46: 0.0201 | AC46: 0.02 | AD46: 0.0197 | AE46: 0.0192 | AF46: 0.0185 | AG46: 0.0178 | AH46: 0.0172 | AI46: 0.0169 | AJ46: 0.0168 | AK46: 0.017 | AL46: 0.0174 | AM46: 0.0178 | AN46: 0.0182 | AO46: 0.0186 | AP46: 0.0188 | AQ46: 0.0189 | AR46: 0.019 | AS46: 0.0193 | AT46: 0.0198 | AU46: 0.0203 | AV46: 0.0208 | AW46: 0.0211 | AX46: 0.0213 | AY46: 0.0212 | AZ46: 0.021 | BA46: 0.0206 | BB46: 0.0201 | BC46: 0.0193 | BD46: 0.0182 | BE46: 0.0168 | BF46: 0.0151 | BG46: 0.0131 | BH46: 0.0109 | BI46: 0.0084 | BJ46: 0.0058 | BK46: 0.0034 | BL46: 0.0014 | BM46: 0.0001 | BN46: -0.0007 | BO46: -0.0009 | BP46: -0.0005 | BQ46: 0.0003 | BR46: 0.0015 | BS46: 0.0029 | BT46: 0.0043 | BU46: 0.0057 | BV46: 0.007 | BW46: 0.008 | BX46: 0.0086 | BY46: 0.0089 | BZ46: 0.0092 | CA46: 0.0094 | CB46: 0.0095 | CC46: 0.0096 | CD46: 0.0096 | CE46: 0.0097 | CF46: 0.0098 | CG46: 0.0099 | CH46: 0.01
A47: 64 | B47: 0.0024 | C47: 0.0023 | D47: 0.0021 | E47: 0.0018 | F47: 0.0012 | G47: 0.0005 | H47: -0.0001 | I47: -0.0004 | J47: -0.0008 | K47: -0.001 | L47: -0.0011 | M47: -0.0009 | N47: -0.0005 | O47: 0.0004 | P47: 0.0015 | Q47: 0.0029 | R47: 0.0046 | S47: 0.0064 | T47: 0.0084 | U47: 0.0103 | V47: 0.0123 | W47: 0.0142 | X47: 0.0159 | Y47: 0.0174 | Z47: 0.0184 | AA47: 0.0191 | AB47: 0.0194 | AC47: 0.0193 | AD47: 0.0191 | AE47: 0.0186 | AF47: 0.018 | AG47: 0.0174 | AH47: 0.0168 | AI47: 0.0165 | AJ47: 0.0165 | AK47: 0.0167 | AL47: 0.017 | AM47: 0.0174 | AN47: 0.0179 | AO47: 0.0182 | AP47: 0.0184 | AQ47: 0.0185 | AR47: 0.0187 | AS47: 0.0191 | AT47: 0.0196 | AU47: 0.0202 | AV47: 0.0208 | AW47: 0.0214 | AX47: 0.0217 | AY47: 0.0218 | AZ47: 0.0218 | BA47: 0.0215 | BB47: 0.0211 | BC47: 0.0204 | BD47: 0.0194 | BE47: 0.018 | BF47: 0.0163 | BG47: 0.0143 | BH47: 0.0121 | BI47: 0.0096 | BJ47: 0.0071 | BK47: 0.0046 | BL47: 0.0026 | BM47: 0.0011 | BN47: 0.0002 | BO47: -0.0001 | BP47: 0.0001 | BQ47: 0.0007 | BR47: 0.0016 | BS47: 0.0028 | BT47: 0.0042 | BU47: 0.0055 | BV47: 0.0067 | BW47: 0.0077 | BX47: 0.0084 | BY47: 0.0088 | BZ47: 0.0091 | CA47: 0.0094 | CB47: 0.0095 | CC47: 0.0096 | CD47: 0.0097 | CE47: 0.0098 | CF47: 0.0099 | CG47: 0.01 | CH47: 0.01
A48: 65 | B48: 0.002 | C48: 0.0019 | D48: 0.0017 | E48: 0.0014 | F48: 0.0008 | G48: 0.0002 | H48: -0.0003 | I48: -0.0007 | J48: -0.0009 | K48: -0.0011 | L48: -0.0011 | M48: -0.001 | N48: -0.0004 | O48: 0.0004 | P48: 0.0015 | Q48: 0.0029 | R48: 0.0045 | S48: 0.0062 | T48: 0.0081 | U48: 0.01 | V48: 0.0119 | W48: 0.0136 | X48: 0.0153 | Y48: 0.0167 | Z48: 0.0177 | AA48: 0.0183 | AB48: 0.0186 | AC48: 0.0186 | AD48: 0.0184 | AE48: 0.0179 | AF48: 0.0175 | AG48: 0.0169 | AH48: 0.0165 | AI48: 0.0162 | AJ48: 0.0162 | AK48: 0.0163 | AL48: 0.0167 | AM48: 0.0171 | AN48: 0.0175 | AO48: 0.0178 | AP48: 0.018 | AQ48: 0.0181 | AR48: 0.0183 | AS48: 0.0187 | AT48: 0.0193 | AU48: 0.02 | AV48: 0.0208 | AW48: 0.0214 | AX48: 0.022 | AY48: 0.0223 | AZ48: 0.0224 | BA48: 0.0223 | BB48: 0.022 | BC48: 0.0214 | BD48: 0.0204 | BE48: 0.0191 | BF48: 0.0174 | BG48: 0.0155 | BH48: 0.0133 | BI48: 0.0109 | BJ48: 0.0083 | BK48: 0.0059 | BL48: 0.0039 | BM48: 0.0024 | BN48: 0.0013 | BO48: 0.0009 | BP48: 0.0009 | BQ48: 0.0013 | BR48: 0.002 | BS48: 0.0029 | BT48: 0.0041 | BU48: 0.0053 | BV48: 0.0064 | BW48: 0.0074 | BX48: 0.0081 | BY48: 0.0086 | BZ48: 0.009 | CA48: 0.0093 | CB48: 0.0095 | CC48: 0.0096 | CD48: 0.0097 | CE48: 0.0098 | CF48: 0.0099 | CG48: 0.01 | CH48: 0.01
A49: 66 | B49: 0.0016 | C49: 0.0015 | D49: 0.0014 | E49: 0.001 | F49: 0.0005 | G49: 0 | H49: -0.0005 | I49: -0.0008 | J49: -0.001 | K49: -0.0012 | L49: -0.0012 | M49: -0.0009 | N49: -0.0004 | O49: 0.0005 | P49: 0.0015 | Q49: 0.0028 | R49: 0.0044 | S49: 0.006 | T49: 0.0078 | U49: 0.0096 | V49: 0.0114 | W49: 0.0131 | X49: 0.0147 | Y49: 0.016 | Z49: 0.017 | AA49: 0.0176 | AB49: 0.0179 | AC49: 0.0178 | AD49: 0.0176 | AE49: 0.0173 | AF49: 0.0169 | AG49: 0.0164 | AH49: 0.016 | AI49: 0.0158 | AJ49: 0.0158 | AK49: 0.016 | AL49: 0.0164 | AM49: 0.0167 | AN49: 0.0171 | AO49: 0.0174 | AP49: 0.0176 | AQ49: 0.0177 | AR49: 0.0179 | AS49: 0.0184 | AT49: 0.019 | AU49: 0.0197 | AV49: 0.0206 | AW49: 0.0214 | AX49: 0.0221 | AY49: 0.0226 | AZ49: 0.0228 | BA49: 0.0229 | BB49: 0.0227 | BC49: 0.0222 | BD49: 0.0213 | BE49: 0.02 | BF49: 0.0184 | BG49: 0.0165 | BH49: 0.0144 | BI49: 0.012 | BJ49: 0.0096 | BK49: 0.0073 | BL49: 0.0053 | BM49: 0.0037 | BN49: 0.0026 | BO49: 0.0021 | BP49: 0.0019 | BQ49: 0.0021 | BR49: 0.0025 | BS49: 0.0032 | BT49: 0.0042 | BU49: 0.0052 | BV49: 0.0062 | BW49: 0.0071 | BX49: 0.0078 | BY49: 0.0084 | BZ49: 0.0088 | CA49: 0.0092 | CB49: 0.0095 | CC49: 0.0096 | CD49: 0.0098 | CE49: 0.0099 | CF49: 0.0099 | CG49: 0.01 | CH49: 0.01
A50: 67 | B50: 0.0013 | C50: 0.0013 | D50: 0.0011 | E50: 0.0008 | F50: 0.0003 | G50: -0.0002 | H50: -0.0006 | I50: -0.0009 | J50: -0.0011 | K50: -0.0012 | L50: -0.0011 | M50: -0.0009 | N50: -0.0003 | O50: 0.0005 | P50: 0.0015 | Q50: 0.0028 | R50: 0.0042 | S50: 0.0058 | T50: 0.0076 | U50: 0.0093 | V50: 0.011 | W50: 0.0126 | X50: 0.0141 | Y50: 0.0154 | Z50: 0.0163 | AA50: 0.0169 | AB50: 0.0171 | AC50: 0.0171 | AD50: 0.0169 | AE50: 0.0166 | AF50: 0.0163 | AG50: 0.0159 | AH50: 0.0156 | AI50: 0.0154 | AJ50: 0.0155 | AK50: 0.0157 | AL50: 0.016 | AM50: 0.0164 | AN50: 0.0168 | AO50: 0.017 | AP50: 0.0172 | AQ50: 0.0173 | AR50: 0.0175 | AS50: 0.018 | AT50: 0.0186 | AU50: 0.0194 | AV50: 0.0203 | AW50: 0.0212 | AX50: 0.022 | AY50: 0.0227 | AZ50: 0.0231 | BA50: 0.0233 | BB50: 0.0233 | BC50: 0.0229 | BD50: 0.022 | BE50: 0.0208 | BF50: 0.0193 | BG50: 0.0174 | BH50: 0.0154 | BI50: 0.0131 | BJ50: 0.0108 | BK50: 0.0086 | BL50: 0.0066 | BM50: 0.0051 | BN50: 0.004 | BO50: 0.0034 | BP50: 0.0031 | BQ50: 0.003 | BR50: 0.0032 | BS50: 0.0037 | BT50: 0.0044 | BU50: 0.0052 | BV50: 0.0061 | BW50: 0.0069 | BX50: 0.0076 | BY50: 0.0082 | BZ50: 0.0087 | CA50: 0.0091 | CB50: 0.0094 | CC50: 0.0096 | CD50: 0.0098 | CE50: 0.0099 | CF50: 0.0099 | CG50: 0.01 | CH50: 0.01
A51: 68 | B51: 0.0011 | C51: 0.0011 | D51: 0.0009 | E51: 0.0006 | F51: 0.0002 | G51: -0.0003 | H51: -0.0007 | I51: -0.0009 | J51: -0.001 | K51: -0.0011 | L51: -0.001 | M51: -0.0008 | N51: -0.0003 | O51: 0.0005 | P51: 0.0015 | Q51: 0.0027 | R51: 0.0041 | S51: 0.0056 | T51: 0.0073 | U51: 0.0089 | V51: 0.0105 | W51: 0.0121 | X51: 0.0136 | Y51: 0.0148 | Z51: 0.0157 | AA51: 0.0162 | AB51: 0.0164 | AC51: 0.0164 | AD51: 0.0162 | AE51: 0.0159 | AF51: 0.0156 | AG51: 0.0154 | AH51: 0.0151 | AI51: 0.015 | AJ51: 0.0151 | AK51: 0.0154 | AL51: 0.0157 | AM51: 0.0161 | AN51: 0.0164 | AO51: 0.0167 | AP51: 0.0168 | AQ51: 0.0169 | AR51: 0.0171 | AS51: 0.0176 | AT51: 0.0182 | AU51: 0.019 | AV51: 0.0199 | AW51: 0.0209 | AX51: 0.0218 | AY51: 0.0226 | AZ51: 0.0232 | BA51: 0.0236 | BB51: 0.0237 | BC51: 0.0234 | BD51: 0.0226 | BE51: 0.0214 | BF51: 0.02 | BG51: 0.0182 | BH51: 0.0163 | BI51: 0.0141 | BJ51: 0.0119 | BK51: 0.0098 | BL51: 0.0079 | BM51: 0.0064 | BN51: 0.0054 | BO51: 0.0048 | BP51: 0.0043 | BQ51: 0.0041 | BR51: 0.0041 | BS51: 0.0043 | BT51: 0.0047 | BU51: 0.0053 | BV51: 0.006 | BW51: 0.0067 | BX51: 0.0074 | BY51: 0.008 | BZ51: 0.0085 | CA51: 0.0089 | CB51: 0.0093 | CC51: 0.0096 | CD51: 0.0097 | CE51: 0.0099 | CF51: 0.0099 | CG51: 0.01 | CH51: 0.01
A52: 69 | B52: 0.001 | C52: 0.001 | D52: 0.0008 | E52: 0.0005 | F52: 0.0001 | G52: -0.0003 | H52: -0.0007 | I52: -0.0009 | J52: -0.001 | K52: -0.0011 | L52: -0.0009 | M52: -0.0007 | N52: -0.0002 | O52: 0.0006 | P52: 0.0015 | Q52: 0.0026 | R52: 0.0039 | S52: 0.0054 | T52: 0.007 | U52: 0.0086 | V52: 0.0101 | W52: 0.0116 | X52: 0.013 | Y52: 0.0142 | Z52: 0.015 | AA52: 0.0155 | AB52: 0.0157 | AC52: 0.0157 | AD52: 0.0155 | AE52: 0.0152 | AF52: 0.015 | AG52: 0.0148 | AH52: 0.0146 | AI52: 0.0146 | AJ52: 0.0147 | AK52: 0.015 | AL52: 0.0154 | AM52: 0.0157 | AN52: 0.0161 | AO52: 0.0163 | AP52: 0.0164 | AQ52: 0.0165 | AR52: 0.0167 | AS52: 0.0172 | AT52: 0.0178 | AU52: 0.0186 | AV52: 0.0195 | AW52: 0.0205 | AX52: 0.0215 | AY52: 0.0225 | AZ52: 0.0232 | BA52: 0.0237 | BB52: 0.0239 | BC52: 0.0237 | BD52: 0.023 | BE52: 0.022 | BF52: 0.0206 | BG52: 0.0189 | BH52: 0.017 | BI52: 0.015 | BJ52: 0.0129 | BK52: 0.0108 | BL52: 0.009 | BM52: 0.0076 | BN52: 0.0067 | BO52: 0.0061 | BP52: 0.0056 | BQ52: 0.0052 | BR52: 0.005 | BS52: 0.005 | BT52: 0.0052 | BU52: 0.0056 | BV52: 0.006 | BW52: 0.0066 | BX52: 0.0072 | BY52: 0.0078 | BZ52: 0.0083 | CA52: 0.0088 | CB52: 0.0092 | CC52: 0.0095 | CD52: 0.0097 | CE52: 0.0098 | CF52: 0.0099 | CG52: 0.01 | CH52: 0.01
A53: 70 | B53: 0.001 | C53: 0.0009 | D53: 0.0007 | E53: 0.0004 | F53: 0.0001 | G53: -0.0003 | H53: -0.0007 | I53: -0.0008 | J53: -0.0009 | K53: -0.001 | L53: -0.0008 | M53: -0.0006 | N53: -0.0001 | O53: 0.0006 | P53: 0.0014 | Q53: 0.0025 | R53: 0.0038 | S53: 0.0052 | T53: 0.0067 | U53: 0.0082 | V53: 0.0097 | W53: 0.0112 | X53: 0.0125 | Y53: 0.0136 | Z53: 0.0144 | AA53: 0.0148 | AB53: 0.015 | AC53: 0.015 | AD53: 0.0148 | AE53: 0.0146 | AF53: 0.0144 | AG53: 0.0142 | AH53: 0.014 | AI53: 0.014 | AJ53: 0.0142 | AK53: 0.0146 | AL53: 0.015 | AM53: 0.0154 | AN53: 0.0157 | AO53: 0.0159 | AP53: 0.0161 | AQ53: 0.0162 | AR53: 0.0163 | AS53: 0.0168 | AT53: 0.0173 | AU53: 0.0181 | AV53: 0.019 | AW53: 0.02 | AX53: 0.0211 | AY53: 0.0222 | AZ53: 0.0231 | BA53: 0.0237 | BB53: 0.024 | BC53: 0.0239 | BD53: 0.0233 | BE53: 0.0224 | BF53: 0.0211 | BG53: 0.0195 | BH53: 0.0177 | BI53: 0.0157 | BJ53: 0.0137 | BK53: 0.0118 | BL53: 0.0101 | BM53: 0.0088 | BN53: 0.0079 | BO53: 0.0073 | BP53: 0.0068 | BQ53: 0.0063 | BR53: 0.006 | BS53: 0.0058 | BT53: 0.0058 | BU53: 0.0059 | BV53: 0.0062 | BW53: 0.0066 | BX53: 0.0071 | BY53: 0.0076 | BZ53: 0.0082 | CA53: 0.0086 | CB53: 0.0091 | CC53: 0.0094 | CD53: 0.0097 | CE53: 0.0098 | CF53: 0.0099 | CG53: 0.01 | CH53: 0.01
A54: 71 | B54: 0.0009 | C54: 0.0009 | D54: 0.0007 | E54: 0.0004 | F54: 0.0001 | G54: -0.0003 | H54: -0.0006 | I54: -0.0007 | J54: -0.0008 | K54: -0.0008 | L54: -0.0007 | M54: -0.0005 | N54: -0.0001 | O54: 0.0006 | P54: 0.0014 | Q54: 0.0024 | R54: 0.0036 | S54: 0.005 | T54: 0.0065 | U54: 0.008 | V54: 0.0094 | W54: 0.0108 | X54: 0.012 | Y54: 0.0131 | Z54: 0.0138 | AA54: 0.0142 | AB54: 0.0144 | AC54: 0.0143 | AD54: 0.0142 | AE54: 0.0139 | AF54: 0.0137 | AG54: 0.0136 | AH54: 0.0134 | AI54: 0.0135 | AJ54: 0.0137 | AK54: 0.0141 | AL54: 0.0145 | AM54: 0.015 | AN54: 0.0153 | AO54: 0.0155 | AP54: 0.0157 | AQ54: 0.0158 | AR54: 0.0159 | AS54: 0.0163 | AT54: 0.0169 | AU54: 0.0176 | AV54: 0.0185 | AW54: 0.0195 | AX54: 0.0207 | AY54: 0.0218 | AZ54: 0.0228 | BA54: 0.0235 | BB54: 0.0239 | BC54: 0.0239 | BD54: 0.0234 | BE54: 0.0226 | BF54: 0.0214 | BG54: 0.0199 | BH54: 0.0182 | BI54: 0.0163 | BJ54: 0.0144 | BK54: 0.0126 | BL54: 0.011 | BM54: 0.0097 | BN54: 0.0089 | BO54: 0.0084 | BP54: 0.0079 | BQ54: 0.0074 | BR54: 0.0069 | BS54: 0.0066 | BT54: 0.0064 | BU54: 0.0064 | BV54: 0.0065 | BW54: 0.0067 | BX54: 0.0071 | BY54: 0.0075 | BZ54: 0.008 | CA54: 0.0085 | CB54: 0.009 | CC54: 0.0093 | CD54: 0.0096 | CE54: 0.0098 | CF54: 0.0099 | CG54: 0.01 | CH54: 0.01
A55: 72 | B55: 0.0009 | C55: 0.0009 | D55: 0.0007 | E55: 0.0005 | F55: 0.0001 | G55: -0.0002 | H55: -0.0005 | I55: -0.0006 | J55: -0.0007 | K55: -0.0007 | L55: -0.0006 | M55: -0.0004 | N55: 0 | O55: 0.0007 | P55: 0.0014 | Q55: 0.0024 | R55: 0.0035 | S55: 0.0049 | T55: 0.0063 | U55: 0.0077 | V55: 0.0091 | W55: 0.0104 | X55: 0.0116 | Y55: 0.0126 | Z55: 0.0133 | AA55: 0.0136 | AB55: 0.0138 | AC55: 0.0137 | AD55: 0.0135 | AE55: 0.0133 | AF55: 0.0131 | AG55: 0.013 | AH55: 0.0129 | AI55: 0.013 | AJ55: 0.0132 | AK55: 0.0136 | AL55: 0.0141 | AM55: 0.0145 | AN55: 0.0149 | AO55: 0.0151 | AP55: 0.0152 | AQ55: 0.0153 | AR55: 0.0155 | AS55: 0.0159 | AT55: 0.0164 | AU55: 0.0171 | AV55: 0.018 | AW55: 0.019 | AX55: 0.0201 | AY55: 0.0213 | AZ55: 0.0223 | BA55: 0.0232 | BB55: 0.0237 | BC55: 0.0238 | BD55: 0.0234 | BE55: 0.0227 | BF55: 0.0216 | BG55: 0.0202 | BH55: 0.0186 | BI55: 0.0168 | BJ55: 0.0149 | BK55: 0.0132 | BL55: 0.0117 | BM55: 0.0106 | BN55: 0.0098 | BO55: 0.0094 | BP55: 0.0089 | BQ55: 0.0083 | BR55: 0.0078 | BS55: 0.0074 | BT55: 0.0071 | BU55: 0.0069 | BV55: 0.0068 | BW55: 0.0069 | BX55: 0.0072 | BY55: 0.0075 | BZ55: 0.008 | CA55: 0.0084 | CB55: 0.0089 | CC55: 0.0092 | CD55: 0.0096 | CE55: 0.0098 | CF55: 0.0099 | CG55: 0.01 | CH55: 0.01
A56: 73 | B56: 0.0009 | C56: 0.0009 | D56: 0.0007 | E56: 0.0005 | F56: 0.0002 | G56: -0.0001 | H56: -0.0004 | I56: -0.0005 | J56: -0.0006 | K56: -0.0006 | L56: -0.0005 | M56: -0.0003 | N56: 0.0001 | O56: 0.0007 | P56: 0.0015 | Q56: 0.0024 | R56: 0.0035 | S56: 0.0047 | T56: 0.0061 | U56: 0.0075 | V56: 0.0088 | W56: 0.01 | X56: 0.0112 | Y56: 0.0121 | Z56: 0.0127 | AA56: 0.0131 | AB56: 0.0132 | AC56: 0.0131 | AD56: 0.0129 | AE56: 0.0127 | AF56: 0.0125 | AG56: 0.0124 | AH56: 0.0123 | AI56: 0.0124 | AJ56: 0.0127 | AK56: 0.0131 | AL56: 0.0136 | AM56: 0.014 | AN56: 0.0144 | AO56: 0.0146 | AP56: 0.0148 | AQ56: 0.0149 | AR56: 0.0151 | AS56: 0.0154 | AT56: 0.0159 | AU56: 0.0166 | AV56: 0.0175 | AW56: 0.0185 | AX56: 0.0196 | AY56: 0.0208 | AZ56: 0.0218 | BA56: 0.0227 | BB56: 0.0233 | BC56: 0.0235 | BD56: 0.0233 | BE56: 0.0227 | BF56: 0.0217 | BG56: 0.0204 | BH56: 0.0188 | BI56: 0.0171 | BJ56: 0.0154 | BK56: 0.0138 | BL56: 0.0124 | BM56: 0.0113 | BN56: 0.0106 | BO56: 0.0102 | BP56: 0.0097 | BQ56: 0.0092 | BR56: 0.0087 | BS56: 0.0082 | BT56: 0.0077 | BU56: 0.0074 | BV56: 0.0072 | BW56: 0.0072 | BX56: 0.0073 | BY56: 0.0076 | BZ56: 0.0079 | CA56: 0.0084 | CB56: 0.0088 | CC56: 0.0092 | CD56: 0.0095 | CE56: 0.0097 | CF56: 0.0099 | CG56: 0.01 | CH56: 0.01
A57: 74 | B57: 0.0009 | C57: 0.0009 | D57: 0.0008 | E57: 0.0005 | F57: 0.0003 | G57: 0 | H57: -0.0002 | I57: -0.0004 | J57: -0.0004 | K57: -0.0004 | L57: -0.0003 | M57: -0.0001 | N57: 0.0002 | O57: 0.0008 | P57: 0.0015 | Q57: 0.0024 | R57: 0.0035 | S57: 0.0047 | T57: 0.006 | U57: 0.0073 | V57: 0.0085 | W57: 0.0097 | X57: 0.0108 | Y57: 0.0117 | Z57: 0.0122 | AA57: 0.0125 | AB57: 0.0126 | AC57: 0.0126 | AD57: 0.0124 | AE57: 0.0121 | AF57: 0.0119 | AG57: 0.0118 | AH57: 0.0117 | AI57: 0.0118 | AJ57: 0.0121 | AK57: 0.0125 | AL57: 0.013 | AM57: 0.0135 | AN57: 0.0138 | AO57: 0.0141 | AP57: 0.0143 | AQ57: 0.0144 | AR57: 0.0146 | AS57: 0.0149 | AT57: 0.0154 | AU57: 0.0161 | AV57: 0.0169 | AW57: 0.0179 | AX57: 0.019 | AY57: 0.0202 | AZ57: 0.0213 | BA57: 0.0222 | BB57: 0.0229 | BC57: 0.0232 | BD57: 0.023 | BE57: 0.0225 | BF57: 0.0216 | BG57: 0.0204 | BH57: 0.019 | BI57: 0.0173 | BJ57: 0.0157 | BK57: 0.0142 | BL57: 0.0129 | BM57: 0.0119 | BN57: 0.0112 | BO57: 0.0109 | BP57: 0.0104 | BQ57: 0.0099 | BR57: 0.0094 | BS57: 0.0088 | BT57: 0.0083 | BU57: 0.0079 | BV57: 0.0077 | BW57: 0.0075 | BX57: 0.0075 | BY57: 0.0077 | BZ57: 0.008 | CA57: 0.0084 | CB57: 0.0087 | CC57: 0.0091 | CD57: 0.0095 | CE57: 0.0097 | CF57: 0.0099 | CG57: 0.01 | CH57: 0.01
A58: 75 | B58: 0.0009 | C58: 0.0009 | D58: 0.0008 | E58: 0.0006 | F58: 0.0003 | G58: 0.0001 | H58: -0.0001 | I58: -0.0002 | J58: -0.0003 | K58: -0.0003 | L58: -0.0002 | M58: 0 | N58: 0.0004 | O58: 0.0009 | P58: 0.0016 | Q58: 0.0025 | R58: 0.0035 | S58: 0.0046 | T58: 0.0059 | U58: 0.0071 | V58: 0.0083 | W58: 0.0094 | X58: 0.0104 | Y58: 0.0112 | Z58: 0.0118 | AA58: 0.012 | AB58: 0.0121 | AC58: 0.012 | AD58: 0.0118 | AE58: 0.0116 | AF58: 0.0114 | AG58: 0.0112 | AH58: 0.0111 | AI58: 0.0113 | AJ58: 0.0115 | AK58: 0.0119 | AL58: 0.0124 | AM58: 0.0129 | AN58: 0.0133 | AO58: 0.0135 | AP58: 0.0137 | AQ58: 0.0138 | AR58: 0.014 | AS58: 0.0144 | AT58: 0.0149 | AU58: 0.0155 | AV58: 0.0164 | AW58: 0.0173 | AX58: 0.0184 | AY58: 0.0195 | AZ58: 0.0206 | BA58: 0.0216 | BB58: 0.0223 | BC58: 0.0227 | BD58: 0.0226 | BE58: 0.0222 | BF58: 0.0214 | BG58: 0.0203 | BH58: 0.019 | BI58: 0.0175 | BJ58: 0.0159 | BK58: 0.0145 | BL58: 0.0133 | BM58: 0.0123 | BN58: 0.0117 | BO58: 0.0114 | BP58: 0.011 | BQ58: 0.0105 | BR58: 0.01 | BS58: 0.0095 | BT58: 0.0089 | BU58: 0.0085 | BV58: 0.0081 | BW58: 0.0079 | BX58: 0.0078 | BY58: 0.0079 | BZ58: 0.0081 | CA58: 0.0084 | CB58: 0.0087 | CC58: 0.0091 | CD58: 0.0094 | CE58: 0.0097 | CF58: 0.0099 | CG58: 0.01 | CH58: 0.01
A59: 76 | B59: 0.0009 | C59: 0.0009 | D59: 0.0008 | E59: 0.0006 | F59: 0.0004 | G59: 0.0002 | H59: 0 | I59: -0.0001 | J59: -0.0001 | K59: -0.0001 | L59: 0 | M59: 0.0001 | N59: 0.0005 | O59: 0.001 | P59: 0.0017 | Q59: 0.0026 | R59: 0.0035 | S59: 0.0046 | T59: 0.0058 | U59: 0.0069 | V59: 0.008 | W59: 0.0091 | X59: 0.0101 | Y59: 0.0108 | Z59: 0.0113 | AA59: 0.0116 | AB59: 0.0116 | AC59: 0.0115 | AD59: 0.0113 | AE59: 0.011 | AF59: 0.0108 | AG59: 0.0107 | AH59: 0.0106 | AI59: 0.0107 | AJ59: 0.0109 | AK59: 0.0113 | AL59: 0.0118 | AM59: 0.0122 | AN59: 0.0126 | AO59: 0.0129 | AP59: 0.0131 | AQ59: 0.0132 | AR59: 0.0134 | AS59: 0.0138 | AT59: 0.0143 | AU59: 0.0149 | AV59: 0.0157 | AW59: 0.0167 | AX59: 0.0178 | AY59: 0.0189 | AZ59: 0.02 | BA59: 0.0209 | BB59: 0.0217 | BC59: 0.0221 | BD59: 0.0221 | BE59: 0.0218 | BF59: 0.0211 | BG59: 0.0201 | BH59: 0.0188 | BI59: 0.0174 | BJ59: 0.016 | BK59: 0.0147 | BL59: 0.0135 | BM59: 0.0126 | BN59: 0.012 | BO59: 0.0118 | BP59: 0.0115 | BQ59: 0.011 | BR59: 0.0105 | BS59: 0.01 | BT59: 0.0094 | BU59: 0.0089 | BV59: 0.0085 | BW59: 0.0082 | BX59: 0.0081 | BY59: 0.0082 | BZ59: 0.0083 | CA59: 0.0085 | CB59: 0.0088 | CC59: 0.0091 | CD59: 0.0094 | CE59: 0.0097 | CF59: 0.0099 | CG59: 0.01 | CH59: 0.01
A60: 77 | B60: 0.0009 | C60: 0.0009 | D60: 0.0008 | E60: 0.0006 | F60: 0.0005 | G60: 0.0003 | H60: 0.0001 | I60: 0.0001 | J60: 0 | K60: 0 | L60: 0.0001 | M60: 0.0003 | N60: 0.0007 | O60: 0.0012 | P60: 0.0019 | Q60: 0.0027 | R60: 0.0036 | S60: 0.0046 | T60: 0.0057 | U60: 0.0068 | V60: 0.0078 | W60: 0.0088 | X60: 0.0097 | Y60: 0.0105 | Z60: 0.0109 | AA60: 0.0111 | AB60: 0.0112 | AC60: 0.011 | AD60: 0.0108 | AE60: 0.0105 | AF60: 0.0103 | AG60: 0.0101 | AH60: 0.01 | AI60: 0.0101 | AJ60: 0.0103 | AK60: 0.0107 | AL60: 0.0111 | AM60: 0.0115 | AN60: 0.0119 | AO60: 0.0122 | AP60: 0.0124 | AQ60: 0.0126 | AR60: 0.0128 | AS60: 0.0132 | AT60: 0.0137 | AU60: 0.0143 | AV60: 0.0151 | AW60: 0.016 | AX60: 0.0171 | AY60: 0.0182 | AZ60: 0.0192 | BA60: 0.0202 | BB60: 0.021 | BC60: 0.0214 | BD60: 0.0215 | BE60: 0.0213 | BF60: 0.0207 | BG60: 0.0197 | BH60: 0.0186 | BI60: 0.0173 | BJ60: 0.016 | BK60: 0.0148 | BL60: 0.0137 | BM60: 0.0128 | BN60: 0.0123 | BO60: 0.0121 | BP60: 0.0118 | BQ60: 0.0114 | BR60: 0.0109 | BS60: 0.0104 | BT60: 0.0099 | BU60: 0.0094 | BV60: 0.0089 | BW60: 0.0086 | BX60: 0.0084 | BY60: 0.0084 | BZ60: 0.0085 | CA60: 0.0086 | CB60: 0.0088 | CC60: 0.0091 | CD60: 0.0094 | CE60: 0.0096 | CF60: 0.0098 | CG60: 0.01 | CH60: 0.01
A61: 78 | B61: 0.0009 | C61: 0.0008 | D61: 0.0008 | E61: 0.0007 | F61: 0.0005 | G61: 0.0004 | H61: 0.0002 | I61: 0.0002 | J61: 0.0002 | K61: 0.0002 | L61: 0.0003 | M61: 0.0005 | N61: 0.0009 | O61: 0.0014 | P61: 0.002 | Q61: 0.0028 | R61: 0.0037 | S61: 0.0046 | T61: 0.0056 | U61: 0.0067 | V61: 0.0077 | W61: 0.0086 | X61: 0.0094 | Y61: 0.0101 | Z61: 0.0105 | AA61: 0.0107 | AB61: 0.0107 | AC61: 0.0106 | AD61: 0.0104 | AE61: 0.0101 | AF61: 0.0098 | AG61: 0.0096 | AH61: 0.0095 | AI61: 0.0096 | AJ61: 0.0097 | AK61: 0.0101 | AL61: 0.0104 | AM61: 0.0108 | AN61: 0.0112 | AO61: 0.0115 | AP61: 0.0117 | AQ61: 0.0119 | AR61: 0.0121 | AS61: 0.0125 | AT61: 0.013 | AU61: 0.0136 | AV61: 0.0144 | AW61: 0.0153 | AX61: 0.0164 | AY61: 0.0174 | AZ61: 0.0185 | BA61: 0.0194 | BB61: 0.0202 | BC61: 0.0207 | BD61: 0.0209 | BE61: 0.0207 | BF61: 0.0201 | BG61: 0.0193 | BH61: 0.0183 | BI61: 0.0171 | BJ61: 0.0159 | BK61: 0.0147 | BL61: 0.0137 | BM61: 0.0129 | BN61: 0.0124 | BO61: 0.0123 | BP61: 0.012 | BQ61: 0.0117 | BR61: 0.0112 | BS61: 0.0107 | BT61: 0.0102 | BU61: 0.0097 | BV61: 0.0093 | BW61: 0.0089 | BX61: 0.0087 | BY61: 0.0086 | BZ61: 0.0087 | CA61: 0.0088 | CB61: 0.0089 | CC61: 0.0092 | CD61: 0.0094 | CE61: 0.0096 | CF61: 0.0098 | CG61: 0.01 | CH61: 0.01
A62: 79 | B62: 0.0008 | C62: 0.0008 | D62: 0.0008 | E62: 0.0007 | F62: 0.0006 | G62: 0.0004 | H62: 0.0003 | I62: 0.0003 | J62: 0.0003 | K62: 0.0004 | L62: 0.0005 | M62: 0.0007 | N62: 0.0011 | O62: 0.0016 | P62: 0.0022 | Q62: 0.0029 | R62: 0.0037 | S62: 0.0046 | T62: 0.0056 | U62: 0.0066 | V62: 0.0075 | W62: 0.0084 | X62: 0.0092 | Y62: 0.0098 | Z62: 0.0102 | AA62: 0.0103 | AB62: 0.0103 | AC62: 0.0102 | AD62: 0.0099 | AE62: 0.0096 | AF62: 0.0094 | AG62: 0.0091 | AH62: 0.009 | AI62: 0.009 | AJ62: 0.0092 | AK62: 0.0094 | AL62: 0.0098 | AM62: 0.0101 | AN62: 0.0105 | AO62: 0.0108 | AP62: 0.011 | AQ62: 0.0112 | AR62: 0.0114 | AS62: 0.0118 | AT62: 0.0123 | AU62: 0.0129 | AV62: 0.0137 | AW62: 0.0146 | AX62: 0.0156 | AY62: 0.0167 | AZ62: 0.0177 | BA62: 0.0186 | BB62: 0.0194 | BC62: 0.0199 | BD62: 0.0201 | BE62: 0.02 | BF62: 0.0195 | BG62: 0.0188 | BH62: 0.0179 | BI62: 0.0168 | BJ62: 0.0157 | BK62: 0.0146 | BL62: 0.0137 | BM62: 0.013 | BN62: 0.0125 | BO62: 0.0124 | BP62: 0.0122 | BQ62: 0.0118 | BR62: 0.0115 | BS62: 0.011 | BT62: 0.0105 | BU62: 0.0101 | BV62: 0.0096 | BW62: 0.0093 | BX62: 0.009 | BY62: 0.0089 | BZ62: 0.0088 | CA62: 0.0089 | CB62: 0.0091 | CC62: 0.0092 | CD62: 0.0094 | CE62: 0.0097 | CF62: 0.0098 | CG62: 0.01 | CH62: 0.01
A63: 80 | B63: 0.0008 | C63: 0.0008 | D63: 0.0008 | E63: 0.0007 | F63: 0.0006 | G63: 0.0005 | H63: 0.0004 | I63: 0.0004 | J63: 0.0004 | K63: 0.0005 | L63: 0.0007 | M63: 0.0009 | N63: 0.0013 | O63: 0.0018 | P63: 0.0024 | Q63: 0.003 | R63: 0.0038 | S63: 0.0047 | T63: 0.0056 | U63: 0.0065 | V63: 0.0073 | W63: 0.0082 | X63: 0.0089 | Y63: 0.0095 | Z63: 0.0098 | AA63: 0.0099 | AB63: 0.0099 | AC63: 0.0097 | AD63: 0.0095 | AE63: 0.0092 | AF63: 0.0089 | AG63: 0.0087 | AH63: 0.0085 | AI63: 0.0085 | AJ63: 0.0086 | AK63: 0.0088 | AL63: 0.0091 | AM63: 0.0094 | AN63: 0.0097 | AO63: 0.01 | AP63: 0.0102 | AQ63: 0.0104 | AR63: 0.0107 | AS63: 0.0111 | AT63: 0.0116 | AU63: 0.0122 | AV63: 0.013 | AW63: 0.0138 | AX63: 0.0148 | AY63: 0.0159 | AZ63: 0.0169 | BA63: 0.0178 | BB63: 0.0185 | BC63: 0.0191 | BD63: 0.0193 | BE63: 0.0192 | BF63: 0.0188 | BG63: 0.0182 | BH63: 0.0174 | BI63: 0.0164 | BJ63: 0.0154 | BK63: 0.0144 | BL63: 0.0136 | BM63: 0.0129 | BN63: 0.0124 | BO63: 0.0124 | BP63: 0.0122 | BQ63: 0.0119 | BR63: 0.0116 | BS63: 0.0112 | BT63: 0.0107 | BU63: 0.0103 | BV63: 0.0099 | BW63: 0.0095 | BX63: 0.0093 | BY63: 0.0091 | BZ63: 0.009 | CA63: 0.009 | CB63: 0.0091 | CC63: 0.0093 | CD63: 0.0095 | CE63: 0.0097 | CF63: 0.0098 | CG63: 0.01 | CH63: 0.01
A64: 81 | B64: 0.0008 | C64: 0.0008 | D64: 0.0008 | E64: 0.0007 | F64: 0.0007 | G64: 0.0006 | H64: 0.0005 | I64: 0.0005 | J64: 0.0006 | K64: 0.0007 | L64: 0.0009 | M64: 0.0011 | N64: 0.0015 | O64: 0.002 | P64: 0.0025 | Q64: 0.0032 | R64: 0.0039 | S64: 0.0047 | T64: 0.0056 | U64: 0.0064 | V64: 0.0072 | W64: 0.0079 | X64: 0.0086 | Y64: 0.0091 | Z64: 0.0095 | AA64: 0.0096 | AB64: 0.0095 | AC64: 0.0093 | AD64: 0.0091 | AE64: 0.0088 | AF64: 0.0085 | AG64: 0.0082 | AH64: 0.008 | AI64: 0.008 | AJ64: 0.008 | AK64: 0.0082 | AL64: 0.0084 | AM64: 0.0087 | AN64: 0.009 | AO64: 0.0092 | AP64: 0.0094 | AQ64: 0.0096 | AR64: 0.0099 | AS64: 0.0103 | AT64: 0.0108 | AU64: 0.0114 | AV64: 0.0122 | AW64: 0.013 | AX64: 0.014 | AY64: 0.015 | AZ64: 0.016 | BA64: 0.0169 | BB64: 0.0177 | BC64: 0.0182 | BD64: 0.0184 | BE64: 0.0184 | BF64: 0.0181 | BG64: 0.0175 | BH64: 0.0168 | BI64: 0.0159 | BJ64: 0.015 | BK64: 0.0141 | BL64: 0.0133 | BM64: 0.0127 | BN64: 0.0123 | BO64: 0.0123 | BP64: 0.0122 | BQ64: 0.0119 | BR64: 0.0116 | BS64: 0.0113 | BT64: 0.0109 | BU64: 0.0105 | BV64: 0.0101 | BW64: 0.0098 | BX64: 0.0095 | BY64: 0.0093 | BZ64: 0.0092 | CA64: 0.0092 | CB64: 0.0092 | CC64: 0.0094 | CD64: 0.0095 | CE64: 0.0097 | CF64: 0.0098 | CG64: 0.01 | CH64: 0.01
A65: 82 | B65: 0.0009 | C65: 0.0008 | D65: 0.0008 | E65: 0.0008 | F65: 0.0007 | G65: 0.0007 | H65: 0.0006 | I65: 0.0006 | J65: 0.0007 | K65: 0.0008 | L65: 0.001 | M65: 0.0013 | N65: 0.0017 | O65: 0.0022 | P65: 0.0027 | Q65: 0.0033 | R65: 0.004 | S65: 0.0048 | T65: 0.0055 | U65: 0.0063 | V65: 0.0071 | W65: 0.0077 | X65: 0.0084 | Y65: 0.0088 | Z65: 0.0091 | AA65: 0.0092 | AB65: 0.0091 | AC65: 0.0089 | AD65: 0.0087 | AE65: 0.0084 | AF65: 0.0081 | AG65: 0.0078 | AH65: 0.0075 | AI65: 0.0074 | AJ65: 0.0074 | AK65: 0.0075 | AL65: 0.0077 | AM65: 0.0079 | AN65: 0.0082 | AO65: 0.0084 | AP65: 0.0086 | AQ65: 0.0088 | AR65: 0.0091 | AS65: 0.0095 | AT65: 0.01 | AU65: 0.0106 | AV65: 0.0114 | AW65: 0.0122 | AX65: 0.0131 | AY65: 0.0141 | AZ65: 0.0151 | BA65: 0.016 | BB65: 0.0167 | BC65: 0.0172 | BD65: 0.0175 | BE65: 0.0175 | BF65: 0.0173 | BG65: 0.0168 | BH65: 0.0162 | BI65: 0.0154 | BJ65: 0.0145 | BK65: 0.0137 | BL65: 0.0131 | BM65: 0.0125 | BN65: 0.0121 | BO65: 0.0122 | BP65: 0.0121 | BQ65: 0.0119 | BR65: 0.0116 | BS65: 0.0113 | BT65: 0.011 | BU65: 0.0106 | BV65: 0.0103 | BW65: 0.0099 | BX65: 0.0097 | BY65: 0.0095 | BZ65: 0.0094 | CA65: 0.0093 | CB65: 0.0093 | CC65: 0.0094 | CD65: 0.0096 | CE65: 0.0097 | CF65: 0.0099 | CG65: 0.01 | CH65: 0.01
A66: 83 | B66: 0.0009 | C66: 0.0009 | D66: 0.0009 | E66: 0.0008 | F66: 0.0008 | G66: 0.0007 | H66: 0.0007 | I66: 0.0007 | J66: 0.0008 | K66: 0.001 | L66: 0.0012 | M66: 0.0015 | N66: 0.0019 | O66: 0.0023 | P66: 0.0029 | Q66: 0.0035 | R66: 0.0041 | S66: 0.0048 | T66: 0.0055 | U66: 0.0063 | V66: 0.0069 | W66: 0.0076 | X66: 0.0081 | Y66: 0.0085 | Z66: 0.0088 | AA66: 0.0088 | AB66: 0.0088 | AC66: 0.0086 | AD66: 0.0083 | AE66: 0.008 | AF66: 0.0076 | AG66: 0.0073 | AH66: 0.0071 | AI66: 0.0069 | AJ66: 0.0069 | AK66: 0.0069 | AL66: 0.0071 | AM66: 0.0072 | AN66: 0.0074 | AO66: 0.0076 | AP66: 0.0078 | AQ66: 0.008 | AR66: 0.0083 | AS66: 0.0087 | AT66: 0.0092 | AU66: 0.0098 | AV66: 0.0105 | AW66: 0.0113 | AX66: 0.0122 | AY66: 0.0132 | AZ66: 0.0141 | BA66: 0.015 | BB66: 0.0157 | BC66: 0.0163 | BD66: 0.0165 | BE66: 0.0166 | BF66: 0.0164 | BG66: 0.016 | BH66: 0.0155 | BI66: 0.0148 | BJ66: 0.014 | BK66: 0.0133 | BL66: 0.0127 | BM66: 0.0122 | BN66: 0.0119 | BO66: 0.012 | BP66: 0.0119 | BQ66: 0.0118 | BR66: 0.0115 | BS66: 0.0113 | BT66: 0.011 | BU66: 0.0107 | BV66: 0.0104 | BW66: 0.0101 | BX66: 0.0098 | BY66: 0.0097 | BZ66: 0.0095 | CA66: 0.0094 | CB66: 0.0094 | CC66: 0.0094 | CD66: 0.0096 | CE66: 0.0097 | CF66: 0.0099 | CG66: 0.01 | CH66: 0.01
A67: 84 | B67: 0.001 | C67: 0.001 | D67: 0.001 | E67: 0.0009 | F67: 0.0009 | G67: 0.0008 | H67: 0.0008 | I67: 0.0009 | J67: 0.001 | K67: 0.0011 | L67: 0.0013 | M67: 0.0016 | N67: 0.002 | O67: 0.0025 | P67: 0.003 | Q67: 0.0036 | R67: 0.0042 | S67: 0.0049 | T67: 0.0055 | U67: 0.0062 | V67: 0.0068 | W67: 0.0074 | X67: 0.0078 | Y67: 0.0082 | Z67: 0.0084 | AA67: 0.0085 | AB67: 0.0084 | AC67: 0.0082 | AD67: 0.0079 | AE67: 0.0076 | AF67: 0.0072 | AG67: 0.0069 | AH67: 0.0066 | AI67: 0.0064 | AJ67: 0.0063 | AK67: 0.0063 | AL67: 0.0064 | AM67: 0.0065 | AN67: 0.0067 | AO67: 0.0068 | AP67: 0.007 | AQ67: 0.0072 | AR67: 0.0075 | AS67: 0.0079 | AT67: 0.0083 | AU67: 0.0089 | AV67: 0.0097 | AW67: 0.0105 | AX67: 0.0113 | AY67: 0.0123 | AZ67: 0.0132 | BA67: 0.014 | BB67: 0.0147 | BC67: 0.0153 | BD67: 0.0156 | BE67: 0.0157 | BF67: 0.0155 | BG67: 0.0152 | BH67: 0.0147 | BI67: 0.0141 | BJ67: 0.0135 | BK67: 0.0129 | BL67: 0.0123 | BM67: 0.0119 | BN67: 0.0116 | BO67: 0.0117 | BP67: 0.0117 | BQ67: 0.0116 | BR67: 0.0114 | BS67: 0.0112 | BT67: 0.0109 | BU67: 0.0107 | BV67: 0.0104 | BW67: 0.0102 | BX67: 0.01 | BY67: 0.0098 | BZ67: 0.0096 | CA67: 0.0095 | CB67: 0.0095 | CC67: 0.0095 | CD67: 0.0096 | CE67: 0.0097 | CF67: 0.0098 | CG67: 0.01 | CH67: 0.01
A68: 85 | B68: 0.0011 | C68: 0.0011 | D68: 0.001 | E68: 0.001 | F68: 0.001 | G68: 0.0009 | H68: 0.0009 | I68: 0.001 | J68: 0.0011 | K68: 0.0013 | L68: 0.0015 | M68: 0.0018 | N68: 0.0022 | O68: 0.0027 | P68: 0.0032 | Q68: 0.0037 | R68: 0.0043 | S68: 0.0049 | T68: 0.0055 | U68: 0.0061 | V68: 0.0067 | W68: 0.0072 | X68: 0.0076 | Y68: 0.0079 | Z68: 0.0081 | AA68: 0.0081 | AB68: 0.008 | AC68: 0.0078 | AD68: 0.0075 | AE68: 0.0072 | AF68: 0.0068 | AG68: 0.0065 | AH68: 0.0062 | AI68: 0.006 | AJ68: 0.0058 | AK68: 0.0057 | AL68: 0.0057 | AM68: 0.0058 | AN68: 0.0059 | AO68: 0.0061 | AP68: 0.0062 | AQ68: 0.0064 | AR68: 0.0067 | AS68: 0.007 | AT68: 0.0075 | AU68: 0.0081 | AV68: 0.0088 | AW68: 0.0095 | AX68: 0.0104 | AY68: 0.0113 | AZ68: 0.0122 | BA68: 0.013 | BB68: 0.0137 | BC68: 0.0142 | BD68: 0.0145 | BE68: 0.0147 | BF68: 0.0146 | BG68: 0.0144 | BH68: 0.014 | BI68: 0.0134 | BJ68: 0.0129 | BK68: 0.0123 | BL68: 0.0119 | BM68: 0.0115 | BN68: 0.0112 | BO68: 0.0114 | BP68: 0.0114 | BQ68: 0.0114 | BR68: 0.0112 | BS68: 0.011 | BT68: 0.0108 | BU68: 0.0106 | BV68: 0.0104 | BW68: 0.0102 | BX68: 0.01 | BY68: 0.0099 | BZ68: 0.0097 | CA68: 0.0096 | CB68: 0.0095 | CC68: 0.0095 | CD68: 0.0096 | CE68: 0.0096 | CF68: 0.0098 | CG68: 0.0099 | CH68: 0.01
A69: 86 | B69: 0.0012 | C69: 0.0012 | D69: 0.0011 | E69: 0.0011 | F69: 0.0011 | G69: 0.001 | H69: 0.0011 | I69: 0.0011 | J69: 0.0012 | K69: 0.0014 | L69: 0.0017 | M69: 0.002 | N69: 0.0024 | O69: 0.0028 | P69: 0.0033 | Q69: 0.0038 | R69: 0.0044 | S69: 0.005 | T69: 0.0055 | U69: 0.0061 | V69: 0.0065 | W69: 0.007 | X69: 0.0073 | Y69: 0.0076 | Z69: 0.0077 | AA69: 0.0077 | AB69: 0.0076 | AC69: 0.0074 | AD69: 0.0071 | AE69: 0.0068 | AF69: 0.0064 | AG69: 0.0061 | AH69: 0.0057 | AI69: 0.0055 | AJ69: 0.0053 | AK69: 0.0052 | AL69: 0.0051 | AM69: 0.0051 | AN69: 0.0052 | AO69: 0.0053 | AP69: 0.0054 | AQ69: 0.0056 | AR69: 0.0058 | AS69: 0.0062 | AT69: 0.0067 | AU69: 0.0072 | AV69: 0.0079 | AW69: 0.0086 | AX69: 0.0094 | AY69: 0.0103 | AZ69: 0.0111 | BA69: 0.0119 | BB69: 0.0126 | BC69: 0.0132 | BD69: 0.0135 | BE69: 0.0137 | BF69: 0.0137 | BG69: 0.0135 | BH69: 0.0132 | BI69: 0.0127 | BJ69: 0.0123 | BK69: 0.0118 | BL69: 0.0114 | BM69: 0.0111 | BN69: 0.0108 | BO69: 0.011 | BP69: 0.0111 | BQ69: 0.0111 | BR69: 0.011 | BS69: 0.0108 | BT69: 0.0107 | BU69: 0.0105 | BV69: 0.0103 | BW69: 0.0101 | BX69: 0.0099 | BY69: 0.0098 | BZ69: 0.0097 | CA69: 0.0096 | CB69: 0.0095 | CC69: 0.0095 | CD69: 0.0095 | CE69: 0.0095 | CF69: 0.0096 | CG69: 0.0098 | CH69: 0.0099
A70: 87 | B70: 0.0013 | C70: 0.0013 | D70: 0.0013 | E70: 0.0012 | F70: 0.0012 | G70: 0.0012 | H70: 0.0012 | I70: 0.0013 | J70: 0.0014 | K70: 0.0016 | L70: 0.0018 | M70: 0.0021 | N70: 0.0025 | O70: 0.003 | P70: 0.0034 | Q70: 0.004 | R70: 0.0045 | S70: 0.005 | T70: 0.0055 | U70: 0.006 | V70: 0.0064 | W70: 0.0068 | X70: 0.0071 | Y70: 0.0073 | Z70: 0.0074 | AA70: 0.0074 | AB70: 0.0072 | AC70: 0.007 | AD70: 0.0067 | AE70: 0.0064 | AF70: 0.006 | AG70: 0.0057 | AH70: 0.0053 | AI70: 0.005 | AJ70: 0.0048 | AK70: 0.0046 | AL70: 0.0045 | AM70: 0.0045 | AN70: 0.0045 | AO70: 0.0045 | AP70: 0.0046 | AQ70: 0.0048 | AR70: 0.005 | AS70: 0.0054 | AT70: 0.0058 | AU70: 0.0064 | AV70: 0.007 | AW70: 0.0077 | AX70: 0.0084 | AY70: 0.0093 | AZ70: 0.0101 | BA70: 0.0108 | BB70: 0.0115 | BC70: 0.0121 | BD70: 0.0124 | BE70: 0.0126 | BF70: 0.0127 | BG70: 0.0126 | BH70: 0.0123 | BI70: 0.012 | BJ70: 0.0116 | BK70: 0.0112 | BL70: 0.0109 | BM70: 0.0106 | BN70: 0.0104 | BO70: 0.0106 | BP70: 0.0107 | BQ70: 0.0107 | BR70: 0.0107 | BS70: 0.0106 | BT70: 0.0104 | BU70: 0.0103 | BV70: 0.0101 | BW70: 0.01 | BX70: 0.0098 | BY70: 0.0097 | BZ70: 0.0097 | CA70: 0.0095 | CB70: 0.0094 | CC70: 0.0094 | CD70: 0.0094 | CE70: 0.0094 | CF70: 0.0095 | CG70: 0.0096 | CH70: 0.0097
A71: 88 | B71: 0.0014 | C71: 0.0014 | D71: 0.0014 | E71: 0.0013 | F71: 0.0013 | G71: 0.0013 | H71: 0.0014 | I71: 0.0014 | J71: 0.0016 | K71: 0.0018 | L71: 0.002 | M71: 0.0023 | N71: 0.0027 | O71: 0.0031 | P71: 0.0036 | Q71: 0.0041 | R71: 0.0045 | S71: 0.005 | T71: 0.0055 | U71: 0.0059 | V71: 0.0063 | W71: 0.0066 | X71: 0.0068 | Y71: 0.007 | Z71: 0.0071 | AA71: 0.007 | AB71: 0.0069 | AC71: 0.0066 | AD71: 0.0063 | AE71: 0.006 | AF71: 0.0056 | AG71: 0.0052 | AH71: 0.0048 | AI71: 0.0045 | AJ71: 0.0042 | AK71: 0.004 | AL71: 0.0039 | AM71: 0.0038 | AN71: 0.0038 | AO71: 0.0038 | AP71: 0.0039 | AQ71: 0.004 | AR71: 0.0042 | AS71: 0.0045 | AT71: 0.005 | AU71: 0.0055 | AV71: 0.0061 | AW71: 0.0067 | AX71: 0.0075 | AY71: 0.0082 | AZ71: 0.009 | BA71: 0.0097 | BB71: 0.0104 | BC71: 0.011 | BD71: 0.0114 | BE71: 0.0116 | BF71: 0.0117 | BG71: 0.0116 | BH71: 0.0115 | BI71: 0.0112 | BJ71: 0.0109 | BK71: 0.0106 | BL71: 0.0103 | BM71: 0.0101 | BN71: 0.0099 | BO71: 0.0101 | BP71: 0.0103 | BQ71: 0.0103 | BR71: 0.0103 | BS71: 0.0103 | BT71: 0.0102 | BU71: 0.0101 | BV71: 0.0099 | BW71: 0.0098 | BX71: 0.0097 | BY71: 0.0096 | BZ71: 0.0095 | CA71: 0.0095 | CB71: 0.0094 | CC71: 0.0093 | CD71: 0.0093 | CE71: 0.0093 | CF71: 0.0094 | CG71: 0.0095 | CH71: 0.0096
A72: 89 | B72: 0.0015 | C72: 0.0015 | D72: 0.0015 | E72: 0.0015 | F72: 0.0015 | G72: 0.0015 | H72: 0.0015 | I72: 0.0016 | J72: 0.0018 | K72: 0.002 | L72: 0.0022 | M72: 0.0025 | N72: 0.0029 | O72: 0.0033 | P72: 0.0037 | Q72: 0.0041 | R72: 0.0046 | S72: 0.005 | T72: 0.0054 | U72: 0.0058 | V72: 0.0061 | W72: 0.0064 | X72: 0.0066 | Y72: 0.0067 | Z72: 0.0067 | AA72: 0.0066 | AB72: 0.0065 | AC72: 0.0062 | AD72: 0.0059 | AE72: 0.0056 | AF72: 0.0052 | AG72: 0.0048 | AH72: 0.0044 | AI72: 0.004 | AJ72: 0.0037 | AK72: 0.0035 | AL72: 0.0033 | AM72: 0.0032 | AN72: 0.0031 | AO72: 0.0031 | AP72: 0.0031 | AQ72: 0.0032 | AR72: 0.0034 | AS72: 0.0037 | AT72: 0.0041 | AU72: 0.0046 | AV72: 0.0052 | AW72: 0.0058 | AX72: 0.0065 | AY72: 0.0072 | AZ72: 0.0079 | BA72: 0.0086 | BB72: 0.0093 | BC72: 0.0098 | BD72: 0.0103 | BE72: 0.0105 | BF72: 0.0107 | BG72: 0.0107 | BH72: 0.0106 | BI72: 0.0104 | BJ72: 0.0102 | BK72: 0.01 | BL72: 0.0098 | BM72: 0.0096 | BN72: 0.0094 | BO72: 0.0097 | BP72: 0.0098 | BQ72: 0.0099 | BR72: 0.01 | BS72: 0.01 | BT72: 0.0099 | BU72: 0.0098 | BV72: 0.0097 | BW72: 0.0096 | BX72: 0.0095 | BY72: 0.0094 | BZ72: 0.0093 | CA72: 0.0093 | CB72: 0.0093 | CC72: 0.0092 | CD72: 0.0092 | CE72: 0.0092 | CF72: 0.0092 | CG72: 0.0093 | CH72: 0.0094
A73: 90 | B73: 0.0017 | C73: 0.0017 | D73: 0.0016 | E73: 0.0016 | F73: 0.0016 | G73: 0.0016 | H73: 0.0017 | I73: 0.0018 | J73: 0.002 | K73: 0.0022 | L73: 0.0024 | M73: 0.0027 | N73: 0.003 | O73: 0.0034 | P73: 0.0038 | Q73: 0.0042 | R73: 0.0046 | S73: 0.005 | T73: 0.0054 | U73: 0.0057 | V73: 0.006 | W73: 0.0062 | X73: 0.0063 | Y73: 0.0064 | Z73: 0.0064 | AA73: 0.0063 | AB73: 0.0061 | AC73: 0.0058 | AD73: 0.0055 | AE73: 0.0052 | AF73: 0.0048 | AG73: 0.0044 | AH73: 0.0039 | AI73: 0.0036 | AJ73: 0.0032 | AK73: 0.0029 | AL73: 0.0027 | AM73: 0.0025 | AN73: 0.0024 | AO73: 0.0024 | AP73: 0.0024 | AQ73: 0.0025 | AR73: 0.0027 | AS73: 0.0029 | AT73: 0.0033 | AU73: 0.0037 | AV73: 0.0042 | AW73: 0.0048 | AX73: 0.0055 | AY73: 0.0062 | AZ73: 0.0069 | BA73: 0.0075 | BB73: 0.0082 | BC73: 0.0087 | BD73: 0.0092 | BE73: 0.0095 | BF73: 0.0097 | BG73: 0.0098 | BH73: 0.0097 | BI73: 0.0096 | BJ73: 0.0095 | BK73: 0.0093 | BL73: 0.0092 | BM73: 0.009 | BN73: 0.0089 | BO73: 0.0092 | BP73: 0.0094 | BQ73: 0.0095 | BR73: 0.0096 | BS73: 0.0096 | BT73: 0.0096 | BU73: 0.0096 | BV73: 0.0095 | BW73: 0.0094 | BX73: 0.0093 | BY73: 0.0092 | BZ73: 0.0091 | CA73: 0.0091 | CB73: 0.0091 | CC73: 0.0091 | CD73: 0.0091 | CE73: 0.0091 | CF73: 0.0091 | CG73: 0.0092 | CH73: 0.0093
A74: 91 | B74: 0.0018 | C74: 0.0018 | D74: 0.0018 | E74: 0.0018 | F74: 0.0018 | G74: 0.0018 | H74: 0.0019 | I74: 0.002 | J74: 0.0022 | K74: 0.0024 | L74: 0.0026 | M74: 0.0029 | N74: 0.0032 | O74: 0.0036 | P74: 0.0039 | Q74: 0.0043 | R74: 0.0047 | S74: 0.005 | T74: 0.0053 | U74: 0.0056 | V74: 0.0058 | W74: 0.006 | X74: 0.0061 | Y74: 0.0061 | Z74: 0.0061 | AA74: 0.0059 | AB74: 0.0057 | AC74: 0.0055 | AD74: 0.0051 | AE74: 0.0048 | AF74: 0.0044 | AG74: 0.0039 | AH74: 0.0035 | AI74: 0.0031 | AJ74: 0.0027 | AK74: 0.0024 | AL74: 0.0021 | AM74: 0.0019 | AN74: 0.0018 | AO74: 0.0017 | AP74: 0.0017 | AQ74: 0.0017 | AR74: 0.0019 | AS74: 0.0021 | AT74: 0.0024 | AU74: 0.0028 | AV74: 0.0033 | AW74: 0.0039 | AX74: 0.0045 | AY74: 0.0051 | AZ74: 0.0058 | BA74: 0.0064 | BB74: 0.007 | BC74: 0.0076 | BD74: 0.008 | BE74: 0.0084 | BF74: 0.0087 | BG74: 0.0088 | BH74: 0.0089 | BI74: 0.0088 | BJ74: 0.0088 | BK74: 0.0087 | BL74: 0.0086 | BM74: 0.0085 | BN74: 0.0084 | BO74: 0.0087 | BP74: 0.0089 | BQ74: 0.009 | BR74: 0.0092 | BS74: 0.0092 | BT74: 0.0093 | BU74: 0.0093 | BV74: 0.0093 | BW74: 0.0092 | BX74: 0.0091 | BY74: 0.009 | BZ74: 0.0089 | CA74: 0.0089 | CB74: 0.0089 | CC74: 0.0089 | CD74: 0.009 | CE74: 0.009 | CF74: 0.009 | CG74: 0.009 | CH74: 0.0091
A75: 92 | B75: 0.0019 | C75: 0.0019 | D75: 0.0019 | E75: 0.0019 | F75: 0.002 | G75: 0.002 | H75: 0.0021 | I75: 0.0022 | J75: 0.0024 | K75: 0.0026 | L75: 0.0028 | M75: 0.0031 | N75: 0.0034 | O75: 0.0037 | P75: 0.0041 | Q75: 0.0044 | R75: 0.0047 | S75: 0.005 | T75: 0.0053 | U75: 0.0055 | V75: 0.0057 | W75: 0.0058 | X75: 0.0058 | Y75: 0.0058 | Z75: 0.0057 | AA75: 0.0056 | AB75: 0.0053 | AC75: 0.0051 | AD75: 0.0047 | AE75: 0.0043 | AF75: 0.0039 | AG75: 0.0035 | AH75: 0.003 | AI75: 0.0026 | AJ75: 0.0022 | AK75: 0.0018 | AL75: 0.0015 | AM75: 0.0013 | AN75: 0.0011 | AO75: 0.001 | AP75: 0.001 | AQ75: 0.001 | AR75: 0.0011 | AS75: 0.0013 | AT75: 0.0016 | AU75: 0.002 | AV75: 0.0024 | AW75: 0.0029 | AX75: 0.0035 | AY75: 0.0041 | AZ75: 0.0047 | BA75: 0.0053 | BB75: 0.0059 | BC75: 0.0065 | BD75: 0.0069 | BE75: 0.0073 | BF75: 0.0076 | BG75: 0.0078 | BH75: 0.008 | BI75: 0.008 | BJ75: 0.008 | BK75: 0.008 | BL75: 0.008 | BM75: 0.0079 | BN75: 0.0079 | BO75: 0.0081 | BP75: 0.0084 | BQ75: 0.0086 | BR75: 0.0087 | BS75: 0.0089 | BT75: 0.0089 | BU75: 0.009 | BV75: 0.009 | BW75: 0.009 | BX75: 0.0089 | BY75: 0.0088 | BZ75: 0.0087 | CA75: 0.0087 | CB75: 0.0086 | CC75: 0.0087 | CD75: 0.0087 | CE75: 0.0088 | CF75: 0.0088 | CG75: 0.0089 | CH75: 0.009
A76: 93 | B76: 0.0021 | C76: 0.0021 | D76: 0.0021 | E76: 0.0021 | F76: 0.0021 | G76: 0.0022 | H76: 0.0023 | I76: 0.0024 | J76: 0.0026 | K76: 0.0028 | L76: 0.003 | M76: 0.0033 | N76: 0.0036 | O76: 0.0039 | P76: 0.0042 | Q76: 0.0045 | R76: 0.0048 | S76: 0.005 | T76: 0.0052 | U76: 0.0054 | V76: 0.0055 | W76: 0.0056 | X76: 0.0056 | Y76: 0.0055 | Z76: 0.0054 | AA76: 0.0052 | AB76: 0.005 | AC76: 0.0047 | AD76: 0.0043 | AE76: 0.0039 | AF76: 0.0035 | AG76: 0.003 | AH76: 0.0026 | AI76: 0.0021 | AJ76: 0.0017 | AK76: 0.0013 | AL76: 0.001 | AM76: 0.0007 | AN76: 0.0005 | AO76: 0.0003 | AP76: 0.0002 | AQ76: 0.0002 | AR76: 0.0003 | AS76: 0.0005 | AT76: 0.0007 | AU76: 0.0011 | AV76: 0.0015 | AW76: 0.002 | AX76: 0.0025 | AY76: 0.003 | AZ76: 0.0036 | BA76: 0.0042 | BB76: 0.0048 | BC76: 0.0053 | BD76: 0.0058 | BE76: 0.0062 | BF76: 0.0066 | BG76: 0.0069 | BH76: 0.0071 | BI76: 0.0072 | BJ76: 0.0073 | BK76: 0.0073 | BL76: 0.0073 | BM76: 0.0073 | BN76: 0.0073 | BO76: 0.0076 | BP76: 0.0078 | BQ76: 0.0081 | BR76: 0.0083 | BS76: 0.0085 | BT76: 0.0086 | BU76: 0.0087 | BV76: 0.0087 | BW76: 0.0087 | BX76: 0.0086 | BY76: 0.0086 | BZ76: 0.0085 | CA76: 0.0084 | CB76: 0.0084 | CC76: 0.0084 | CD76: 0.0085 | CE76: 0.0086 | CF76: 0.0087 | CG76: 0.0087 | CH76: 0.0088
A77: 94 | B77: 0.0022 | C77: 0.0022 | D77: 0.0022 | E77: 0.0023 | F77: 0.0023 | G77: 0.0024 | H77: 0.0025 | I77: 0.0026 | J77: 0.0028 | K77: 0.003 | L77: 0.0032 | M77: 0.0035 | N77: 0.0037 | O77: 0.004 | P77: 0.0043 | Q77: 0.0045 | R77: 0.0048 | S77: 0.005 | T77: 0.0052 | U77: 0.0053 | V77: 0.0053 | W77: 0.0054 | X77: 0.0053 | Y77: 0.0052 | Z77: 0.0051 | AA77: 0.0049 | AB77: 0.0046 | AC77: 0.0043 | AD77: 0.0039 | AE77: 0.0035 | AF77: 0.003 | AG77: 0.0026 | AH77: 0.0021 | AI77: 0.0016 | AJ77: 0.0012 | AK77: 0.0008 | AL77: 0.0004 | AM77: 0.0001 | AN77: -0.0002 | AO77: -0.0003 | AP77: -0.0005 | AQ77: -0.0005 | AR77: -0.0004 | AS77: -0.0003 | AT77: -0.0001 | AU77: 0.0002 | AV77: 0.0006 | AW77: 0.001 | AX77: 0.0015 | AY77: 0.002 | AZ77: 0.0025 | BA77: 0.0031 | BB77: 0.0037 | BC77: 0.0042 | BD77: 0.0047 | BE77: 0.0052 | BF77: 0.0056 | BG77: 0.0059 | BH77: 0.0062 | BI77: 0.0064 | BJ77: 0.0065 | BK77: 0.0066 | BL77: 0.0067 | BM77: 0.0067 | BN77: 0.0068 | BO77: 0.007 | BP77: 0.0073 | BQ77: 0.0076 | BR77: 0.0078 | BS77: 0.008 | BT77: 0.0082 | BU77: 0.0083 | BV77: 0.0084 | BW77: 0.0084 | BX77: 0.0084 | BY77: 0.0083 | BZ77: 0.0083 | CA77: 0.0082 | CB77: 0.0082 | CC77: 0.0082 | CD77: 0.0082 | CE77: 0.0083 | CF77: 0.0084 | CG77: 0.0086 | CH77: 0.0087
A78: 95 | B78: 0.0024 | C78: 0.0024 | D78: 0.0024 | E78: 0.0024 | F78: 0.0025 | G78: 0.0026 | H78: 0.0027 | I78: 0.0029 | J78: 0.003 | K78: 0.0032 | L78: 0.0034 | M78: 0.0037 | N78: 0.0039 | O78: 0.0042 | P78: 0.0044 | Q78: 0.0046 | R78: 0.0048 | S78: 0.005 | T78: 0.0051 | U78: 0.0052 | V78: 0.0052 | W78: 0.0051 | X78: 0.0051 | Y78: 0.0049 | Z78: 0.0047 | AA78: 0.0045 | AB78: 0.0042 | AC78: 0.0039 | AD78: 0.0035 | AE78: 0.0031 | AF78: 0.0026 | AG78: 0.0021 | AH78: 0.0016 | AI78: 0.0011 | AJ78: 0.0007 | AK78: 0.0002 | AL78: -0.0002 | AM78: -0.0005 | AN78: -0.0008 | AO78: -0.001 | AP78: -0.0012 | AQ78: -0.0012 | AR78: -0.0012 | AS78: -0.0011 | AT78: -0.0009 | AU78: -0.0007 | AV78: -0.0004 | AW78: 0 | AX78: 0.0005 | AY78: 0.0009 | AZ78: 0.0015 | BA78: 0.002 | BB78: 0.0025 | BC78: 0.0031 | BD78: 0.0036 | BE78: 0.0041 | BF78: 0.0045 | BG78: 0.0049 | BH78: 0.0053 | BI78: 0.0055 | BJ78: 0.0058 | BK78: 0.0059 | BL78: 0.0061 | BM78: 0.0062 | BN78: 0.0062 | BO78: 0.0065 | BP78: 0.0068 | BQ78: 0.0071 | BR78: 0.0074 | BS78: 0.0076 | BT78: 0.0078 | BU78: 0.008 | BV78: 0.0081 | BW78: 0.0081 | BX78: 0.0081 | BY78: 0.0081 | BZ78: 0.008 | CA78: 0.0079 | CB78: 0.0079 | CC78: 0.0079 | CD78: 0.0079 | CE78: 0.008 | CF78: 0.0081 | CG78: 0.0083 | CH78: 0.0085
A79: 96 | B79: 0.0023 | C79: 0.0023 | D79: 0.0023 | E79: 0.0023 | F79: 0.0024 | G79: 0.0025 | H79: 0.0026 | I79: 0.0027 | J79: 0.0029 | K79: 0.0031 | L79: 0.0033 | M79: 0.0035 | N79: 0.0037 | O79: 0.004 | P79: 0.0042 | Q79: 0.0044 | R79: 0.0046 | S79: 0.0047 | T79: 0.0048 | U79: 0.0049 | V79: 0.0049 | W79: 0.0049 | X79: 0.0048 | Y79: 0.0047 | Z79: 0.0045 | AA79: 0.0043 | AB79: 0.004 | AC79: 0.0037 | AD79: 0.0033 | AE79: 0.0029 | AF79: 0.0025 | AG79: 0.002 | AH79: 0.0016 | AI79: 0.0011 | AJ79: 0.0006 | AK79: 0.0002 | AL79: -0.0002 | AM79: -0.0005 | AN79: -0.0008 | AO79: -0.001 | AP79: -0.0011 | AQ79: -0.0012 | AR79: -0.0011 | AS79: -0.0011 | AT79: -0.0009 | AU79: -0.0006 | AV79: -0.0003 | AW79: 0 | AX79: 0.0004 | AY79: 0.0009 | AZ79: 0.0014 | BA79: 0.0019 | BB79: 0.0024 | BC79: 0.0029 | BD79: 0.0034 | BE79: 0.0039 | BF79: 0.0043 | BG79: 0.0047 | BH79: 0.005 | BI79: 0.0053 | BJ79: 0.0055 | BK79: 0.0056 | BL79: 0.0058 | BM79: 0.0058 | BN79: 0.0059 | BO79: 0.0062 | BP79: 0.0065 | BQ79: 0.0067 | BR79: 0.007 | BS79: 0.0072 | BT79: 0.0074 | BU79: 0.0076 | BV79: 0.0077 | BW79: 0.0077 | BX79: 0.0077 | BY79: 0.0077 | BZ79: 0.0076 | CA79: 0.0075 | CB79: 0.0075 | CC79: 0.0075 | CD79: 0.0075 | CE79: 0.0076 | CF79: 0.0077 | CG79: 0.0079 | CH79: 0.0081
A80: 97 | B80: 0.0021 | C80: 0.0022 | D80: 0.0022 | E80: 0.0022 | F80: 0.0023 | G80: 0.0023 | H80: 0.0024 | I80: 0.0026 | J80: 0.0027 | K80: 0.0029 | L80: 0.0031 | M80: 0.0033 | N80: 0.0035 | O80: 0.0038 | P80: 0.004 | Q80: 0.0042 | R80: 0.0043 | S80: 0.0045 | T80: 0.0046 | U80: 0.0046 | V80: 0.0047 | W80: 0.0046 | X80: 0.0046 | Y80: 0.0044 | Z80: 0.0043 | AA80: 0.0041 | AB80: 0.0038 | AC80: 0.0035 | AD80: 0.0031 | AE80: 0.0028 | AF80: 0.0023 | AG80: 0.0019 | AH80: 0.0015 | AI80: 0.001 | AJ80: 0.0006 | AK80: 0.0002 | AL80: -0.0002 | AM80: -0.0005 | AN80: -0.0007 | AO80: -0.0009 | AP80: -0.001 | AQ80: -0.0011 | AR80: -0.0011 | AS80: -0.001 | AT80: -0.0008 | AU80: -0.0006 | AV80: -0.0003 | AW80: 0 | AX80: 0.0004 | AY80: 0.0008 | AZ80: 0.0013 | BA80: 0.0018 | BB80: 0.0023 | BC80: 0.0028 | BD80: 0.0032 | BE80: 0.0037 | BF80: 0.0041 | BG80: 0.0044 | BH80: 0.0047 | BI80: 0.005 | BJ80: 0.0052 | BK80: 0.0054 | BL80: 0.0055 | BM80: 0.0055 | BN80: 0.0056 | BO80: 0.0058 | BP80: 0.0061 | BQ80: 0.0064 | BR80: 0.0066 | BS80: 0.0069 | BT80: 0.007 | BU80: 0.0072 | BV80: 0.0073 | BW80: 0.0073 | BX80: 0.0073 | BY80: 0.0073 | BZ80: 0.0072 | CA80: 0.0071 | CB80: 0.0071 | CC80: 0.0071 | CD80: 0.0071 | CE80: 0.0072 | CF80: 0.0073 | CG80: 0.0075 | CH80: 0.0077
A81: 98 | B81: 0.002 | C81: 0.002 | D81: 0.002 | E81: 0.0021 | F81: 0.0021 | G81: 0.0022 | H81: 0.0023 | I81: 0.0024 | J81: 0.0026 | K81: 0.0027 | L81: 0.0029 | M81: 0.0031 | N81: 0.0033 | O81: 0.0035 | P81: 0.0037 | Q81: 0.0039 | R81: 0.0041 | S81: 0.0042 | T81: 0.0043 | U81: 0.0044 | V81: 0.0044 | W81: 0.0044 | X81: 0.0043 | Y81: 0.0042 | Z81: 0.004 | AA81: 0.0038 | AB81: 0.0036 | AC81: 0.0033 | AD81: 0.003 | AE81: 0.0026 | AF81: 0.0022 | AG81: 0.0018 | AH81: 0.0014 | AI81: 0.001 | AJ81: 0.0006 | AK81: 0.0002 | AL81: -0.0001 | AM81: -0.0004 | AN81: -0.0007 | AO81: -0.0009 | AP81: -0.001 | AQ81: -0.001 | AR81: -0.001 | AS81: -0.0009 | AT81: -0.0008 | AU81: -0.0006 | AV81: -0.0003 | AW81: 0 | AX81: 0.0004 | AY81: 0.0008 | AZ81: 0.0012 | BA81: 0.0017 | BB81: 0.0022 | BC81: 0.0026 | BD81: 0.0031 | BE81: 0.0035 | BF81: 0.0039 | BG81: 0.0042 | BH81: 0.0045 | BI81: 0.0047 | BJ81: 0.0049 | BK81: 0.0051 | BL81: 0.0052 | BM81: 0.0052 | BN81: 0.0053 | BO81: 0.0055 | BP81: 0.0058 | BQ81: 0.006 | BR81: 0.0063 | BS81: 0.0065 | BT81: 0.0067 | BU81: 0.0068 | BV81: 0.0069 | BW81: 0.0069 | BX81: 0.0069 | BY81: 0.0068 | BZ81: 0.0068 | CA81: 0.0068 | CB81: 0.0067 | CC81: 0.0067 | CD81: 0.0068 | CE81: 0.0068 | CF81: 0.0069 | CG81: 0.0071 | CH81: 0.0072
A82: 99 | B82: 0.0019 | C82: 0.0019 | D82: 0.0019 | E82: 0.002 | F82: 0.002 | G82: 0.0021 | H82: 0.0022 | I82: 0.0023 | J82: 0.0024 | K82: 0.0026 | L82: 0.0028 | M82: 0.0029 | N82: 0.0031 | O82: 0.0033 | P82: 0.0035 | Q82: 0.0037 | R82: 0.0038 | S82: 0.004 | T82: 0.0041 | U82: 0.0041 | V82: 0.0041 | W82: 0.0041 | X82: 0.0041 | Y82: 0.0039 | Z82: 0.0038 | AA82: 0.0036 | AB82: 0.0034 | AC82: 0.0031 | AD82: 0.0028 | AE82: 0.0024 | AF82: 0.0021 | AG82: 0.0017 | AH82: 0.0013 | AI82: 0.0009 | AJ82: 0.0005 | AK82: 0.0002 | AL82: -0.0001 | AM82: -0.0004 | AN82: -0.0006 | AO82: -0.0008 | AP82: -0.0009 | AQ82: -0.001 | AR82: -0.001 | AS82: -0.0009 | AT82: -0.0007 | AU82: -0.0005 | AV82: -0.0003 | AW82: 0 | AX82: 0.0004 | AY82: 0.0008 | AZ82: 0.0012 | BA82: 0.0016 | BB82: 0.002 | BC82: 0.0025 | BD82: 0.0029 | BE82: 0.0033 | BF82: 0.0036 | BG82: 0.0039 | BH82: 0.0042 | BI82: 0.0044 | BJ82: 0.0046 | BK82: 0.0048 | BL82: 0.0049 | BM82: 0.0049 | BN82: 0.005 | BO82: 0.0052 | BP82: 0.0054 | BQ82: 0.0057 | BR82: 0.0059 | BS82: 0.0061 | BT82: 0.0063 | BU82: 0.0064 | BV82: 0.0065 | BW82: 0.0065 | BX82: 0.0065 | BY82: 0.0064 | BZ82: 0.0064 | CA82: 0.0064 | CB82: 0.0063 | CC82: 0.0063 | CD82: 0.0064 | CE82: 0.0064 | CF82: 0.0065 | CG82: 0.0066 | CH82: 0.0068
A83: 100 | B83: 0.0018 | C83: 0.0018 | D83: 0.0018 | E83: 0.0018 | F83: 0.0019 | G83: 0.0019 | H83: 0.002 | I83: 0.0021 | J83: 0.0023 | K83: 0.0024 | L83: 0.0026 | M83: 0.0028 | N83: 0.0029 | O83: 0.0031 | P83: 0.0033 | Q83: 0.0035 | R83: 0.0036 | S83: 0.0037 | T83: 0.0038 | U83: 0.0039 | V83: 0.0039 | W83: 0.0039 | X83: 0.0038 | Y83: 0.0037 | Z83: 0.0036 | AA83: 0.0034 | AB83: 0.0032 | AC83: 0.0029 | AD83: 0.0026 | AE83: 0.0023 | AF83: 0.002 | AG83: 0.0016 | AH83: 0.0012 | AI83: 0.0009 | AJ83: 0.0005 | AK83: 0.0002 | AL83: -0.0001 | AM83: -0.0004 | AN83: -0.0006 | AO83: -0.0008 | AP83: -0.0009 | AQ83: -0.0009 | AR83: -0.0009 | AS83: -0.0008 | AT83: -0.0007 | AU83: -0.0005 | AV83: -0.0003 | AW83: 0 | AX83: 0.0003 | AY83: 0.0007 | AZ83: 0.0011 | BA83: 0.0015 | BB83: 0.0019 | BC83: 0.0023 | BD83: 0.0027 | BE83: 0.0031 | BF83: 0.0034 | BG83: 0.0037 | BH83: 0.004 | BI83: 0.0042 | BJ83: 0.0043 | BK83: 0.0045 | BL83: 0.0046 | BM83: 0.0046 | BN83: 0.0047 | BO83: 0.0049 | BP83: 0.0051 | BQ83: 0.0053 | BR83: 0.0055 | BS83: 0.0057 | BT83: 0.0059 | BU83: 0.006 | BV83: 0.0061 | BW83: 0.0061 | BX83: 0.0061 | BY83: 0.006 | BZ83: 0.006 | CA83: 0.006 | CB83: 0.0059 | CC83: 0.0059 | CD83: 0.006 | CE83: 0.006 | CF83: 0.0061 | CG83: 0.0062 | CH83: 0.0064
A84: 101 | B84: 0.0017 | C84: 0.0017 | D84: 0.0017 | E84: 0.0017 | F84: 0.0018 | G84: 0.0018 | H84: 0.0019 | I84: 0.002 | J84: 0.0021 | K84: 0.0023 | L84: 0.0024 | M84: 0.0026 | N84: 0.0027 | O84: 0.0029 | P84: 0.0031 | Q84: 0.0032 | R84: 0.0034 | S84: 0.0035 | T84: 0.0036 | U84: 0.0036 | V84: 0.0036 | W84: 0.0036 | X84: 0.0035 | Y84: 0.0035 | Z84: 0.0033 | AA84: 0.0032 | AB84: 0.0029 | AC84: 0.0027 | AD84: 0.0024 | AE84: 0.0021 | AF84: 0.0018 | AG84: 0.0015 | AH84: 0.0011 | AI84: 0.0008 | AJ84: 0.0005 | AK84: 0.0002 | AL84: -0.0001 | AM84: -0.0004 | AN84: -0.0006 | AO84: -0.0007 | AP84: -0.0008 | AQ84: -0.0009 | AR84: -0.0008 | AS84: -0.0008 | AT84: -0.0007 | AU84: -0.0005 | AV84: -0.0003 | AW84: 0 | AX84: 0.0003 | AY84: 0.0007 | AZ84: 0.001 | BA84: 0.0014 | BB84: 0.0018 | BC84: 0.0022 | BD84: 0.0025 | BE84: 0.0029 | BF84: 0.0032 | BG84: 0.0034 | BH84: 0.0037 | BI84: 0.0039 | BJ84: 0.004 | BK84: 0.0042 | BL84: 0.0043 | BM84: 0.0043 | BN84: 0.0043 | BO84: 0.0045 | BP84: 0.0048 | BQ84: 0.005 | BR84: 0.0052 | BS84: 0.0053 | BT84: 0.0055 | BU84: 0.0056 | BV84: 0.0057 | BW84: 0.0057 | BX84: 0.0057 | BY84: 0.0056 | BZ84: 0.0056 | CA84: 0.0056 | CB84: 0.0055 | CC84: 0.0055 | CD84: 0.0056 | CE84: 0.0056 | CF84: 0.0057 | CG84: 0.0058 | CH84: 0.006
A85: 102 | B85: 0.0016 | C85: 0.0016 | D85: 0.0016 | E85: 0.0016 | F85: 0.0016 | G85: 0.0017 | H85: 0.0018 | I85: 0.0019 | J85: 0.002 | K85: 0.0021 | L85: 0.0022 | M85: 0.0024 | N85: 0.0025 | O85: 0.0027 | P85: 0.0029 | Q85: 0.003 | R85: 0.0031 | S85: 0.0032 | T85: 0.0033 | U85: 0.0034 | V85: 0.0034 | W85: 0.0033 | X85: 0.0033 | Y85: 0.0032 | Z85: 0.0031 | AA85: 0.0029 | AB85: 0.0027 | AC85: 0.0025 | AD85: 0.0023 | AE85: 0.002 | AF85: 0.0017 | AG85: 0.0014 | AH85: 0.0011 | AI85: 0.0007 | AJ85: 0.0004 | AK85: 0.0001 | AL85: -0.0001 | AM85: -0.0003 | AN85: -0.0005 | AO85: -0.0007 | AP85: -0.0008 | AQ85: -0.0008 | AR85: -0.0008 | AS85: -0.0007 | AT85: -0.0006 | AU85: -0.0004 | AV85: -0.0002 | AW85: 0 | AX85: 0.0003 | AY85: 0.0006 | AZ85: 0.0009 | BA85: 0.0013 | BB85: 0.0017 | BC85: 0.002 | BD85: 0.0023 | BE85: 0.0027 | BF85: 0.0029 | BG85: 0.0032 | BH85: 0.0034 | BI85: 0.0036 | BJ85: 0.0038 | BK85: 0.0039 | BL85: 0.0039 | BM85: 0.004 | BN85: 0.004 | BO85: 0.0042 | BP85: 0.0044 | BQ85: 0.0046 | BR85: 0.0048 | BS85: 0.0049 | BT85: 0.0051 | BU85: 0.0052 | BV85: 0.0053 | BW85: 0.0053 | BX85: 0.0053 | BY85: 0.0052 | BZ85: 0.0052 | CA85: 0.0052 | CB85: 0.0051 | CC85: 0.0051 | CD85: 0.0052 | CE85: 0.0052 | CF85: 0.0053 | CG85: 0.0054 | CH85: 0.0055
A86: 103 | B86: 0.0014 | C86: 0.0014 | D86: 0.0014 | E86: 0.0015 | F86: 0.0015 | G86: 0.0016 | H86: 0.0016 | I86: 0.0017 | J86: 0.0018 | K86: 0.0019 | L86: 0.0021 | M86: 0.0022 | N86: 0.0024 | O86: 0.0025 | P86: 0.0026 | Q86: 0.0028 | R86: 0.0029 | S86: 0.003 | T86: 0.0031 | U86: 0.0031 | V86: 0.0031 | W86: 0.0031 | X86: 0.003 | Y86: 0.003 | Z86: 0.0028 | AA86: 0.0027 | AB86: 0.0025 | AC86: 0.0023 | AD86: 0.0021 | AE86: 0.0018 | AF86: 0.0016 | AG86: 0.0013 | AH86: 0.001 | AI86: 0.0007 | AJ86: 0.0004 | AK86: 0.0001 | AL86: -0.0001 | AM86: -0.0003 | AN86: -0.0005 | AO86: -0.0006 | AP86: -0.0007 | AQ86: -0.0007 | AR86: -0.0007 | AS86: -0.0007 | AT86: -0.0006 | AU86: -0.0004 | AV86: -0.0002 | AW86: 0 | AX86: 0.0003 | AY86: 0.0006 | AZ86: 0.0009 | BA86: 0.0012 | BB86: 0.0015 | BC86: 0.0018 | BD86: 0.0022 | BE86: 0.0025 | BF86: 0.0027 | BG86: 0.003 | BH86: 0.0032 | BI86: 0.0033 | BJ86: 0.0035 | BK86: 0.0036 | BL86: 0.0036 | BM86: 0.0037 | BN86: 0.0037 | BO86: 0.0039 | BP86: 0.0041 | BQ86: 0.0043 | BR86: 0.0044 | BS86: 0.0046 | BT86: 0.0047 | BU86: 0.0048 | BV86: 0.0049 | BW86: 0.0049 | BX86: 0.0049 | BY86: 0.0048 | BZ86: 0.0048 | CA86: 0.0048 | CB86: 0.0047 | CC86: 0.0047 | CD86: 0.0048 | CE86: 0.0048 | CF86: 0.0049 | CG86: 0.005 | CH86: 0.0051
A87: 104 | B87: 0.0013 | C87: 0.0013 | D87: 0.0013 | E87: 0.0013 | F87: 0.0014 | G87: 0.0014 | H87: 0.0015 | I87: 0.0016 | J87: 0.0017 | K87: 0.0018 | L87: 0.0019 | M87: 0.002 | N87: 0.0022 | O87: 0.0023 | P87: 0.0024 | Q87: 0.0025 | R87: 0.0026 | S87: 0.0027 | T87: 0.0028 | U87: 0.0028 | V87: 0.0028 | W87: 0.0028 | X87: 0.0028 | Y87: 0.0027 | Z87: 0.0026 | AA87: 0.0025 | AB87: 0.0023 | AC87: 0.0021 | AD87: 0.0019 | AE87: 0.0017 | AF87: 0.0014 | AG87: 0.0012 | AH87: 0.0009 | AI87: 0.0006 | AJ87: 0.0004 | AK87: 0.0001 | AL87: -0.0001 | AM87: -0.0003 | AN87: -0.0004 | AO87: -0.0006 | AP87: -0.0006 | AQ87: -0.0007 | AR87: -0.0007 | AS87: -0.0006 | AT87: -0.0005 | AU87: -0.0004 | AV87: -0.0002 | AW87: 0 | AX87: 0.0003 | AY87: 0.0005 | AZ87: 0.0008 | BA87: 0.0011 | BB87: 0.0014 | BC87: 0.0017 | BD87: 0.002 | BE87: 0.0022 | BF87: 0.0025 | BG87: 0.0027 | BH87: 0.0029 | BI87: 0.0031 | BJ87: 0.0032 | BK87: 0.0033 | BL87: 0.0033 | BM87: 0.0034 | BN87: 0.0034 | BO87: 0.0036 | BP87: 0.0037 | BQ87: 0.0039 | BR87: 0.004 | BS87: 0.0042 | BT87: 0.0043 | BU87: 0.0044 | BV87: 0.0045 | BW87: 0.0045 | BX87: 0.0045 | BY87: 0.0044 | BZ87: 0.0044 | CA87: 0.0044 | CB87: 0.0044 | CC87: 0.0044 | CD87: 0.0044 | CE87: 0.0044 | CF87: 0.0045 | CG87: 0.0046 | CH87: 0.0047
A88: 105 | B88: 0.0012 | C88: 0.0012 | D88: 0.0012 | E88: 0.0012 | F88: 0.0013 | G88: 0.0013 | H88: 0.0014 | I88: 0.0014 | J88: 0.0015 | K88: 0.0016 | L88: 0.0017 | M88: 0.0018 | N88: 0.002 | O88: 0.0021 | P88: 0.0022 | Q88: 0.0023 | R88: 0.0024 | S88: 0.0025 | T88: 0.0025 | U88: 0.0026 | V88: 0.0026 | W88: 0.0026 | X88: 0.0025 | Y88: 0.0025 | Z88: 0.0024 | AA88: 0.0023 | AB88: 0.0021 | AC88: 0.0019 | AD88: 0.0017 | AE88: 0.0015 | AF88: 0.0013 | AG88: 0.0011 | AH88: 0.0008 | AI88: 0.0006 | AJ88: 0.0003 | AK88: 0.0001 | AL88: -0.0001 | AM88: -0.0003 | AN88: -0.0004 | AO88: -0.0005 | AP88: -0.0006 | AQ88: -0.0006 | AR88: -0.0006 | AS88: -0.0006 | AT88: -0.0005 | AU88: -0.0003 | AV88: -0.0002 | AW88: 0 | AX88: 0.0002 | AY88: 0.0005 | AZ88: 0.0007 | BA88: 0.001 | BB88: 0.0013 | BC88: 0.0015 | BD88: 0.0018 | BE88: 0.002 | BF88: 0.0023 | BG88: 0.0025 | BH88: 0.0026 | BI88: 0.0028 | BJ88: 0.0029 | BK88: 0.003 | BL88: 0.003 | BM88: 0.0031 | BN88: 0.0031 | BO88: 0.0032 | BP88: 0.0034 | BQ88: 0.0035 | BR88: 0.0037 | BS88: 0.0038 | BT88: 0.0039 | BU88: 0.004 | BV88: 0.0041 | BW88: 0.0041 | BX88: 0.0041 | BY88: 0.004 | BZ88: 0.004 | CA88: 0.004 | CB88: 0.004 | CC88: 0.004 | CD88: 0.004 | CE88: 0.004 | CF88: 0.0041 | CG88: 0.0042 | CH88: 0.0043
A89: 106 | B89: 0.0011 | C89: 0.0011 | D89: 0.0011 | E89: 0.0011 | F89: 0.0011 | G89: 0.0012 | H89: 0.0012 | I89: 0.0013 | J89: 0.0014 | K89: 0.0015 | L89: 0.0015 | M89: 0.0017 | N89: 0.0018 | O89: 0.0019 | P89: 0.002 | Q89: 0.0021 | R89: 0.0022 | S89: 0.0022 | T89: 0.0023 | U89: 0.0023 | V89: 0.0023 | W89: 0.0023 | X89: 0.0023 | Y89: 0.0022 | Z89: 0.0021 | AA89: 0.002 | AB89: 0.0019 | AC89: 0.0017 | AD89: 0.0016 | AE89: 0.0014 | AF89: 0.0012 | AG89: 0.001 | AH89: 0.0007 | AI89: 0.0005 | AJ89: 0.0003 | AK89: 0.0001 | AL89: -0.0001 | AM89: -0.0002 | AN89: -0.0004 | AO89: -0.0005 | AP89: -0.0005 | AQ89: -0.0006 | AR89: -0.0005 | AS89: -0.0005 | AT89: -0.0004 | AU89: -0.0003 | AV89: -0.0002 | AW89: 0 | AX89: 0.0002 | AY89: 0.0004 | AZ89: 0.0007 | BA89: 0.0009 | BB89: 0.0011 | BC89: 0.0014 | BD89: 0.0016 | BE89: 0.0018 | BF89: 0.002 | BG89: 0.0022 | BH89: 0.0024 | BI89: 0.0025 | BJ89: 0.0026 | BK89: 0.0027 | BL89: 0.0027 | BM89: 0.0028 | BN89: 0.0028 | BO89: 0.0029 | BP89: 0.0031 | BQ89: 0.0032 | BR89: 0.0033 | BS89: 0.0034 | BT89: 0.0035 | BU89: 0.0036 | BV89: 0.0036 | BW89: 0.0037 | BX89: 0.0037 | BY89: 0.0036 | BZ89: 0.0036 | CA89: 0.0036 | CB89: 0.0036 | CC89: 0.0036 | CD89: 0.0036 | CE89: 0.0036 | CF89: 0.0037 | CG89: 0.0037 | CH89: 0.0038
A90: 107 | B90: 0.001 | C90: 0.001 | D90: 0.001 | E90: 0.001 | F90: 0.001 | G90: 0.001 | H90: 0.0011 | I90: 0.0011 | J90: 0.0012 | K90: 0.0013 | L90: 0.0014 | M90: 0.0015 | N90: 0.0016 | O90: 0.0017 | P90: 0.0018 | Q90: 0.0018 | R90: 0.0019 | S90: 0.002 | T90: 0.002 | U90: 0.0021 | V90: 0.0021 | W90: 0.0021 | X90: 0.002 | Y90: 0.002 | Z90: 0.0019 | AA90: 0.0018 | AB90: 0.0017 | AC90: 0.0015 | AD90: 0.0014 | AE90: 0.0012 | AF90: 0.001 | AG90: 0.0009 | AH90: 0.0007 | AI90: 0.0005 | AJ90: 0.0003 | AK90: 0.0001 | AL90: -0.0001 | AM90: -0.0002 | AN90: -0.0003 | AO90: -0.0004 | AP90: -0.0005 | AQ90: -0.0005 | AR90: -0.0005 | AS90: -0.0004 | AT90: -0.0004 | AU90: -0.0003 | AV90: -0.0001 | AW90: 0 | AX90: 0.0002 | AY90: 0.0004 | AZ90: 0.0006 | BA90: 0.0008 | BB90: 0.001 | BC90: 0.0012 | BD90: 0.0014 | BE90: 0.0016 | BF90: 0.0018 | BG90: 0.002 | BH90: 0.0021 | BI90: 0.0022 | BJ90: 0.0023 | BK90: 0.0024 | BL90: 0.0024 | BM90: 0.0025 | BN90: 0.0025 | BO90: 0.0026 | BP90: 0.0027 | BQ90: 0.0028 | BR90: 0.0029 | BS90: 0.003 | BT90: 0.0031 | BU90: 0.0032 | BV90: 0.0032 | BW90: 0.0033 | BX90: 0.0032 | BY90: 0.0032 | BZ90: 0.0032 | CA90: 0.0032 | CB90: 0.0032 | CC90: 0.0032 | CD90: 0.0032 | CE90: 0.0032 | CF90: 0.0033 | CG90: 0.0033 | CH90: 0.0034
A91: 108 | B91: 0.0008 | C91: 0.0008 | D91: 0.0008 | E91: 0.0009 | F91: 0.0009 | G91: 0.0009 | H91: 0.0009 | I91: 0.001 | J91: 0.0011 | K91: 0.0011 | L91: 0.0012 | M91: 0.0013 | N91: 0.0014 | O91: 0.0015 | P91: 0.0015 | Q91: 0.0016 | R91: 0.0017 | S91: 0.0017 | T91: 0.0018 | U91: 0.0018 | V91: 0.0018 | W91: 0.0018 | X91: 0.0018 | Y91: 0.0017 | Z91: 0.0017 | AA91: 0.0016 | AB91: 0.0015 | AC91: 0.0014 | AD91: 0.0012 | AE91: 0.0011 | AF91: 0.0009 | AG91: 0.0007 | AH91: 0.0006 | AI91: 0.0004 | AJ91: 0.0002 | AK91: 0.0001 | AL91: -0.0001 | AM91: -0.0002 | AN91: -0.0003 | AO91: -0.0004 | AP91: -0.0004 | AQ91: -0.0004 | AR91: -0.0004 | AS91: -0.0004 | AT91: -0.0003 | AU91: -0.0002 | AV91: -0.0001 | AW91: 0 | AX91: 0.0002 | AY91: 0.0003 | AZ91: 0.0005 | BA91: 0.0007 | BB91: 0.0009 | BC91: 0.0011 | BD91: 0.0013 | BE91: 0.0014 | BF91: 0.0016 | BG91: 0.0017 | BH91: 0.0018 | BI91: 0.0019 | BJ91: 0.002 | BK91: 0.0021 | BL91: 0.0021 | BM91: 0.0022 | BN91: 0.0022 | BO91: 0.0023 | BP91: 0.0024 | BQ91: 0.0025 | BR91: 0.0026 | BS91: 0.0027 | BT91: 0.0027 | BU91: 0.0028 | BV91: 0.0028 | BW91: 0.0029 | BX91: 0.0028 | BY91: 0.0028 | BZ91: 0.0028 | CA91: 0.0028 | CB91: 0.0028 | CC91: 0.0028 | CD91: 0.0028 | CE91: 0.0028 | CF91: 0.0028 | CG91: 0.0029 | CH91: 0.003
A92: 109 | B92: 0.0007 | C92: 0.0007 | D92: 0.0007 | E92: 0.0007 | F92: 0.0008 | G92: 0.0008 | H92: 0.0008 | I92: 0.0009 | J92: 0.0009 | K92: 0.001 | L92: 0.001 | M92: 0.0011 | N92: 0.0012 | O92: 0.0013 | P92: 0.0013 | Q92: 0.0014 | R92: 0.0014 | S92: 0.0015 | T92: 0.0015 | U92: 0.0015 | V92: 0.0016 | W92: 0.0015 | X92: 0.0015 | Y92: 0.0015 | Z92: 0.0014 | AA92: 0.0014 | AB92: 0.0013 | AC92: 0.0012 | AD92: 0.001 | AE92: 0.0009 | AF92: 0.0008 | AG92: 0.0006 | AH92: 0.0005 | AI92: 0.0003 | AJ92: 0.0002 | AK92: 0.0001 | AL92: -0.0001 | AM92: -0.0002 | AN92: -0.0002 | AO92: -0.0003 | AP92: -0.0003 | AQ92: -0.0004 | AR92: -0.0004 | AS92: -0.0003 | AT92: -0.0003 | AU92: -0.0002 | AV92: -0.0001 | AW92: 0 | AX92: 0.0001 | AY92: 0.0003 | AZ92: 0.0004 | BA92: 0.0006 | BB92: 0.0008 | BC92: 0.0009 | BD92: 0.0011 | BE92: 0.0012 | BF92: 0.0014 | BG92: 0.0015 | BH92: 0.0016 | BI92: 0.0017 | BJ92: 0.0017 | BK92: 0.0018 | BL92: 0.0018 | BM92: 0.0018 | BN92: 0.0019 | BO92: 0.0019 | BP92: 0.002 | BQ92: 0.0021 | BR92: 0.0022 | BS92: 0.0023 | BT92: 0.0023 | BU92: 0.0024 | BV92: 0.0024 | BW92: 0.0024 | BX92: 0.0024 | BY92: 0.0024 | BZ92: 0.0024 | CA92: 0.0024 | CB92: 0.0024 | CC92: 0.0024 | CD92: 0.0024 | CE92: 0.0024 | CF92: 0.0024 | CG92: 0.0025 | CH92: 0.0026
A93: 110 | B93: 0.0006 | C93: 0.0006 | D93: 0.0006 | E93: 0.0006 | F93: 0.0006 | G93: 0.0006 | H93: 0.0007 | I93: 0.0007 | J93: 0.0008 | K93: 0.0008 | L93: 0.0009 | M93: 0.0009 | N93: 0.001 | O93: 0.001 | P93: 0.0011 | Q93: 0.0012 | R93: 0.0012 | S93: 0.0012 | T93: 0.0013 | U93: 0.0013 | V93: 0.0013 | W93: 0.0013 | X93: 0.0013 | Y93: 0.0012 | Z93: 0.0012 | AA93: 0.0011 | AB93: 0.0011 | AC93: 0.001 | AD93: 0.0009 | AE93: 0.0008 | AF93: 0.0007 | AG93: 0.0005 | AH93: 0.0004 | AI93: 0.0003 | AJ93: 0.0002 | AK93: 0.0001 | AL93: 0 | AM93: -0.0001 | AN93: -0.0002 | AO93: -0.0003 | AP93: -0.0003 | AQ93: -0.0003 | AR93: -0.0003 | AS93: -0.0003 | AT93: -0.0002 | AU93: -0.0002 | AV93: -0.0001 | AW93: 0 | AX93: 0.0001 | AY93: 0.0002 | AZ93: 0.0004 | BA93: 0.0005 | BB93: 0.0006 | BC93: 0.0008 | BD93: 0.0009 | BE93: 0.001 | BF93: 0.0011 | BG93: 0.0012 | BH93: 0.0013 | BI93: 0.0014 | BJ93: 0.0014 | BK93: 0.0015 | BL93: 0.0015 | BM93: 0.0015 | BN93: 0.0016 | BO93: 0.0016 | BP93: 0.0017 | BQ93: 0.0018 | BR93: 0.0018 | BS93: 0.0019 | BT93: 0.002 | BU93: 0.002 | BV93: 0.002 | BW93: 0.002 | BX93: 0.002 | BY93: 0.002 | BZ93: 0.002 | CA93: 0.002 | CB93: 0.002 | CC93: 0.002 | CD93: 0.002 | CE93: 0.002 | CF93: 0.002 | CG93: 0.0021 | CH93: 0.0021
A94: 111 | B94: 0.0005 | C94: 0.0005 | D94: 0.0005 | E94: 0.0005 | F94: 0.0005 | G94: 0.0005 | H94: 0.0005 | I94: 0.0006 | J94: 0.0006 | K94: 0.0006 | L94: 0.0007 | M94: 0.0007 | N94: 0.0008 | O94: 0.0008 | P94: 0.0009 | Q94: 0.0009 | R94: 0.001 | S94: 0.001 | T94: 0.001 | U94: 0.001 | V94: 0.001 | W94: 0.001 | X94: 0.001 | Y94: 0.001 | Z94: 0.0009 | AA94: 0.0009 | AB94: 0.0008 | AC94: 0.0008 | AD94: 0.0007 | AE94: 0.0006 | AF94: 0.0005 | AG94: 0.0004 | AH94: 0.0003 | AI94: 0.0002 | AJ94: 0.0001 | AK94: 0 | AL94: 0 | AM94: -0.0001 | AN94: -0.0002 | AO94: -0.0002 | AP94: -0.0002 | AQ94: -0.0002 | AR94: -0.0002 | AS94: -0.0002 | AT94: -0.0002 | AU94: -0.0001 | AV94: -0.0001 | AW94: 0 | AX94: 0.0001 | AY94: 0.0002 | AZ94: 0.0003 | BA94: 0.0004 | BB94: 0.0005 | BC94: 0.0006 | BD94: 0.0007 | BE94: 0.0008 | BF94: 0.0009 | BG94: 0.001 | BH94: 0.0011 | BI94: 0.0011 | BJ94: 0.0012 | BK94: 0.0012 | BL94: 0.0012 | BM94: 0.0012 | BN94: 0.0012 | BO94: 0.0013 | BP94: 0.0014 | BQ94: 0.0014 | BR94: 0.0015 | BS94: 0.0015 | BT94: 0.0016 | BU94: 0.0016 | BV94: 0.0016 | BW94: 0.0016 | BX94: 0.0016 | BY94: 0.0016 | BZ94: 0.0016 | CA94: 0.0016 | CB94: 0.0016 | CC94: 0.0016 | CD94: 0.0016 | CE94: 0.0016 | CF94: 0.0016 | CG94: 0.0017 | CH94: 0.0017
A95: 112 | B95: 0.0004 | C95: 0.0004 | D95: 0.0004 | E95: 0.0004 | F95: 0.0004 | G95: 0.0004 | H95: 0.0004 | I95: 0.0004 | J95: 0.0005 | K95: 0.0005 | L95: 0.0005 | M95: 0.0006 | N95: 0.0006 | O95: 0.0006 | P95: 0.0007 | Q95: 0.0007 | R95: 0.0007 | S95: 0.0007 | T95: 0.0008 | U95: 0.0008 | V95: 0.0008 | W95: 0.0008 | X95: 0.0008 | Y95: 0.0007 | Z95: 0.0007 | AA95: 0.0007 | AB95: 0.0006 | AC95: 0.0006 | AD95: 0.0005 | AE95: 0.0005 | AF95: 0.0004 | AG95: 0.0003 | AH95: 0.0002 | AI95: 0.0002 | AJ95: 0.0001 | AK95: 0 | AL95: 0 | AM95: -0.0001 | AN95: -0.0001 | AO95: -0.0002 | AP95: -0.0002 | AQ95: -0.0002 | AR95: -0.0002 | AS95: -0.0002 | AT95: -0.0001 | AU95: -0.0001 | AV95: -0.0001 | AW95: 0 | AX95: 0.0001 | AY95: 0.0001 | AZ95: 0.0002 | BA95: 0.0003 | BB95: 0.0004 | BC95: 0.0005 | BD95: 0.0005 | BE95: 0.0006 | BF95: 0.0007 | BG95: 0.0007 | BH95: 0.0008 | BI95: 0.0008 | BJ95: 0.0009 | BK95: 0.0009 | BL95: 0.0009 | BM95: 0.0009 | BN95: 0.0009 | BO95: 0.001 | BP95: 0.001 | BQ95: 0.0011 | BR95: 0.0011 | BS95: 0.0011 | BT95: 0.0012 | BU95: 0.0012 | BV95: 0.0012 | BW95: 0.0012 | BX95: 0.0012 | BY95: 0.0012 | BZ95: 0.0012 | CA95: 0.0012 | CB95: 0.0012 | CC95: 0.0012 | CD95: 0.0012 | CE95: 0.0012 | CF95: 0.0012 | CG95: 0.0012 | CH95: 0.0013
A96: 113 | B96: 0.0002 | C96: 0.0002 | D96: 0.0002 | E96: 0.0002 | F96: 0.0003 | G96: 0.0003 | H96: 0.0003 | I96: 0.0003 | J96: 0.0003 | K96: 0.0003 | L96: 0.0003 | M96: 0.0004 | N96: 0.0004 | O96: 0.0004 | P96: 0.0004 | Q96: 0.0005 | R96: 0.0005 | S96: 0.0005 | T96: 0.0005 | U96: 0.0005 | V96: 0.0005 | W96: 0.0005 | X96: 0.0005 | Y96: 0.0005 | Z96: 0.0005 | AA96: 0.0005 | AB96: 0.0004 | AC96: 0.0004 | AD96: 0.0003 | AE96: 0.0003 | AF96: 0.0003 | AG96: 0.0002 | AH96: 0.0002 | AI96: 0.0001 | AJ96: 0.0001 | AK96: 0 | AL96: 0 | AM96: -0.0001 | AN96: -0.0001 | AO96: -0.0001 | AP96: -0.0001 | AQ96: -0.0001 | AR96: -0.0001 | AS96: -0.0001 | AT96: -0.0001 | AU96: -0.0001 | AV96: 0 | AW96: 0 | AX96: 0 | AY96: 0.0001 | AZ96: 0.0001 | BA96: 0.0002 | BB96: 0.0003 | BC96: 0.0003 | BD96: 0.0004 | BE96: 0.0004 | BF96: 0.0005 | BG96: 0.0005 | BH96: 0.0005 | BI96: 0.0006 | BJ96: 0.0006 | BK96: 0.0006 | BL96: 0.0006 | BM96: 0.0006 | BN96: 0.0006 | BO96: 0.0006 | BP96: 0.0007 | BQ96: 0.0007 | BR96: 0.0007 | BS96: 0.0008 | BT96: 0.0008 | BU96: 0.0008 | BV96: 0.0008 | BW96: 0.0008 | BX96: 0.0008 | BY96: 0.0008 | BZ96: 0.0008 | CA96: 0.0008 | CB96: 0.0008 | CC96: 0.0008 | CD96: 0.0008 | CE96: 0.0008 | CF96: 0.0008 | CG96: 0.0008 | CH96: 0.0009
A97: 114 | B97: 0.0001 | C97: 0.0001 | D97: 0.0001 | E97: 0.0001 | F97: 0.0001 | G97: 0.0001 | H97: 0.0001 | I97: 0.0001 | J97: 0.0002 | K97: 0.0002 | L97: 0.0002 | M97: 0.0002 | N97: 0.0002 | O97: 0.0002 | P97: 0.0002 | Q97: 0.0002 | R97: 0.0002 | S97: 0.0002 | T97: 0.0003 | U97: 0.0003 | V97: 0.0003 | W97: 0.0003 | X97: 0.0003 | Y97: 0.0002 | Z97: 0.0002 | AA97: 0.0002 | AB97: 0.0002 | AC97: 0.0002 | AD97: 0.0002 | AE97: 0.0002 | AF97: 0.0001 | AG97: 0.0001 | AH97: 0.0001 | AI97: 0.0001 | AJ97: 0 | AK97: 0 | AL97: 0 | AM97: 0 | AN97: 0 | AO97: -0.0001 | AP97: -0.0001 | AQ97: -0.0001 | AR97: -0.0001 | AS97: -0.0001 | AT97: 0 | AU97: 0 | AV97: 0 | AW97: 0 | AX97: 0 | AY97: 0 | AZ97: 0.0001 | BA97: 0.0001 | BB97: 0.0001 | BC97: 0.0002 | BD97: 0.0002 | BE97: 0.0002 | BF97: 0.0002 | BG97: 0.0002 | BH97: 0.0003 | BI97: 0.0003 | BJ97: 0.0003 | BK97: 0.0003 | BL97: 0.0003 | BM97: 0.0003 | BN97: 0.0003 | BO97: 0.0003 | BP97: 0.0003 | BQ97: 0.0004 | BR97: 0.0004 | BS97: 0.0004 | BT97: 0.0004 | BU97: 0.0004 | BV97: 0.0004 | BW97: 0.0004 | BX97: 0.0004 | BY97: 0.0004 | BZ97: 0.0004 | CA97: 0.0004 | CB97: 0.0004 | CC97: 0.0004 | CD97: 0.0004 | CE97: 0.0004 | CF97: 0.0004 | CG97: 0.0004 | CH97: 0.0004
A98: 115 | B98: 0 | C98: 0 | D98: 0 | E98: 0 | F98: 0 | G98: 0 | H98: 0 | I98: 0 | J98: 0 | K98: 0 | L98: 0 | M98: 0 | N98: 0 | O98: 0 | P98: 0 | Q98: 0 | R98: 0 | S98: 0 | T98: 0 | U98: 0 | V98: 0 | W98: 0 | X98: 0 | Y98: 0 | Z98: 0 | AA98: 0 | AB98: 0 | AC98: 0 | AD98: 0 | AE98: 0 | AF98: 0 | AG98: 0 | AH98: 0 | AI98: 0 | AJ98: 0 | AK98: 0 | AL98: 0 | AM98: 0 | AN98: 0 | AO98: 0 | AP98: 0 | AQ98: 0 | AR98: 0 | AS98: 0 | AT98: 0 | AU98: 0 | AV98: 0 | AW98: 0 | AX98: 0 | AY98: 0 | AZ98: 0 | BA98: 0 | BB98: 0 | BC98: 0 | BD98: 0 | BE98: 0 | BF98: 0 | BG98: 0 | BH98: 0 | BI98: 0 | BJ98: 0 | BK98: 0 | BL98: 0 | BM98: 0 | BN98: 0 | BO98: 0 | BP98: 0 | BQ98: 0 | BR98: 0 | BS98: 0 | BT98: 0 | BU98: 0 | BV98: 0 | BW98: 0 | BX98: 0 | BY98: 0 | BZ98: 0 | CA98: 0 | CB98: 0 | CC98: 0 | CD98: 0 | CE98: 0 | CF98: 0 | CG98: 0 | CH98: 0
A99: 116 | B99: 0 | C99: 0 | D99: 0 | E99: 0 | F99: 0 | G99: 0 | H99: 0 | I99: 0 | J99: 0 | K99: 0 | L99: 0 | M99: 0 | N99: 0 | O99: 0 | P99: 0 | Q99: 0 | R99: 0 | S99: 0 | T99: 0 | U99: 0 | V99: 0 | W99: 0 | X99: 0 | Y99: 0 | Z99: 0 | AA99: 0 | AB99: 0 | AC99: 0 | AD99: 0 | AE99: 0 | AF99: 0 | AG99: 0 | AH99: 0 | AI99: 0 | AJ99: 0 | AK99: 0 | AL99: 0 | AM99: 0 | AN99: 0 | AO99: 0 | AP99: 0 | AQ99: 0 | AR99: 0 | AS99: 0 | AT99: 0 | AU99: 0 | AV99: 0 | AW99: 0 | AX99: 0 | AY99: 0 | AZ99: 0 | BA99: 0 | BB99: 0 | BC99: 0 | BD99: 0 | BE99: 0 | BF99: 0 | BG99: 0 | BH99: 0 | BI99: 0 | BJ99: 0 | BK99: 0 | BL99: 0 | BM99: 0 | BN99: 0 | BO99: 0 | BP99: 0 | BQ99: 0 | BR99: 0 | BS99: 0 | BT99: 0 | BU99: 0 | BV99: 0 | BW99: 0 | BX99: 0 | BY99: 0 | BZ99: 0 | CA99: 0 | CB99: 0 | CC99: 0 | CD99: 0 | CE99: 0 | CF99: 0 | CG99: 0 | CH99: 0
A100: 117 | B100: 0 | C100: 0 | D100: 0 | E100: 0 | F100: 0 | G100: 0 | H100: 0 | I100: 0 | J100: 0 | K100: 0 | L100: 0 | M100: 0 | N100: 0 | O100: 0 | P100: 0 | Q100: 0 | R100: 0 | S100: 0 | T100: 0 | U100: 0 | V100: 0 | W100: 0 | X100: 0 | Y100: 0 | Z100: 0 | AA100: 0 | AB100: 0 | AC100: 0 | AD100: 0 | AE100: 0 | AF100: 0 | AG100: 0 | AH100: 0 | AI100: 0 | AJ100: 0 | AK100: 0 | AL100: 0 | AM100: 0 | AN100: 0 | AO100: 0 | AP100: 0 | AQ100: 0 | AR100: 0 | AS100: 0 | AT100: 0 | AU100: 0 | AV100: 0 | AW100: 0 | AX100: 0 | AY100: 0 | AZ100: 0 | BA100: 0 | BB100: 0 | BC100: 0 | BD100: 0 | BE100: 0 | BF100: 0 | BG100: 0 | BH100: 0 | BI100: 0 | BJ100: 0 | BK100: 0 | BL100: 0 | BM100: 0 | BN100: 0 | BO100: 0 | BP100: 0 | BQ100: 0 | BR100: 0 | BS100: 0 | BT100: 0 | BU100: 0 | BV100: 0 | BW100: 0 | BX100: 0 | BY100: 0 | BZ100: 0 | CA100: 0 | CB100: 0 | CC100: 0 | CD100: 0 | CE100: 0 | CF100: 0 | CG100: 0 | CH100: 0
A101: 118 | B101: 0 | C101: 0 | D101: 0 | E101: 0 | F101: 0 | G101: 0 | H101: 0 | I101: 0 | J101: 0 | K101: 0 | L101: 0 | M101: 0 | N101: 0 | O101: 0 | P101: 0 | Q101: 0 | R101: 0 | S101: 0 | T101: 0 | U101: 0 | V101: 0 | W101: 0 | X101: 0 | Y101: 0 | Z101: 0 | AA101: 0 | AB101: 0 | AC101: 0 | AD101: 0 | AE101: 0 | AF101: 0 | AG101: 0 | AH101: 0 | AI101: 0 | AJ101: 0 | AK101: 0 | AL101: 0 | AM101: 0 | AN101: 0 | AO101: 0 | AP101: 0 | AQ101: 0 | AR101: 0 | AS101: 0 | AT101: 0 | AU101: 0 | AV101: 0 | AW101: 0 | AX101: 0 | AY101: 0 | AZ101: 0 | BA101: 0 | BB101: 0 | BC101: 0 | BD101: 0 | BE101: 0 | BF101: 0 | BG101: 0 | BH101: 0 | BI101: 0 | BJ101: 0 | BK101: 0 | BL101: 0 | BM101: 0 | BN101: 0 | BO101: 0 | BP101: 0 | BQ101: 0 | BR101: 0 | BS101: 0 | BT101: 0 | BU101: 0 | BV101: 0 | BW101: 0 | BX101: 0 | BY101: 0 | BZ101: 0 | CA101: 0 | CB101: 0 | CC101: 0 | CD101: 0 | CE101: 0 | CF101: 0 | CG101: 0 | CH101: 0
A102: 119 | B102: 0 | C102: 0 | D102: 0 | E102: 0 | F102: 0 | G102: 0 | H102: 0 | I102: 0 | J102: 0 | K102: 0 | L102: 0 | M102: 0 | N102: 0 | O102: 0 | P102: 0 | Q102: 0 | R102: 0 | S102: 0 | T102: 0 | U102: 0 | V102: 0 | W102: 0 | X102: 0 | Y102: 0 | Z102: 0 | AA102: 0 | AB102: 0 | AC102: 0 | AD102: 0 | AE102: 0 | AF102: 0 | AG102: 0 | AH102: 0 | AI102: 0 | AJ102: 0 | AK102: 0 | AL102: 0 | AM102: 0 | AN102: 0 | AO102: 0 | AP102: 0 | AQ102: 0 | AR102: 0 | AS102: 0 | AT102: 0 | AU102: 0 | AV102: 0 | AW102: 0 | AX102: 0 | AY102: 0 | AZ102: 0 | BA102: 0 | BB102: 0 | BC102: 0 | BD102: 0 | BE102: 0 | BF102: 0 | BG102: 0 | BH102: 0 | BI102: 0 | BJ102: 0 | BK102: 0 | BL102: 0 | BM102: 0 | BN102: 0 | BO102: 0 | BP102: 0 | BQ102: 0 | BR102: 0 | BS102: 0 | BT102: 0 | BU102: 0 | BV102: 0 | BW102: 0 | BX102: 0 | BY102: 0 | BZ102: 0 | CA102: 0 | CB102: 0 | CC102: 0 | CD102: 0 | CE102: 0 | CF102: 0 | CG102: 0 | CH102: 0
A103: 120 | B103: 0 | C103: 0 | D103: 0 | E103: 0 | F103: 0 | G103: 0 | H103: 0 | I103: 0 | J103: 0 | K103: 0 | L103: 0 | M103: 0 | N103: 0 | O103: 0 | P103: 0 | Q103: 0 | R103: 0 | S103: 0 | T103: 0 | U103: 0 | V103: 0 | W103: 0 | X103: 0 | Y103: 0 | Z103: 0 | AA103: 0 | AB103: 0 | AC103: 0 | AD103: 0 | AE103: 0 | AF103: 0 | AG103: 0 | AH103: 0 | AI103: 0 | AJ103: 0 | AK103: 0 | AL103: 0 | AM103: 0 | AN103: 0 | AO103: 0 | AP103: 0 | AQ103: 0 | AR103: 0 | AS103: 0 | AT103: 0 | AU103: 0 | AV103: 0 | AW103: 0 | AX103: 0 | AY103: 0 | AZ103: 0 | BA103: 0 | BB103: 0 | BC103: 0 | BD103: 0 | BE103: 0 | BF103: 0 | BG103: 0 | BH103: 0 | BI103: 0 | BJ103: 0 | BK103: 0 | BL103: 0 | BM103: 0 | BN103: 0 | BO103: 0 | BP103: 0 | BQ103: 0 | BR103: 0 | BS103: 0 | BT103: 0 | BU103: 0 | BV103: 0 | BW103: 0 | BX103: 0 | BY103: 0 | BZ103: 0 | CA103: 0 | CB103: 0 | CC103: 0 | CD103: 0 | CE103: 0 | CF103: 0 | CG103: 0 | CH103: 0

Sheet Female
A1: O2-2019 - Female
B2: 1951 | C2: 1952 | D2: 1953 | E2: 1954 | F2: 1955 | G2: 1956 | H2: 1957 | I2: 1958 | J2: 1959 | K2: 1960 | L2: 1961 | M2: 1962 | N2: 1963 | O2: 1964 | P2: 1965 | Q2: 1966 | R2: 1967 | S2: 1968 | T2: 1969 | U2: 1970 | V2: 1971 | W2: 1972 | X2: 1973 | Y2: 1974 | Z2: 1975 | AA2: 1976 | AB2: 1977 | AC2: 1978 | AD2: 1979 | AE2: 1980 | AF2: 1981 | AG2: 1982 | AH2: 1983 | AI2: 1984 | AJ2: 1985 | AK2: 1986 | AL2: 1987 | AM2: 1988 | AN2: 1989 | AO2: 1990 | AP2: 1991 | AQ2: 1992 | AR2: 1993 | AS2: 1994 | AT2: 1995 | AU2: 1996 | AV2: 1997 | AW2: 1998 | AX2: 1999 | AY2: 2000 | AZ2: 2001 | BA2: 2002 | BB2: 2003 | BC2: 2004 | BD2: 2005 | BE2: 2006 | BF2: 2007 | BG2: 2008 | BH2: =BG2+1 -> 2009 | BI2: 2010 | BJ2: 2011 | BK2: 2012 | BL2: 2013 | BM2: 2014 | BN2: 2015 | BO2: 2016 | BP2: 2017 | BQ2: 2018 | BR2: 2019 | BS2: 2020 | BT2: 2021 | BU2: 2022 | BV2: 2023 | BW2: 2024 | BX2: 2025 | BY2: 2026 | BZ2: 2027 | CA2: 2028 | CB2: 2029 | CC2: 2030 | CD2: 2031 | CE2: 2032 | CF2: 2033 | CG2: 2034 | CH2: 2035+
A3: ≤ 20 | B3: 0.0418 | C3: 0.0414 | D3: 0.0401 | E3: 0.0376 | F3: 0.034 | G3: 0.0298 | H3: 0.0253 | I3: 0.0206 | J3: 0.0155 | K3: 0.0103 | L3: 0.0051 | M3: 0.0003 | N3: -0.0037 | O3: -0.0066 | P3: -0.0085 | Q3: -0.0094 | R3: -0.0089 | S3: -0.007 | T3: -0.0037 | U3: 0.0007 | V3: 0.0055 | W3: 0.0102 | X3: 0.0144 | Y3: 0.0177 | Z3: 0.0194 | AA3: 0.0201 | AB3: 0.0202 | AC3: 0.0206 | AD3: 0.0212 | AE3: 0.0214 | AF3: 0.0209 | AG3: 0.0192 | AH3: 0.0163 | AI3: 0.0129 | AJ3: 0.0099 | AK3: 0.0076 | AL3: 0.0067 | AM3: 0.0067 | AN3: 0.0076 | AO3: 0.0087 | AP3: 0.0099 | AQ3: 0.0111 | AR3: 0.012 | AS3: 0.0128 | AT3: 0.0133 | AU3: 0.0135 | AV3: 0.013 | AW3: 0.0122 | AX3: 0.0109 | AY3: 0.0098 | AZ3: 0.009 | BA3: 0.0089 | BB3: 0.0099 | BC3: 0.012 | BD3: 0.0144 | BE3: 0.0169 | BF3: 0.019 | BG3: 0.02 | BH3: 0.019 | BI3: 0.0162 | BJ3: 0.0119 | BK3: 0.0065 | BL3: 0.0006 | BM3: -0.0051 | BN3: -0.0098 | BO3: -0.0095 | BP3: -0.0085 | BQ3: -0.0071 | BR3: -0.0053 | BS3: -0.0033 | BT3: -0.0013 | BU3: 0.0007 | BV3: 0.0025 | BW3: 0.004 | BX3: 0.005 | BY3: 0.0058 | BZ3: 0.0065 | CA3: 0.0072 | CB3: 0.0079 | CC3: 0.0085 | CD3: 0.009 | CE3: 0.0094 | CF3: 0.0097 | CG3: 0.0099 | CH3: 0.01
A4: 21 | B4: 0.0418 | C4: 0.0413 | D4: 0.0398 | E4: 0.0372 | F4: 0.0334 | G4: 0.0292 | H4: 0.0246 | I4: 0.0199 | J4: 0.0149 | K4: 0.01 | L4: 0.0051 | M4: 0.0007 | N4: -0.0028 | O4: -0.0054 | P4: -0.0069 | Q4: -0.0075 | R4: -0.0069 | S4: -0.005 | T4: -0.0018 | U4: 0.0024 | V4: 0.007 | W4: 0.0114 | X4: 0.0155 | Y4: 0.0186 | Z4: 0.0202 | AA4: 0.0208 | AB4: 0.0209 | AC4: 0.021 | AD4: 0.0214 | AE4: 0.0214 | AF4: 0.0208 | AG4: 0.019 | AH4: 0.0162 | AI4: 0.0128 | AJ4: 0.0098 | AK4: 0.0074 | AL4: 0.0064 | AM4: 0.0064 | AN4: 0.0072 | AO4: 0.0083 | AP4: 0.0095 | AQ4: 0.0109 | AR4: 0.0119 | AS4: 0.0129 | AT4: 0.0136 | AU4: 0.0137 | AV4: 0.013 | AW4: 0.0119 | AX4: 0.0102 | AY4: 0.0087 | AZ4: 0.0075 | BA4: 0.007 | BB4: 0.0075 | BC4: 0.0091 | BD4: 0.0109 | BE4: 0.013 | BF4: 0.0148 | BG4: 0.0155 | BH4: 0.0145 | BI4: 0.012 | BJ4: 0.008 | BK4: 0.0029 | BL4: -0.0026 | BM4: -0.0081 | BN4: -0.0127 | BO4: -0.0109 | BP4: -0.0098 | BQ4: -0.0082 | BR4: -0.0062 | BS4: -0.004 | BT4: -0.0018 | BU4: 0.0004 | BV4: 0.0024 | BW4: 0.004 | BX4: 0.005 | BY4: 0.0058 | BZ4: 0.0065 | CA4: 0.0072 | CB4: 0.0079 | CC4: 0.0085 | CD4: 0.009 | CE4: 0.0094 | CF4: 0.0097 | CG4: 0.0099 | CH4: 0.01
A5: 22 | B5: 0.0416 | C5: 0.0411 | D5: 0.0396 | E5: 0.0367 | F5: 0.0329 | G5: 0.0286 | H5: 0.024 | I5: 0.0193 | J5: 0.0144 | K5: 0.0097 | L5: 0.0052 | M5: 0.0011 | N5: -0.002 | O5: -0.0041 | P5: -0.0053 | Q5: -0.0056 | R5: -0.0049 | S5: -0.003 | T5: 0.0001 | U5: 0.0041 | V5: 0.0086 | W5: 0.0128 | X5: 0.0167 | Y5: 0.0197 | Z5: 0.0212 | AA5: 0.0218 | AB5: 0.0216 | AC5: 0.0215 | AD5: 0.0216 | AE5: 0.0214 | AF5: 0.0205 | AG5: 0.0187 | AH5: 0.0159 | AI5: 0.0125 | AJ5: 0.0094 | AK5: 0.0068 | AL5: 0.0057 | AM5: 0.0057 | AN5: 0.0066 | AO5: 0.0078 | AP5: 0.0091 | AQ5: 0.0105 | AR5: 0.0118 | AS5: 0.013 | AT5: 0.0139 | AU5: 0.0141 | AV5: 0.0133 | AW5: 0.012 | AX5: 0.0099 | AY5: 0.0079 | AZ5: 0.0064 | BA5: 0.0054 | BB5: 0.0054 | BC5: 0.0065 | BD5: 0.0078 | BE5: 0.0094 | BF5: 0.0108 | BG5: 0.0114 | BH5: 0.0104 | BI5: 0.008 | BJ5: 0.0042 | BK5: -0.0005 | BL5: -0.0058 | BM5: -0.011 | BN5: -0.0155 | BO5: -0.0137 | BP5: -0.0111 | BQ5: -0.0093 | BR5: -0.0072 | BS5: -0.0048 | BT5: -0.0023 | BU5: 0.0001 | BV5: 0.0022 | BW5: 0.0039 | BX5: 0.005 | BY5: 0.0058 | BZ5: 0.0065 | CA5: 0.0072 | CB5: 0.0079 | CC5: 0.0085 | CD5: 0.009 | CE5: 0.0094 | CF5: 0.0097 | CG5: 0.0099 | CH5: 0.01
A6: 23 | B6: 0.0414 | C6: 0.0408 | D6: 0.0393 | E6: 0.0363 | F6: 0.0324 | G6: 0.028 | H6: 0.0233 | I6: 0.0186 | J6: 0.0138 | K6: 0.0093 | L6: 0.0052 | M6: 0.0015 | N6: -0.0011 | O6: -0.0029 | P6: -0.0038 | Q6: -0.0038 | R6: -0.0029 | S6: -0.001 | T6: 0.002 | U6: 0.0059 | V6: 0.0102 | W6: 0.0144 | X6: 0.0181 | Y6: 0.0209 | Z6: 0.0224 | AA6: 0.0229 | AB6: 0.0226 | AC6: 0.0222 | AD6: 0.0219 | AE6: 0.0213 | AF6: 0.0202 | AG6: 0.0183 | AH6: 0.0154 | AI6: 0.012 | AJ6: 0.0087 | AK6: 0.006 | AL6: 0.0047 | AM6: 0.0047 | AN6: 0.0057 | AO6: 0.007 | AP6: 0.0084 | AQ6: 0.01 | AR6: 0.0115 | AS6: 0.0129 | AT6: 0.0141 | AU6: 0.0145 | AV6: 0.0138 | AW6: 0.0123 | AX6: 0.01 | AY6: 0.0076 | AZ6: 0.0056 | BA6: 0.0043 | BB6: 0.0038 | BC6: 0.0044 | BD6: 0.0051 | BE6: 0.0062 | BF6: 0.0073 | BG6: 0.0076 | BH6: 0.0066 | BI6: 0.0043 | BJ6: 0.0008 | BK6: -0.0038 | BL6: -0.0088 | BM6: -0.0139 | BN6: -0.0183 | BO6: -0.0164 | BP6: -0.0137 | BQ6: -0.0104 | BR6: -0.008 | BS6: -0.0054 | BT6: -0.0028 | BU6: -0.0002 | BV6: 0.0021 | BW6: 0.0039 | BX6: 0.005 | BY6: 0.0058 | BZ6: 0.0065 | CA6: 0.0072 | CB6: 0.0079 | CC6: 0.0085 | CD6: 0.009 | CE6: 0.0094 | CF6: 0.0097 | CG6: 0.0099 | CH6: 0.01
A7: 24 | B7: 0.041 | C7: 0.0405 | D7: 0.0389 | E7: 0.036 | F7: 0.0319 | G7: 0.0274 | H7: 0.0226 | I7: 0.0179 | J7: 0.0133 | K7: 0.009 | L7: 0.0052 | M7: 0.0019 | N7: -0.0004 | O7: -0.0017 | P7: -0.0023 | Q7: -0.0021 | R7: -0.0011 | S7: 0.0009 | T7: 0.0039 | U7: 0.0077 | V7: 0.0119 | W7: 0.0161 | X7: 0.0197 | Y7: 0.0224 | Z7: 0.0238 | AA7: 0.0242 | AB7: 0.0237 | AC7: 0.0229 | AD7: 0.0223 | AE7: 0.0213 | AF7: 0.0199 | AG7: 0.0178 | AH7: 0.0148 | AI7: 0.0113 | AJ7: 0.0078 | AK7: 0.0048 | AL7: 0.0034 | AM7: 0.0035 | AN7: 0.0046 | AO7: 0.0061 | AP7: 0.0077 | AQ7: 0.0094 | AR7: 0.011 | AS7: 0.0128 | AT7: 0.0143 | AU7: 0.015 | AV7: 0.0145 | AW7: 0.0129 | AX7: 0.0103 | AY7: 0.0076 | AZ7: 0.0052 | BA7: 0.0036 | BB7: 0.0027 | BC7: 0.0027 | BD7: 0.003 | BE7: 0.0036 | BF7: 0.0043 | BG7: 0.0044 | BH7: 0.0033 | BI7: 0.0011 | BJ7: -0.0023 | BK7: -0.0067 | BL7: -0.0116 | BM7: -0.0166 | BN7: -0.0209 | BO7: -0.019 | BP7: -0.0162 | BQ7: -0.0128 | BR7: -0.0089 | BS7: -0.0061 | BT7: -0.0032 | BU7: -0.0005 | BV7: 0.002 | BW7: 0.0039 | BX7: 0.005 | BY7: 0.0058 | BZ7: 0.0065 | CA7: 0.0072 | CB7: 0.0079 | CC7: 0.0085 | CD7: 0.009 | CE7: 0.0094 | CF7: 0.0097 | CG7: 0.0099 | CH7: 0.01
A8: 25 | B8: 0.0405 | C8: 0.04 | D8: 0.0385 | E8: 0.0355 | F8: 0.0314 | G8: 0.0267 | H8: 0.0219 | I8: 0.0173 | J8: 0.0128 | K8: 0.0087 | L8: 0.0052 | M8: 0.0022 | N8: 0.0003 | O8: -0.0007 | P8: -0.001 | Q8: -0.0006 | R8: 0.0006 | S8: 0.0027 | T8: 0.0057 | U8: 0.0094 | V8: 0.0137 | W8: 0.0178 | X8: 0.0214 | Y8: 0.024 | Z8: 0.0254 | AA8: 0.0256 | AB8: 0.0249 | AC8: 0.0238 | AD8: 0.0228 | AE8: 0.0214 | AF8: 0.0197 | AG8: 0.0174 | AH8: 0.0141 | AI8: 0.0104 | AJ8: 0.0066 | AK8: 0.0035 | AL8: 0.002 | AM8: 0.002 | AN8: 0.0033 | AO8: 0.005 | AP8: 0.0068 | AQ8: 0.0086 | AR8: 0.0104 | AS8: 0.0125 | AT8: 0.0144 | AU8: 0.0155 | AV8: 0.0153 | AW8: 0.0137 | AX8: 0.0109 | AY8: 0.0079 | AZ8: 0.0052 | BA8: 0.0033 | BB8: 0.002 | BC8: 0.0016 | BD8: 0.0014 | BE8: 0.0015 | BF8: 0.0018 | BG8: 0.0017 | BH8: 0.0005 | BI8: -0.0016 | BJ8: -0.005 | BK8: -0.0094 | BL8: -0.0142 | BM8: -0.0191 | BN8: -0.0233 | BO8: -0.0215 | BP8: -0.0187 | BQ8: -0.015 | BR8: -0.011 | BS8: -0.0067 | BT8: -0.0036 | BU8: -0.0007 | BV8: 0.0018 | BW8: 0.0038 | BX8: 0.005 | BY8: 0.0058 | BZ8: 0.0065 | CA8: 0.0072 | CB8: 0.0079 | CC8: 0.0085 | CD8: 0.009 | CE8: 0.0094 | CF8: 0.0097 | CG8: 0.0099 | CH8: 0.01
A9: 26 | B9: 0.0399 | C9: 0.0394 | D9: 0.038 | E9: 0.035 | F9: 0.0308 | G9: 0.0261 | H9: 0.0212 | I9: 0.0166 | J9: 0.0123 | K9: 0.0084 | L9: 0.0051 | M9: 0.0025 | N9: 0.0008 | O9: 0.0001 | P9: 0 | Q9: 0.0007 | R9: 0.0021 | S9: 0.0043 | T9: 0.0074 | U9: 0.0111 | V9: 0.0154 | W9: 0.0196 | X9: 0.0231 | Y9: 0.0256 | Z9: 0.027 | AA9: 0.0271 | AB9: 0.0262 | AC9: 0.0249 | AD9: 0.0234 | AE9: 0.0216 | AF9: 0.0195 | AG9: 0.0169 | AH9: 0.0134 | AI9: 0.0094 | AJ9: 0.0053 | AK9: 0.002 | AL9: 0.0004 | AM9: 0.0005 | AN9: 0.0019 | AO9: 0.0037 | AP9: 0.0057 | AQ9: 0.0076 | AR9: 0.0096 | AS9: 0.012 | AT9: 0.0143 | AU9: 0.0159 | AV9: 0.016 | AW9: 0.0145 | AX9: 0.0117 | AY9: 0.0084 | AZ9: 0.0055 | BA9: 0.0034 | BB9: 0.0018 | BC9: 0.001 | BD9: 0.0004 | BE9: 0 | BF9: 0 | BG9: -0.0005 | BH9: -0.0018 | BI9: -0.0039 | BJ9: -0.0073 | BK9: -0.0117 | BL9: -0.0164 | BM9: -0.0213 | BN9: -0.0254 | BO9: -0.0237 | BP9: -0.0209 | BQ9: -0.0172 | BR9: -0.0129 | BS9: -0.0084 | BT9: -0.004 | BU9: -0.0009 | BV9: 0.0017 | BW9: 0.0038 | BX9: 0.005 | BY9: 0.0058 | BZ9: 0.0065 | CA9: 0.0072 | CB9: 0.0079 | CC9: 0.0085 | CD9: 0.009 | CE9: 0.0094 | CF9: 0.0097 | CG9: 0.0099 | CH9: 0.01
A10: 27 | B10: 0.0392 | C10: 0.0388 | D10: 0.0374 | E10: 0.0345 | F10: 0.0302 | G10: 0.0254 | H10: 0.0205 | I10: 0.016 | J10: 0.0118 | K10: 0.0081 | L10: 0.0051 | M10: 0.0026 | N10: 0.0012 | O10: 0.0007 | P10: 0.0009 | Q10: 0.0018 | R10: 0.0035 | S10: 0.0058 | T10: 0.009 | U10: 0.0128 | V10: 0.017 | W10: 0.0212 | X10: 0.0247 | Y10: 0.0273 | Z10: 0.0287 | AA10: 0.0288 | AB10: 0.0277 | AC10: 0.0261 | AD10: 0.0242 | AE10: 0.022 | AF10: 0.0195 | AG10: 0.0165 | AH10: 0.0126 | AI10: 0.0083 | AJ10: 0.004 | AK10: 0.0006 | AL10: -0.0011 | AM10: -0.001 | AN10: 0.0004 | AO10: 0.0024 | AP10: 0.0045 | AQ10: 0.0065 | AR10: 0.0087 | AS10: 0.0113 | AT10: 0.014 | AU10: 0.016 | AV10: 0.0166 | AW10: 0.0152 | AX10: 0.0125 | AY10: 0.0092 | AZ10: 0.0061 | BA10: 0.0038 | BB10: 0.002 | BC10: 0.0008 | BD10: -0.0001 | BE10: -0.0008 | BF10: -0.0013 | BG10: -0.0021 | BH10: -0.0036 | BI10: -0.0058 | BJ10: -0.0092 | BK10: -0.0136 | BL10: -0.0183 | BM10: -0.0232 | BN10: -0.0273 | BO10: -0.0257 | BP10: -0.0229 | BQ10: -0.0191 | BR10: -0.0148 | BS10: -0.0101 | BT10: -0.0055 | BU10: -0.0012 | BV10: 0.0016 | BW10: 0.0038 | BX10: 0.005 | BY10: 0.0058 | BZ10: 0.0065 | CA10: 0.0072 | CB10: 0.0079 | CC10: 0.0085 | CD10: 0.009 | CE10: 0.0094 | CF10: 0.0097 | CG10: 0.0099 | CH10: 0.01
A11: 28 | B11: 0.0385 | C11: 0.0381 | D11: 0.0367 | E11: 0.0338 | F11: 0.0295 | G11: 0.0247 | H11: 0.0198 | I11: 0.0155 | J11: 0.0114 | K11: 0.0079 | L11: 0.005 | M11: 0.0027 | N11: 0.0014 | O11: 0.001 | P11: 0.0015 | Q11: 0.0026 | R11: 0.0046 | S11: 0.0071 | T11: 0.0104 | U11: 0.0142 | V11: 0.0185 | W11: 0.0227 | X11: 0.0263 | Y11: 0.029 | Z11: 0.0304 | AA11: 0.0304 | AB11: 0.0293 | AC11: 0.0274 | AD11: 0.0252 | AE11: 0.0225 | AF11: 0.0195 | AG11: 0.0161 | AH11: 0.0119 | AI11: 0.0073 | AJ11: 0.0028 | AK11: -0.0007 | AL11: -0.0025 | AM11: -0.0025 | AN11: -0.0011 | AO11: 0.0009 | AP11: 0.0031 | AQ11: 0.0052 | AR11: 0.0076 | AS11: 0.0105 | AT11: 0.0135 | AU11: 0.0159 | AV11: 0.0168 | AW11: 0.0158 | AX11: 0.0132 | AY11: 0.01 | AZ11: 0.0068 | BA11: 0.0045 | BB11: 0.0025 | BC11: 0.001 | BD11: -0.0001 | BE11: -0.0011 | BF11: -0.0019 | BG11: -0.003 | BH11: -0.0048 | BI11: -0.0072 | BJ11: -0.0107 | BK11: -0.015 | BL11: -0.0198 | BM11: -0.0247 | BN11: -0.0289 | BO11: -0.0275 | BP11: -0.0247 | BQ11: -0.0209 | BR11: -0.0164 | BS11: -0.0117 | BT11: -0.0069 | BU11: -0.0024 | BV11: 0.0016 | BW11: 0.0038 | BX11: 0.005 | BY11: 0.0058 | BZ11: 0.0065 | CA11: 0.0072 | CB11: 0.0079 | CC11: 0.0085 | CD11: 0.009 | CE11: 0.0094 | CF11: 0.0097 | CG11: 0.0099 | CH11: 0.01
A12: 29 | B12: 0.0377 | C12: 0.0373 | D12: 0.0359 | E12: 0.033 | F12: 0.0288 | G12: 0.024 | H12: 0.0192 | I12: 0.015 | J12: 0.0111 | K12: 0.0077 | L12: 0.0048 | M12: 0.0027 | N12: 0.0015 | O12: 0.0012 | P12: 0.0018 | Q12: 0.0033 | R12: 0.0055 | S12: 0.0082 | T12: 0.0116 | U12: 0.0156 | V12: 0.0198 | W12: 0.0241 | X12: 0.0278 | Y12: 0.0306 | Z12: 0.0321 | AA12: 0.0321 | AB12: 0.0309 | AC12: 0.0288 | AD12: 0.0262 | AE12: 0.0231 | AF12: 0.0198 | AG12: 0.016 | AH12: 0.0114 | AI12: 0.0065 | AJ12: 0.0018 | AK12: -0.0018 | AL12: -0.0036 | AM12: -0.0037 | AN12: -0.0025 | AO12: -0.0005 | AP12: 0.0017 | AQ12: 0.0039 | AR12: 0.0063 | AS12: 0.0094 | AT12: 0.0127 | AU12: 0.0155 | AV12: 0.0168 | AW12: 0.016 | AX12: 0.0138 | AY12: 0.0107 | AZ12: 0.0077 | BA12: 0.0053 | BB12: 0.0033 | BC12: 0.0017 | BD12: 0.0003 | BE12: -0.0009 | BF12: -0.002 | BG12: -0.0035 | BH12: -0.0056 | BI12: -0.0082 | BJ12: -0.0118 | BK12: -0.016 | BL12: -0.0208 | BM12: -0.0258 | BN12: -0.0301 | BO12: -0.0288 | BP12: -0.0261 | BQ12: -0.0224 | BR12: -0.0179 | BS12: -0.013 | BT12: -0.0081 | BU12: -0.0035 | BV12: 0.0006 | BW12: 0.0037 | BX12: 0.005 | BY12: 0.0058 | BZ12: 0.0065 | CA12: 0.0072 | CB12: 0.0079 | CC12: 0.0085 | CD12: 0.009 | CE12: 0.0094 | CF12: 0.0097 | CG12: 0.0099 | CH12: 0.01
A13: 30 | B13: 0.0369 | C13: 0.0364 | D13: 0.035 | E13: 0.0322 | F13: 0.0281 | G13: 0.0234 | H13: 0.0187 | I13: 0.0146 | J13: 0.0108 | K13: 0.0074 | L13: 0.0047 | M13: 0.0026 | N13: 0.0014 | O13: 0.0012 | P13: 0.002 | Q13: 0.0037 | R13: 0.0061 | S13: 0.009 | T13: 0.0126 | U13: 0.0167 | V13: 0.021 | W13: 0.0253 | X13: 0.0291 | Y13: 0.032 | Z13: 0.0335 | AA13: 0.0336 | AB13: 0.0324 | AC13: 0.0302 | AD13: 0.0273 | AE13: 0.0239 | AF13: 0.0202 | AG13: 0.016 | AH13: 0.0111 | AI13: 0.0059 | AJ13: 0.0011 | AK13: -0.0025 | AL13: -0.0044 | AM13: -0.0047 | AN13: -0.0037 | AO13: -0.0018 | AP13: 0.0002 | AQ13: 0.0025 | AR13: 0.0049 | AS13: 0.0081 | AT13: 0.0117 | AU13: 0.0148 | AV13: 0.0164 | AW13: 0.016 | AX13: 0.0141 | AY13: 0.0113 | AZ13: 0.0085 | BA13: 0.0063 | BB13: 0.0043 | BC13: 0.0026 | BD13: 0.0011 | BE13: -0.0002 | BF13: -0.0016 | BG13: -0.0033 | BH13: -0.0058 | BI13: -0.0086 | BJ13: -0.0124 | BK13: -0.0166 | BL13: -0.0214 | BM13: -0.0264 | BN13: -0.0308 | BO13: -0.0297 | BP13: -0.0272 | BQ13: -0.0235 | BR13: -0.0191 | BS13: -0.0142 | BT13: -0.0093 | BU13: -0.0046 | BV13: -0.0004 | BW13: 0.0029 | BX13: 0.005 | BY13: 0.0058 | BZ13: 0.0065 | CA13: 0.0072 | CB13: 0.0079 | CC13: 0.0085 | CD13: 0.009 | CE13: 0.0094 | CF13: 0.0097 | CG13: 0.0099 | CH13: 0.01
A14: 31 | B14: 0.0361 | C14: 0.0356 | D14: 0.0341 | E14: 0.0314 | F14: 0.0274 | G14: 0.0228 | H14: 0.0182 | I14: 0.0142 | J14: 0.0105 | K14: 0.0072 | L14: 0.0045 | M14: 0.0024 | N14: 0.0012 | O14: 0.0011 | P14: 0.0021 | Q14: 0.0039 | R14: 0.0066 | S14: 0.0096 | T14: 0.0133 | U14: 0.0176 | V14: 0.0219 | W14: 0.0263 | X14: 0.0303 | Y14: 0.0332 | Z14: 0.0348 | AA14: 0.0349 | AB14: 0.0338 | AC14: 0.0315 | AD14: 0.0285 | AE14: 0.0248 | AF14: 0.0208 | AG14: 0.0163 | AH14: 0.0111 | AI14: 0.0057 | AJ14: 0.0008 | AK14: -0.0029 | AL14: -0.0049 | AM14: -0.0054 | AN14: -0.0047 | AO14: -0.0031 | AP14: -0.0012 | AQ14: 0.001 | AR14: 0.0035 | AS14: 0.0067 | AT14: 0.0104 | AU14: 0.0138 | AV14: 0.0156 | AW14: 0.0155 | AX14: 0.014 | AY14: 0.0117 | AZ14: 0.0092 | BA14: 0.0072 | BB14: 0.0053 | BC14: 0.0037 | BD14: 0.0022 | BE14: 0.0009 | BF14: -0.0007 | BG14: -0.0027 | BH14: -0.0055 | BI14: -0.0086 | BJ14: -0.0125 | BK14: -0.0167 | BL14: -0.0215 | BM14: -0.0266 | BN14: -0.031 | BO14: -0.0302 | BP14: -0.0279 | BQ14: -0.0244 | BR14: -0.02 | BS14: -0.0152 | BT14: -0.0103 | BU14: -0.0055 | BV14: -0.0013 | BW14: 0.0021 | BX14: 0.0043 | BY14: 0.0058 | BZ14: 0.0065 | CA14: 0.0072 | CB14: 0.0079 | CC14: 0.0085 | CD14: 0.009 | CE14: 0.0094 | CF14: 0.0097 | CG14: 0.0099 | CH14: 0.01
A15: 32 | B15: 0.0352 | C15: 0.0347 | D15: 0.0333 | E15: 0.0306 | F15: 0.0268 | G15: 0.0223 | H15: 0.0178 | I15: 0.0139 | J15: 0.0102 | K15: 0.007 | L15: 0.0042 | M15: 0.0022 | N15: 0.001 | O15: 0.0009 | P15: 0.002 | Q15: 0.004 | R15: 0.0067 | S15: 0.01 | T15: 0.0138 | U15: 0.0182 | V15: 0.0227 | W15: 0.0271 | X15: 0.0312 | Y15: 0.0342 | Z15: 0.0359 | AA15: 0.0361 | AB15: 0.0349 | AC15: 0.0326 | AD15: 0.0295 | AE15: 0.0257 | AF15: 0.0216 | AG15: 0.0168 | AH15: 0.0115 | AI15: 0.0059 | AJ15: 0.0009 | AK15: -0.0029 | AL15: -0.0051 | AM15: -0.0058 | AN15: -0.0055 | AO15: -0.0041 | AP15: -0.0025 | AQ15: -0.0004 | AR15: 0.002 | AS15: 0.0052 | AT15: 0.009 | AU15: 0.0125 | AV15: 0.0146 | AW15: 0.0147 | AX15: 0.0136 | AY15: 0.0116 | AZ15: 0.0096 | BA15: 0.0079 | BB15: 0.0064 | BC15: 0.005 | BD15: 0.0035 | BE15: 0.0022 | BF15: 0.0005 | BG15: -0.0017 | BH15: -0.0047 | BI15: -0.008 | BJ15: -0.0121 | BK15: -0.0164 | BL15: -0.0213 | BM15: -0.0263 | BN15: -0.0306 | BO15: -0.0301 | BP15: -0.028 | BQ15: -0.0248 | BR15: -0.0206 | BS15: -0.0159 | BT15: -0.011 | BU15: -0.0063 | BV15: -0.0021 | BW15: 0.0013 | BX15: 0.0036 | BY15: 0.0052 | BZ15: 0.0065 | CA15: 0.0072 | CB15: 0.0079 | CC15: 0.0085 | CD15: 0.009 | CE15: 0.0094 | CF15: 0.0097 | CG15: 0.0099 | CH15: 0.01
A16: 33 | B16: 0.0343 | C16: 0.0338 | D16: 0.0325 | E16: 0.0299 | F16: 0.0262 | G16: 0.0218 | H16: 0.0175 | I16: 0.0136 | J16: 0.01 | K16: 0.0067 | L16: 0.0039 | M16: 0.0019 | N16: 0.0008 | O16: 0.0007 | P16: 0.0019 | Q16: 0.0039 | R16: 0.0067 | S16: 0.0101 | T16: 0.0141 | U16: 0.0186 | V16: 0.0232 | W16: 0.0277 | X16: 0.0318 | Y16: 0.035 | Z16: 0.0367 | AA16: 0.037 | AB16: 0.0359 | AC16: 0.0336 | AD16: 0.0305 | AE16: 0.0267 | AF16: 0.0225 | AG16: 0.0176 | AH16: 0.0121 | AI16: 0.0065 | AJ16: 0.0015 | AK16: -0.0024 | AL16: -0.0048 | AM16: -0.0058 | AN16: -0.0058 | AO16: -0.0049 | AP16: -0.0036 | AQ16: -0.0018 | AR16: 0.0005 | AS16: 0.0037 | AT16: 0.0075 | AU16: 0.0111 | AV16: 0.0132 | AW16: 0.0135 | AX16: 0.0127 | AY16: 0.0112 | AZ16: 0.0097 | BA16: 0.0084 | BB16: 0.0074 | BC16: 0.0062 | BD16: 0.005 | BE16: 0.0037 | BF16: 0.002 | BG16: -0.0004 | BH16: -0.0035 | BI16: -0.0071 | BJ16: -0.0112 | BK16: -0.0156 | BL16: -0.0206 | BM16: -0.0255 | BN16: -0.0297 | BO16: -0.0295 | BP16: -0.0277 | BQ16: -0.0247 | BR16: -0.0208 | BS16: -0.0163 | BT16: -0.0116 | BU16: -0.007 | BV16: -0.0028 | BW16: 0.0006 | BX16: 0.0029 | BY16: 0.0046 | BZ16: 0.006 | CA16: 0.0072 | CB16: 0.0079 | CC16: 0.0085 | CD16: 0.009 | CE16: 0.0094 | CF16: 0.0097 | CG16: 0.0099 | CH16: 0.01
A17: 34 | B17: 0.0334 | C17: 0.0329 | D17: 0.0317 | E17: 0.0292 | F17: 0.0257 | G17: 0.0215 | H17: 0.0173 | I17: 0.0134 | J17: 0.0098 | K17: 0.0064 | L17: 0.0036 | M17: 0.0016 | N17: 0.0005 | O17: 0.0006 | P17: 0.0017 | Q17: 0.0037 | R17: 0.0065 | S17: 0.01 | T17: 0.0141 | U17: 0.0187 | V17: 0.0234 | W17: 0.028 | X17: 0.0322 | Y17: 0.0354 | Z17: 0.0373 | AA17: 0.0376 | AB17: 0.0366 | AC17: 0.0344 | AD17: 0.0313 | AE17: 0.0276 | AF17: 0.0234 | AG17: 0.0186 | AH17: 0.0131 | AI17: 0.0075 | AJ17: 0.0025 | AK17: -0.0015 | AL17: -0.0042 | AM17: -0.0055 | AN17: -0.0058 | AO17: -0.0054 | AP17: -0.0045 | AQ17: -0.003 | AR17: -0.0009 | AS17: 0.0022 | AT17: 0.0059 | AU17: 0.0094 | AV17: 0.0116 | AW17: 0.0121 | AX17: 0.0116 | AY17: 0.0105 | AZ17: 0.0094 | BA17: 0.0087 | BB17: 0.0081 | BC17: 0.0074 | BD17: 0.0064 | BE17: 0.0053 | BF17: 0.0036 | BG17: 0.0012 | BH17: -0.002 | BI17: -0.0057 | BJ17: -0.01 | BK17: -0.0145 | BL17: -0.0194 | BM17: -0.0242 | BN17: -0.0282 | BO17: -0.0283 | BP17: -0.0269 | BQ17: -0.0242 | BR17: -0.0207 | BS17: -0.0165 | BT17: -0.012 | BU17: -0.0075 | BV17: -0.0035 | BW17: -0.0001 | BX17: 0.0023 | BY17: 0.004 | BZ17: 0.0055 | CA17: 0.0068 | CB17: 0.0079 | CC17: 0.0085 | CD17: 0.009 | CE17: 0.0094 | CF17: 0.0097 | CG17: 0.0099 | CH17: 0.01
A18: 35 | B18: 0.0325 | C18: 0.0321 | D18: 0.0309 | E18: 0.0286 | F18: 0.0252 | G18: 0.0212 | H18: 0.0171 | I18: 0.0133 | J18: 0.0096 | K18: 0.0062 | L18: 0.0034 | M18: 0.0013 | N18: 0.0003 | O18: 0.0004 | P18: 0.0015 | Q18: 0.0035 | R18: 0.0062 | S18: 0.0097 | T18: 0.0139 | U18: 0.0186 | V18: 0.0235 | W18: 0.0281 | X18: 0.0323 | Y18: 0.0356 | Z18: 0.0375 | AA18: 0.0379 | AB18: 0.037 | AC18: 0.035 | AD18: 0.032 | AE18: 0.0285 | AF18: 0.0244 | AG18: 0.0197 | AH18: 0.0143 | AI18: 0.0088 | AJ18: 0.0039 | AK18: -0.0002 | AL18: -0.0032 | AM18: -0.0048 | AN18: -0.0055 | AO18: -0.0056 | AP18: -0.0051 | AQ18: -0.004 | AR18: -0.0021 | AS18: 0.0008 | AT18: 0.0043 | AU18: 0.0077 | AV18: 0.0098 | AW18: 0.0103 | AX18: 0.0101 | AY18: 0.0094 | AZ18: 0.0087 | BA18: 0.0086 | BB18: 0.0086 | BC18: 0.0084 | BD18: 0.0077 | BE18: 0.0068 | BF18: 0.0053 | BG18: 0.003 | BH18: -0.0003 | BI18: -0.0041 | BJ18: -0.0083 | BK18: -0.013 | BL18: -0.0179 | BM18: -0.0225 | BN18: -0.0262 | BO18: -0.0266 | BP18: -0.0255 | BQ18: -0.0233 | BR18: -0.0201 | BS18: -0.0163 | BT18: -0.0121 | BU18: -0.0079 | BV18: -0.004 | BW18: -0.0007 | BX18: 0.0017 | BY18: 0.0034 | BZ18: 0.005 | CA18: 0.0064 | CB18: 0.0075 | CC18: 0.0085 | CD18: 0.009 | CE18: 0.0094 | CF18: 0.0097 | CG18: 0.0099 | CH18: 0.01
A19: 36 | B19: 0.0316 | C19: 0.0312 | D19: 0.0302 | E19: 0.028 | F19: 0.0248 | G19: 0.021 | H19: 0.0169 | I19: 0.0132 | J19: 0.0095 | K19: 0.006 | L19: 0.0032 | M19: 0.0011 | N19: 0.0001 | O19: 0.0002 | P19: 0.0013 | Q19: 0.0032 | R19: 0.0058 | S19: 0.0093 | T19: 0.0136 | U19: 0.0183 | V19: 0.0233 | W19: 0.028 | X19: 0.0322 | Y19: 0.0355 | Z19: 0.0375 | AA19: 0.038 | AB19: 0.0372 | AC19: 0.0354 | AD19: 0.0326 | AE19: 0.0292 | AF19: 0.0253 | AG19: 0.0208 | AH19: 0.0156 | AI19: 0.0103 | AJ19: 0.0054 | AK19: 0.0013 | AL19: -0.0019 | AM19: -0.0037 | AN19: -0.0047 | AO19: -0.0053 | AP19: -0.0053 | AQ19: -0.0046 | AR19: -0.0031 | AS19: -0.0005 | AT19: 0.0028 | AU19: 0.0059 | AV19: 0.0079 | AW19: 0.0085 | AX19: 0.0084 | AY19: 0.008 | AZ19: 0.0078 | BA19: 0.0082 | BB19: 0.0087 | BC19: 0.0091 | BD19: 0.0088 | BE19: 0.0081 | BF19: 0.0069 | BG19: 0.0047 | BH19: 0.0016 | BI19: -0.0022 | BJ19: -0.0065 | BK19: -0.0112 | BL19: -0.016 | BM19: -0.0204 | BN19: -0.0239 | BO19: -0.0245 | BP19: -0.0237 | BQ19: -0.0219 | BR19: -0.0192 | BS19: -0.0158 | BT19: -0.012 | BU19: -0.0081 | BV19: -0.0044 | BW19: -0.0012 | BX19: 0.0011 | BY19: 0.0029 | BZ19: 0.0046 | CA19: 0.006 | CB19: 0.0072 | CC19: 0.0082 | CD19: 0.009 | CE19: 0.0094 | CF19: 0.0097 | CG19: 0.0099 | CH19: 0.01
A20: 37 | B20: 0.0307 | C20: 0.0304 | D20: 0.0294 | E20: 0.0274 | F20: 0.0244 | G20: 0.0208 | H20: 0.0168 | I20: 0.0131 | J20: 0.0094 | K20: 0.0059 | L20: 0.003 | M20: 0.0009 | N20: 0 | O20: 0.0001 | P20: 0.0011 | Q20: 0.0029 | R20: 0.0054 | S20: 0.0088 | T20: 0.0131 | U20: 0.0179 | V20: 0.0229 | W20: 0.0276 | X20: 0.0318 | Y20: 0.0352 | Z20: 0.0372 | AA20: 0.0378 | AB20: 0.0372 | AC20: 0.0356 | AD20: 0.033 | AE20: 0.0299 | AF20: 0.0261 | AG20: 0.0218 | AH20: 0.0169 | AI20: 0.0118 | AJ20: 0.0072 | AK20: 0.0031 | AL20: -0.0002 | AM20: -0.0023 | AN20: -0.0037 | AO20: -0.0047 | AP20: -0.0052 | AQ20: -0.0049 | AR20: -0.0037 | AS20: -0.0016 | AT20: 0.0014 | AU20: 0.0042 | AV20: 0.006 | AW20: 0.0065 | AX20: 0.0065 | AY20: 0.0064 | AZ20: 0.0066 | BA20: 0.0074 | BB20: 0.0085 | BC20: 0.0094 | BD20: 0.0095 | BE20: 0.0093 | BF20: 0.0083 | BG20: 0.0064 | BH20: 0.0035 | BI20: -0.0002 | BJ20: -0.0044 | BK20: -0.0091 | BL20: -0.0138 | BM20: -0.018 | BN20: -0.0212 | BO20: -0.022 | BP20: -0.0216 | BQ20: -0.0202 | BR20: -0.0179 | BS20: -0.0149 | BT20: -0.0116 | BU20: -0.008 | BV20: -0.0046 | BW20: -0.0016 | BX20: 0.0007 | BY20: 0.0025 | BZ20: 0.0041 | CA20: 0.0057 | CB20: 0.0069 | CC20: 0.008 | CD20: 0.0088 | CE20: 0.0094 | CF20: 0.0097 | CG20: 0.0099 | CH20: 0.01
A21: 38 | B21: 0.0299 | C21: 0.0296 | D21: 0.0287 | E21: 0.0268 | F21: 0.024 | G21: 0.0205 | H21: 0.0167 | I21: 0.013 | J21: 0.0093 | K21: 0.0058 | L21: 0.003 | M21: 0.0009 | N21: -0.0001 | O21: -0.0001 | P21: 0.0008 | Q21: 0.0025 | R21: 0.005 | S21: 0.0084 | T21: 0.0126 | U21: 0.0174 | V21: 0.0223 | W21: 0.027 | X21: 0.0312 | Y21: 0.0346 | Z21: 0.0367 | AA21: 0.0375 | AB21: 0.037 | AC21: 0.0356 | AD21: 0.0333 | AE21: 0.0304 | AF21: 0.0268 | AG21: 0.0228 | AH21: 0.0181 | AI21: 0.0134 | AJ21: 0.0089 | AK21: 0.005 | AL21: 0.0017 | AM21: -0.0007 | AN21: -0.0023 | AO21: -0.0037 | AP21: -0.0046 | AQ21: -0.0048 | AR21: -0.004 | AS21: -0.0023 | AT21: 0.0001 | AU21: 0.0026 | AV21: 0.0042 | AW21: 0.0047 | AX21: 0.0047 | AY21: 0.0047 | AZ21: 0.0052 | BA21: 0.0064 | BB21: 0.0079 | BC21: 0.0092 | BD21: 0.0099 | BE21: 0.01 | BF21: 0.0095 | BG21: 0.0079 | BH21: 0.0053 | BI21: 0.0019 | BJ21: -0.0023 | BK21: -0.0068 | BL21: -0.0114 | BM21: -0.0154 | BN21: -0.0183 | BO21: -0.0192 | BP21: -0.0191 | BQ21: -0.0181 | BR21: -0.0163 | BS21: -0.0138 | BT21: -0.0109 | BU21: -0.0078 | BV21: -0.0047 | BW21: -0.0019 | BX21: 0.0003 | BY21: 0.0021 | BZ21: 0.0038 | CA21: 0.0053 | CB21: 0.0067 | CC21: 0.0078 | CD21: 0.0087 | CE21: 0.0093 | CF21: 0.0097 | CG21: 0.0099 | CH21: 0.01
A22: 39 | B22: 0.0291 | C22: 0.0289 | D22: 0.028 | E22: 0.0263 | F22: 0.0236 | G22: 0.0203 | H22: 0.0166 | I22: 0.013 | J22: 0.0093 | K22: 0.0058 | L22: 0.003 | M22: 0.0009 | N22: -0.0002 | O22: -0.0002 | P22: 0.0006 | Q22: 0.0022 | R22: 0.0046 | S22: 0.0079 | T22: 0.0121 | U22: 0.0168 | V22: 0.0216 | W22: 0.0263 | X22: 0.0305 | Y22: 0.0338 | Z22: 0.036 | AA22: 0.0369 | AB22: 0.0366 | AC22: 0.0354 | AD22: 0.0334 | AE22: 0.0307 | AF22: 0.0274 | AG22: 0.0236 | AH22: 0.0192 | AI22: 0.0148 | AJ22: 0.0107 | AK22: 0.0069 | AL22: 0.0037 | AM22: 0.0012 | AN22: -0.0007 | AO22: -0.0023 | AP22: -0.0036 | AQ22: -0.0043 | AR22: -0.004 | AS22: -0.0027 | AT22: -0.0008 | AU22: 0.0013 | AV22: 0.0026 | AW22: 0.0029 | AX22: 0.0029 | AY22: 0.003 | AZ22: 0.0036 | BA22: 0.0051 | BB22: 0.007 | BC22: 0.0088 | BD22: 0.0099 | BE22: 0.0105 | BF22: 0.0103 | BG22: 0.0091 | BH22: 0.0069 | BI22: 0.0038 | BJ22: -0.0001 | BK22: -0.0045 | BL22: -0.0088 | BM22: -0.0126 | BN22: -0.0153 | BO22: -0.0163 | BP22: -0.0165 | BQ22: -0.0158 | BR22: -0.0144 | BS22: -0.0124 | BT22: -0.01 | BU22: -0.0073 | BV22: -0.0046 | BW22: -0.0021 | BX22: 0 | BY22: 0.0017 | BZ22: 0.0034 | CA22: 0.005 | CB22: 0.0064 | CC22: 0.0076 | CD22: 0.0085 | CE22: 0.0092 | CF22: 0.0097 | CG22: 0.0099 | CH22: 0.01
A23: 40 | B23: 0.0284 | C23: 0.0281 | D23: 0.0273 | E23: 0.0257 | F23: 0.0232 | G23: 0.02 | H23: 0.0165 | I23: 0.0129 | J23: 0.0093 | K23: 0.0059 | L23: 0.0031 | M23: 0.001 | N23: -0.0001 | O23: -0.0003 | P23: 0.0004 | Q23: 0.002 | R23: 0.0043 | S23: 0.0074 | T23: 0.0115 | U23: 0.0161 | V23: 0.0209 | W23: 0.0255 | X23: 0.0296 | Y23: 0.0329 | Z23: 0.0352 | AA23: 0.0362 | AB23: 0.0361 | AC23: 0.0351 | AD23: 0.0333 | AE23: 0.0308 | AF23: 0.0278 | AG23: 0.0242 | AH23: 0.0202 | AI23: 0.0161 | AJ23: 0.0123 | AK23: 0.0087 | AL23: 0.0057 | AM23: 0.0031 | AN23: 0.001 | AO23: -0.0008 | AP23: -0.0024 | AQ23: -0.0035 | AR23: -0.0036 | AS23: -0.0028 | AT23: -0.0014 | AU23: 0.0002 | AV23: 0.0012 | AW23: 0.0014 | AX23: 0.0013 | AY23: 0.0014 | AZ23: 0.0021 | BA23: 0.0037 | BB23: 0.0058 | BC23: 0.008 | BD23: 0.0095 | BE23: 0.0105 | BF23: 0.0108 | BG23: 0.01 | BH23: 0.0082 | BI23: 0.0055 | BJ23: 0.0019 | BK23: -0.0022 | BL23: -0.0062 | BM23: -0.0097 | BN23: -0.0122 | BO23: -0.0133 | BP23: -0.0137 | BQ23: -0.0134 | BR23: -0.0124 | BS23: -0.0108 | BT23: -0.0089 | BU23: -0.0067 | BV23: -0.0043 | BW23: -0.0021 | BX23: -0.0002 | BY23: 0.0015 | BZ23: 0.0032 | CA23: 0.0047 | CB23: 0.0062 | CC23: 0.0074 | CD23: 0.0084 | CE23: 0.0091 | CF23: 0.0096 | CG23: 0.0099 | CH23: 0.01
A24: 41 | B24: 0.0277 | C24: 0.0275 | D24: 0.0267 | E24: 0.0251 | F24: 0.0227 | G24: 0.0197 | H24: 0.0163 | I24: 0.0128 | J24: 0.0093 | K24: 0.006 | L24: 0.0033 | M24: 0.0012 | N24: -0.0001 | O24: -0.0003 | P24: 0.0003 | Q24: 0.0017 | R24: 0.004 | S24: 0.007 | T24: 0.011 | U24: 0.0155 | V24: 0.0201 | W24: 0.0246 | X24: 0.0286 | Y24: 0.0319 | Z24: 0.0342 | AA24: 0.0353 | AB24: 0.0353 | AC24: 0.0346 | AD24: 0.033 | AE24: 0.0307 | AF24: 0.028 | AG24: 0.0246 | AH24: 0.021 | AI24: 0.0172 | AJ24: 0.0137 | AK24: 0.0104 | AL24: 0.0076 | AM24: 0.0049 | AN24: 0.0027 | AO24: 0.0008 | AP24: -0.001 | AQ24: -0.0023 | AR24: -0.0028 | AS24: -0.0024 | AT24: -0.0015 | AU24: -0.0004 | AV24: 0.0003 | AW24: 0.0002 | AX24: -0.0001 | AY24: -0.0001 | AZ24: 0.0006 | BA24: 0.0023 | BB24: 0.0046 | BC24: 0.0069 | BD24: 0.0088 | BE24: 0.0102 | BF24: 0.0109 | BG24: 0.0105 | BH24: 0.0092 | BI24: 0.007 | BJ24: 0.0036 | BK24: 0 | BL24: -0.0037 | BM24: -0.007 | BN24: -0.0092 | BO24: -0.0104 | BP24: -0.0109 | BQ24: -0.0108 | BR24: -0.0102 | BS24: -0.0091 | BT24: -0.0076 | BU24: -0.0058 | BV24: -0.0039 | BW24: -0.002 | BX24: -0.0003 | BY24: 0.0013 | BZ24: 0.0029 | CA24: 0.0045 | CB24: 0.006 | CC24: 0.0072 | CD24: 0.0083 | CE24: 0.0091 | CF24: 0.0096 | CG24: 0.0099 | CH24: 0.01
A25: 42 | B25: 0.0271 | C25: 0.0269 | D25: 0.0261 | E25: 0.0246 | F25: 0.0223 | G25: 0.0194 | H25: 0.0161 | I25: 0.0128 | J25: 0.0093 | K25: 0.0061 | L25: 0.0035 | M25: 0.0013 | N25: 0.0001 | O25: -0.0003 | P25: 0.0002 | Q25: 0.0016 | R25: 0.0038 | S25: 0.0067 | T25: 0.0105 | U25: 0.0148 | V25: 0.0192 | W25: 0.0236 | X25: 0.0276 | Y25: 0.0308 | Z25: 0.0331 | AA25: 0.0343 | AB25: 0.0345 | AC25: 0.0339 | AD25: 0.0325 | AE25: 0.0304 | AF25: 0.0279 | AG25: 0.0249 | AH25: 0.0215 | AI25: 0.0181 | AJ25: 0.0149 | AK25: 0.0119 | AL25: 0.0092 | AM25: 0.0066 | AN25: 0.0044 | AO25: 0.0025 | AP25: 0.0006 | AQ25: -0.001 | AR25: -0.0017 | AS25: -0.0017 | AT25: -0.0012 | AU25: -0.0005 | AV25: -0.0003 | AW25: -0.0006 | AX25: -0.0011 | AY25: -0.0013 | AZ25: -0.0007 | BA25: 0.0009 | BB25: 0.0032 | BC25: 0.0057 | BD25: 0.0079 | BE25: 0.0096 | BF25: 0.0106 | BG25: 0.0106 | BH25: 0.0098 | BI25: 0.008 | BJ25: 0.0051 | BK25: 0.0019 | BL25: -0.0014 | BM25: -0.0044 | BN25: -0.0064 | BO25: -0.0075 | BP25: -0.0082 | BQ25: -0.0083 | BR25: -0.008 | BS25: -0.0073 | BT25: -0.0062 | BU25: -0.0048 | BV25: -0.0032 | BW25: -0.0016 | BX25: -0.0002 | BY25: 0.0013 | BZ25: 0.0028 | CA25: 0.0044 | CB25: 0.0058 | CC25: 0.0071 | CD25: 0.0082 | CE25: 0.009 | CF25: 0.0096 | CG25: 0.0099 | CH25: 0.01
A26: 43 | B26: 0.0265 | C26: 0.0263 | D26: 0.0255 | E26: 0.024 | F26: 0.0218 | G26: 0.019 | H26: 0.0159 | I26: 0.0127 | J26: 0.0094 | K26: 0.0062 | L26: 0.0037 | M26: 0.0015 | N26: 0.0002 | O26: -0.0002 | P26: 0.0002 | Q26: 0.0015 | R26: 0.0036 | S26: 0.0064 | T26: 0.0101 | U26: 0.0142 | V26: 0.0185 | W26: 0.0227 | X26: 0.0265 | Y26: 0.0297 | Z26: 0.032 | AA26: 0.0333 | AB26: 0.0335 | AC26: 0.033 | AD26: 0.0318 | AE26: 0.0299 | AF26: 0.0276 | AG26: 0.0249 | AH26: 0.0219 | AI26: 0.0188 | AJ26: 0.0159 | AK26: 0.0131 | AL26: 0.0107 | AM26: 0.0082 | AN26: 0.0061 | AO26: 0.0041 | AP26: 0.0022 | AQ26: 0.0006 | AR26: -0.0004 | AS26: -0.0006 | AT26: -0.0005 | AU26: -0.0002 | AV26: -0.0004 | AW26: -0.001 | AX26: -0.0018 | AY26: -0.0022 | AZ26: -0.0018 | BA26: -0.0003 | BB26: 0.0019 | BC26: 0.0044 | BD26: 0.0067 | BE26: 0.0087 | BF26: 0.01 | BG26: 0.0104 | BH26: 0.0099 | BI26: 0.0086 | BJ26: 0.0063 | BK26: 0.0035 | BL26: 0.0006 | BM26: -0.002 | BN26: -0.0039 | BO26: -0.0049 | BP26: -0.0056 | BQ26: -0.0059 | BR26: -0.0058 | BS26: -0.0054 | BT26: -0.0047 | BU26: -0.0037 | BV26: -0.0025 | BW26: -0.0012 | BX26: 0.0001 | BY26: 0.0014 | BZ26: 0.0028 | CA26: 0.0042 | CB26: 0.0057 | CC26: 0.007 | CD26: 0.0081 | CE26: 0.0089 | CF26: 0.0095 | CG26: 0.0099 | CH26: 0.01
A27: 44 | B27: 0.026 | C27: 0.0257 | D27: 0.0249 | E27: 0.0235 | F27: 0.0213 | G27: 0.0186 | H27: 0.0157 | I27: 0.0126 | J27: 0.0094 | K27: 0.0064 | L27: 0.0039 | M27: 0.0018 | N27: 0.0004 | O27: -0.0001 | P27: 0.0003 | Q27: 0.0015 | R27: 0.0035 | S27: 0.0062 | T27: 0.0097 | U27: 0.0137 | V27: 0.0177 | W27: 0.0218 | X27: 0.0255 | Y27: 0.0286 | Z27: 0.0309 | AA27: 0.0321 | AB27: 0.0324 | AC27: 0.032 | AD27: 0.0309 | AE27: 0.0291 | AF27: 0.0271 | AG27: 0.0247 | AH27: 0.022 | AI27: 0.0192 | AJ27: 0.0166 | AK27: 0.0141 | AL27: 0.0118 | AM27: 0.0096 | AN27: 0.0075 | AO27: 0.0056 | AP27: 0.0038 | AQ27: 0.0023 | AR27: 0.0011 | AS27: 0.0007 | AT27: 0.0005 | AU27: 0.0004 | AV27: -0.0001 | AW27: -0.001 | AX27: -0.002 | AY27: -0.0027 | AZ27: -0.0025 | BA27: -0.0013 | BB27: 0.0008 | BC27: 0.0032 | BD27: 0.0056 | BE27: 0.0076 | BF27: 0.0091 | BG27: 0.0098 | BH27: 0.0097 | BI27: 0.0089 | BJ27: 0.007 | BK27: 0.0047 | BL27: 0.0022 | BM27: 0 | BN27: -0.0017 | BO27: -0.0025 | BP27: -0.0032 | BQ27: -0.0036 | BR27: -0.0037 | BS27: -0.0036 | BT27: -0.0031 | BU27: -0.0025 | BV27: -0.0016 | BW27: -0.0006 | BX27: 0.0004 | BY27: 0.0016 | BZ27: 0.0028 | CA27: 0.0042 | CB27: 0.0056 | CC27: 0.0069 | CD27: 0.008 | CE27: 0.0089 | CF27: 0.0095 | CG27: 0.0099 | CH27: 0.01
A28: 45 | B28: 0.0254 | C28: 0.0251 | D28: 0.0244 | E28: 0.023 | F28: 0.0209 | G28: 0.0183 | H28: 0.0154 | I28: 0.0125 | J28: 0.0095 | K28: 0.0066 | L28: 0.0041 | M28: 0.002 | N28: 0.0007 | O28: 0.0002 | P28: 0.0004 | Q28: 0.0015 | R28: 0.0035 | S28: 0.0061 | T28: 0.0095 | U28: 0.0132 | V28: 0.0171 | W28: 0.0209 | X28: 0.0245 | Y28: 0.0275 | Z28: 0.0297 | AA28: 0.0309 | AB28: 0.0312 | AC28: 0.0308 | AD28: 0.0298 | AE28: 0.0282 | AF28: 0.0264 | AG28: 0.0243 | AH28: 0.0219 | AI28: 0.0194 | AJ28: 0.017 | AK28: 0.0148 | AL28: 0.0127 | AM28: 0.0107 | AN28: 0.0088 | AO28: 0.007 | AP28: 0.0053 | AQ28: 0.0039 | AR28: 0.0027 | AS28: 0.0021 | AT28: 0.0018 | AU28: 0.0014 | AV28: 0.0006 | AW28: -0.0006 | AX28: -0.0019 | AY28: -0.0028 | AZ28: -0.0029 | BA28: -0.0019 | BB28: -0.0001 | BC28: 0.0021 | BD28: 0.0044 | BE28: 0.0065 | BF28: 0.0081 | BG28: 0.0089 | BH28: 0.0092 | BI28: 0.0087 | BJ28: 0.0073 | BK28: 0.0055 | BL28: 0.0034 | BM28: 0.0015 | BN28: 0.0001 | BO28: -0.0006 | BP28: -0.0012 | BQ28: -0.0016 | BR28: -0.0018 | BS28: -0.0018 | BT28: -0.0016 | BU28: -0.0012 | BV28: -0.0006 | BW28: 0.0001 | BX28: 0.0009 | BY28: 0.0019 | BZ28: 0.003 | CA28: 0.0043 | CB28: 0.0056 | CC28: 0.0068 | CD28: 0.0079 | CE28: 0.0088 | CF28: 0.0095 | CG28: 0.0099 | CH28: 0.01
A29: 46 | B29: 0.0249 | C29: 0.0246 | D29: 0.0239 | E29: 0.0226 | F29: 0.0205 | G29: 0.018 | H29: 0.0153 | I29: 0.0125 | J29: 0.0096 | K29: 0.0068 | L29: 0.0043 | M29: 0.0023 | N29: 0.001 | O29: 0.0004 | P29: 0.0006 | Q29: 0.0017 | R29: 0.0036 | S29: 0.0061 | T29: 0.0093 | U29: 0.0128 | V29: 0.0165 | W29: 0.0201 | X29: 0.0235 | Y29: 0.0264 | Z29: 0.0285 | AA29: 0.0296 | AB29: 0.0299 | AC29: 0.0296 | AD29: 0.0287 | AE29: 0.0272 | AF29: 0.0255 | AG29: 0.0237 | AH29: 0.0216 | AI29: 0.0193 | AJ29: 0.0172 | AK29: 0.0152 | AL29: 0.0133 | AM29: 0.0116 | AN29: 0.0099 | AO29: 0.0083 | AP29: 0.0068 | AQ29: 0.0055 | AR29: 0.0043 | AS29: 0.0036 | AT29: 0.0032 | AU29: 0.0026 | AV29: 0.0016 | AW29: 0.0002 | AX29: -0.0013 | AY29: -0.0024 | AZ29: -0.0028 | BA29: -0.0021 | BB29: -0.0006 | BC29: 0.0013 | BD29: 0.0034 | BE29: 0.0054 | BF29: 0.0069 | BG29: 0.0079 | BH29: 0.0084 | BI29: 0.0082 | BJ29: 0.0072 | BK29: 0.0058 | BL29: 0.0042 | BM29: 0.0026 | BN29: 0.0015 | BO29: 0.001 | BP29: 0.0005 | BQ29: 0.0001 | BR29: -0.0001 | BS29: -0.0002 | BT29: -0.0002 | BU29: 0 | BV29: 0.0004 | BW29: 0.0009 | BX29: 0.0015 | BY29: 0.0023 | BZ29: 0.0033 | CA29: 0.0044 | CB29: 0.0056 | CC29: 0.0068 | CD29: 0.0079 | CE29: 0.0088 | CF29: 0.0095 | CG29: 0.0099 | CH29: 0.01
A30: 47 | B30: 0.0242 | C30: 0.024 | D30: 0.0233 | E30: 0.0221 | F30: 0.0202 | G30: 0.0178 | H30: 0.0151 | I30: 0.0125 | J30: 0.0097 | K30: 0.007 | L30: 0.0046 | M30: 0.0026 | N30: 0.0013 | O30: 0.0008 | P30: 0.0009 | Q30: 0.002 | R30: 0.0037 | S30: 0.0061 | T30: 0.0091 | U30: 0.0124 | V30: 0.0159 | W30: 0.0193 | X30: 0.0226 | Y30: 0.0253 | Z30: 0.0272 | AA30: 0.0282 | AB30: 0.0286 | AC30: 0.0282 | AD30: 0.0274 | AE30: 0.026 | AF30: 0.0245 | AG30: 0.0229 | AH30: 0.021 | AI30: 0.019 | AJ30: 0.0171 | AK30: 0.0154 | AL30: 0.0138 | AM30: 0.0123 | AN30: 0.0109 | AO30: 0.0094 | AP30: 0.0081 | AQ30: 0.007 | AR30: 0.0058 | AS30: 0.0051 | AT30: 0.0046 | AU30: 0.0039 | AV30: 0.0028 | AW30: 0.0013 | AX30: -0.0003 | AY30: -0.0016 | AZ30: -0.0023 | BA30: -0.0019 | BB30: -0.0008 | BC30: 0.0008 | BD30: 0.0026 | BE30: 0.0044 | BF30: 0.0058 | BG30: 0.0068 | BH30: 0.0074 | BI30: 0.0075 | BJ30: 0.0068 | BK30: 0.0057 | BL30: 0.0045 | BM30: 0.0032 | BN30: 0.0023 | BO30: 0.002 | BP30: 0.0018 | BQ30: 0.0015 | BR30: 0.0013 | BS30: 0.0012 | BT30: 0.0011 | BU30: 0.0012 | BV30: 0.0014 | BW30: 0.0018 | BX30: 0.0022 | BY30: 0.0028 | BZ30: 0.0036 | CA30: 0.0046 | CB30: 0.0057 | CC30: 0.0068 | CD30: 0.0079 | CE30: 0.0088 | CF30: 0.0094 | CG30: 0.0099 | CH30: 0.01
A31: 48 | B31: 0.0236 | C31: 0.0234 | D31: 0.0228 | E31: 0.0217 | F31: 0.02 | G31: 0.0176 | H31: 0.0151 | I31: 0.0125 | J31: 0.0099 | K31: 0.0073 | L31: 0.005 | M31: 0.003 | N31: 0.0017 | O31: 0.0012 | P31: 0.0013 | Q31: 0.0023 | R31: 0.0039 | S31: 0.0062 | T31: 0.009 | U31: 0.0121 | V31: 0.0154 | W31: 0.0187 | X31: 0.0217 | Y31: 0.0242 | Z31: 0.026 | AA31: 0.0269 | AB31: 0.0272 | AC31: 0.0268 | AD31: 0.0261 | AE31: 0.0248 | AF31: 0.0235 | AG31: 0.0219 | AH31: 0.0202 | AI31: 0.0185 | AJ31: 0.0168 | AK31: 0.0153 | AL31: 0.014 | AM31: 0.0128 | AN31: 0.0116 | AO31: 0.0104 | AP31: 0.0093 | AQ31: 0.0082 | AR31: 0.0072 | AS31: 0.0065 | AT31: 0.006 | AU31: 0.0053 | AV31: 0.0042 | AW31: 0.0026 | AX31: 0.0009 | AY31: -0.0005 | AZ31: -0.0013 | BA31: -0.0013 | BB31: -0.0005 | BC31: 0.0007 | BD31: 0.0021 | BE31: 0.0036 | BF31: 0.0049 | BG31: 0.0058 | BH31: 0.0063 | BI31: 0.0065 | BJ31: 0.0061 | BK31: 0.0053 | BL31: 0.0043 | BM31: 0.0034 | BN31: 0.0027 | BO31: 0.0026 | BP31: 0.0026 | BQ31: 0.0025 | BR31: 0.0024 | BS31: 0.0023 | BT31: 0.0023 | BU31: 0.0023 | BV31: 0.0024 | BW31: 0.0026 | BX31: 0.0029 | BY31: 0.0034 | BZ31: 0.004 | CA31: 0.0049 | CB31: 0.0059 | CC31: 0.0069 | CD31: 0.0079 | CE31: 0.0088 | CF31: 0.0094 | CG31: 0.0099 | CH31: 0.01
A32: 49 | B32: 0.0229 | C32: 0.0227 | D32: 0.0223 | E32: 0.0213 | F32: 0.0197 | G32: 0.0176 | H32: 0.0151 | I32: 0.0126 | J32: 0.0101 | K32: 0.0076 | L32: 0.0054 | M32: 0.0035 | N32: 0.0022 | O32: 0.0016 | P32: 0.0018 | Q32: 0.0027 | R32: 0.0042 | S32: 0.0063 | T32: 0.0089 | U32: 0.0119 | V32: 0.015 | W32: 0.018 | X32: 0.0208 | Y32: 0.0231 | Z32: 0.0247 | AA32: 0.0255 | AB32: 0.0257 | AC32: 0.0254 | AD32: 0.0247 | AE32: 0.0236 | AF32: 0.0223 | AG32: 0.0209 | AH32: 0.0193 | AI32: 0.0177 | AJ32: 0.0163 | AK32: 0.015 | AL32: 0.014 | AM32: 0.0131 | AN32: 0.0122 | AO32: 0.0112 | AP32: 0.0102 | AQ32: 0.0093 | AR32: 0.0084 | AS32: 0.0078 | AT32: 0.0073 | AU32: 0.0066 | AV32: 0.0056 | AW32: 0.0041 | AX32: 0.0024 | AY32: 0.0009 | AZ32: 0 | BA32: -0.0003 | BB32: 0.0001 | BC32: 0.001 | BD32: 0.002 | BE32: 0.0031 | BF32: 0.0041 | BG32: 0.0048 | BH32: 0.0053 | BI32: 0.0055 | BJ32: 0.0051 | BK32: 0.0045 | BL32: 0.0038 | BM32: 0.0031 | BN32: 0.0026 | BO32: 0.0028 | BP32: 0.003 | BQ32: 0.0031 | BR32: 0.0032 | BS32: 0.0032 | BT32: 0.0033 | BU32: 0.0033 | BV32: 0.0034 | BW32: 0.0035 | BX32: 0.0037 | BY32: 0.004 | BZ32: 0.0045 | CA32: 0.0052 | CB32: 0.0061 | CC32: 0.007 | CD32: 0.0079 | CE32: 0.0088 | CF32: 0.0094 | CG32: 0.0099 | CH32: 0.01
A33: 50 | B33: 0.0222 | C33: 0.0221 | D33: 0.0218 | E33: 0.021 | F33: 0.0195 | G33: 0.0175 | H33: 0.0151 | I33: 0.0128 | J33: 0.0104 | K33: 0.008 | L33: 0.0058 | M33: 0.004 | N33: 0.0027 | O33: 0.0021 | P33: 0.0023 | Q33: 0.0031 | R33: 0.0044 | S33: 0.0064 | T33: 0.0089 | U33: 0.0116 | V33: 0.0146 | W33: 0.0175 | X33: 0.02 | Y33: 0.0221 | Z33: 0.0236 | AA33: 0.0243 | AB33: 0.0244 | AC33: 0.024 | AD33: 0.0233 | AE33: 0.0222 | AF33: 0.021 | AG33: 0.0197 | AH33: 0.0183 | AI33: 0.0169 | AJ33: 0.0156 | AK33: 0.0146 | AL33: 0.0138 | AM33: 0.0132 | AN33: 0.0125 | AO33: 0.0118 | AP33: 0.011 | AQ33: 0.0102 | AR33: 0.0095 | AS33: 0.0089 | AT33: 0.0084 | AU33: 0.0078 | AV33: 0.0069 | AW33: 0.0056 | AX33: 0.004 | AY33: 0.0025 | AZ33: 0.0015 | BA33: 0.0011 | BB33: 0.0012 | BC33: 0.0017 | BD33: 0.0023 | BE33: 0.0031 | BF33: 0.0037 | BG33: 0.0041 | BH33: 0.0044 | BI33: 0.0044 | BJ33: 0.0041 | BK33: 0.0036 | BL33: 0.0029 | BM33: 0.0024 | BN33: 0.0021 | BO33: 0.0025 | BP33: 0.0029 | BQ33: 0.0033 | BR33: 0.0036 | BS33: 0.0039 | BT33: 0.004 | BU33: 0.0042 | BV33: 0.0043 | BW33: 0.0044 | BX33: 0.0044 | BY33: 0.0046 | BZ33: 0.005 | CA33: 0.0056 | CB33: 0.0063 | CC33: 0.0072 | CD33: 0.008 | CE33: 0.0088 | CF33: 0.0094 | CG33: 0.0099 | CH33: 0.01
A34: 51 | B34: 0.0216 | C34: 0.0216 | D34: 0.0213 | E34: 0.0206 | F34: 0.0193 | G34: 0.0174 | H34: 0.0151 | I34: 0.013 | J34: 0.0107 | K34: 0.0085 | L34: 0.0064 | M34: 0.0046 | N34: 0.0033 | O34: 0.0027 | P34: 0.0028 | Q34: 0.0035 | R34: 0.0047 | S34: 0.0065 | T34: 0.0088 | U34: 0.0114 | V34: 0.0142 | W34: 0.0169 | X34: 0.0193 | Y34: 0.0212 | Z34: 0.0225 | AA34: 0.023 | AB34: 0.0231 | AC34: 0.0227 | AD34: 0.0219 | AE34: 0.0209 | AF34: 0.0197 | AG34: 0.0185 | AH34: 0.0171 | AI34: 0.0159 | AJ34: 0.0149 | AK34: 0.0141 | AL34: 0.0135 | AM34: 0.0131 | AN34: 0.0126 | AO34: 0.0121 | AP34: 0.0116 | AQ34: 0.0109 | AR34: 0.0103 | AS34: 0.0098 | AT34: 0.0094 | AU34: 0.0089 | AV34: 0.0082 | AW34: 0.007 | AX34: 0.0056 | AY34: 0.0043 | AZ34: 0.0033 | BA34: 0.0027 | BB34: 0.0026 | BC34: 0.0028 | BD34: 0.003 | BE34: 0.0034 | BF34: 0.0037 | BG34: 0.0038 | BH34: 0.0037 | BI34: 0.0035 | BJ34: 0.0031 | BK34: 0.0025 | BL34: 0.0019 | BM34: 0.0015 | BN34: 0.0013 | BO34: 0.0019 | BP34: 0.0025 | BQ34: 0.0032 | BR34: 0.0038 | BS34: 0.0042 | BT34: 0.0046 | BU34: 0.0049 | BV34: 0.0051 | BW34: 0.0052 | BX34: 0.0052 | BY34: 0.0053 | BZ34: 0.0056 | CA34: 0.006 | CB34: 0.0066 | CC34: 0.0074 | CD34: 0.0081 | CE34: 0.0088 | CF34: 0.0094 | CG34: 0.0099 | CH34: 0.01
A35: 52 | B35: 0.021 | C35: 0.0211 | D35: 0.0208 | E35: 0.0202 | F35: 0.019 | G35: 0.0172 | H35: 0.0152 | I35: 0.0131 | J35: 0.0111 | K35: 0.0089 | L35: 0.007 | M35: 0.0052 | N35: 0.004 | O35: 0.0033 | P35: 0.0033 | Q35: 0.0039 | R35: 0.005 | S35: 0.0066 | T35: 0.0087 | U35: 0.0112 | V35: 0.0138 | W35: 0.0164 | X35: 0.0185 | Y35: 0.0203 | Z35: 0.0215 | AA35: 0.0219 | AB35: 0.0219 | AC35: 0.0214 | AD35: 0.0206 | AE35: 0.0195 | AF35: 0.0184 | AG35: 0.0172 | AH35: 0.0159 | AI35: 0.0149 | AJ35: 0.014 | AK35: 0.0134 | AL35: 0.0131 | AM35: 0.0128 | AN35: 0.0126 | AO35: 0.0123 | AP35: 0.0119 | AQ35: 0.0114 | AR35: 0.0109 | AS35: 0.0105 | AT35: 0.0102 | AU35: 0.0099 | AV35: 0.0093 | AW35: 0.0083 | AX35: 0.0071 | AY35: 0.006 | AZ35: 0.0051 | BA35: 0.0045 | BB35: 0.0043 | BC35: 0.0042 | BD35: 0.0041 | BE35: 0.0042 | BF35: 0.0041 | BG35: 0.0037 | BH35: 0.0033 | BI35: 0.0028 | BJ35: 0.0021 | BK35: 0.0014 | BL35: 0.0008 | BM35: 0.0004 | BN35: 0.0003 | BO35: 0.001 | BP35: 0.0018 | BQ35: 0.0027 | BR35: 0.0036 | BS35: 0.0043 | BT35: 0.005 | BU35: 0.0054 | BV35: 0.0057 | BW35: 0.0059 | BX35: 0.0059 | BY35: 0.0059 | BZ35: 0.0061 | CA35: 0.0064 | CB35: 0.0069 | CC35: 0.0076 | CD35: 0.0082 | CE35: 0.0089 | CF35: 0.0095 | CG35: 0.0099 | CH35: 0.01
A36: 53 | B36: 0.0206 | C36: 0.0206 | D36: 0.0204 | E36: 0.0198 | F36: 0.0187 | G36: 0.017 | H36: 0.0151 | I36: 0.0133 | J36: 0.0114 | K36: 0.0094 | L36: 0.0076 | M36: 0.0059 | N36: 0.0047 | O36: 0.004 | P36: 0.0039 | Q36: 0.0043 | R36: 0.0052 | S36: 0.0067 | T36: 0.0087 | U36: 0.011 | V36: 0.0134 | W36: 0.0158 | X36: 0.0179 | Y36: 0.0195 | Z36: 0.0206 | AA36: 0.0209 | AB36: 0.0208 | AC36: 0.0202 | AD36: 0.0193 | AE36: 0.0181 | AF36: 0.017 | AG36: 0.0158 | AH36: 0.0147 | AI36: 0.0139 | AJ36: 0.0132 | AK36: 0.0128 | AL36: 0.0125 | AM36: 0.0124 | AN36: 0.0124 | AO36: 0.0123 | AP36: 0.012 | AQ36: 0.0117 | AR36: 0.0114 | AS36: 0.0111 | AT36: 0.0109 | AU36: 0.0106 | AV36: 0.0102 | AW36: 0.0095 | AX36: 0.0085 | AY36: 0.0076 | AZ36: 0.0069 | BA36: 0.0064 | BB36: 0.0061 | BC36: 0.0059 | BD36: 0.0056 | BE36: 0.0053 | BF36: 0.0048 | BG36: 0.0041 | BH36: 0.0032 | BI36: 0.0024 | BJ36: 0.0014 | BK36: 0.0005 | BL36: -0.0003 | BM36: -0.0007 | BN36: -0.0008 | BO36: 0 | BP36: 0.001 | BQ36: 0.0021 | BR36: 0.0032 | BS36: 0.0042 | BT36: 0.0051 | BU36: 0.0058 | BV36: 0.0062 | BW36: 0.0065 | BX36: 0.0065 | BY36: 0.0065 | BZ36: 0.0066 | CA36: 0.0069 | CB36: 0.0073 | CC36: 0.0078 | CD36: 0.0084 | CE36: 0.009 | CF36: 0.0095 | CG36: 0.0099 | CH36: 0.01
A37: 54 | B37: 0.0202 | C37: 0.0202 | D37: 0.02 | E37: 0.0194 | F37: 0.0183 | G37: 0.0168 | H37: 0.0151 | I37: 0.0134 | J37: 0.0117 | K37: 0.0099 | L37: 0.0082 | M37: 0.0066 | N37: 0.0054 | O37: 0.0047 | P37: 0.0045 | Q37: 0.0048 | R37: 0.0056 | S37: 0.0068 | T37: 0.0087 | U37: 0.0108 | V37: 0.0131 | W37: 0.0153 | X37: 0.0173 | Y37: 0.0189 | Z37: 0.0198 | AA37: 0.0201 | AB37: 0.0198 | AC37: 0.0191 | AD37: 0.018 | AE37: 0.0168 | AF37: 0.0156 | AG37: 0.0145 | AH37: 0.0136 | AI37: 0.0129 | AJ37: 0.0124 | AK37: 0.0121 | AL37: 0.0119 | AM37: 0.0119 | AN37: 0.012 | AO37: 0.0121 | AP37: 0.012 | AQ37: 0.0118 | AR37: 0.0117 | AS37: 0.0115 | AT37: 0.0114 | AU37: 0.0112 | AV37: 0.0109 | AW37: 0.0104 | AX37: 0.0097 | AY37: 0.0091 | AZ37: 0.0086 | BA37: 0.0083 | BB37: 0.008 | BC37: 0.0078 | BD37: 0.0073 | BE37: 0.0067 | BF37: 0.0059 | BG37: 0.0048 | BH37: 0.0035 | BI37: 0.0022 | BJ37: 0.0009 | BK37: -0.0003 | BL37: -0.0012 | BM37: -0.0018 | BN37: -0.0019 | BO37: -0.0011 | BP37: 0 | BQ37: 0.0013 | BR37: 0.0026 | BS37: 0.0039 | BT37: 0.005 | BU37: 0.006 | BV37: 0.0066 | BW37: 0.007 | BX37: 0.0071 | BY37: 0.0071 | BZ37: 0.0071 | CA37: 0.0073 | CB37: 0.0076 | CC37: 0.008 | CD37: 0.0085 | CE37: 0.0091 | CF37: 0.0095 | CG37: 0.0099 | CH37: 0.01
A38: 55 | B38: 0.02 | C38: 0.0199 | D38: 0.0197 | E38: 0.019 | F38: 0.0179 | G38: 0.0165 | H38: 0.015 | I38: 0.0134 | J38: 0.0119 | K38: 0.0103 | L38: 0.0087 | M38: 0.0072 | N38: 0.0061 | O38: 0.0054 | P38: 0.0052 | Q38: 0.0053 | R38: 0.0059 | S38: 0.0071 | T38: 0.0088 | U38: 0.0107 | V38: 0.0129 | W38: 0.0149 | X38: 0.0167 | Y38: 0.0182 | Z38: 0.019 | AA38: 0.0192 | AB38: 0.0188 | AC38: 0.018 | AD38: 0.0168 | AE38: 0.0154 | AF38: 0.0143 | AG38: 0.0132 | AH38: 0.0124 | AI38: 0.0118 | AJ38: 0.0115 | AK38: 0.0114 | AL38: 0.0113 | AM38: 0.0114 | AN38: 0.0116 | AO38: 0.0118 | AP38: 0.0118 | AQ38: 0.0118 | AR38: 0.0118 | AS38: 0.0118 | AT38: 0.0117 | AU38: 0.0117 | AV38: 0.0115 | AW38: 0.0112 | AX38: 0.0108 | AY38: 0.0104 | AZ38: 0.0102 | BA38: 0.0101 | BB38: 0.0099 | BC38: 0.0097 | BD38: 0.0092 | BE38: 0.0083 | BF38: 0.0072 | BG38: 0.0058 | BH38: 0.0042 | BI38: 0.0025 | BJ38: 0.0007 | BK38: -0.0008 | BL38: -0.0019 | BM38: -0.0026 | BN38: -0.0029 | BO38: -0.0021 | BP38: -0.001 | BQ38: 0.0004 | BR38: 0.002 | BS38: 0.0035 | BT38: 0.0048 | BU38: 0.006 | BV38: 0.0068 | BW38: 0.0074 | BX38: 0.0075 | BY38: 0.0075 | BZ38: 0.0076 | CA38: 0.0077 | CB38: 0.0079 | CC38: 0.0083 | CD38: 0.0087 | CE38: 0.0091 | CF38: 0.0096 | CG38: 0.0099 | CH38: 0.01
A39: 56 | B39: 0.0197 | C39: 0.0196 | D39: 0.0193 | E39: 0.0187 | F39: 0.0175 | G39: 0.0162 | H39: 0.0148 | I39: 0.0134 | J39: 0.012 | K39: 0.0106 | L39: 0.0092 | M39: 0.0078 | N39: 0.0068 | O39: 0.0062 | P39: 0.0059 | Q39: 0.006 | R39: 0.0065 | S39: 0.0075 | T39: 0.009 | U39: 0.0108 | V39: 0.0127 | W39: 0.0146 | X39: 0.0163 | Y39: 0.0176 | Z39: 0.0183 | AA39: 0.0184 | AB39: 0.018 | AC39: 0.017 | AD39: 0.0157 | AE39: 0.0142 | AF39: 0.013 | AG39: 0.012 | AH39: 0.0113 | AI39: 0.0108 | AJ39: 0.0106 | AK39: 0.0106 | AL39: 0.0106 | AM39: 0.0108 | AN39: 0.0111 | AO39: 0.0114 | AP39: 0.0115 | AQ39: 0.0116 | AR39: 0.0117 | AS39: 0.0118 | AT39: 0.0119 | AU39: 0.0119 | AV39: 0.0119 | AW39: 0.0118 | AX39: 0.0117 | AY39: 0.0116 | AZ39: 0.0116 | BA39: 0.0117 | BB39: 0.0117 | BC39: 0.0116 | BD39: 0.011 | BE39: 0.0101 | BF39: 0.0088 | BG39: 0.0071 | BH39: 0.0051 | BI39: 0.0031 | BJ39: 0.001 | BK39: -0.0009 | BL39: -0.0023 | BM39: -0.0032 | BN39: -0.0036 | BO39: -0.003 | BP39: -0.0019 | BQ39: -0.0004 | BR39: 0.0013 | BS39: 0.0029 | BT39: 0.0045 | BU39: 0.0059 | BV39: 0.0069 | BW39: 0.0076 | BX39: 0.0079 | BY39: 0.0079 | BZ39: 0.0079 | CA39: 0.008 | CB39: 0.0082 | CC39: 0.0085 | CD39: 0.0088 | CE39: 0.0092 | CF39: 0.0096 | CG39: 0.0099 | CH39: 0.01
A40: 57 | B40: 0.0194 | C40: 0.0193 | D40: 0.019 | E40: 0.0183 | F40: 0.0172 | G40: 0.0159 | H40: 0.0146 | I40: 0.0133 | J40: 0.0121 | K40: 0.0108 | L40: 0.0096 | M40: 0.0084 | N40: 0.0075 | O40: 0.007 | P40: 0.0067 | Q40: 0.0067 | R40: 0.0071 | S40: 0.008 | T40: 0.0093 | U40: 0.011 | V40: 0.0127 | W40: 0.0143 | X40: 0.0159 | Y40: 0.0171 | Z40: 0.0176 | AA40: 0.0176 | AB40: 0.0171 | AC40: 0.016 | AD40: 0.0146 | AE40: 0.0131 | AF40: 0.0119 | AG40: 0.0109 | AH40: 0.0102 | AI40: 0.0098 | AJ40: 0.0098 | AK40: 0.0098 | AL40: 0.0099 | AM40: 0.0102 | AN40: 0.0106 | AO40: 0.0109 | AP40: 0.0111 | AQ40: 0.0114 | AR40: 0.0115 | AS40: 0.0117 | AT40: 0.0118 | AU40: 0.012 | AV40: 0.0122 | AW40: 0.0123 | AX40: 0.0124 | AY40: 0.0126 | AZ40: 0.0128 | BA40: 0.0131 | BB40: 0.0133 | BC40: 0.0133 | BD40: 0.0128 | BE40: 0.0118 | BF40: 0.0104 | BG40: 0.0085 | BH40: 0.0064 | BI40: 0.004 | BJ40: 0.0016 | BK40: -0.0006 | BL40: -0.0023 | BM40: -0.0034 | BN40: -0.004 | BO40: -0.0036 | BP40: -0.0025 | BQ40: -0.0011 | BR40: 0.0006 | BS40: 0.0024 | BT40: 0.0041 | BU40: 0.0057 | BV40: 0.0069 | BW40: 0.0077 | BX40: 0.0081 | BY40: 0.0082 | BZ40: 0.0083 | CA40: 0.0084 | CB40: 0.0085 | CC40: 0.0087 | CD40: 0.009 | CE40: 0.0093 | CF40: 0.0096 | CG40: 0.0099 | CH40: 0.01
A41: 58 | B41: 0.0191 | C41: 0.019 | D41: 0.0187 | E41: 0.018 | F41: 0.0168 | G41: 0.0155 | H41: 0.0143 | I41: 0.0132 | J41: 0.012 | K41: 0.0109 | L41: 0.0098 | M41: 0.0088 | N41: 0.0081 | O41: 0.0077 | P41: 0.0075 | Q41: 0.0076 | R41: 0.008 | S41: 0.0087 | T41: 0.0099 | U41: 0.0113 | V41: 0.0128 | W41: 0.0142 | X41: 0.0155 | Y41: 0.0165 | Z41: 0.017 | AA41: 0.0169 | AB41: 0.0162 | AC41: 0.0151 | AD41: 0.0137 | AE41: 0.0121 | AF41: 0.0108 | AG41: 0.0099 | AH41: 0.0092 | AI41: 0.0089 | AJ41: 0.0089 | AK41: 0.0091 | AL41: 0.0093 | AM41: 0.0096 | AN41: 0.0101 | AO41: 0.0105 | AP41: 0.0107 | AQ41: 0.011 | AR41: 0.0112 | AS41: 0.0114 | AT41: 0.0117 | AU41: 0.012 | AV41: 0.0123 | AW41: 0.0127 | AX41: 0.013 | AY41: 0.0134 | AZ41: 0.0139 | BA41: 0.0144 | BB41: 0.0147 | BC41: 0.0148 | BD41: 0.0144 | BE41: 0.0134 | BF41: 0.012 | BG41: 0.01 | BH41: 0.0077 | BI41: 0.0052 | BJ41: 0.0026 | BK41: 0.0001 | BL41: -0.0019 | BM41: -0.0033 | BN41: -0.0041 | BO41: -0.0038 | BP41: -0.0029 | BQ41: -0.0015 | BR41: 0.0001 | BS41: 0.0019 | BT41: 0.0037 | BU41: 0.0054 | BV41: 0.0067 | BW41: 0.0077 | BX41: 0.0082 | BY41: 0.0084 | BZ41: 0.0085 | CA41: 0.0086 | CB41: 0.0087 | CC41: 0.0089 | CD41: 0.0091 | CE41: 0.0094 | CF41: 0.0097 | CG41: 0.0099 | CH41: 0.01
A42: 59 | B42: 0.0188 | C42: 0.0187 | D42: 0.0183 | E42: 0.0176 | F42: 0.0165 | G42: 0.0153 | H42: 0.0141 | I42: 0.013 | J42: 0.0119 | K42: 0.0109 | L42: 0.01 | M42: 0.0092 | N42: 0.0087 | O42: 0.0085 | P42: 0.0084 | Q42: 0.0085 | R42: 0.0089 | S42: 0.0095 | T42: 0.0105 | U42: 0.0117 | V42: 0.013 | W42: 0.0142 | X42: 0.0153 | Y42: 0.0161 | Z42: 0.0164 | AA42: 0.0161 | AB42: 0.0154 | AC42: 0.0142 | AD42: 0.0128 | AE42: 0.0113 | AF42: 0.0099 | AG42: 0.0089 | AH42: 0.0083 | AI42: 0.008 | AJ42: 0.0081 | AK42: 0.0083 | AL42: 0.0086 | AM42: 0.009 | AN42: 0.0096 | AO42: 0.01 | AP42: 0.0103 | AQ42: 0.0105 | AR42: 0.0107 | AS42: 0.011 | AT42: 0.0114 | AU42: 0.0118 | AV42: 0.0123 | AW42: 0.0129 | AX42: 0.0134 | AY42: 0.014 | AZ42: 0.0147 | BA42: 0.0153 | BB42: 0.0158 | BC42: 0.016 | BD42: 0.0157 | BE42: 0.0149 | BF42: 0.0135 | BG42: 0.0115 | BH42: 0.0092 | BI42: 0.0066 | BJ42: 0.0038 | BK42: 0.0011 | BL42: -0.0011 | BM42: -0.0028 | BN42: -0.0037 | BO42: -0.0036 | BP42: -0.003 | BQ42: -0.0018 | BR42: -0.0002 | BS42: 0.0016 | BT42: 0.0034 | BU42: 0.005 | BV42: 0.0065 | BW42: 0.0075 | BX42: 0.0081 | BY42: 0.0084 | BZ42: 0.0086 | CA42: 0.0088 | CB42: 0.0089 | CC42: 0.0091 | CD42: 0.0093 | CE42: 0.0095 | CF42: 0.0097 | CG42: 0.0099 | CH42: 0.01
A43: 60 | B43: 0.0185 | C43: 0.0183 | D43: 0.018 | E43: 0.0173 | F43: 0.0162 | G43: 0.015 | H43: 0.0138 | I43: 0.0128 | J43: 0.0118 | K43: 0.0109 | L43: 0.0102 | M43: 0.0096 | N43: 0.0093 | O43: 0.0092 | P43: 0.0093 | Q43: 0.0095 | R43: 0.0099 | S43: 0.0104 | T43: 0.0113 | U43: 0.0123 | V43: 0.0133 | W43: 0.0143 | X43: 0.0151 | Y43: 0.0157 | Z43: 0.0158 | AA43: 0.0154 | AB43: 0.0146 | AC43: 0.0134 | AD43: 0.012 | AE43: 0.0105 | AF43: 0.0091 | AG43: 0.0081 | AH43: 0.0075 | AI43: 0.0072 | AJ43: 0.0073 | AK43: 0.0076 | AL43: 0.008 | AM43: 0.0085 | AN43: 0.0091 | AO43: 0.0095 | AP43: 0.0098 | AQ43: 0.01 | AR43: 0.0102 | AS43: 0.0105 | AT43: 0.011 | AU43: 0.0115 | AV43: 0.0122 | AW43: 0.013 | AX43: 0.0137 | AY43: 0.0145 | AZ43: 0.0153 | BA43: 0.0161 | BB43: 0.0167 | BC43: 0.0171 | BD43: 0.0169 | BE43: 0.0162 | BF43: 0.0149 | BG43: 0.013 | BH43: 0.0107 | BI43: 0.0081 | BJ43: 0.0052 | BK43: 0.0024 | BL43: 0 | BM43: -0.0019 | BN43: -0.003 | BO43: -0.0031 | BP43: -0.0027 | BQ43: -0.0017 | BR43: -0.0003 | BS43: 0.0013 | BT43: 0.0031 | BU43: 0.0047 | BV43: 0.0062 | BW43: 0.0073 | BX43: 0.008 | BY43: 0.0084 | BZ43: 0.0087 | CA43: 0.0089 | CB43: 0.0091 | CC43: 0.0092 | CD43: 0.0094 | CE43: 0.0096 | CF43: 0.0098 | CG43: 0.0099 | CH43: 0.01
A44: 61 | B44: 0.0181 | C44: 0.0179 | D44: 0.0176 | E44: 0.0169 | F44: 0.0159 | G44: 0.0147 | H44: 0.0136 | I44: 0.0126 | J44: 0.0118 | K44: 0.011 | L44: 0.0104 | M44: 0.0099 | N44: 0.0098 | O44: 0.0099 | P44: 0.0102 | Q44: 0.0105 | R44: 0.0109 | S44: 0.0114 | T44: 0.0121 | U44: 0.0129 | V44: 0.0138 | W44: 0.0145 | X44: 0.0151 | Y44: 0.0154 | Z44: 0.0153 | AA44: 0.0148 | AB44: 0.0139 | AC44: 0.0127 | AD44: 0.0113 | AE44: 0.0098 | AF44: 0.0084 | AG44: 0.0074 | AH44: 0.0067 | AI44: 0.0065 | AJ44: 0.0066 | AK44: 0.0069 | AL44: 0.0074 | AM44: 0.008 | AN44: 0.0086 | AO44: 0.009 | AP44: 0.0093 | AQ44: 0.0095 | AR44: 0.0096 | AS44: 0.01 | AT44: 0.0105 | AU44: 0.0112 | AV44: 0.012 | AW44: 0.0129 | AX44: 0.0138 | AY44: 0.0148 | AZ44: 0.0158 | BA44: 0.0167 | BB44: 0.0174 | BC44: 0.0179 | BD44: 0.0178 | BE44: 0.0172 | BF44: 0.0161 | BG44: 0.0143 | BH44: 0.0121 | BI44: 0.0096 | BJ44: 0.0067 | BK44: 0.0038 | BL44: 0.0013 | BM44: -0.0006 | BN44: -0.0019 | BO44: -0.0022 | BP44: -0.002 | BQ44: -0.0013 | BR44: -0.0001 | BS44: 0.0013 | BT44: 0.0029 | BU44: 0.0044 | BV44: 0.0059 | BW44: 0.0071 | BX44: 0.0078 | BY44: 0.0083 | BZ44: 0.0087 | CA44: 0.009 | CB44: 0.0092 | CC44: 0.0093 | CD44: 0.0095 | CE44: 0.0096 | CF44: 0.0098 | CG44: 0.0099 | CH44: 0.01
A45: 62 | B45: 0.0176 | C45: 0.0175 | D45: 0.0171 | E45: 0.0165 | F45: 0.0155 | G45: 0.0144 | H45: 0.0134 | I45: 0.0125 | J45: 0.0118 | K45: 0.0111 | L45: 0.0106 | M45: 0.0103 | N45: 0.0103 | O45: 0.0105 | P45: 0.0109 | Q45: 0.0114 | R45: 0.0118 | S45: 0.0123 | T45: 0.013 | U45: 0.0136 | V45: 0.0142 | W45: 0.0148 | X45: 0.0151 | Y45: 0.0153 | Z45: 0.015 | AA45: 0.0143 | AB45: 0.0133 | AC45: 0.012 | AD45: 0.0106 | AE45: 0.0091 | AF45: 0.0078 | AG45: 0.0068 | AH45: 0.0061 | AI45: 0.0059 | AJ45: 0.0059 | AK45: 0.0063 | AL45: 0.0069 | AM45: 0.0075 | AN45: 0.0081 | AO45: 0.0085 | AP45: 0.0087 | AQ45: 0.0089 | AR45: 0.0091 | AS45: 0.0094 | AT45: 0.01 | AU45: 0.0107 | AV45: 0.0117 | AW45: 0.0127 | AX45: 0.0138 | AY45: 0.0149 | AZ45: 0.016 | BA45: 0.0171 | BB45: 0.0179 | BC45: 0.0185 | BD45: 0.0185 | BE45: 0.0181 | BF45: 0.017 | BG45: 0.0154 | BH45: 0.0134 | BI45: 0.0109 | BJ45: 0.0081 | BK45: 0.0053 | BL45: 0.0028 | BM45: 0.0008 | BN45: -0.0005 | BO45: -0.001 | BP45: -0.001 | BQ45: -0.0006 | BR45: 0.0003 | BS45: 0.0015 | BT45: 0.0028 | BU45: 0.0043 | BV45: 0.0056 | BW45: 0.0068 | BX45: 0.0076 | BY45: 0.0082 | BZ45: 0.0086 | CA45: 0.009 | CB45: 0.0092 | CC45: 0.0094 | CD45: 0.0096 | CE45: 0.0097 | CF45: 0.0098 | CG45: 0.0099 | CH45: 0.01
A46: 63 | B46: 0.0171 | C46: 0.017 | D46: 0.0166 | E46: 0.016 | F46: 0.0152 | G46: 0.0142 | H46: 0.0133 | I46: 0.0125 | J46: 0.0118 | K46: 0.0112 | L46: 0.0109 | M46: 0.0107 | N46: 0.0108 | O46: 0.0111 | P46: 0.0116 | Q46: 0.0122 | R46: 0.0127 | S46: 0.0132 | T46: 0.0138 | U46: 0.0143 | V46: 0.0147 | W46: 0.0151 | X46: 0.0153 | Y46: 0.0152 | Z46: 0.0148 | AA46: 0.0139 | AB46: 0.0128 | AC46: 0.0114 | AD46: 0.01 | AE46: 0.0085 | AF46: 0.0073 | AG46: 0.0063 | AH46: 0.0056 | AI46: 0.0053 | AJ46: 0.0054 | AK46: 0.0058 | AL46: 0.0064 | AM46: 0.007 | AN46: 0.0076 | AO46: 0.008 | AP46: 0.0082 | AQ46: 0.0083 | AR46: 0.0085 | AS46: 0.0088 | AT46: 0.0094 | AU46: 0.0102 | AV46: 0.0113 | AW46: 0.0124 | AX46: 0.0136 | AY46: 0.0148 | AZ46: 0.0161 | BA46: 0.0173 | BB46: 0.0183 | BC46: 0.0189 | BD46: 0.019 | BE46: 0.0187 | BF46: 0.0178 | BG46: 0.0163 | BH46: 0.0144 | BI46: 0.0121 | BJ46: 0.0094 | BK46: 0.0068 | BL46: 0.0044 | BM46: 0.0024 | BN46: 0.0011 | BO46: 0.0005 | BP46: 0.0002 | BQ46: 0.0004 | BR46: 0.001 | BS46: 0.0018 | BT46: 0.0029 | BU46: 0.0042 | BV46: 0.0054 | BW46: 0.0065 | BX46: 0.0073 | BY46: 0.0079 | BZ46: 0.0085 | CA46: 0.0089 | CB46: 0.0092 | CC46: 0.0094 | CD46: 0.0096 | CE46: 0.0097 | CF46: 0.0099 | CG46: 0.01 | CH46: 0.01
A47: 64 | B47: 0.0165 | C47: 0.0164 | D47: 0.0161 | E47: 0.0156 | F47: 0.0148 | G47: 0.014 | H47: 0.0132 | I47: 0.0125 | J47: 0.0119 | K47: 0.0115 | L47: 0.0112 | M47: 0.0111 | N47: 0.0112 | O47: 0.0117 | P47: 0.0122 | Q47: 0.0128 | R47: 0.0135 | S47: 0.0141 | T47: 0.0146 | U47: 0.015 | V47: 0.0153 | W47: 0.0155 | X47: 0.0155 | Y47: 0.0153 | Z47: 0.0147 | AA47: 0.0137 | AB47: 0.0124 | AC47: 0.011 | AD47: 0.0095 | AE47: 0.0081 | AF47: 0.0068 | AG47: 0.0058 | AH47: 0.0052 | AI47: 0.0049 | AJ47: 0.005 | AK47: 0.0054 | AL47: 0.006 | AM47: 0.0066 | AN47: 0.0071 | AO47: 0.0075 | AP47: 0.0077 | AQ47: 0.0078 | AR47: 0.0079 | AS47: 0.0082 | AT47: 0.0089 | AU47: 0.0097 | AV47: 0.0108 | AW47: 0.012 | AX47: 0.0133 | AY47: 0.0146 | AZ47: 0.0161 | BA47: 0.0174 | BB47: 0.0184 | BC47: 0.0192 | BD47: 0.0194 | BE47: 0.0191 | BF47: 0.0183 | BG47: 0.017 | BH47: 0.0153 | BI47: 0.0131 | BJ47: 0.0106 | BK47: 0.0082 | BL47: 0.0059 | BM47: 0.0041 | BN47: 0.0028 | BO47: 0.0021 | BP47: 0.0017 | BQ47: 0.0016 | BR47: 0.0019 | BS47: 0.0024 | BT47: 0.0032 | BU47: 0.0042 | BV47: 0.0052 | BW47: 0.0062 | BX47: 0.007 | BY47: 0.0077 | BZ47: 0.0083 | CA47: 0.0088 | CB47: 0.0091 | CC47: 0.0094 | CD47: 0.0096 | CE47: 0.0098 | CF47: 0.0099 | CG47: 0.01 | CH47: 0.01
A48: 65 | B48: 0.016 | C48: 0.0159 | D48: 0.0157 | E48: 0.0152 | F48: 0.0145 | G48: 0.0138 | H48: 0.0131 | I48: 0.0126 | J48: 0.0121 | K48: 0.0117 | L48: 0.0115 | M48: 0.0115 | N48: 0.0117 | O48: 0.0121 | P48: 0.0127 | Q48: 0.0134 | R48: 0.0142 | S48: 0.0149 | T48: 0.0154 | U48: 0.0156 | V48: 0.0158 | W48: 0.0159 | X48: 0.0158 | Y48: 0.0155 | Z48: 0.0147 | AA48: 0.0136 | AB48: 0.0122 | AC48: 0.0107 | AD48: 0.0092 | AE48: 0.0077 | AF48: 0.0065 | AG48: 0.0055 | AH48: 0.0048 | AI48: 0.0046 | AJ48: 0.0046 | AK48: 0.005 | AL48: 0.0056 | AM48: 0.0062 | AN48: 0.0067 | AO48: 0.007 | AP48: 0.0072 | AQ48: 0.0072 | AR48: 0.0073 | AS48: 0.0077 | AT48: 0.0083 | AU48: 0.0091 | AV48: 0.0102 | AW48: 0.0115 | AX48: 0.0128 | AY48: 0.0143 | AZ48: 0.0159 | BA48: 0.0173 | BB48: 0.0184 | BC48: 0.0192 | BD48: 0.0195 | BE48: 0.0194 | BF48: 0.0187 | BG48: 0.0175 | BH48: 0.0159 | BI48: 0.0139 | BJ48: 0.0117 | BK48: 0.0094 | BL48: 0.0074 | BM48: 0.0058 | BN48: 0.0046 | BO48: 0.0038 | BP48: 0.0033 | BQ48: 0.0029 | BR48: 0.0029 | BS48: 0.0032 | BT48: 0.0037 | BU48: 0.0044 | BV48: 0.0052 | BW48: 0.006 | BX48: 0.0068 | BY48: 0.0075 | BZ48: 0.0081 | CA48: 0.0086 | CB48: 0.0091 | CC48: 0.0094 | CD48: 0.0096 | CE48: 0.0098 | CF48: 0.0099 | CG48: 0.01 | CH48: 0.01
A49: 66 | B49: 0.0155 | C49: 0.0155 | D49: 0.0152 | E49: 0.0148 | F49: 0.0142 | G49: 0.0136 | H49: 0.013 | I49: 0.0126 | J49: 0.0123 | K49: 0.012 | L49: 0.0119 | M49: 0.0119 | N49: 0.0121 | O49: 0.0126 | P49: 0.0132 | Q49: 0.0139 | R49: 0.0147 | S49: 0.0155 | T49: 0.016 | U49: 0.0162 | V49: 0.0163 | W49: 0.0163 | X49: 0.0162 | Y49: 0.0158 | Z49: 0.0149 | AA49: 0.0136 | AB49: 0.0122 | AC49: 0.0106 | AD49: 0.009 | AE49: 0.0074 | AF49: 0.0062 | AG49: 0.0053 | AH49: 0.0046 | AI49: 0.0043 | AJ49: 0.0044 | AK49: 0.0048 | AL49: 0.0053 | AM49: 0.0059 | AN49: 0.0063 | AO49: 0.0066 | AP49: 0.0067 | AQ49: 0.0067 | AR49: 0.0068 | AS49: 0.0071 | AT49: 0.0077 | AU49: 0.0086 | AV49: 0.0097 | AW49: 0.0109 | AX49: 0.0123 | AY49: 0.0139 | AZ49: 0.0156 | BA49: 0.0171 | BB49: 0.0183 | BC49: 0.0192 | BD49: 0.0195 | BE49: 0.0194 | BF49: 0.0189 | BG49: 0.0178 | BH49: 0.0164 | BI49: 0.0146 | BJ49: 0.0126 | BK49: 0.0106 | BL49: 0.0087 | BM49: 0.0073 | BN49: 0.0062 | BO49: 0.0054 | BP49: 0.0048 | BQ49: 0.0043 | BR49: 0.0041 | BS49: 0.004 | BT49: 0.0042 | BU49: 0.0047 | BV49: 0.0052 | BW49: 0.0059 | BX49: 0.0066 | BY49: 0.0073 | BZ49: 0.0079 | CA49: 0.0085 | CB49: 0.009 | CC49: 0.0093 | CD49: 0.0096 | CE49: 0.0098 | CF49: 0.0099 | CG49: 0.01 | CH49: 0.01
A50: 67 | B50: 0.0151 | C50: 0.015 | D50: 0.0148 | E50: 0.0145 | F50: 0.0139 | G50: 0.0134 | H50: 0.013 | I50: 0.0127 | J50: 0.0124 | K50: 0.0122 | L50: 0.0122 | M50: 0.0122 | N50: 0.0125 | O50: 0.013 | P50: 0.0136 | Q50: 0.0144 | R50: 0.0152 | S50: 0.016 | T50: 0.0165 | U50: 0.0167 | V50: 0.0168 | W50: 0.0168 | X50: 0.0166 | Y50: 0.0161 | Z50: 0.0152 | AA50: 0.0138 | AB50: 0.0123 | AC50: 0.0106 | AD50: 0.0089 | AE50: 0.0074 | AF50: 0.0061 | AG50: 0.0052 | AH50: 0.0045 | AI50: 0.0042 | AJ50: 0.0042 | AK50: 0.0046 | AL50: 0.0051 | AM50: 0.0056 | AN50: 0.006 | AO50: 0.0063 | AP50: 0.0063 | AQ50: 0.0063 | AR50: 0.0063 | AS50: 0.0066 | AT50: 0.0072 | AU50: 0.008 | AV50: 0.009 | AW50: 0.0103 | AX50: 0.0118 | AY50: 0.0134 | AZ50: 0.0151 | BA50: 0.0167 | BB50: 0.018 | BC50: 0.0189 | BD50: 0.0194 | BE50: 0.0194 | BF50: 0.0189 | BG50: 0.018 | BH50: 0.0168 | BI50: 0.0151 | BJ50: 0.0133 | BK50: 0.0115 | BL50: 0.0099 | BM50: 0.0086 | BN50: 0.0076 | BO50: 0.0069 | BP50: 0.0063 | BQ50: 0.0057 | BR50: 0.0052 | BS50: 0.005 | BT50: 0.0049 | BU50: 0.0051 | BV50: 0.0054 | BW50: 0.0059 | BX50: 0.0065 | BY50: 0.0071 | BZ50: 0.0077 | CA50: 0.0083 | CB50: 0.0088 | CC50: 0.0092 | CD50: 0.0095 | CE50: 0.0098 | CF50: 0.0099 | CG50: 0.01 | CH50: 0.01
A51: 68 | B51: 0.0147 | C51: 0.0146 | D51: 0.0145 | E51: 0.0142 | F51: 0.0137 | G51: 0.0133 | H51: 0.0129 | I51: 0.0127 | J51: 0.0125 | K51: 0.0124 | L51: 0.0124 | M51: 0.0125 | N51: 0.0128 | O51: 0.0134 | P51: 0.014 | Q51: 0.0147 | R51: 0.0155 | S51: 0.0163 | T51: 0.0169 | U51: 0.0171 | V51: 0.0173 | W51: 0.0173 | X51: 0.0171 | Y51: 0.0165 | Z51: 0.0155 | AA51: 0.0141 | AB51: 0.0125 | AC51: 0.0107 | AD51: 0.009 | AE51: 0.0074 | AF51: 0.0062 | AG51: 0.0052 | AH51: 0.0045 | AI51: 0.0041 | AJ51: 0.0042 | AK51: 0.0044 | AL51: 0.0049 | AM51: 0.0054 | AN51: 0.0058 | AO51: 0.006 | AP51: 0.006 | AQ51: 0.0059 | AR51: 0.0059 | AS51: 0.0061 | AT51: 0.0066 | AU51: 0.0074 | AV51: 0.0084 | AW51: 0.0097 | AX51: 0.0111 | AY51: 0.0128 | AZ51: 0.0146 | BA51: 0.0162 | BB51: 0.0176 | BC51: 0.0186 | BD51: 0.0191 | BE51: 0.0192 | BF51: 0.0189 | BG51: 0.0181 | BH51: 0.017 | BI51: 0.0155 | BJ51: 0.0139 | BK51: 0.0122 | BL51: 0.0108 | BM51: 0.0096 | BN51: 0.0087 | BO51: 0.0082 | BP51: 0.0076 | BQ51: 0.0069 | BR51: 0.0064 | BS51: 0.0059 | BT51: 0.0057 | BU51: 0.0056 | BV51: 0.0057 | BW51: 0.006 | BX51: 0.0065 | BY51: 0.007 | BZ51: 0.0076 | CA51: 0.0082 | CB51: 0.0087 | CC51: 0.0092 | CD51: 0.0095 | CE51: 0.0097 | CF51: 0.0099 | CG51: 0.01 | CH51: 0.01
A52: 69 | B52: 0.0144 | C52: 0.0143 | D52: 0.0142 | E52: 0.0139 | F52: 0.0135 | G52: 0.0131 | H52: 0.0128 | I52: 0.0127 | J52: 0.0126 | K52: 0.0126 | L52: 0.0126 | M52: 0.0128 | N52: 0.0131 | O52: 0.0137 | P52: 0.0143 | Q52: 0.015 | R52: 0.0158 | S52: 0.0166 | T52: 0.0171 | U52: 0.0175 | V52: 0.0177 | W52: 0.0177 | X52: 0.0175 | Y52: 0.017 | Z52: 0.016 | AA52: 0.0145 | AB52: 0.0129 | AC52: 0.011 | AD52: 0.0093 | AE52: 0.0076 | AF52: 0.0063 | AG52: 0.0053 | AH52: 0.0045 | AI52: 0.0042 | AJ52: 0.0041 | AK52: 0.0044 | AL52: 0.0048 | AM52: 0.0052 | AN52: 0.0056 | AO52: 0.0057 | AP52: 0.0056 | AQ52: 0.0055 | AR52: 0.0055 | AS52: 0.0057 | AT52: 0.0061 | AU52: 0.0068 | AV52: 0.0078 | AW52: 0.009 | AX52: 0.0105 | AY52: 0.0122 | AZ52: 0.014 | BA52: 0.0156 | BB52: 0.017 | BC52: 0.0181 | BD52: 0.0187 | BE52: 0.0189 | BF52: 0.0187 | BG52: 0.0181 | BH52: 0.0171 | BI52: 0.0158 | BJ52: 0.0143 | BK52: 0.0128 | BL52: 0.0115 | BM52: 0.0104 | BN52: 0.0096 | BO52: 0.0092 | BP52: 0.0087 | BQ52: 0.0081 | BR52: 0.0074 | BS52: 0.0069 | BT52: 0.0065 | BU52: 0.0062 | BV52: 0.0061 | BW52: 0.0063 | BX52: 0.0066 | BY52: 0.007 | BZ52: 0.0075 | CA52: 0.0081 | CB52: 0.0086 | CC52: 0.0091 | CD52: 0.0094 | CE52: 0.0097 | CF52: 0.0099 | CG52: 0.01 | CH52: 0.01
A53: 70 | B53: 0.014 | C53: 0.014 | D53: 0.0139 | E53: 0.0137 | F53: 0.0134 | G53: 0.013 | H53: 0.0127 | I53: 0.0126 | J53: 0.0126 | K53: 0.0126 | L53: 0.0128 | M53: 0.013 | N53: 0.0134 | O53: 0.0139 | P53: 0.0145 | Q53: 0.0152 | R53: 0.016 | S53: 0.0168 | T53: 0.0174 | U53: 0.0178 | V53: 0.018 | W53: 0.0181 | X53: 0.018 | Y53: 0.0174 | Z53: 0.0164 | AA53: 0.015 | AB53: 0.0133 | AC53: 0.0115 | AD53: 0.0096 | AE53: 0.0079 | AF53: 0.0066 | AG53: 0.0055 | AH53: 0.0047 | AI53: 0.0043 | AJ53: 0.0042 | AK53: 0.0044 | AL53: 0.0048 | AM53: 0.0051 | AN53: 0.0054 | AO53: 0.0055 | AP53: 0.0054 | AQ53: 0.0052 | AR53: 0.0051 | AS53: 0.0053 | AT53: 0.0056 | AU53: 0.0063 | AV53: 0.0072 | AW53: 0.0084 | AX53: 0.0099 | AY53: 0.0115 | AZ53: 0.0133 | BA53: 0.015 | BB53: 0.0164 | BC53: 0.0176 | BD53: 0.0183 | BE53: 0.0186 | BF53: 0.0185 | BG53: 0.0179 | BH53: 0.0171 | BI53: 0.0159 | BJ53: 0.0145 | BK53: 0.0132 | BL53: 0.012 | BM53: 0.011 | BN53: 0.0103 | BO53: 0.01 | BP53: 0.0095 | BQ53: 0.009 | BR53: 0.0084 | BS53: 0.0078 | BT53: 0.0073 | BU53: 0.0068 | BV53: 0.0066 | BW53: 0.0066 | BX53: 0.0068 | BY53: 0.0071 | BZ53: 0.0075 | CA53: 0.008 | CB53: 0.0085 | CC53: 0.009 | CD53: 0.0094 | CE53: 0.0097 | CF53: 0.0099 | CG53: 0.01 | CH53: 0.01
A54: 71 | B54: 0.0137 | C54: 0.0137 | D54: 0.0136 | E54: 0.0134 | F54: 0.0131 | G54: 0.0128 | H54: 0.0126 | I54: 0.0126 | J54: 0.0126 | K54: 0.0127 | L54: 0.0129 | M54: 0.0131 | N54: 0.0135 | O54: 0.0141 | P54: 0.0147 | Q54: 0.0154 | R54: 0.0162 | S54: 0.0169 | T54: 0.0176 | U54: 0.018 | V54: 0.0183 | W54: 0.0185 | X54: 0.0184 | Y54: 0.0179 | Z54: 0.0169 | AA54: 0.0155 | AB54: 0.0138 | AC54: 0.012 | AD54: 0.0101 | AE54: 0.0084 | AF54: 0.007 | AG54: 0.0058 | AH54: 0.0049 | AI54: 0.0044 | AJ54: 0.0043 | AK54: 0.0045 | AL54: 0.0048 | AM54: 0.0051 | AN54: 0.0053 | AO54: 0.0053 | AP54: 0.0051 | AQ54: 0.0049 | AR54: 0.0048 | AS54: 0.0049 | AT54: 0.0052 | AU54: 0.0058 | AV54: 0.0066 | AW54: 0.0078 | AX54: 0.0092 | AY54: 0.0109 | AZ54: 0.0126 | BA54: 0.0143 | BB54: 0.0158 | BC54: 0.017 | BD54: 0.0177 | BE54: 0.0181 | BF54: 0.0181 | BG54: 0.0177 | BH54: 0.017 | BI54: 0.0159 | BJ54: 0.0147 | BK54: 0.0134 | BL54: 0.0123 | BM54: 0.0114 | BN54: 0.0108 | BO54: 0.0106 | BP54: 0.0102 | BQ54: 0.0097 | BR54: 0.0092 | BS54: 0.0086 | BT54: 0.008 | BU54: 0.0075 | BV54: 0.0072 | BW54: 0.007 | BX54: 0.007 | BY54: 0.0072 | BZ54: 0.0076 | CA54: 0.008 | CB54: 0.0085 | CC54: 0.0089 | CD54: 0.0093 | CE54: 0.0096 | CF54: 0.0098 | CG54: 0.01 | CH54: 0.01
A55: 72 | B55: 0.0134 | C55: 0.0134 | D55: 0.0133 | E55: 0.0132 | F55: 0.0129 | G55: 0.0127 | H55: 0.0125 | I55: 0.0124 | J55: 0.0125 | K55: 0.0126 | L55: 0.0129 | M55: 0.0132 | N55: 0.0136 | O55: 0.0142 | P55: 0.0148 | Q55: 0.0155 | R55: 0.0163 | S55: 0.017 | T55: 0.0177 | U55: 0.0182 | V55: 0.0186 | W55: 0.0188 | X55: 0.0187 | Y55: 0.0183 | Z55: 0.0174 | AA55: 0.016 | AB55: 0.0144 | AC55: 0.0125 | AD55: 0.0106 | AE55: 0.0089 | AF55: 0.0074 | AG55: 0.0062 | AH55: 0.0052 | AI55: 0.0047 | AJ55: 0.0045 | AK55: 0.0046 | AL55: 0.0048 | AM55: 0.0051 | AN55: 0.0052 | AO55: 0.0052 | AP55: 0.0049 | AQ55: 0.0046 | AR55: 0.0045 | AS55: 0.0045 | AT55: 0.0047 | AU55: 0.0053 | AV55: 0.0061 | AW55: 0.0072 | AX55: 0.0085 | AY55: 0.0102 | AZ55: 0.0119 | BA55: 0.0136 | BB55: 0.0151 | BC55: 0.0163 | BD55: 0.0172 | BE55: 0.0176 | BF55: 0.0177 | BG55: 0.0174 | BH55: 0.0167 | BI55: 0.0158 | BJ55: 0.0147 | BK55: 0.0135 | BL55: 0.0125 | BM55: 0.0117 | BN55: 0.0111 | BO55: 0.0109 | BP55: 0.0106 | BQ55: 0.0103 | BR55: 0.0098 | BS55: 0.0092 | BT55: 0.0087 | BU55: 0.0082 | BV55: 0.0077 | BW55: 0.0075 | BX55: 0.0074 | BY55: 0.0075 | BZ55: 0.0077 | CA55: 0.0081 | CB55: 0.0085 | CC55: 0.0089 | CD55: 0.0093 | CE55: 0.0096 | CF55: 0.0098 | CG55: 0.01 | CH55: 0.01
A56: 73 | B56: 0.0131 | C56: 0.0131 | D56: 0.013 | E56: 0.0129 | F56: 0.0126 | G56: 0.0124 | H56: 0.0123 | I56: 0.0123 | J56: 0.0124 | K56: 0.0126 | L56: 0.0128 | M56: 0.0132 | N56: 0.0137 | O56: 0.0143 | P56: 0.0149 | Q56: 0.0156 | R56: 0.0164 | S56: 0.0171 | T56: 0.0178 | U56: 0.0184 | V56: 0.0188 | W56: 0.0191 | X56: 0.0191 | Y56: 0.0187 | Z56: 0.0178 | AA56: 0.0166 | AB56: 0.0149 | AC56: 0.0131 | AD56: 0.0112 | AE56: 0.0094 | AF56: 0.0079 | AG56: 0.0066 | AH56: 0.0056 | AI56: 0.005 | AJ56: 0.0047 | AK56: 0.0047 | AL56: 0.0049 | AM56: 0.005 | AN56: 0.0051 | AO56: 0.005 | AP56: 0.0047 | AQ56: 0.0044 | AR56: 0.0041 | AS56: 0.0041 | AT56: 0.0043 | AU56: 0.0048 | AV56: 0.0056 | AW56: 0.0066 | AX56: 0.0079 | AY56: 0.0095 | AZ56: 0.0112 | BA56: 0.0128 | BB56: 0.0144 | BC56: 0.0157 | BD56: 0.0166 | BE56: 0.0171 | BF56: 0.0172 | BG56: 0.0169 | BH56: 0.0164 | BI56: 0.0155 | BJ56: 0.0145 | BK56: 0.0135 | BL56: 0.0125 | BM56: 0.0118 | BN56: 0.0113 | BO56: 0.0112 | BP56: 0.0109 | BQ56: 0.0106 | BR56: 0.0102 | BS56: 0.0097 | BT56: 0.0092 | BU56: 0.0087 | BV56: 0.0083 | BW56: 0.008 | BX56: 0.0078 | BY56: 0.0078 | BZ56: 0.0079 | CA56: 0.0082 | CB56: 0.0085 | CC56: 0.0089 | CD56: 0.0093 | CE56: 0.0096 | CF56: 0.0098 | CG56: 0.01 | CH56: 0.01
A57: 74 | B57: 0.0127 | C57: 0.0127 | D57: 0.0126 | E57: 0.0125 | F57: 0.0123 | G57: 0.0122 | H57: 0.0121 | I57: 0.0121 | J57: 0.0123 | K57: 0.0125 | L57: 0.0128 | M57: 0.0131 | N57: 0.0136 | O57: 0.0143 | P57: 0.0149 | Q57: 0.0156 | R57: 0.0164 | S57: 0.0172 | T57: 0.0179 | U57: 0.0186 | V57: 0.019 | W57: 0.0193 | X57: 0.0194 | Y57: 0.0191 | Z57: 0.0183 | AA57: 0.017 | AB57: 0.0155 | AC57: 0.0137 | AD57: 0.0118 | AE57: 0.01 | AF57: 0.0085 | AG57: 0.0071 | AH57: 0.006 | AI57: 0.0053 | AJ57: 0.0049 | AK57: 0.0049 | AL57: 0.0049 | AM57: 0.005 | AN57: 0.005 | AO57: 0.0049 | AP57: 0.0045 | AQ57: 0.0041 | AR57: 0.0038 | AS57: 0.0038 | AT57: 0.0039 | AU57: 0.0044 | AV57: 0.005 | AW57: 0.006 | AX57: 0.0073 | AY57: 0.0088 | AZ57: 0.0105 | BA57: 0.0122 | BB57: 0.0137 | BC57: 0.015 | BD57: 0.016 | BE57: 0.0165 | BF57: 0.0167 | BG57: 0.0165 | BH57: 0.016 | BI57: 0.0152 | BJ57: 0.0143 | BK57: 0.0133 | BL57: 0.0125 | BM57: 0.0118 | BN57: 0.0113 | BO57: 0.0112 | BP57: 0.0111 | BQ57: 0.0109 | BR57: 0.0105 | BS57: 0.0101 | BT57: 0.0097 | BU57: 0.0092 | BV57: 0.0088 | BW57: 0.0085 | BX57: 0.0082 | BY57: 0.0081 | BZ57: 0.0082 | CA57: 0.0083 | CB57: 0.0086 | CC57: 0.0089 | CD57: 0.0093 | CE57: 0.0096 | CF57: 0.0098 | CG57: 0.01 | CH57: 0.01
A58: 75 | B58: 0.0124 | C58: 0.0123 | D58: 0.0123 | E58: 0.0122 | F58: 0.012 | G58: 0.0119 | H58: 0.0119 | I58: 0.0119 | J58: 0.0121 | K58: 0.0123 | L58: 0.0126 | M58: 0.013 | N58: 0.0136 | O58: 0.0142 | P58: 0.0149 | Q58: 0.0156 | R58: 0.0165 | S58: 0.0173 | T58: 0.018 | U58: 0.0187 | V58: 0.0192 | W58: 0.0195 | X58: 0.0196 | Y58: 0.0194 | Z58: 0.0187 | AA58: 0.0175 | AB58: 0.016 | AC58: 0.0142 | AD58: 0.0124 | AE58: 0.0106 | AF58: 0.009 | AG58: 0.0076 | AH58: 0.0065 | AI58: 0.0057 | AJ58: 0.0052 | AK58: 0.005 | AL58: 0.005 | AM58: 0.005 | AN58: 0.005 | AO58: 0.0047 | AP58: 0.0044 | AQ58: 0.0039 | AR58: 0.0035 | AS58: 0.0034 | AT58: 0.0035 | AU58: 0.0039 | AV58: 0.0046 | AW58: 0.0055 | AX58: 0.0067 | AY58: 0.0081 | AZ58: 0.0098 | BA58: 0.0115 | BB58: 0.0131 | BC58: 0.0144 | BD58: 0.0153 | BE58: 0.0159 | BF58: 0.0161 | BG58: 0.0159 | BH58: 0.0155 | BI58: 0.0148 | BJ58: 0.0139 | BK58: 0.0131 | BL58: 0.0123 | BM58: 0.0116 | BN58: 0.0112 | BO58: 0.0112 | BP58: 0.0111 | BQ58: 0.011 | BR58: 0.0107 | BS58: 0.0104 | BT58: 0.01 | BU58: 0.0096 | BV58: 0.0092 | BW58: 0.0089 | BX58: 0.0086 | BY58: 0.0085 | BZ58: 0.0084 | CA58: 0.0085 | CB58: 0.0087 | CC58: 0.009 | CD58: 0.0093 | CE58: 0.0096 | CF58: 0.0098 | CG58: 0.01 | CH58: 0.01
A59: 76 | B59: 0.012 | C59: 0.0119 | D59: 0.0119 | E59: 0.0118 | F59: 0.0116 | G59: 0.0116 | H59: 0.0116 | I59: 0.0117 | J59: 0.0119 | K59: 0.0122 | L59: 0.0125 | M59: 0.0129 | N59: 0.0135 | O59: 0.0141 | P59: 0.0149 | Q59: 0.0156 | R59: 0.0165 | S59: 0.0173 | T59: 0.0181 | U59: 0.0187 | V59: 0.0193 | W59: 0.0196 | X59: 0.0198 | Y59: 0.0196 | Z59: 0.019 | AA59: 0.0179 | AB59: 0.0165 | AC59: 0.0148 | AD59: 0.013 | AE59: 0.0112 | AF59: 0.0096 | AG59: 0.0081 | AH59: 0.0069 | AI59: 0.0061 | AJ59: 0.0055 | AK59: 0.0052 | AL59: 0.0051 | AM59: 0.005 | AN59: 0.0049 | AO59: 0.0046 | AP59: 0.0042 | AQ59: 0.0037 | AR59: 0.0032 | AS59: 0.0031 | AT59: 0.0031 | AU59: 0.0035 | AV59: 0.0041 | AW59: 0.0049 | AX59: 0.0061 | AY59: 0.0075 | AZ59: 0.0091 | BA59: 0.0108 | BB59: 0.0124 | BC59: 0.0138 | BD59: 0.0147 | BE59: 0.0153 | BF59: 0.0155 | BG59: 0.0154 | BH59: 0.015 | BI59: 0.0143 | BJ59: 0.0135 | BK59: 0.0127 | BL59: 0.012 | BM59: 0.0114 | BN59: 0.011 | BO59: 0.0111 | BP59: 0.011 | BQ59: 0.0109 | BR59: 0.0108 | BS59: 0.0105 | BT59: 0.0102 | BU59: 0.0099 | BV59: 0.0096 | BW59: 0.0092 | BX59: 0.009 | BY59: 0.0088 | BZ59: 0.0087 | CA59: 0.0087 | CB59: 0.0089 | CC59: 0.0091 | CD59: 0.0093 | CE59: 0.0096 | CF59: 0.0098 | CG59: 0.0099 | CH59: 0.01
A60: 77 | B60: 0.0115 | C60: 0.0115 | D60: 0.0115 | E60: 0.0114 | F60: 0.0113 | G60: 0.0112 | H60: 0.0113 | I60: 0.0114 | J60: 0.0116 | K60: 0.0119 | L60: 0.0123 | M60: 0.0128 | N60: 0.0134 | O60: 0.0141 | P60: 0.0148 | Q60: 0.0156 | R60: 0.0165 | S60: 0.0173 | T60: 0.0181 | U60: 0.0188 | V60: 0.0193 | W60: 0.0197 | X60: 0.0199 | Y60: 0.0198 | Z60: 0.0192 | AA60: 0.0182 | AB60: 0.0169 | AC60: 0.0152 | AD60: 0.0135 | AE60: 0.0117 | AF60: 0.0101 | AG60: 0.0087 | AH60: 0.0074 | AI60: 0.0064 | AJ60: 0.0058 | AK60: 0.0054 | AL60: 0.0052 | AM60: 0.005 | AN60: 0.0048 | AO60: 0.0045 | AP60: 0.004 | AQ60: 0.0034 | AR60: 0.0029 | AS60: 0.0027 | AT60: 0.0027 | AU60: 0.003 | AV60: 0.0036 | AW60: 0.0044 | AX60: 0.0055 | AY60: 0.0069 | AZ60: 0.0085 | BA60: 0.0102 | BB60: 0.0118 | BC60: 0.0131 | BD60: 0.0141 | BE60: 0.0147 | BF60: 0.0149 | BG60: 0.0148 | BH60: 0.0144 | BI60: 0.0138 | BJ60: 0.0131 | BK60: 0.0123 | BL60: 0.0117 | BM60: 0.0111 | BN60: 0.0107 | BO60: 0.0108 | BP60: 0.0109 | BQ60: 0.0108 | BR60: 0.0107 | BS60: 0.0106 | BT60: 0.0103 | BU60: 0.0101 | BV60: 0.0098 | BW60: 0.0095 | BX60: 0.0093 | BY60: 0.0091 | BZ60: 0.009 | CA60: 0.009 | CB60: 0.009 | CC60: 0.0092 | CD60: 0.0094 | CE60: 0.0096 | CF60: 0.0098 | CG60: 0.0099 | CH60: 0.01
A61: 78 | B61: 0.0111 | C61: 0.0111 | D61: 0.0111 | E61: 0.011 | F61: 0.0109 | G61: 0.0109 | H61: 0.0109 | I61: 0.0111 | J61: 0.0114 | K61: 0.0117 | L61: 0.0122 | M61: 0.0127 | N61: 0.0133 | O61: 0.014 | P61: 0.0147 | Q61: 0.0156 | R61: 0.0164 | S61: 0.0173 | T61: 0.0181 | U61: 0.0188 | V61: 0.0193 | W61: 0.0198 | X61: 0.02 | Y61: 0.0199 | Z61: 0.0194 | AA61: 0.0185 | AB61: 0.0172 | AC61: 0.0156 | AD61: 0.0139 | AE61: 0.0122 | AF61: 0.0106 | AG61: 0.0092 | AH61: 0.0078 | AI61: 0.0068 | AJ61: 0.0061 | AK61: 0.0056 | AL61: 0.0053 | AM61: 0.005 | AN61: 0.0047 | AO61: 0.0043 | AP61: 0.0038 | AQ61: 0.0032 | AR61: 0.0026 | AS61: 0.0024 | AT61: 0.0023 | AU61: 0.0026 | AV61: 0.0031 | AW61: 0.0038 | AX61: 0.0049 | AY61: 0.0063 | AZ61: 0.0079 | BA61: 0.0096 | BB61: 0.0112 | BC61: 0.0125 | BD61: 0.0134 | BE61: 0.0141 | BF61: 0.0143 | BG61: 0.0142 | BH61: 0.0139 | BI61: 0.0132 | BJ61: 0.0125 | BK61: 0.0119 | BL61: 0.0112 | BM61: 0.0107 | BN61: 0.0104 | BO61: 0.0105 | BP61: 0.0106 | BQ61: 0.0107 | BR61: 0.0106 | BS61: 0.0105 | BT61: 0.0104 | BU61: 0.0102 | BV61: 0.01 | BW61: 0.0098 | BX61: 0.0096 | BY61: 0.0094 | BZ61: 0.0093 | CA61: 0.0092 | CB61: 0.0092 | CC61: 0.0093 | CD61: 0.0095 | CE61: 0.0096 | CF61: 0.0098 | CG61: 0.01 | CH61: 0.01
A62: 79 | B62: 0.0107 | C62: 0.0107 | D62: 0.0106 | E62: 0.0106 | F62: 0.0105 | G62: 0.0105 | H62: 0.0106 | I62: 0.0108 | J62: 0.0111 | K62: 0.0115 | L62: 0.012 | M62: 0.0125 | N62: 0.0132 | O62: 0.0139 | P62: 0.0147 | Q62: 0.0155 | R62: 0.0164 | S62: 0.0172 | T62: 0.018 | U62: 0.0188 | V62: 0.0193 | W62: 0.0198 | X62: 0.02 | Y62: 0.0199 | Z62: 0.0195 | AA62: 0.0186 | AB62: 0.0174 | AC62: 0.016 | AD62: 0.0143 | AE62: 0.0127 | AF62: 0.0111 | AG62: 0.0096 | AH62: 0.0083 | AI62: 0.0072 | AJ62: 0.0064 | AK62: 0.0058 | AL62: 0.0054 | AM62: 0.005 | AN62: 0.0047 | AO62: 0.0042 | AP62: 0.0036 | AQ62: 0.0029 | AR62: 0.0023 | AS62: 0.002 | AT62: 0.0019 | AU62: 0.0021 | AV62: 0.0026 | AW62: 0.0033 | AX62: 0.0044 | AY62: 0.0057 | AZ62: 0.0073 | BA62: 0.009 | BB62: 0.0105 | BC62: 0.0119 | BD62: 0.0128 | BE62: 0.0134 | BF62: 0.0137 | BG62: 0.0136 | BH62: 0.0133 | BI62: 0.0127 | BJ62: 0.012 | BK62: 0.0114 | BL62: 0.0108 | BM62: 0.0103 | BN62: 0.01 | BO62: 0.0102 | BP62: 0.0103 | BQ62: 0.0104 | BR62: 0.0104 | BS62: 0.0104 | BT62: 0.0104 | BU62: 0.0102 | BV62: 0.0101 | BW62: 0.0099 | BX62: 0.0098 | BY62: 0.0096 | BZ62: 0.0095 | CA62: 0.0094 | CB62: 0.0094 | CC62: 0.0094 | CD62: 0.0095 | CE62: 0.0097 | CF62: 0.0098 | CG62: 0.01 | CH62: 0.01
A63: 80 | B63: 0.0103 | C63: 0.0103 | D63: 0.0103 | E63: 0.0102 | F63: 0.0102 | G63: 0.0102 | H63: 0.0103 | I63: 0.0105 | J63: 0.0108 | K63: 0.0113 | L63: 0.0118 | M63: 0.0124 | N63: 0.013 | O63: 0.0138 | P63: 0.0146 | Q63: 0.0154 | R63: 0.0163 | S63: 0.0171 | T63: 0.018 | U63: 0.0187 | V63: 0.0193 | W63: 0.0197 | X63: 0.02 | Y63: 0.0199 | Z63: 0.0195 | AA63: 0.0188 | AB63: 0.0176 | AC63: 0.0162 | AD63: 0.0147 | AE63: 0.013 | AF63: 0.0115 | AG63: 0.01 | AH63: 0.0087 | AI63: 0.0076 | AJ63: 0.0067 | AK63: 0.006 | AL63: 0.0055 | AM63: 0.005 | AN63: 0.0046 | AO63: 0.004 | AP63: 0.0034 | AQ63: 0.0027 | AR63: 0.002 | AS63: 0.0017 | AT63: 0.0015 | AU63: 0.0017 | AV63: 0.0021 | AW63: 0.0028 | AX63: 0.0038 | AY63: 0.0052 | AZ63: 0.0067 | BA63: 0.0083 | BB63: 0.0099 | BC63: 0.0112 | BD63: 0.0122 | BE63: 0.0128 | BF63: 0.0131 | BG63: 0.013 | BH63: 0.0127 | BI63: 0.0121 | BJ63: 0.0115 | BK63: 0.0108 | BL63: 0.0103 | BM63: 0.0099 | BN63: 0.0095 | BO63: 0.0098 | BP63: 0.0099 | BQ63: 0.0101 | BR63: 0.0102 | BS63: 0.0103 | BT63: 0.0103 | BU63: 0.0102 | BV63: 0.0102 | BW63: 0.01 | BX63: 0.0099 | BY63: 0.0098 | BZ63: 0.0096 | CA63: 0.0095 | CB63: 0.0095 | CC63: 0.0096 | CD63: 0.0096 | CE63: 0.0097 | CF63: 0.0099 | CG63: 0.01 | CH63: 0.01
A64: 81 | B64: 0.0099 | C64: 0.0099 | D64: 0.0099 | E64: 0.0099 | F64: 0.0098 | G64: 0.0099 | H64: 0.01 | I64: 0.0102 | J64: 0.0106 | K64: 0.011 | L64: 0.0116 | M64: 0.0122 | N64: 0.0129 | O64: 0.0137 | P64: 0.0145 | Q64: 0.0154 | R64: 0.0162 | S64: 0.0171 | T64: 0.0179 | U64: 0.0186 | V64: 0.0192 | W64: 0.0196 | X64: 0.0199 | Y64: 0.0199 | Z64: 0.0195 | AA64: 0.0188 | AB64: 0.0177 | AC64: 0.0164 | AD64: 0.0149 | AE64: 0.0134 | AF64: 0.0119 | AG64: 0.0104 | AH64: 0.009 | AI64: 0.0079 | AJ64: 0.0069 | AK64: 0.0062 | AL64: 0.0055 | AM64: 0.005 | AN64: 0.0045 | AO64: 0.0039 | AP64: 0.0032 | AQ64: 0.0024 | AR64: 0.0017 | AS64: 0.0013 | AT64: 0.0011 | AU64: 0.0012 | AV64: 0.0016 | AW64: 0.0023 | AX64: 0.0033 | AY64: 0.0046 | AZ64: 0.0061 | BA64: 0.0077 | BB64: 0.0092 | BC64: 0.0105 | BD64: 0.0115 | BE64: 0.0121 | BF64: 0.0124 | BG64: 0.0124 | BH64: 0.0121 | BI64: 0.0115 | BJ64: 0.0109 | BK64: 0.0103 | BL64: 0.0098 | BM64: 0.0094 | BN64: 0.0091 | BO64: 0.0093 | BP64: 0.0095 | BQ64: 0.0097 | BR64: 0.0099 | BS64: 0.01 | BT64: 0.0101 | BU64: 0.0102 | BV64: 0.0102 | BW64: 0.0101 | BX64: 0.01 | BY64: 0.0099 | BZ64: 0.0097 | CA64: 0.0097 | CB64: 0.0096 | CC64: 0.0096 | CD64: 0.0097 | CE64: 0.0098 | CF64: 0.0099 | CG64: 0.01 | CH64: 0.01
A65: 82 | B65: 0.0096 | C65: 0.0096 | D65: 0.0095 | E65: 0.0095 | F65: 0.0095 | G65: 0.0096 | H65: 0.0097 | I65: 0.01 | J65: 0.0103 | K65: 0.0108 | L65: 0.0114 | M65: 0.012 | N65: 0.0128 | O65: 0.0136 | P65: 0.0144 | Q65: 0.0153 | R65: 0.0161 | S65: 0.017 | T65: 0.0178 | U65: 0.0185 | V65: 0.0191 | W65: 0.0195 | X65: 0.0198 | Y65: 0.0198 | Z65: 0.0194 | AA65: 0.0188 | AB65: 0.0178 | AC65: 0.0165 | AD65: 0.0151 | AE65: 0.0136 | AF65: 0.0121 | AG65: 0.0107 | AH65: 0.0093 | AI65: 0.0081 | AJ65: 0.0071 | AK65: 0.0063 | AL65: 0.0056 | AM65: 0.005 | AN65: 0.0044 | AO65: 0.0037 | AP65: 0.0029 | AQ65: 0.0021 | AR65: 0.0014 | AS65: 0.001 | AT65: 0.0008 | AU65: 0.0008 | AV65: 0.0011 | AW65: 0.0018 | AX65: 0.0028 | AY65: 0.0041 | AZ65: 0.0055 | BA65: 0.0071 | BB65: 0.0086 | BC65: 0.0099 | BD65: 0.0108 | BE65: 0.0115 | BF65: 0.0118 | BG65: 0.0117 | BH65: 0.0115 | BI65: 0.011 | BJ65: 0.0104 | BK65: 0.0098 | BL65: 0.0093 | BM65: 0.009 | BN65: 0.0087 | BO65: 0.0089 | BP65: 0.0091 | BQ65: 0.0094 | BR65: 0.0096 | BS65: 0.0098 | BT65: 0.0099 | BU65: 0.0101 | BV65: 0.0101 | BW65: 0.0101 | BX65: 0.01 | BY65: 0.0099 | BZ65: 0.0098 | CA65: 0.0097 | CB65: 0.0097 | CC65: 0.0097 | CD65: 0.0097 | CE65: 0.0098 | CF65: 0.0099 | CG65: 0.01 | CH65: 0.01
A66: 83 | B66: 0.0092 | C66: 0.0092 | D66: 0.0092 | E66: 0.0092 | F66: 0.0092 | G66: 0.0093 | H66: 0.0095 | I66: 0.0097 | J66: 0.0101 | K66: 0.0106 | L66: 0.0112 | M66: 0.0119 | N66: 0.0126 | O66: 0.0135 | P66: 0.0143 | Q66: 0.0152 | R66: 0.0161 | S66: 0.0169 | T66: 0.0177 | U66: 0.0184 | V66: 0.0189 | W66: 0.0194 | X66: 0.0196 | Y66: 0.0196 | Z66: 0.0193 | AA66: 0.0187 | AB66: 0.0177 | AC66: 0.0166 | AD66: 0.0152 | AE66: 0.0138 | AF66: 0.0124 | AG66: 0.0109 | AH66: 0.0096 | AI66: 0.0084 | AJ66: 0.0073 | AK66: 0.0064 | AL66: 0.0056 | AM66: 0.0049 | AN66: 0.0043 | AO66: 0.0035 | AP66: 0.0027 | AQ66: 0.0019 | AR66: 0.0011 | AS66: 0.0006 | AT66: 0.0004 | AU66: 0.0004 | AV66: 0.0007 | AW66: 0.0013 | AX66: 0.0022 | AY66: 0.0035 | AZ66: 0.0049 | BA66: 0.0064 | BB66: 0.0079 | BC66: 0.0092 | BD66: 0.0101 | BE66: 0.0108 | BF66: 0.0111 | BG66: 0.0111 | BH66: 0.0109 | BI66: 0.0104 | BJ66: 0.0098 | BK66: 0.0093 | BL66: 0.0089 | BM66: 0.0085 | BN66: 0.0083 | BO66: 0.0085 | BP66: 0.0087 | BQ66: 0.009 | BR66: 0.0093 | BS66: 0.0095 | BT66: 0.0097 | BU66: 0.0099 | BV66: 0.01 | BW66: 0.0101 | BX66: 0.01 | BY66: 0.0099 | BZ66: 0.0099 | CA66: 0.0098 | CB66: 0.0097 | CC66: 0.0097 | CD66: 0.0097 | CE66: 0.0098 | CF66: 0.0099 | CG66: 0.01 | CH66: 0.01
A67: 84 | B67: 0.009 | C67: 0.009 | D67: 0.009 | E67: 0.009 | F67: 0.009 | G67: 0.0091 | H67: 0.0093 | I67: 0.0096 | J67: 0.01 | K67: 0.0105 | L67: 0.011 | M67: 0.0117 | N67: 0.0125 | O67: 0.0134 | P67: 0.0142 | Q67: 0.0151 | R67: 0.016 | S67: 0.0168 | T67: 0.0176 | U67: 0.0183 | V67: 0.0188 | W67: 0.0192 | X67: 0.0194 | Y67: 0.0194 | Z67: 0.0191 | AA67: 0.0185 | AB67: 0.0177 | AC67: 0.0166 | AD67: 0.0153 | AE67: 0.0139 | AF67: 0.0125 | AG67: 0.0111 | AH67: 0.0098 | AI67: 0.0085 | AJ67: 0.0074 | AK67: 0.0065 | AL67: 0.0056 | AM67: 0.0049 | AN67: 0.0041 | AO67: 0.0033 | AP67: 0.0025 | AQ67: 0.0016 | AR67: 0.0008 | AS67: 0.0003 | AT67: 0 | AU67: 0 | AV67: 0.0003 | AW67: 0.0008 | AX67: 0.0017 | AY67: 0.0029 | AZ67: 0.0043 | BA67: 0.0058 | BB67: 0.0072 | BC67: 0.0085 | BD67: 0.0094 | BE67: 0.0101 | BF67: 0.0104 | BG67: 0.0104 | BH67: 0.0102 | BI67: 0.0098 | BJ67: 0.0093 | BK67: 0.0088 | BL67: 0.0084 | BM67: 0.0081 | BN67: 0.0078 | BO67: 0.0081 | BP67: 0.0083 | BQ67: 0.0086 | BR67: 0.0089 | BS67: 0.0092 | BT67: 0.0095 | BU67: 0.0097 | BV67: 0.0099 | BW67: 0.01 | BX67: 0.01 | BY67: 0.0099 | BZ67: 0.0099 | CA67: 0.0098 | CB67: 0.0097 | CC67: 0.0097 | CD67: 0.0097 | CE67: 0.0098 | CF67: 0.0099 | CG67: 0.01 | CH67: 0.01
A68: 85 | B68: 0.0088 | C68: 0.0088 | D68: 0.0088 | E68: 0.0088 | F68: 0.0088 | G68: 0.0089 | H68: 0.0091 | I68: 0.0094 | J68: 0.0098 | K68: 0.0103 | L68: 0.0109 | M68: 0.0116 | N68: 0.0124 | O68: 0.0132 | P68: 0.0141 | Q68: 0.015 | R68: 0.0159 | S68: 0.0167 | T68: 0.0175 | U68: 0.0181 | V68: 0.0186 | W68: 0.019 | X68: 0.0192 | Y68: 0.0192 | Z68: 0.0189 | AA68: 0.0184 | AB68: 0.0175 | AC68: 0.0165 | AD68: 0.0153 | AE68: 0.014 | AF68: 0.0126 | AG68: 0.0113 | AH68: 0.0099 | AI68: 0.0087 | AJ68: 0.0075 | AK68: 0.0065 | AL68: 0.0056 | AM68: 0.0048 | AN68: 0.004 | AO68: 0.0031 | AP68: 0.0022 | AQ68: 0.0014 | AR68: 0.0006 | AS68: 0 | AT68: -0.0003 | AU68: -0.0004 | AV68: -0.0001 | AW68: 0.0004 | AX68: 0.0012 | AY68: 0.0024 | AZ68: 0.0037 | BA68: 0.0051 | BB68: 0.0065 | BC68: 0.0077 | BD68: 0.0087 | BE68: 0.0093 | BF68: 0.0097 | BG68: 0.0098 | BH68: 0.0096 | BI68: 0.0092 | BJ68: 0.0088 | BK68: 0.0084 | BL68: 0.008 | BM68: 0.0077 | BN68: 0.0074 | BO68: 0.0077 | BP68: 0.0079 | BQ68: 0.0082 | BR68: 0.0086 | BS68: 0.0089 | BT68: 0.0092 | BU68: 0.0095 | BV68: 0.0097 | BW68: 0.0098 | BX68: 0.0099 | BY68: 0.0099 | BZ68: 0.0098 | CA68: 0.0098 | CB68: 0.0097 | CC68: 0.0097 | CD68: 0.0097 | CE68: 0.0098 | CF68: 0.0098 | CG68: 0.0099 | CH68: 0.01
A69: 86 | B69: 0.0086 | C69: 0.0086 | D69: 0.0086 | E69: 0.0086 | F69: 0.0086 | G69: 0.0088 | H69: 0.009 | I69: 0.0093 | J69: 0.0097 | K69: 0.0102 | L69: 0.0108 | M69: 0.0115 | N69: 0.0123 | O69: 0.0131 | P69: 0.014 | Q69: 0.0149 | R69: 0.0158 | S69: 0.0166 | T69: 0.0173 | U69: 0.0179 | V69: 0.0184 | W69: 0.0187 | X69: 0.0189 | Y69: 0.0189 | Z69: 0.0187 | AA69: 0.0181 | AB69: 0.0174 | AC69: 0.0164 | AD69: 0.0152 | AE69: 0.014 | AF69: 0.0127 | AG69: 0.0114 | AH69: 0.01 | AI69: 0.0088 | AJ69: 0.0076 | AK69: 0.0066 | AL69: 0.0056 | AM69: 0.0047 | AN69: 0.0038 | AO69: 0.003 | AP69: 0.002 | AQ69: 0.0011 | AR69: 0.0003 | AS69: -0.0003 | AT69: -0.0006 | AU69: -0.0007 | AV69: -0.0005 | AW69: 0 | AX69: 0.0008 | AY69: 0.0019 | AZ69: 0.0031 | BA69: 0.0045 | BB69: 0.0058 | BC69: 0.007 | BD69: 0.0079 | BE69: 0.0086 | BF69: 0.009 | BG69: 0.0091 | BH69: 0.009 | BI69: 0.0086 | BJ69: 0.0083 | BK69: 0.0079 | BL69: 0.0075 | BM69: 0.0073 | BN69: 0.0071 | BO69: 0.0073 | BP69: 0.0076 | BQ69: 0.0079 | BR69: 0.0082 | BS69: 0.0085 | BT69: 0.0089 | BU69: 0.0092 | BV69: 0.0094 | BW69: 0.0096 | BX69: 0.0097 | BY69: 0.0097 | BZ69: 0.0097 | CA69: 0.0097 | CB69: 0.0096 | CC69: 0.0096 | CD69: 0.0096 | CE69: 0.0096 | CF69: 0.0097 | CG69: 0.0098 | CH69: 0.0099
A70: 87 | B70: 0.0084 | C70: 0.0084 | D70: 0.0084 | E70: 0.0084 | F70: 0.0085 | G70: 0.0086 | H70: 0.0089 | I70: 0.0092 | J70: 0.0096 | K70: 0.0101 | L70: 0.0107 | M70: 0.0114 | N70: 0.0122 | O70: 0.013 | P70: 0.0139 | Q70: 0.0148 | R70: 0.0157 | S70: 0.0165 | T70: 0.0172 | U70: 0.0177 | V70: 0.0182 | W70: 0.0185 | X70: 0.0187 | Y70: 0.0187 | Z70: 0.0184 | AA70: 0.0179 | AB70: 0.0172 | AC70: 0.0162 | AD70: 0.0152 | AE70: 0.014 | AF70: 0.0127 | AG70: 0.0114 | AH70: 0.0101 | AI70: 0.0088 | AJ70: 0.0076 | AK70: 0.0066 | AL70: 0.0055 | AM70: 0.0046 | AN70: 0.0037 | AO70: 0.0028 | AP70: 0.0018 | AQ70: 0.0009 | AR70: 0 | AS70: -0.0006 | AT70: -0.0009 | AU70: -0.001 | AV70: -0.0009 | AW70: -0.0004 | AX70: 0.0003 | AY70: 0.0013 | AZ70: 0.0025 | BA70: 0.0038 | BB70: 0.0051 | BC70: 0.0062 | BD70: 0.0071 | BE70: 0.0078 | BF70: 0.0082 | BG70: 0.0084 | BH70: 0.0083 | BI70: 0.0081 | BJ70: 0.0077 | BK70: 0.0074 | BL70: 0.0071 | BM70: 0.0069 | BN70: 0.0067 | BO70: 0.0069 | BP70: 0.0072 | BQ70: 0.0075 | BR70: 0.0078 | BS70: 0.0082 | BT70: 0.0085 | BU70: 0.0088 | BV70: 0.0091 | BW70: 0.0093 | BX70: 0.0094 | BY70: 0.0095 | BZ70: 0.0096 | CA70: 0.0095 | CB70: 0.0095 | CC70: 0.0095 | CD70: 0.0095 | CE70: 0.0095 | CF70: 0.0096 | CG70: 0.0096 | CH70: 0.0097
A71: 88 | B71: 0.0083 | C71: 0.0083 | D71: 0.0083 | E71: 0.0083 | F71: 0.0084 | G71: 0.0086 | H71: 0.0088 | I71: 0.0091 | J71: 0.0096 | K71: 0.0101 | L71: 0.0107 | M71: 0.0113 | N71: 0.0121 | O71: 0.013 | P71: 0.0138 | Q71: 0.0147 | R71: 0.0155 | S71: 0.0163 | T71: 0.017 | U71: 0.0175 | V71: 0.018 | W71: 0.0183 | X71: 0.0184 | Y71: 0.0184 | Z71: 0.0181 | AA71: 0.0176 | AB71: 0.0169 | AC71: 0.0161 | AD71: 0.015 | AE71: 0.0139 | AF71: 0.0127 | AG71: 0.0114 | AH71: 0.0101 | AI71: 0.0088 | AJ71: 0.0076 | AK71: 0.0065 | AL71: 0.0055 | AM71: 0.0045 | AN71: 0.0035 | AO71: 0.0026 | AP71: 0.0016 | AQ71: 0.0007 | AR71: -0.0002 | AS71: -0.0008 | AT71: -0.0012 | AU71: -0.0013 | AV71: -0.0012 | AW71: -0.0008 | AX71: -0.0001 | AY71: 0.0008 | AZ71: 0.0019 | BA71: 0.0031 | BB71: 0.0043 | BC71: 0.0054 | BD71: 0.0063 | BE71: 0.007 | BF71: 0.0074 | BG71: 0.0076 | BH71: 0.0076 | BI71: 0.0075 | BJ71: 0.0072 | BK71: 0.0069 | BL71: 0.0067 | BM71: 0.0065 | BN71: 0.0063 | BO71: 0.0065 | BP71: 0.0068 | BQ71: 0.0071 | BR71: 0.0075 | BS71: 0.0078 | BT71: 0.0082 | BU71: 0.0085 | BV71: 0.0088 | BW71: 0.009 | BX71: 0.0092 | BY71: 0.0093 | BZ71: 0.0093 | CA71: 0.0094 | CB71: 0.0094 | CC71: 0.0094 | CD71: 0.0094 | CE71: 0.0094 | CF71: 0.0094 | CG71: 0.0095 | CH71: 0.0096
A72: 89 | B72: 0.0082 | C72: 0.0082 | D72: 0.0082 | E72: 0.0083 | F72: 0.0084 | G72: 0.0085 | H72: 0.0088 | I72: 0.0091 | J72: 0.0095 | K72: 0.01 | L72: 0.0106 | M72: 0.0113 | N72: 0.0121 | O72: 0.0129 | P72: 0.0137 | Q72: 0.0146 | R72: 0.0154 | S72: 0.0162 | T72: 0.0168 | U72: 0.0173 | V72: 0.0177 | W72: 0.018 | X72: 0.0181 | Y72: 0.0181 | Z72: 0.0178 | AA72: 0.0174 | AB72: 0.0167 | AC72: 0.0159 | AD72: 0.0149 | AE72: 0.0138 | AF72: 0.0126 | AG72: 0.0114 | AH72: 0.0101 | AI72: 0.0088 | AJ72: 0.0076 | AK72: 0.0065 | AL72: 0.0054 | AM72: 0.0044 | AN72: 0.0034 | AO72: 0.0024 | AP72: 0.0014 | AQ72: 0.0004 | AR72: -0.0004 | AS72: -0.001 | AT72: -0.0014 | AU72: -0.0016 | AV72: -0.0015 | AW72: -0.0012 | AX72: -0.0006 | AY72: 0.0003 | AZ72: 0.0014 | BA72: 0.0025 | BB72: 0.0036 | BC72: 0.0047 | BD72: 0.0055 | BE72: 0.0062 | BF72: 0.0067 | BG72: 0.0069 | BH72: 0.007 | BI72: 0.0068 | BJ72: 0.0066 | BK72: 0.0064 | BL72: 0.0062 | BM72: 0.0061 | BN72: 0.0059 | BO72: 0.0061 | BP72: 0.0064 | BQ72: 0.0068 | BR72: 0.0071 | BS72: 0.0075 | BT72: 0.0079 | BU72: 0.0082 | BV72: 0.0085 | BW72: 0.0088 | BX72: 0.0089 | BY72: 0.009 | BZ72: 0.0091 | CA72: 0.0091 | CB72: 0.0092 | CC72: 0.0092 | CD72: 0.0092 | CE72: 0.0092 | CF72: 0.0093 | CG72: 0.0093 | CH72: 0.0094
A73: 90 | B73: 0.0081 | C73: 0.0081 | D73: 0.0081 | E73: 0.0082 | F73: 0.0083 | G73: 0.0085 | H73: 0.0087 | I73: 0.0091 | J73: 0.0095 | K73: 0.01 | L73: 0.0106 | M73: 0.0113 | N73: 0.012 | O73: 0.0128 | P73: 0.0137 | Q73: 0.0145 | R73: 0.0153 | S73: 0.016 | T73: 0.0166 | U73: 0.0171 | V73: 0.0175 | W73: 0.0177 | X73: 0.0178 | Y73: 0.0178 | Z73: 0.0175 | AA73: 0.0171 | AB73: 0.0164 | AC73: 0.0157 | AD73: 0.0147 | AE73: 0.0137 | AF73: 0.0125 | AG73: 0.0113 | AH73: 0.0101 | AI73: 0.0088 | AJ73: 0.0076 | AK73: 0.0064 | AL73: 0.0053 | AM73: 0.0042 | AN73: 0.0032 | AO73: 0.0022 | AP73: 0.0012 | AQ73: 0.0002 | AR73: -0.0006 | AS73: -0.0012 | AT73: -0.0017 | AU73: -0.0019 | AV73: -0.0018 | AW73: -0.0015 | AX73: -0.001 | AY73: -0.0002 | AZ73: 0.0008 | BA73: 0.0018 | BB73: 0.0029 | BC73: 0.0039 | BD73: 0.0047 | BE73: 0.0054 | BF73: 0.0059 | BG73: 0.0062 | BH73: 0.0063 | BI73: 0.0062 | BJ73: 0.0061 | BK73: 0.0059 | BL73: 0.0058 | BM73: 0.0056 | BN73: 0.0055 | BO73: 0.0057 | BP73: 0.006 | BQ73: 0.0064 | BR73: 0.0068 | BS73: 0.0072 | BT73: 0.0075 | BU73: 0.0079 | BV73: 0.0082 | BW73: 0.0085 | BX73: 0.0086 | BY73: 0.0087 | BZ73: 0.0088 | CA73: 0.0089 | CB73: 0.009 | CC73: 0.0091 | CD73: 0.0091 | CE73: 0.0091 | CF73: 0.0091 | CG73: 0.0092 | CH73: 0.0093
A74: 91 | B74: 0.0081 | C74: 0.0081 | D74: 0.0081 | E74: 0.0082 | F74: 0.0083 | G74: 0.0085 | H74: 0.0087 | I74: 0.0091 | J74: 0.0095 | K74: 0.01 | L74: 0.0106 | M74: 0.0113 | N74: 0.012 | O74: 0.0128 | P74: 0.0136 | Q74: 0.0144 | R74: 0.0151 | S74: 0.0158 | T74: 0.0164 | U74: 0.0169 | V74: 0.0172 | W74: 0.0174 | X74: 0.0175 | Y74: 0.0174 | Z74: 0.0172 | AA74: 0.0168 | AB74: 0.0162 | AC74: 0.0154 | AD74: 0.0146 | AE74: 0.0135 | AF74: 0.0124 | AG74: 0.0113 | AH74: 0.01 | AI74: 0.0088 | AJ74: 0.0075 | AK74: 0.0064 | AL74: 0.0052 | AM74: 0.0041 | AN74: 0.0031 | AO74: 0.002 | AP74: 0.001 | AQ74: 0.0001 | AR74: -0.0008 | AS74: -0.0014 | AT74: -0.0019 | AU74: -0.0021 | AV74: -0.0021 | AW74: -0.0019 | AX74: -0.0014 | AY74: -0.0007 | AZ74: 0.0002 | BA74: 0.0012 | BB74: 0.0022 | BC74: 0.0031 | BD74: 0.0039 | BE74: 0.0046 | BF74: 0.0051 | BG74: 0.0054 | BH74: 0.0056 | BI74: 0.0056 | BJ74: 0.0055 | BK74: 0.0054 | BL74: 0.0053 | BM74: 0.0052 | BN74: 0.0051 | BO74: 0.0054 | BP74: 0.0057 | BQ74: 0.006 | BR74: 0.0064 | BS74: 0.0068 | BT74: 0.0072 | BU74: 0.0076 | BV74: 0.0079 | BW74: 0.0082 | BX74: 0.0083 | BY74: 0.0084 | BZ74: 0.0085 | CA74: 0.0086 | CB74: 0.0087 | CC74: 0.0088 | CD74: 0.0089 | CE74: 0.009 | CF74: 0.009 | CG74: 0.009 | CH74: 0.0091
A75: 92 | B75: 0.008 | C75: 0.008 | D75: 0.0081 | E75: 0.0082 | F75: 0.0083 | G75: 0.0085 | H75: 0.0088 | I75: 0.0091 | J75: 0.0096 | K75: 0.0101 | L75: 0.0106 | M75: 0.0113 | N75: 0.012 | O75: 0.0128 | P75: 0.0135 | Q75: 0.0143 | R75: 0.015 | S75: 0.0156 | T75: 0.0162 | U75: 0.0166 | V75: 0.017 | W75: 0.0171 | X75: 0.0172 | Y75: 0.0171 | Z75: 0.0169 | AA75: 0.0165 | AB75: 0.0159 | AC75: 0.0152 | AD75: 0.0144 | AE75: 0.0134 | AF75: 0.0123 | AG75: 0.0112 | AH75: 0.01 | AI75: 0.0087 | AJ75: 0.0075 | AK75: 0.0063 | AL75: 0.0051 | AM75: 0.004 | AN75: 0.0029 | AO75: 0.0019 | AP75: 0.0008 | AQ75: -0.0001 | AR75: -0.001 | AS75: -0.0016 | AT75: -0.0021 | AU75: -0.0024 | AV75: -0.0024 | AW75: -0.0022 | AX75: -0.0018 | AY75: -0.0011 | AZ75: -0.0004 | BA75: 0.0005 | BB75: 0.0014 | BC75: 0.0023 | BD75: 0.0031 | BE75: 0.0037 | BF75: 0.0043 | BG75: 0.0046 | BH75: 0.0049 | BI75: 0.005 | BJ75: 0.005 | BK75: 0.0049 | BL75: 0.0049 | BM75: 0.0048 | BN75: 0.0047 | BO75: 0.005 | BP75: 0.0053 | BQ75: 0.0057 | BR75: 0.0061 | BS75: 0.0065 | BT75: 0.0069 | BU75: 0.0073 | BV75: 0.0076 | BW75: 0.0079 | BX75: 0.008 | BY75: 0.0081 | BZ75: 0.0082 | CA75: 0.0083 | CB75: 0.0084 | CC75: 0.0085 | CD75: 0.0087 | CE75: 0.0088 | CF75: 0.0088 | CG75: 0.0089 | CH75: 0.009
A76: 93 | B76: 0.008 | C76: 0.008 | D76: 0.0081 | E76: 0.0082 | F76: 0.0083 | G76: 0.0085 | H76: 0.0088 | I76: 0.0092 | J76: 0.0096 | K76: 0.0101 | L76: 0.0107 | M76: 0.0113 | N76: 0.012 | O76: 0.0127 | P76: 0.0134 | Q76: 0.0142 | R76: 0.0148 | S76: 0.0154 | T76: 0.016 | U76: 0.0164 | V76: 0.0167 | W76: 0.0169 | X76: 0.0169 | Y76: 0.0168 | Z76: 0.0166 | AA76: 0.0162 | AB76: 0.0156 | AC76: 0.015 | AD76: 0.0142 | AE76: 0.0132 | AF76: 0.0122 | AG76: 0.0111 | AH76: 0.0099 | AI76: 0.0087 | AJ76: 0.0074 | AK76: 0.0062 | AL76: 0.005 | AM76: 0.0039 | AN76: 0.0028 | AO76: 0.0017 | AP76: 0.0007 | AQ76: -0.0003 | AR76: -0.0011 | AS76: -0.0018 | AT76: -0.0023 | AU76: -0.0026 | AV76: -0.0027 | AW76: -0.0025 | AX76: -0.0022 | AY76: -0.0016 | AZ76: -0.0009 | BA76: -0.0001 | BB76: 0.0007 | BC76: 0.0015 | BD76: 0.0023 | BE76: 0.0029 | BF76: 0.0035 | BG76: 0.0039 | BH76: 0.0042 | BI76: 0.0043 | BJ76: 0.0044 | BK76: 0.0044 | BL76: 0.0044 | BM76: 0.0044 | BN76: 0.0044 | BO76: 0.0046 | BP76: 0.0049 | BQ76: 0.0053 | BR76: 0.0057 | BS76: 0.0062 | BT76: 0.0066 | BU76: 0.007 | BV76: 0.0073 | BW76: 0.0076 | BX76: 0.0077 | BY76: 0.0078 | BZ76: 0.0079 | CA76: 0.008 | CB76: 0.0081 | CC76: 0.0083 | CD76: 0.0084 | CE76: 0.0085 | CF76: 0.0087 | CG76: 0.0087 | CH76: 0.0088
A77: 94 | B77: 0.008 | C77: 0.008 | D77: 0.0081 | E77: 0.0082 | F77: 0.0083 | G77: 0.0085 | H77: 0.0088 | I77: 0.0092 | J77: 0.0096 | K77: 0.0101 | L77: 0.0107 | M77: 0.0113 | N77: 0.012 | O77: 0.0127 | P77: 0.0134 | Q77: 0.014 | R77: 0.0147 | S77: 0.0152 | T77: 0.0157 | U77: 0.0161 | V77: 0.0164 | W77: 0.0166 | X77: 0.0166 | Y77: 0.0165 | Z77: 0.0163 | AA77: 0.0159 | AB77: 0.0154 | AC77: 0.0147 | AD77: 0.014 | AE77: 0.0131 | AF77: 0.0121 | AG77: 0.011 | AH77: 0.0098 | AI77: 0.0086 | AJ77: 0.0073 | AK77: 0.0061 | AL77: 0.0049 | AM77: 0.0037 | AN77: 0.0026 | AO77: 0.0015 | AP77: 0.0005 | AQ77: -0.0005 | AR77: -0.0013 | AS77: -0.002 | AT77: -0.0025 | AU77: -0.0028 | AV77: -0.0029 | AW77: -0.0028 | AX77: -0.0025 | AY77: -0.0021 | AZ77: -0.0015 | BA77: -0.0008 | BB77: 0 | BC77: 0.0007 | BD77: 0.0015 | BE77: 0.0021 | BF77: 0.0027 | BG77: 0.0031 | BH77: 0.0035 | BI77: 0.0037 | BJ77: 0.0038 | BK77: 0.0039 | BL77: 0.004 | BM77: 0.004 | BN77: 0.004 | BO77: 0.0042 | BP77: 0.0046 | BQ77: 0.005 | BR77: 0.0054 | BS77: 0.0058 | BT77: 0.0063 | BU77: 0.0067 | BV77: 0.007 | BW77: 0.0073 | BX77: 0.0075 | BY77: 0.0075 | BZ77: 0.0076 | CA77: 0.0077 | CB77: 0.0079 | CC77: 0.008 | CD77: 0.0081 | CE77: 0.0082 | CF77: 0.0084 | CG77: 0.0086 | CH77: 0.0087
A78: 95 | B78: 0.008 | C78: 0.008 | D78: 0.0081 | E78: 0.0082 | F78: 0.0083 | G78: 0.0086 | H78: 0.0089 | I78: 0.0092 | J78: 0.0097 | K78: 0.0102 | L78: 0.0107 | M78: 0.0113 | N78: 0.012 | O78: 0.0126 | P78: 0.0133 | Q78: 0.0139 | R78: 0.0145 | S78: 0.0151 | T78: 0.0155 | U78: 0.0159 | V78: 0.0161 | W78: 0.0163 | X78: 0.0163 | Y78: 0.0162 | Z78: 0.016 | AA78: 0.0156 | AB78: 0.0151 | AC78: 0.0145 | AD78: 0.0138 | AE78: 0.0129 | AF78: 0.0119 | AG78: 0.0109 | AH78: 0.0097 | AI78: 0.0085 | AJ78: 0.0073 | AK78: 0.006 | AL78: 0.0048 | AM78: 0.0036 | AN78: 0.0025 | AO78: 0.0014 | AP78: 0.0003 | AQ78: -0.0006 | AR78: -0.0015 | AS78: -0.0021 | AT78: -0.0027 | AU78: -0.003 | AV78: -0.0032 | AW78: -0.0031 | AX78: -0.0029 | AY78: -0.0025 | AZ78: -0.002 | BA78: -0.0014 | BB78: -0.0007 | BC78: 0 | BD78: 0.0006 | BE78: 0.0013 | BF78: 0.0019 | BG78: 0.0023 | BH78: 0.0027 | BI78: 0.003 | BJ78: 0.0032 | BK78: 0.0034 | BL78: 0.0035 | BM78: 0.0036 | BN78: 0.0036 | BO78: 0.0038 | BP78: 0.0042 | BQ78: 0.0046 | BR78: 0.005 | BS78: 0.0055 | BT78: 0.006 | BU78: 0.0064 | BV78: 0.0068 | BW78: 0.007 | BX78: 0.0072 | BY78: 0.0073 | BZ78: 0.0074 | CA78: 0.0075 | CB78: 0.0076 | CC78: 0.0077 | CD78: 0.0078 | CE78: 0.008 | CF78: 0.0081 | CG78: 0.0083 | CH78: 0.0085
A79: 96 | B79: 0.0076 | C79: 0.0076 | D79: 0.0077 | E79: 0.0078 | F79: 0.0079 | G79: 0.0081 | H79: 0.0084 | I79: 0.0088 | J79: 0.0092 | K79: 0.0097 | L79: 0.0102 | M79: 0.0108 | N79: 0.0114 | O79: 0.012 | P79: 0.0126 | Q79: 0.0132 | R79: 0.0138 | S79: 0.0143 | T79: 0.0147 | U79: 0.0151 | V79: 0.0153 | W79: 0.0155 | X79: 0.0155 | Y79: 0.0154 | Z79: 0.0152 | AA79: 0.0148 | AB79: 0.0143 | AC79: 0.0138 | AD79: 0.0131 | AE79: 0.0122 | AF79: 0.0113 | AG79: 0.0103 | AH79: 0.0092 | AI79: 0.0081 | AJ79: 0.0069 | AK79: 0.0057 | AL79: 0.0046 | AM79: 0.0034 | AN79: 0.0024 | AO79: 0.0013 | AP79: 0.0003 | AQ79: -0.0006 | AR79: -0.0014 | AS79: -0.002 | AT79: -0.0025 | AU79: -0.0029 | AV79: -0.003 | AW79: -0.003 | AX79: -0.0028 | AY79: -0.0024 | AZ79: -0.0019 | BA79: -0.0013 | BB79: -0.0007 | BC79: 0 | BD79: 0.0006 | BE79: 0.0012 | BF79: 0.0018 | BG79: 0.0022 | BH79: 0.0026 | BI79: 0.0029 | BJ79: 0.0031 | BK79: 0.0032 | BL79: 0.0033 | BM79: 0.0034 | BN79: 0.0034 | BO79: 0.0036 | BP79: 0.004 | BQ79: 0.0044 | BR79: 0.0048 | BS79: 0.0052 | BT79: 0.0057 | BU79: 0.0061 | BV79: 0.0064 | BW79: 0.0067 | BX79: 0.0068 | BY79: 0.0069 | BZ79: 0.007 | CA79: 0.0071 | CB79: 0.0072 | CC79: 0.0073 | CD79: 0.0074 | CE79: 0.0076 | CF79: 0.0077 | CG79: 0.0079 | CH79: 0.0081
A80: 97 | B80: 0.0072 | C80: 0.0072 | D80: 0.0073 | E80: 0.0074 | F80: 0.0075 | G80: 0.0077 | H80: 0.008 | I80: 0.0083 | J80: 0.0087 | K80: 0.0092 | L80: 0.0097 | M80: 0.0102 | N80: 0.0108 | O80: 0.0114 | P80: 0.012 | Q80: 0.0125 | R80: 0.0131 | S80: 0.0136 | T80: 0.014 | U80: 0.0143 | V80: 0.0145 | W80: 0.0146 | X80: 0.0147 | Y80: 0.0146 | Z80: 0.0144 | AA80: 0.014 | AB80: 0.0136 | AC80: 0.013 | AD80: 0.0124 | AE80: 0.0116 | AF80: 0.0107 | AG80: 0.0098 | AH80: 0.0087 | AI80: 0.0077 | AJ80: 0.0065 | AK80: 0.0054 | AL80: 0.0043 | AM80: 0.0033 | AN80: 0.0022 | AO80: 0.0012 | AP80: 0.0003 | AQ80: -0.0005 | AR80: -0.0013 | AS80: -0.0019 | AT80: -0.0024 | AU80: -0.0027 | AV80: -0.0029 | AW80: -0.0028 | AX80: -0.0026 | AY80: -0.0023 | AZ80: -0.0018 | BA80: -0.0013 | BB80: -0.0006 | BC80: 0 | BD80: 0.0006 | BE80: 0.0012 | BF80: 0.0017 | BG80: 0.0021 | BH80: 0.0025 | BI80: 0.0027 | BJ80: 0.0029 | BK80: 0.0031 | BL80: 0.0032 | BM80: 0.0032 | BN80: 0.0032 | BO80: 0.0035 | BP80: 0.0038 | BQ80: 0.0041 | BR80: 0.0045 | BS80: 0.005 | BT80: 0.0054 | BU80: 0.0058 | BV80: 0.0061 | BW80: 0.0063 | BX80: 0.0065 | BY80: 0.0065 | BZ80: 0.0066 | CA80: 0.0067 | CB80: 0.0068 | CC80: 0.0069 | CD80: 0.007 | CE80: 0.0072 | CF80: 0.0073 | CG80: 0.0075 | CH80: 0.0077
A81: 98 | B81: 0.0068 | C81: 0.0068 | D81: 0.0069 | E81: 0.007 | F81: 0.0071 | G81: 0.0073 | H81: 0.0075 | I81: 0.0079 | J81: 0.0082 | K81: 0.0087 | L81: 0.0091 | M81: 0.0096 | N81: 0.0102 | O81: 0.0108 | P81: 0.0113 | Q81: 0.0118 | R81: 0.0123 | S81: 0.0128 | T81: 0.0132 | U81: 0.0135 | V81: 0.0137 | W81: 0.0138 | X81: 0.0138 | Y81: 0.0138 | Z81: 0.0136 | AA81: 0.0133 | AB81: 0.0128 | AC81: 0.0123 | AD81: 0.0117 | AE81: 0.011 | AF81: 0.0101 | AG81: 0.0092 | AH81: 0.0083 | AI81: 0.0072 | AJ81: 0.0062 | AK81: 0.0051 | AL81: 0.0041 | AM81: 0.0031 | AN81: 0.0021 | AO81: 0.0012 | AP81: 0.0003 | AQ81: -0.0005 | AR81: -0.0012 | AS81: -0.0018 | AT81: -0.0023 | AU81: -0.0026 | AV81: -0.0027 | AW81: -0.0027 | AX81: -0.0025 | AY81: -0.0022 | AZ81: -0.0017 | BA81: -0.0012 | BB81: -0.0006 | BC81: 0 | BD81: 0.0006 | BE81: 0.0011 | BF81: 0.0016 | BG81: 0.002 | BH81: 0.0023 | BI81: 0.0026 | BJ81: 0.0028 | BK81: 0.0029 | BL81: 0.003 | BM81: 0.003 | BN81: 0.0031 | BO81: 0.0033 | BP81: 0.0036 | BQ81: 0.0039 | BR81: 0.0043 | BS81: 0.0047 | BT81: 0.0051 | BU81: 0.0054 | BV81: 0.0057 | BW81: 0.006 | BX81: 0.0061 | BY81: 0.0062 | BZ81: 0.0063 | CA81: 0.0063 | CB81: 0.0064 | CC81: 0.0065 | CD81: 0.0066 | CE81: 0.0068 | CF81: 0.0069 | CG81: 0.0071 | CH81: 0.0072
A82: 99 | B82: 0.0064 | C82: 0.0064 | D82: 0.0065 | E82: 0.0065 | F82: 0.0067 | G82: 0.0069 | H82: 0.0071 | I82: 0.0074 | J82: 0.0077 | K82: 0.0081 | L82: 0.0086 | M82: 0.0091 | N82: 0.0096 | O82: 0.0101 | P82: 0.0106 | Q82: 0.0111 | R82: 0.0116 | S82: 0.012 | T82: 0.0124 | U82: 0.0127 | V82: 0.0129 | W82: 0.013 | X82: 0.013 | Y82: 0.013 | Z82: 0.0128 | AA82: 0.0125 | AB82: 0.0121 | AC82: 0.0116 | AD82: 0.011 | AE82: 0.0103 | AF82: 0.0095 | AG82: 0.0087 | AH82: 0.0078 | AI82: 0.0068 | AJ82: 0.0058 | AK82: 0.0048 | AL82: 0.0039 | AM82: 0.0029 | AN82: 0.002 | AO82: 0.0011 | AP82: 0.0003 | AQ82: -0.0005 | AR82: -0.0012 | AS82: -0.0017 | AT82: -0.0021 | AU82: -0.0024 | AV82: -0.0025 | AW82: -0.0025 | AX82: -0.0023 | AY82: -0.002 | AZ82: -0.0016 | BA82: -0.0011 | BB82: -0.0006 | BC82: 0 | BD82: 0.0005 | BE82: 0.001 | BF82: 0.0015 | BG82: 0.0019 | BH82: 0.0022 | BI82: 0.0024 | BJ82: 0.0026 | BK82: 0.0027 | BL82: 0.0028 | BM82: 0.0028 | BN82: 0.0029 | BO82: 0.0031 | BP82: 0.0033 | BQ82: 0.0037 | BR82: 0.004 | BS82: 0.0044 | BT82: 0.0048 | BU82: 0.0051 | BV82: 0.0054 | BW82: 0.0056 | BX82: 0.0057 | BY82: 0.0058 | BZ82: 0.0059 | CA82: 0.006 | CB82: 0.0061 | CC82: 0.0061 | CD82: 0.0063 | CE82: 0.0064 | CF82: 0.0065 | CG82: 0.0066 | CH82: 0.0068
A83: 100 | B83: 0.006 | C83: 0.006 | D83: 0.0061 | E83: 0.0061 | F83: 0.0063 | G83: 0.0064 | H83: 0.0067 | I83: 0.0069 | J83: 0.0073 | K83: 0.0076 | L83: 0.0081 | M83: 0.0085 | N83: 0.009 | O83: 0.0095 | P83: 0.01 | Q83: 0.0105 | R83: 0.0109 | S83: 0.0113 | T83: 0.0116 | U83: 0.0119 | V83: 0.0121 | W83: 0.0122 | X83: 0.0122 | Y83: 0.0121 | Z83: 0.012 | AA83: 0.0117 | AB83: 0.0113 | AC83: 0.0109 | AD83: 0.0103 | AE83: 0.0097 | AF83: 0.0089 | AG83: 0.0081 | AH83: 0.0073 | AI83: 0.0064 | AJ83: 0.0055 | AK83: 0.0045 | AL83: 0.0036 | AM83: 0.0027 | AN83: 0.0019 | AO83: 0.001 | AP83: 0.0003 | AQ83: -0.0005 | AR83: -0.0011 | AS83: -0.0016 | AT83: -0.002 | AU83: -0.0023 | AV83: -0.0024 | AW83: -0.0024 | AX83: -0.0022 | AY83: -0.0019 | AZ83: -0.0015 | BA83: -0.0011 | BB83: -0.0005 | BC83: 0 | BD83: 0.0005 | BE83: 0.001 | BF83: 0.0014 | BG83: 0.0018 | BH83: 0.0021 | BI83: 0.0023 | BJ83: 0.0024 | BK83: 0.0026 | BL83: 0.0026 | BM83: 0.0027 | BN83: 0.0027 | BO83: 0.0029 | BP83: 0.0031 | BQ83: 0.0034 | BR83: 0.0038 | BS83: 0.0041 | BT83: 0.0045 | BU83: 0.0048 | BV83: 0.0051 | BW83: 0.0053 | BX83: 0.0054 | BY83: 0.0054 | BZ83: 0.0055 | CA83: 0.0056 | CB83: 0.0057 | CC83: 0.0058 | CD83: 0.0059 | CE83: 0.006 | CF83: 0.0061 | CG83: 0.0062 | CH83: 0.0064
A84: 101 | B84: 0.0056 | C84: 0.0056 | D84: 0.0057 | E84: 0.0057 | F84: 0.0058 | G84: 0.006 | H84: 0.0062 | I84: 0.0065 | J84: 0.0068 | K84: 0.0071 | L84: 0.0075 | M84: 0.0079 | N84: 0.0084 | O84: 0.0089 | P84: 0.0093 | Q84: 0.0098 | R84: 0.0102 | S84: 0.0105 | T84: 0.0109 | U84: 0.0111 | V84: 0.0113 | W84: 0.0114 | X84: 0.0114 | Y84: 0.0113 | Z84: 0.0112 | AA84: 0.0109 | AB84: 0.0106 | AC84: 0.0101 | AD84: 0.0096 | AE84: 0.009 | AF84: 0.0083 | AG84: 0.0076 | AH84: 0.0068 | AI84: 0.006 | AJ84: 0.0051 | AK84: 0.0042 | AL84: 0.0034 | AM84: 0.0025 | AN84: 0.0017 | AO84: 0.001 | AP84: 0.0002 | AQ84: -0.0004 | AR84: -0.001 | AS84: -0.0015 | AT84: -0.0019 | AU84: -0.0021 | AV84: -0.0022 | AW84: -0.0022 | AX84: -0.002 | AY84: -0.0018 | AZ84: -0.0014 | BA84: -0.001 | BB84: -0.0005 | BC84: 0 | BD84: 0.0005 | BE84: 0.0009 | BF84: 0.0013 | BG84: 0.0016 | BH84: 0.0019 | BI84: 0.0021 | BJ84: 0.0023 | BK84: 0.0024 | BL84: 0.0025 | BM84: 0.0025 | BN84: 0.0025 | BO84: 0.0027 | BP84: 0.0029 | BQ84: 0.0032 | BR84: 0.0035 | BS84: 0.0039 | BT84: 0.0042 | BU84: 0.0045 | BV84: 0.0047 | BW84: 0.0049 | BX84: 0.005 | BY84: 0.0051 | BZ84: 0.0051 | CA84: 0.0052 | CB84: 0.0053 | CC84: 0.0054 | CD84: 0.0055 | CE84: 0.0056 | CF84: 0.0057 | CG84: 0.0058 | CH84: 0.006
A85: 102 | B85: 0.0052 | C85: 0.0052 | D85: 0.0053 | E85: 0.0053 | F85: 0.0054 | G85: 0.0056 | H85: 0.0058 | I85: 0.006 | J85: 0.0063 | K85: 0.0066 | L85: 0.007 | M85: 0.0074 | N85: 0.0078 | O85: 0.0082 | P85: 0.0086 | Q85: 0.0091 | R85: 0.0094 | S85: 0.0098 | T85: 0.0101 | U85: 0.0103 | V85: 0.0105 | W85: 0.0106 | X85: 0.0106 | Y85: 0.0105 | Z85: 0.0104 | AA85: 0.0101 | AB85: 0.0098 | AC85: 0.0094 | AD85: 0.0089 | AE85: 0.0084 | AF85: 0.0078 | AG85: 0.0071 | AH85: 0.0063 | AI85: 0.0055 | AJ85: 0.0047 | AK85: 0.0039 | AL85: 0.0031 | AM85: 0.0024 | AN85: 0.0016 | AO85: 0.0009 | AP85: 0.0002 | AQ85: -0.0004 | AR85: -0.0009 | AS85: -0.0014 | AT85: -0.0017 | AU85: -0.002 | AV85: -0.0021 | AW85: -0.002 | AX85: -0.0019 | AY85: -0.0017 | AZ85: -0.0013 | BA85: -0.0009 | BB85: -0.0005 | BC85: 0 | BD85: 0.0004 | BE85: 0.0008 | BF85: 0.0012 | BG85: 0.0015 | BH85: 0.0018 | BI85: 0.002 | BJ85: 0.0021 | BK85: 0.0022 | BL85: 0.0023 | BM85: 0.0023 | BN85: 0.0023 | BO85: 0.0025 | BP85: 0.0027 | BQ85: 0.003 | BR85: 0.0033 | BS85: 0.0036 | BT85: 0.0039 | BU85: 0.0042 | BV85: 0.0044 | BW85: 0.0046 | BX85: 0.0047 | BY85: 0.0047 | BZ85: 0.0048 | CA85: 0.0048 | CB85: 0.0049 | CC85: 0.005 | CD85: 0.0051 | CE85: 0.0052 | CF85: 0.0053 | CG85: 0.0054 | CH85: 0.0055
A86: 103 | B86: 0.0048 | C86: 0.0048 | D86: 0.0048 | E86: 0.0049 | F86: 0.005 | G86: 0.0051 | H86: 0.0053 | I86: 0.0055 | J86: 0.0058 | K86: 0.0061 | L86: 0.0064 | M86: 0.0068 | N86: 0.0072 | O86: 0.0076 | P86: 0.008 | Q86: 0.0084 | R86: 0.0087 | S86: 0.009 | T86: 0.0093 | U86: 0.0095 | V86: 0.0097 | W86: 0.0098 | X86: 0.0098 | Y86: 0.0097 | Z86: 0.0096 | AA86: 0.0094 | AB86: 0.0091 | AC86: 0.0087 | AD86: 0.0083 | AE86: 0.0077 | AF86: 0.0072 | AG86: 0.0065 | AH86: 0.0058 | AI86: 0.0051 | AJ86: 0.0044 | AK86: 0.0036 | AL86: 0.0029 | AM86: 0.0022 | AN86: 0.0015 | AO86: 0.0008 | AP86: 0.0002 | AQ86: -0.0004 | AR86: -0.0009 | AS86: -0.0013 | AT86: -0.0016 | AU86: -0.0018 | AV86: -0.0019 | AW86: -0.0019 | AX86: -0.0018 | AY86: -0.0015 | AZ86: -0.0012 | BA86: -0.0008 | BB86: -0.0004 | BC86: 0 | BD86: 0.0004 | BE86: 0.0008 | BF86: 0.0011 | BG86: 0.0014 | BH86: 0.0016 | BI86: 0.0018 | BJ86: 0.0019 | BK86: 0.002 | BL86: 0.0021 | BM86: 0.0021 | BN86: 0.0022 | BO86: 0.0023 | BP86: 0.0025 | BQ86: 0.0028 | BR86: 0.003 | BS86: 0.0033 | BT86: 0.0036 | BU86: 0.0038 | BV86: 0.0041 | BW86: 0.0042 | BX86: 0.0043 | BY86: 0.0044 | BZ86: 0.0044 | CA86: 0.0045 | CB86: 0.0045 | CC86: 0.0046 | CD86: 0.0047 | CE86: 0.0048 | CF86: 0.0049 | CG86: 0.005 | CH86: 0.0051
A87: 104 | B87: 0.0044 | C87: 0.0044 | D87: 0.0044 | E87: 0.0045 | F87: 0.0046 | G87: 0.0047 | H87: 0.0049 | I87: 0.0051 | J87: 0.0053 | K87: 0.0056 | L87: 0.0059 | M87: 0.0062 | N87: 0.0066 | O87: 0.007 | P87: 0.0073 | Q87: 0.0077 | R87: 0.008 | S87: 0.0083 | T87: 0.0085 | U87: 0.0087 | V87: 0.0089 | W87: 0.0089 | X87: 0.009 | Y87: 0.0089 | Z87: 0.0088 | AA87: 0.0086 | AB87: 0.0083 | AC87: 0.008 | AD87: 0.0076 | AE87: 0.0071 | AF87: 0.0066 | AG87: 0.006 | AH87: 0.0053 | AI87: 0.0047 | AJ87: 0.004 | AK87: 0.0033 | AL87: 0.0027 | AM87: 0.002 | AN87: 0.0014 | AO87: 0.0008 | AP87: 0.0002 | AQ87: -0.0003 | AR87: -0.0008 | AS87: -0.0012 | AT87: -0.0015 | AU87: -0.0017 | AV87: -0.0017 | AW87: -0.0017 | AX87: -0.0016 | AY87: -0.0014 | AZ87: -0.0011 | BA87: -0.0008 | BB87: -0.0004 | BC87: 0 | BD87: 0.0004 | BE87: 0.0007 | BF87: 0.001 | BG87: 0.0013 | BH87: 0.0015 | BI87: 0.0017 | BJ87: 0.0018 | BK87: 0.0019 | BL87: 0.0019 | BM87: 0.002 | BN87: 0.002 | BO87: 0.0021 | BP87: 0.0023 | BQ87: 0.0025 | BR87: 0.0028 | BS87: 0.003 | BT87: 0.0033 | BU87: 0.0035 | BV87: 0.0037 | BW87: 0.0039 | BX87: 0.0039 | BY87: 0.004 | BZ87: 0.004 | CA87: 0.0041 | CB87: 0.0042 | CC87: 0.0042 | CD87: 0.0043 | CE87: 0.0044 | CF87: 0.0045 | CG87: 0.0046 | CH87: 0.0047
A88: 105 | B88: 0.004 | C88: 0.004 | D88: 0.004 | E88: 0.0041 | F88: 0.0042 | G88: 0.0043 | H88: 0.0044 | I88: 0.0046 | J88: 0.0048 | K88: 0.0051 | L88: 0.0054 | M88: 0.0057 | N88: 0.006 | O88: 0.0063 | P88: 0.0067 | Q88: 0.007 | R88: 0.0073 | S88: 0.0075 | T88: 0.0078 | U88: 0.0079 | V88: 0.0081 | W88: 0.0081 | X88: 0.0081 | Y88: 0.0081 | Z88: 0.008 | AA88: 0.0078 | AB88: 0.0076 | AC88: 0.0072 | AD88: 0.0069 | AE88: 0.0064 | AF88: 0.006 | AG88: 0.0054 | AH88: 0.0049 | AI88: 0.0043 | AJ88: 0.0036 | AK88: 0.003 | AL88: 0.0024 | AM88: 0.0018 | AN88: 0.0012 | AO88: 0.0007 | AP88: 0.0002 | AQ88: -0.0003 | AR88: -0.0007 | AS88: -0.0011 | AT88: -0.0013 | AU88: -0.0015 | AV88: -0.0016 | AW88: -0.0016 | AX88: -0.0015 | AY88: -0.0013 | AZ88: -0.001 | BA88: -0.0007 | BB88: -0.0004 | BC88: 0 | BD88: 0.0003 | BE88: 0.0006 | BF88: 0.0009 | BG88: 0.0012 | BH88: 0.0014 | BI88: 0.0015 | BJ88: 0.0016 | BK88: 0.0017 | BL88: 0.0018 | BM88: 0.0018 | BN88: 0.0018 | BO88: 0.0019 | BP88: 0.0021 | BQ88: 0.0023 | BR88: 0.0025 | BS88: 0.0028 | BT88: 0.003 | BU88: 0.0032 | BV88: 0.0034 | BW88: 0.0035 | BX88: 0.0036 | BY88: 0.0036 | BZ88: 0.0037 | CA88: 0.0037 | CB88: 0.0038 | CC88: 0.0038 | CD88: 0.0039 | CE88: 0.004 | CF88: 0.0041 | CG88: 0.0041 | CH88: 0.0043
A89: 106 | B89: 0.0036 | C89: 0.0036 | D89: 0.0036 | E89: 0.0037 | F89: 0.0038 | G89: 0.0039 | H89: 0.004 | I89: 0.0042 | J89: 0.0044 | K89: 0.0046 | L89: 0.0048 | M89: 0.0051 | N89: 0.0054 | O89: 0.0057 | P89: 0.006 | Q89: 0.0063 | R89: 0.0065 | S89: 0.0068 | T89: 0.007 | U89: 0.0071 | V89: 0.0073 | W89: 0.0073 | X89: 0.0073 | Y89: 0.0073 | Z89: 0.0072 | AA89: 0.007 | AB89: 0.0068 | AC89: 0.0065 | AD89: 0.0062 | AE89: 0.0058 | AF89: 0.0054 | AG89: 0.0049 | AH89: 0.0044 | AI89: 0.0038 | AJ89: 0.0033 | AK89: 0.0027 | AL89: 0.0022 | AM89: 0.0016 | AN89: 0.0011 | AO89: 0.0006 | AP89: 0.0002 | AQ89: -0.0003 | AR89: -0.0007 | AS89: -0.001 | AT89: -0.0012 | AU89: -0.0014 | AV89: -0.0014 | AW89: -0.0014 | AX89: -0.0013 | AY89: -0.0011 | AZ89: -0.0009 | BA89: -0.0006 | BB89: -0.0003 | BC89: 0 | BD89: 0.0003 | BE89: 0.0006 | BF89: 0.0008 | BG89: 0.0011 | BH89: 0.0012 | BI89: 0.0014 | BJ89: 0.0015 | BK89: 0.0015 | BL89: 0.0016 | BM89: 0.0016 | BN89: 0.0016 | BO89: 0.0017 | BP89: 0.0019 | BQ89: 0.0021 | BR89: 0.0023 | BS89: 0.0025 | BT89: 0.0027 | BU89: 0.0029 | BV89: 0.003 | BW89: 0.0032 | BX89: 0.0032 | BY89: 0.0033 | BZ89: 0.0033 | CA89: 0.0034 | CB89: 0.0034 | CC89: 0.0035 | CD89: 0.0035 | CE89: 0.0036 | CF89: 0.0037 | CG89: 0.0037 | CH89: 0.0038
A90: 107 | B90: 0.0032 | C90: 0.0032 | D90: 0.0032 | E90: 0.0033 | F90: 0.0033 | G90: 0.0034 | H90: 0.0035 | I90: 0.0037 | J90: 0.0039 | K90: 0.0041 | L90: 0.0043 | M90: 0.0045 | N90: 0.0048 | O90: 0.0051 | P90: 0.0053 | Q90: 0.0056 | R90: 0.0058 | S90: 0.006 | T90: 0.0062 | U90: 0.0063 | V90: 0.0064 | W90: 0.0065 | X90: 0.0065 | Y90: 0.0065 | Z90: 0.0064 | AA90: 0.0062 | AB90: 0.006 | AC90: 0.0058 | AD90: 0.0055 | AE90: 0.0052 | AF90: 0.0048 | AG90: 0.0043 | AH90: 0.0039 | AI90: 0.0034 | AJ90: 0.0029 | AK90: 0.0024 | AL90: 0.0019 | AM90: 0.0015 | AN90: 0.001 | AO90: 0.0006 | AP90: 0.0001 | AQ90: -0.0002 | AR90: -0.0006 | AS90: -0.0009 | AT90: -0.0011 | AU90: -0.0012 | AV90: -0.0013 | AW90: -0.0013 | AX90: -0.0012 | AY90: -0.001 | AZ90: -0.0008 | BA90: -0.0006 | BB90: -0.0003 | BC90: 0 | BD90: 0.0003 | BE90: 0.0005 | BF90: 0.0007 | BG90: 0.0009 | BH90: 0.0011 | BI90: 0.0012 | BJ90: 0.0013 | BK90: 0.0014 | BL90: 0.0014 | BM90: 0.0014 | BN90: 0.0014 | BO90: 0.0015 | BP90: 0.0017 | BQ90: 0.0018 | BR90: 0.002 | BS90: 0.0022 | BT90: 0.0024 | BU90: 0.0026 | BV90: 0.0027 | BW90: 0.0028 | BX90: 0.0029 | BY90: 0.0029 | BZ90: 0.0029 | CA90: 0.003 | CB90: 0.003 | CC90: 0.0031 | CD90: 0.0031 | CE90: 0.0032 | CF90: 0.0032 | CG90: 0.0033 | CH90: 0.0034
A91: 108 | B91: 0.0028 | C91: 0.0028 | D91: 0.0028 | E91: 0.0029 | F91: 0.0029 | G91: 0.003 | H91: 0.0031 | I91: 0.0032 | J91: 0.0034 | K91: 0.0036 | L91: 0.0038 | M91: 0.004 | N91: 0.0042 | O91: 0.0044 | P91: 0.0047 | Q91: 0.0049 | R91: 0.0051 | S91: 0.0053 | T91: 0.0054 | U91: 0.0056 | V91: 0.0056 | W91: 0.0057 | X91: 0.0057 | Y91: 0.0057 | Z91: 0.0056 | AA91: 0.0055 | AB91: 0.0053 | AC91: 0.0051 | AD91: 0.0048 | AE91: 0.0045 | AF91: 0.0042 | AG91: 0.0038 | AH91: 0.0034 | AI91: 0.003 | AJ91: 0.0025 | AK91: 0.0021 | AL91: 0.0017 | AM91: 0.0013 | AN91: 0.0009 | AO91: 0.0005 | AP91: 0.0001 | AQ91: -0.0002 | AR91: -0.0005 | AS91: -0.0007 | AT91: -0.0009 | AU91: -0.0011 | AV91: -0.0011 | AW91: -0.0011 | AX91: -0.001 | AY91: -0.0009 | AZ91: -0.0007 | BA91: -0.0005 | BB91: -0.0003 | BC91: 0 | BD91: 0.0002 | BE91: 0.0004 | BF91: 0.0006 | BG91: 0.0008 | BH91: 0.001 | BI91: 0.0011 | BJ91: 0.0011 | BK91: 0.0012 | BL91: 0.0012 | BM91: 0.0012 | BN91: 0.0013 | BO91: 0.0013 | BP91: 0.0015 | BQ91: 0.0016 | BR91: 0.0018 | BS91: 0.0019 | BT91: 0.0021 | BU91: 0.0022 | BV91: 0.0024 | BW91: 0.0025 | BX91: 0.0025 | BY91: 0.0025 | BZ91: 0.0026 | CA91: 0.0026 | CB91: 0.0026 | CC91: 0.0027 | CD91: 0.0027 | CE91: 0.0028 | CF91: 0.0028 | CG91: 0.0029 | CH91: 0.003
A92: 109 | B92: 0.0024 | C92: 0.0024 | D92: 0.0024 | E92: 0.0025 | F92: 0.0025 | G92: 0.0026 | H92: 0.0027 | I92: 0.0028 | J92: 0.0029 | K92: 0.0031 | L92: 0.0032 | M92: 0.0034 | N92: 0.0036 | O92: 0.0038 | P92: 0.004 | Q92: 0.0042 | R92: 0.0044 | S92: 0.0045 | T92: 0.0047 | U92: 0.0048 | V92: 0.0048 | W92: 0.0049 | X92: 0.0049 | Y92: 0.0049 | Z92: 0.0048 | AA92: 0.0047 | AB92: 0.0045 | AC92: 0.0043 | AD92: 0.0041 | AE92: 0.0039 | AF92: 0.0036 | AG92: 0.0033 | AH92: 0.0029 | AI92: 0.0026 | AJ92: 0.0022 | AK92: 0.0018 | AL92: 0.0014 | AM92: 0.0011 | AN92: 0.0007 | AO92: 0.0004 | AP92: 0.0001 | AQ92: -0.0002 | AR92: -0.0004 | AS92: -0.0006 | AT92: -0.0008 | AU92: -0.0009 | AV92: -0.001 | AW92: -0.0009 | AX92: -0.0009 | AY92: -0.0008 | AZ92: -0.0006 | BA92: -0.0004 | BB92: -0.0002 | BC92: 0 | BD92: 0.0002 | BE92: 0.0004 | BF92: 0.0006 | BG92: 0.0007 | BH92: 0.0008 | BI92: 0.0009 | BJ92: 0.001 | BK92: 0.001 | BL92: 0.0011 | BM92: 0.0011 | BN92: 0.0011 | BO92: 0.0012 | BP92: 0.0013 | BQ92: 0.0014 | BR92: 0.0015 | BS92: 0.0017 | BT92: 0.0018 | BU92: 0.0019 | BV92: 0.002 | BW92: 0.0021 | BX92: 0.0022 | BY92: 0.0022 | BZ92: 0.0022 | CA92: 0.0022 | CB92: 0.0023 | CC92: 0.0023 | CD92: 0.0023 | CE92: 0.0024 | CF92: 0.0024 | CG92: 0.0025 | CH92: 0.0026
A93: 110 | B93: 0.002 | C93: 0.002 | D93: 0.002 | E93: 0.002 | F93: 0.0021 | G93: 0.0021 | H93: 0.0022 | I93: 0.0023 | J93: 0.0024 | K93: 0.0025 | L93: 0.0027 | M93: 0.0028 | N93: 0.003 | O93: 0.0032 | P93: 0.0033 | Q93: 0.0035 | R93: 0.0036 | S93: 0.0038 | T93: 0.0039 | U93: 0.004 | V93: 0.004 | W93: 0.0041 | X93: 0.0041 | Y93: 0.004 | Z93: 0.004 | AA93: 0.0039 | AB93: 0.0038 | AC93: 0.0036 | AD93: 0.0034 | AE93: 0.0032 | AF93: 0.003 | AG93: 0.0027 | AH93: 0.0024 | AI93: 0.0021 | AJ93: 0.0018 | AK93: 0.0015 | AL93: 0.0012 | AM93: 0.0009 | AN93: 0.0006 | AO93: 0.0003 | AP93: 0.0001 | AQ93: -0.0002 | AR93: -0.0004 | AS93: -0.0005 | AT93: -0.0007 | AU93: -0.0008 | AV93: -0.0008 | AW93: -0.0008 | AX93: -0.0007 | AY93: -0.0006 | AZ93: -0.0005 | BA93: -0.0004 | BB93: -0.0002 | BC93: 0 | BD93: 0.0002 | BE93: 0.0003 | BF93: 0.0005 | BG93: 0.0006 | BH93: 0.0007 | BI93: 0.0008 | BJ93: 0.0008 | BK93: 0.0009 | BL93: 0.0009 | BM93: 0.0009 | BN93: 0.0009 | BO93: 0.001 | BP93: 0.001 | BQ93: 0.0011 | BR93: 0.0013 | BS93: 0.0014 | BT93: 0.0015 | BU93: 0.0016 | BV93: 0.0017 | BW93: 0.0018 | BX93: 0.0018 | BY93: 0.0018 | BZ93: 0.0018 | CA93: 0.0019 | CB93: 0.0019 | CC93: 0.0019 | CD93: 0.002 | CE93: 0.002 | CF93: 0.002 | CG93: 0.0021 | CH93: 0.0021
A94: 111 | B94: 0.0016 | C94: 0.0016 | D94: 0.0016 | E94: 0.0016 | F94: 0.0017 | G94: 0.0017 | H94: 0.0018 | I94: 0.0018 | J94: 0.0019 | K94: 0.002 | L94: 0.0021 | M94: 0.0023 | N94: 0.0024 | O94: 0.0025 | P94: 0.0027 | Q94: 0.0028 | R94: 0.0029 | S94: 0.003 | T94: 0.0031 | U94: 0.0032 | V94: 0.0032 | W94: 0.0033 | X94: 0.0033 | Y94: 0.0032 | Z94: 0.0032 | AA94: 0.0031 | AB94: 0.003 | AC94: 0.0029 | AD94: 0.0028 | AE94: 0.0026 | AF94: 0.0024 | AG94: 0.0022 | AH94: 0.0019 | AI94: 0.0017 | AJ94: 0.0015 | AK94: 0.0012 | AL94: 0.001 | AM94: 0.0007 | AN94: 0.0005 | AO94: 0.0003 | AP94: 0.0001 | AQ94: -0.0001 | AR94: -0.0003 | AS94: -0.0004 | AT94: -0.0005 | AU94: -0.0006 | AV94: -0.0006 | AW94: -0.0006 | AX94: -0.0006 | AY94: -0.0005 | AZ94: -0.0004 | BA94: -0.0003 | BB94: -0.0001 | BC94: 0 | BD94: 0.0001 | BE94: 0.0003 | BF94: 0.0004 | BG94: 0.0005 | BH94: 0.0005 | BI94: 0.0006 | BJ94: 0.0006 | BK94: 0.0007 | BL94: 0.0007 | BM94: 0.0007 | BN94: 0.0007 | BO94: 0.0008 | BP94: 0.0008 | BQ94: 0.0009 | BR94: 0.001 | BS94: 0.0011 | BT94: 0.0012 | BU94: 0.0013 | BV94: 0.0014 | BW94: 0.0014 | BX94: 0.0014 | BY94: 0.0015 | BZ94: 0.0015 | CA94: 0.0015 | CB94: 0.0015 | CC94: 0.0015 | CD94: 0.0016 | CE94: 0.0016 | CF94: 0.0016 | CG94: 0.0017 | CH94: 0.0017
A95: 112 | B95: 0.0012 | C95: 0.0012 | D95: 0.0012 | E95: 0.0012 | F95: 0.0013 | G95: 0.0013 | H95: 0.0013 | I95: 0.0014 | J95: 0.0015 | K95: 0.0015 | L95: 0.0016 | M95: 0.0017 | N95: 0.0018 | O95: 0.0019 | P95: 0.002 | Q95: 0.0021 | R95: 0.0022 | S95: 0.0023 | T95: 0.0023 | U95: 0.0024 | V95: 0.0024 | W95: 0.0024 | X95: 0.0024 | Y95: 0.0024 | Z95: 0.0024 | AA95: 0.0023 | AB95: 0.0023 | AC95: 0.0022 | AD95: 0.0021 | AE95: 0.0019 | AF95: 0.0018 | AG95: 0.0016 | AH95: 0.0015 | AI95: 0.0013 | AJ95: 0.0011 | AK95: 0.0009 | AL95: 0.0007 | AM95: 0.0005 | AN95: 0.0004 | AO95: 0.0002 | AP95: 0.0001 | AQ95: -0.0001 | AR95: -0.0002 | AS95: -0.0003 | AT95: -0.0004 | AU95: -0.0005 | AV95: -0.0005 | AW95: -0.0005 | AX95: -0.0004 | AY95: -0.0004 | AZ95: -0.0003 | BA95: -0.0002 | BB95: -0.0001 | BC95: 0 | BD95: 0.0001 | BE95: 0.0002 | BF95: 0.0003 | BG95: 0.0004 | BH95: 0.0004 | BI95: 0.0005 | BJ95: 0.0005 | BK95: 0.0005 | BL95: 0.0005 | BM95: 0.0005 | BN95: 0.0005 | BO95: 0.0006 | BP95: 0.0006 | BQ95: 0.0007 | BR95: 0.0008 | BS95: 0.0008 | BT95: 0.0009 | BU95: 0.001 | BV95: 0.001 | BW95: 0.0011 | BX95: 0.0011 | BY95: 0.0011 | BZ95: 0.0011 | CA95: 0.0011 | CB95: 0.0011 | CC95: 0.0012 | CD95: 0.0012 | CE95: 0.0012 | CF95: 0.0012 | CG95: 0.0012 | CH95: 0.0013
A96: 113 | B96: 0.0008 | C96: 0.0008 | D96: 0.0008 | E96: 0.0008 | F96: 0.0008 | G96: 0.0009 | H96: 0.0009 | I96: 0.0009 | J96: 0.001 | K96: 0.001 | L96: 0.0011 | M96: 0.0011 | N96: 0.0012 | O96: 0.0013 | P96: 0.0013 | Q96: 0.0014 | R96: 0.0015 | S96: 0.0015 | T96: 0.0016 | U96: 0.0016 | V96: 0.0016 | W96: 0.0016 | X96: 0.0016 | Y96: 0.0016 | Z96: 0.0016 | AA96: 0.0016 | AB96: 0.0015 | AC96: 0.0014 | AD96: 0.0014 | AE96: 0.0013 | AF96: 0.0012 | AG96: 0.0011 | AH96: 0.001 | AI96: 0.0009 | AJ96: 0.0007 | AK96: 0.0006 | AL96: 0.0005 | AM96: 0.0004 | AN96: 0.0002 | AO96: 0.0001 | AP96: 0 | AQ96: -0.0001 | AR96: -0.0001 | AS96: -0.0002 | AT96: -0.0003 | AU96: -0.0003 | AV96: -0.0003 | AW96: -0.0003 | AX96: -0.0003 | AY96: -0.0003 | AZ96: -0.0002 | BA96: -0.0001 | BB96: -0.0001 | BC96: 0 | BD96: 0.0001 | BE96: 0.0001 | BF96: 0.0002 | BG96: 0.0002 | BH96: 0.0003 | BI96: 0.0003 | BJ96: 0.0003 | BK96: 0.0003 | BL96: 0.0004 | BM96: 0.0004 | BN96: 0.0004 | BO96: 0.0004 | BP96: 0.0004 | BQ96: 0.0005 | BR96: 0.0005 | BS96: 0.0006 | BT96: 0.0006 | BU96: 0.0006 | BV96: 0.0007 | BW96: 0.0007 | BX96: 0.0007 | BY96: 0.0007 | BZ96: 0.0007 | CA96: 0.0007 | CB96: 0.0008 | CC96: 0.0008 | CD96: 0.0008 | CE96: 0.0008 | CF96: 0.0008 | CG96: 0.0008 | CH96: 0.0009
A97: 114 | B97: 0.0004 | C97: 0.0004 | D97: 0.0004 | E97: 0.0004 | F97: 0.0004 | G97: 0.0004 | H97: 0.0004 | I97: 0.0005 | J97: 0.0005 | K97: 0.0005 | L97: 0.0005 | M97: 0.0006 | N97: 0.0006 | O97: 0.0006 | P97: 0.0007 | Q97: 0.0007 | R97: 0.0007 | S97: 0.0008 | T97: 0.0008 | U97: 0.0008 | V97: 0.0008 | W97: 0.0008 | X97: 0.0008 | Y97: 0.0008 | Z97: 0.0008 | AA97: 0.0008 | AB97: 0.0008 | AC97: 0.0007 | AD97: 0.0007 | AE97: 0.0006 | AF97: 0.0006 | AG97: 0.0005 | AH97: 0.0005 | AI97: 0.0004 | AJ97: 0.0004 | AK97: 0.0003 | AL97: 0.0002 | AM97: 0.0002 | AN97: 0.0001 | AO97: 0.0001 | AP97: 0 | AQ97: 0 | AR97: -0.0001 | AS97: -0.0001 | AT97: -0.0001 | AU97: -0.0002 | AV97: -0.0002 | AW97: -0.0002 | AX97: -0.0001 | AY97: -0.0001 | AZ97: -0.0001 | BA97: -0.0001 | BB97: 0 | BC97: 0 | BD97: 0 | BE97: 0.0001 | BF97: 0.0001 | BG97: 0.0001 | BH97: 0.0001 | BI97: 0.0002 | BJ97: 0.0002 | BK97: 0.0002 | BL97: 0.0002 | BM97: 0.0002 | BN97: 0.0002 | BO97: 0.0002 | BP97: 0.0002 | BQ97: 0.0002 | BR97: 0.0003 | BS97: 0.0003 | BT97: 0.0003 | BU97: 0.0003 | BV97: 0.0003 | BW97: 0.0004 | BX97: 0.0004 | BY97: 0.0004 | BZ97: 0.0004 | CA97: 0.0004 | CB97: 0.0004 | CC97: 0.0004 | CD97: 0.0004 | CE97: 0.0004 | CF97: 0.0004 | CG97: 0.0004 | CH97: 0.0004
A98: 115 | B98: 0 | C98: 0 | D98: 0 | E98: 0 | F98: 0 | G98: 0 | H98: 0 | I98: 0 | J98: 0 | K98: 0 | L98: 0 | M98: 0 | N98: 0 | O98: 0 | P98: 0 | Q98: 0 | R98: 0 | S98: 0 | T98: 0 | U98: 0 | V98: 0 | W98: 0 | X98: 0 | Y98: 0 | Z98: 0 | AA98: 0 | AB98: 0 | AC98: 0 | AD98: 0 | AE98: 0 | AF98: 0 | AG98: 0 | AH98: 0 | AI98: 0 | AJ98: 0 | AK98: 0 | AL98: 0 | AM98: 0 | AN98: 0 | AO98: 0 | AP98: 0 | AQ98: 0 | AR98: 0 | AS98: 0 | AT98: 0 | AU98: 0 | AV98: 0 | AW98: 0 | AX98: 0 | AY98: 0 | AZ98: 0 | BA98: 0 | BB98: 0 | BC98: 0 | BD98: 0 | BE98: 0 | BF98: 0 | BG98: 0 | BH98: 0 | BI98: 0 | BJ98: 0 | BK98: 0 | BL98: 0 | BM98: 0 | BN98: 0 | BO98: 0 | BP98: 0 | BQ98: 0 | BR98: 0 | BS98: 0 | BT98: 0 | BU98: 0 | BV98: 0 | BW98: 0 | BX98: 0 | BY98: 0 | BZ98: 0 | CA98: 0 | CB98: 0 | CC98: 0 | CD98: 0 | CE98: 0 | CF98: 0 | CG98: 0 | CH98: 0
A99: 116 | B99: 0 | C99: 0 | D99: 0 | E99: 0 | F99: 0 | G99: 0 | H99: 0 | I99: 0 | J99: 0 | K99: 0 | L99: 0 | M99: 0 | N99: 0 | O99: 0 | P99: 0 | Q99: 0 | R99: 0 | S99: 0 | T99: 0 | U99: 0 | V99: 0 | W99: 0 | X99: 0 | Y99: 0 | Z99: 0 | AA99: 0 | AB99: 0 | AC99: 0 | AD99: 0 | AE99: 0 | AF99: 0 | AG99: 0 | AH99: 0 | AI99: 0 | AJ99: 0 | AK99: 0 | AL99: 0 | AM99: 0 | AN99: 0 | AO99: 0 | AP99: 0 | AQ99: 0 | AR99: 0 | AS99: 0 | AT99: 0 | AU99: 0 | AV99: 0 | AW99: 0 | AX99: 0 | AY99: 0 | AZ99: 0 | BA99: 0 | BB99: 0 | BC99: 0 | BD99: 0 | BE99: 0 | BF99: 0 | BG99: 0 | BH99: 0 | BI99: 0 | BJ99: 0 | BK99: 0 | BL99: 0 | BM99: 0 | BN99: 0 | BO99: 0 | BP99: 0 | BQ99: 0 | BR99: 0 | BS99: 0 | BT99: 0 | BU99: 0 | BV99: 0 | BW99: 0 | BX99: 0 | BY99: 0 | BZ99: 0 | CA99: 0 | CB99: 0 | CC99: 0 | CD99: 0 | CE99: 0 | CF99: 0 | CG99: 0 | CH99: 0
A100: 117 | B100: 0 | C100: 0 | D100: 0 | E100: 0 | F100: 0 | G100: 0 | H100: 0 | I100: 0 | J100: 0 | K100: 0 | L100: 0 | M100: 0 | N100: 0 | O100: 0 | P100: 0 | Q100: 0 | R100: 0 | S100: 0 | T100: 0 | U100: 0 | V100: 0 | W100: 0 | X100: 0 | Y100: 0 | Z100: 0 | AA100: 0 | AB100: 0 | AC100: 0 | AD100: 0 | AE100: 0 | AF100: 0 | AG100: 0 | AH100: 0 | AI100: 0 | AJ100: 0 | AK100: 0 | AL100: 0 | AM100: 0 | AN100: 0 | AO100: 0 | AP100: 0 | AQ100: 0 | AR100: 0 | AS100: 0 | AT100: 0 | AU100: 0 | AV100: 0 | AW100: 0 | AX100: 0 | AY100: 0 | AZ100: 0 | BA100: 0 | BB100: 0 | BC100: 0 | BD100: 0 | BE100: 0 | BF100: 0 | BG100: 0 | BH100: 0 | BI100: 0 | BJ100: 0 | BK100: 0 | BL100: 0 | BM100: 0 | BN100: 0 | BO100: 0 | BP100: 0 | BQ100: 0 | BR100: 0 | BS100: 0 | BT100: 0 | BU100: 0 | BV100: 0 | BW100: 0 | BX100: 0 | BY100: 0 | BZ100: 0 | CA100: 0 | CB100: 0 | CC100: 0 | CD100: 0 | CE100: 0 | CF100: 0 | CG100: 0 | CH100: 0
A101: 118 | B101: 0 | C101: 0 | D101: 0 | E101: 0 | F101: 0 | G101: 0 | H101: 0 | I101: 0 | J101: 0 | K101: 0 | L101: 0 | M101: 0 | N101: 0 | O101: 0 | P101: 0 | Q101: 0 | R101: 0 | S101: 0 | T101: 0 | U101: 0 | V101: 0 | W101: 0 | X101: 0 | Y101: 0 | Z101: 0 | AA101: 0 | AB101: 0 | AC101: 0 | AD101: 0 | AE101: 0 | AF101: 0 | AG101: 0 | AH101: 0 | AI101: 0 | AJ101: 0 | AK101: 0 | AL101: 0 | AM101: 0 | AN101: 0 | AO101: 0 | AP101: 0 | AQ101: 0 | AR101: 0 | AS101: 0 | AT101: 0 | AU101: 0 | AV101: 0 | AW101: 0 | AX101: 0 | AY101: 0 | AZ101: 0 | BA101: 0 | BB101: 0 | BC101: 0 | BD101: 0 | BE101: 0 | BF101: 0 | BG101: 0 | BH101: 0 | BI101: 0 | BJ101: 0 | BK101: 0 | BL101: 0 | BM101: 0 | BN101: 0 | BO101: 0 | BP101: 0 | BQ101: 0 | BR101: 0 | BS101: 0 | BT101: 0 | BU101: 0 | BV101: 0 | BW101: 0 | BX101: 0 | BY101: 0 | BZ101: 0 | CA101: 0 | CB101: 0 | CC101: 0 | CD101: 0 | CE101: 0 | CF101: 0 | CG101: 0 | CH101: 0
A102: 119 | B102: 0 | C102: 0 | D102: 0 | E102: 0 | F102: 0 | G102: 0 | H102: 0 | I102: 0 | J102: 0 | K102: 0 | L102: 0 | M102: 0 | N102: 0 | O102: 0 | P102: 0 | Q102: 0 | R102: 0 | S102: 0 | T102: 0 | U102: 0 | V102: 0 | W102: 0 | X102: 0 | Y102: 0 | Z102: 0 | AA102: 0 | AB102: 0 | AC102: 0 | AD102: 0 | AE102: 0 | AF102: 0 | AG102: 0 | AH102: 0 | AI102: 0 | AJ102: 0 | AK102: 0 | AL102: 0 | AM102: 0 | AN102: 0 | AO102: 0 | AP102: 0 | AQ102: 0 | AR102: 0 | AS102: 0 | AT102: 0 | AU102: 0 | AV102: 0 | AW102: 0 | AX102: 0 | AY102: 0 | AZ102: 0 | BA102: 0 | BB102: 0 | BC102: 0 | BD102: 0 | BE102: 0 | BF102: 0 | BG102: 0 | BH102: 0 | BI102: 0 | BJ102: 0 | BK102: 0 | BL102: 0 | BM102: 0 | BN102: 0 | BO102: 0 | BP102: 0 | BQ102: 0 | BR102: 0 | BS102: 0 | BT102: 0 | BU102: 0 | BV102: 0 | BW102: 0 | BX102: 0 | BY102: 0 | BZ102: 0 | CA102: 0 | CB102: 0 | CC102: 0 | CD102: 0 | CE102: 0 | CF102: 0 | CG102: 0 | CH102: 0
A103: 120 | B103: 0 | C103: 0 | D103: 0 | E103: 0 | F103: 0 | G103: 0 | H103: 0 | I103: 0 | J103: 0 | K103: 0 | L103: 0 | M103: 0 | N103: 0 | O103: 0 | P103: 0 | Q103: 0 | R103: 0 | S103: 0 | T103: 0 | U103: 0 | V103: 0 | W103: 0 | X103: 0 | Y103: 0 | Z103: 0 | AA103: 0 | AB103: 0 | AC103: 0 | AD103: 0 | AE103: 0 | AF103: 0 | AG103: 0 | AH103: 0 | AI103: 0 | AJ103: 0 | AK103: 0 | AL103: 0 | AM103: 0 | AN103: 0 | AO103: 0 | AP103: 0 | AQ103: 0 | AR103: 0 | AS103: 0 | AT103: 0 | AU103: 0 | AV103: 0 | AW103: 0 | AX103: 0 | AY103: 0 | AZ103: 0 | BA103: 0 | BB103: 0 | BC103: 0 | BD103: 0 | BE103: 0 | BF103: 0 | BG103: 0 | BH103: 0 | BI103: 0 | BJ103: 0 | BK103: 0 | BL103: 0 | BM103: 0 | BN103: 0 | BO103: 0 | BP103: 0 | BQ103: 0 | BR103: 0 | BS103: 0 | BT103: 0 | BU103: 0 | BV103: 0 | BW103: 0 | BX103: 0 | BY103: 0 | BZ103: 0 | CA103: 0 | CB103: 0 | CC103: 0 | CD103: 0 | CE103: 0 | CF103: 0 | CG103: 0 | CH103: 0

Sheet Male Rev (hidden)
B1: O2-2019 - Male
C2: 1951 | L2: 1960 | V2: 1970 | AF2: 1980 | AP2: 1990 | AZ2: 2000 | BJ2: 2010 | BT2: 2020 | CD2: 2030
A3: 95 | B3: 95 | C3: =MIN(OFFSET(Male!B$18,'Male Rev'!$A3-35,0),0.03999) -> 0.0024 | D3: =MIN(OFFSET(Male!C$18,'Male Rev'!$A3-35,0),0.03999) -> 0.0024 | E3: =MIN(OFFSET(Male!D$18,'Male Rev'!$A3-35,0),0.03999) -> 0.0024 | F3: =MIN(OFFSET(Male!E$18,'Male Rev'!$A3-35,0),0.03999) -> 0.0024 | G3: =MIN(OFFSET(Male!F$18,'Male Rev'!$A3-35,0),0.03999) -> 0.0025 | H3: =MIN(OFFSET(Male!G$18,'Male Rev'!$A3-35,0),0.03999) -> 0.0026 | I3: =MIN(OFFSET(Male!H$18,'Male Rev'!$A3-35,0),0.03999) -> 0.0027 | J3: =MIN(OFFSET(Male!I$18,'Male Rev'!$A3-35,0),0.03999) -> 0.0029 | K3: =MIN(OFFSET(Male!J$18,'Male Rev'!$A3-35,0),0.03999) -> 0.003 | L3: =MIN(OFFSET(Male!K$18,'Male Rev'!$A3-35,0),0.03999) -> 0.0032 | M3: =MIN(OFFSET(Male!L$18,'Male Rev'!$A3-35,0),0.03999) -> 0.0034 | N3: =MIN(OFFSET(Male!M$18,'Male Rev'!$A3-35,0),0.03999) -> 0.0037 | O3: =MIN(OFFSET(Male!N$18,'Male Rev'!$A3-35,0),0.03999) -> 0.0039 | P3: =MIN(OFFSET(Male!O$18,'Male Rev'!$A3-35,0),0.03999) -> 0.0042 | Q3: =MIN(OFFSET(Male!P$18,'Male Rev'!$A3-35,0),0.03999) -> 0.0044 | R3: =MIN(OFFSET(Male!Q$18,'Male Rev'!$A3-35,0),0.03999) -> 0.0046 | S3: =MIN(OFFSET(Male!R$18,'Male Rev'!$A3-35,0),0.03999) -> 0.0048 | T3: =MIN(OFFSET(Male!S$18,'Male Rev'!$A3-35,0),0.03999) -> 0.005 | U3: =MIN(OFFSET(Male!T$18,'Male Rev'!$A3-35,0),0.03999) -> 0.0051 | V3: =MIN(OFFSET(Male!U$18,'Male Rev'!$A3-35,0),0.03999) -> 0.0052 | W3: =MIN(OFFSET(Male!V$18,'Male Rev'!$A3-35,0),0.03999) -> 0.0052 | X3: =MIN(OFFSET(Male!W$18,'Male Rev'!$A3-35,0),0.03999) -> 0.0051 | Y3: =MIN(OFFSET(Male!X$18,'Male Rev'!$A3-35,0),0.03999) -> 0.0051 | Z3: =MIN(OFFSET(Male!Y$18,'Male Rev'!$A3-35,0),0.03999) -> 0.0049 | AA3: =MIN(OFFSET(Male!Z$18,'Male Rev'!$A3-35,0),0.03999) -> 0.0047 | AB3: =MIN(OFFSET(Male!AA$18,'Male Rev'!$A3-35,0),0.03999) -> 0.0045 | AC3: =MIN(OFFSET(Male!AB$18,'Male Rev'!$A3-35,0),0.03999) -> 0.0042 | AD3: =MIN(OFFSET(Male!AC$18,'Male Rev'!$A3-35,0),0.03999) -> 0.0039 | AE3: =MIN(OFFSET(Male!AD$18,'Male Rev'!$A3-35,0),0.03999) -> 0.0035 | AF3: =MIN(OFFSET(Male!AE$18,'Male Rev'!$A3-35,0),0.03999) -> 0.0031 | AG3: =MIN(OFFSET(Male!AF$18,'Male Rev'!$A3-35,0),0.03999) -> 0.0026 | AH3: =MIN(OFFSET(Male!AG$18,'Male Rev'!$A3-35,0),0.03999) -> 0.0021 | AI3: =MIN(OFFSET(Male!AH$18,'Male Rev'!$A3-35,0),0.03999) -> 0.0016 | AJ3: =MIN(OFFSET(Male!AI$18,'Male Rev'!$A3-35,0),0.03999) -> 0.0011 | AK3: =MIN(OFFSET(Male!AJ$18,'Male Rev'!$A3-35,0),0.03999) -> 0.0007 | AL3: =MIN(OFFSET(Male!AK$18,'Male Rev'!$A3-35,0),0.03999) -> 0.0002 | AM3: =MIN(OFFSET(Male!AL$18,'Male Rev'!$A3-35,0),0.03999) -> -0.0002 | AN3: =MIN(OFFSET(Male!AM$18,'Male Rev'!$A3-35,0),0.03999) -> -0.0005 | AO3: =MIN(OFFSET(Male!AN$18,'Male Rev'!$A3-35,0),0.03999) -> -0.0008 | AP3: =MIN(OFFSET(Male!AO$18,'Male Rev'!$A3-35,0),0.03999) -> -0.001 | AQ3: =MIN(OFFSET(Male!AP$18,'Male Rev'!$A3-35,0),0.03999) -> -0.0012 | AR3: =MIN(OFFSET(Male!AQ$18,'Male Rev'!$A3-35,0),0.03999) -> -0.0012 | AS3: =MIN(OFFSET(Male!AR$18,'Male Rev'!$A3-35,0),0.03999) -> -0.0012 | AT3: =MIN(OFFSET(Male!AS$18,'Male Rev'!$A3-35,0),0.03999) -> -0.0011 | AU3: =MIN(OFFSET(Male!AT$18,'Male Rev'!$A3-35,0),0.03999) -> -0.0009 | AV3: =MIN(OFFSET(Male!AU$18,'Male Rev'!$A3-35,0),0.03999) -> -0.0007 | AW3: =MIN(OFFSET(Male!AV$18,'Male Rev'!$A3-35,0),0.03999) -> -0.0004 | AX3: =MIN(OFFSET(Male!AW$18,'Male Rev'!$A3-35,0),0.03999) -> 0 | AY3: =MIN(OFFSET(Male!AX$18,'Male Rev'!$A3-35,0),0.03999) -> 0.0005 | AZ3: =MIN(OFFSET(Male!AY$18,'Male Rev'!$A3-35,0),0.03999) -> 0.0009 | BA3: =MIN(OFFSET(Male!AZ$18,'Male Rev'!$A3-35,0),0.03999) -> 0.0015 | BB3: =MIN(OFFSET(Male!BA$18,'Male Rev'!$A3-35,0),0.03999) -> 0.002 | BC3: =MIN(OFFSET(Male!BB$18,'Male Rev'!$A3-35,0),0.03999) -> 0.0025 | BD3: =MIN(OFFSET(Male!BC$18,'Male Rev'!$A3-35,0),0.03999) -> 0.0031 | BE3: =MIN(OFFSET(Male!BD$18,'Male Rev'!$A3-35,0),0.03999) -> 0.0036 | BF3: =MIN(OFFSET(Male!BE$18,'Male Rev'!$A3-35,0),0.03999) -> 0.0041 | BG3: =MIN(OFFSET(Male!BF$18,'Male Rev'!$A3-35,0),0.03999) -> 0.0045 | BH3: =MIN(OFFSET(Male!BG$18,'Male Rev'!$A3-35,0),0.03999) -> 0.0049 | BI3: =MIN(OFFSET(Male!BH$18,'Male Rev'!$A3-35,0),0.03999) -> 0.0053 | BJ3: =MIN(OFFSET(Male!BI$18,'Male Rev'!$A3-35,0),0.03999) -> 0.0055 | BK3: =MIN(OFFSET(Male!BJ$18,'Male Rev'!$A3-35,0),0.03999) -> 0.0058 | BL3: =MIN(OFFSET(Male!BK$18,'Male Rev'!$A3-35,0),0.03999) -> 0.0059 | BM3: =MIN(OFFSET(Male!BL$18,'Male Rev'!$A3-35,0),0.03999) -> 0.0061 | BN3: =MIN(OFFSET(Male!BM$18,'Male Rev'!$A3-35,0),0.03999) -> 0.0062 | BO3: =MIN(OFFSET(Male!BN$18,'Male Rev'!$A3-35,0),0.03999) -> 0.0062 | BP3: =MIN(OFFSET(Male!BO$18,'Male Rev'!$A3-35,0),0.03999) -> 0.0065 | BQ3: =MIN(OFFSET(Male!BP$18,'Male Rev'!$A3-35,0),0.03999) -> 0.0068 | BR3: =MIN(OFFSET(Male!BQ$18,'Male Rev'!$A3-35,0),0.03999) -> 0.0071 | BS3: =MIN(OFFSET(Male!BR$18,'Male Rev'!$A3-35,0),0.03999) -> 0.0074 | BT3: =MIN(OFFSET(Male!BS$18,'Male Rev'!$A3-35,0),0.03999) -> 0.0076 | BU3: =MIN(OFFSET(Male!BT$18,'Male Rev'!$A3-35,0),0.03999) -> 0.0078 | BV3: =MIN(OFFSET(Male!BU$18,'Male Rev'!$A3-35,0),0.03999) -> 0.008 | BW3: =MIN(OFFSET(Male!BV$18,'Male Rev'!$A3-35,0),0.03999) -> 0.0081 | BX3: =MIN(OFFSET(Male!BW$18,'Male Rev'!$A3-35,0),0.03999) -> 0.0081 | BY3: =MIN(OFFSET(Male!BX$18,'Male Rev'!$A3-35,0),0.03999) -> 0.0081 | BZ3: =MIN(OFFSET(Male!BY$18,'Male Rev'!$A3-35,0),0.03999) -> 0.0081 | CA3: =MIN(OFFSET(Male!BZ$18,'Male Rev'!$A3-35,0),0.03999) -> 0.008 | CB3: =MIN(OFFSET(Male!CA$18,'Male Rev'!$A3-35,0),0.03999) -> 0.0079 | CC3: =MIN(OFFSET(Male!CB$18,'Male Rev'!$A3-35,0),0.03999) -> 0.0079 | CD3: =MIN(OFFSET(Male!CC$18,'Male Rev'!$A3-35,0),0.03999) -> 0.0079 | CE3: =MIN(OFFSET(Male!CD$18,'Male Rev'!$A3-35,0),0.03999) -> 0.0079 | CF3: =MIN(OFFSET(Male!CE$18,'Male Rev'!$A3-35,0),0.03999) -> 0.008 | CG3: =MIN(OFFSET(Male!CF$18,'Male Rev'!$A3-35,0),0.03999) -> 0.0081 | CH3: =MIN(OFFSET(Male!CG$18,'Male Rev'!$A3-35,0),0.03999) -> 0.0083 | CI3: =MIN(OFFSET(Male!CH$18,'Male Rev'!$A3-35,0),0.03999) -> 0.0085
A4: =A3-1 -> 94 | B4: =B3-1 -> 94 | C4: =MIN(OFFSET(Male!B$18,'Male Rev'!$A4-35,0),0.03999) -> 0.0022 | D4: =MIN(OFFSET(Male!C$18,'Male Rev'!$A4-35,0),0.03999) -> 0.0022 | E4: =MIN(OFFSET(Male!D$18,'Male Rev'!$A4-35,0),0.03999) -> 0.0022 | F4: =MIN(OFFSET(Male!E$18,'Male Rev'!$A4-35,0),0.03999) -> 0.0023 | G4: =MIN(OFFSET(Male!F$18,'Male Rev'!$A4-35,0),0.03999) -> 0.0023 | H4: =MIN(OFFSET(Male!G$18,'Male Rev'!$A4-35,0),0.03999) -> 0.0024 | I4: =MIN(OFFSET(Male!H$18,'Male Rev'!$A4-35,0),0.03999) -> 0.0025 | J4: =MIN(OFFSET(Male!I$18,'Male Rev'!$A4-35,0),0.03999) -> 0.0026 | K4: =MIN(OFFSET(Male!J$18,'Male Rev'!$A4-35,0),0.03999) -> 0.0028 | L4: =MIN(OFFSET(Male!K$18,'Male Rev'!$A4-35,0),0.03999) -> 0.003 | M4: =MIN(OFFSET(Male!L$18,'Male Rev'!$A4-35,0),0.03999) -> 0.0032 | N4: =MIN(OFFSET(Male!M$18,'Male Rev'!$A4-35,0),0.03999) -> 0.0035 | O4: =MIN(OFFSET(Male!N$18,'Male Rev'!$A4-35,0),0.03999) -> 0.0037 | P4: =MIN(OFFSET(Male!O$18,'Male Rev'!$A4-35,0),0.03999) -> 0.004 | Q4: =MIN(OFFSET(Male!P$18,'Male Rev'!$A4-35,0),0.03999) -> 0.0043 | R4: =MIN(OFFSET(Male!Q$18,'Male Rev'!$A4-35,0),0.03999) -> 0.0045 | S4: =MIN(OFFSET(Male!R$18,'Male Rev'!$A4-35,0),0.03999) -> 0.0048 | T4: =MIN(OFFSET(Male!S$18,'Male Rev'!$A4-35,0),0.03999) -> 0.005 | U4: =MIN(OFFSET(Male!T$18,'Male Rev'!$A4-35,0),0.03999) -> 0.0052 | V4: =MIN(OFFSET(Male!U$18,'Male Rev'!$A4-35,0),0.03999) -> 0.0053 | W4: =MIN(OFFSET(Male!V$18,'Male Rev'!$A4-35,0),0.03999) -> 0.0053 | X4: =MIN(OFFSET(Male!W$18,'Male Rev'!$A4-35,0),0.03999) -> 0.0054 | Y4: =MIN(OFFSET(Male!X$18,'Male Rev'!$A4-35,0),0.03999) -> 0.0053 | Z4: =MIN(OFFSET(Male!Y$18,'Male Rev'!$A4-35,0),0.03999) -> 0.0052 | AA4: =MIN(OFFSET(Male!Z$18,'Male Rev'!$A4-35,0),0.03999) -> 0.0051 | AB4: =MIN(OFFSET(Male!AA$18,'Male Rev'!$A4-35,0),0.03999) -> 0.0049 | AC4: =MIN(OFFSET(Male!AB$18,'Male Rev'!$A4-35,0),0.03999) -> 0.0046 | AD4: =MIN(OFFSET(Male!AC$18,'Male Rev'!$A4-35,0),0.03999) -> 0.0043 | AE4: =MIN(OFFSET(Male!AD$18,'Male Rev'!$A4-35,0),0.03999) -> 0.0039 | AF4: =MIN(OFFSET(Male!AE$18,'Male Rev'!$A4-35,0),0.03999) -> 0.0035 | AG4: =MIN(OFFSET(Male!AF$18,'Male Rev'!$A4-35,0),0.03999) -> 0.003 | AH4: =MIN(OFFSET(Male!AG$18,'Male Rev'!$A4-35,0),0.03999) -> 0.0026 | AI4: =MIN(OFFSET(Male!AH$18,'Male Rev'!$A4-35,0),0.03999) -> 0.0021 | AJ4: =MIN(OFFSET(Male!AI$18,'Male Rev'!$A4-35,0),0.03999) -> 0.0016 | AK4: =MIN(OFFSET(Male!AJ$18,'Male Rev'!$A4-35,0),0.03999) -> 0.0012 | AL4: =MIN(OFFSET(Male!AK$18,'Male Rev'!$A4-35,0),0.03999) -> 0.0008 | AM4: =MIN(OFFSET(Male!AL$18,'Male Rev'!$A4-35,0),0.03999) -> 0.0004 | AN4: =MIN(OFFSET(Male!AM$18,'Male Rev'!$A4-35,0),0.03999) -> 0.0001 | AO4: =MIN(OFFSET(Male!AN$18,'Male Rev'!$A4-35,0),0.03999) -> -0.0002 | AP4: =MIN(OFFSET(Male!AO$18,'Male Rev'!$A4-35,0),0.03999) -> -0.0003 | AQ4: =MIN(OFFSET(Male!AP$18,'Male Rev'!$A4-35,0),0.03999) -> -0.0005 | AR4: =MIN(OFFSET(Male!AQ$18,'Male Rev'!$A4-35,0),0.03999) -> -0.0005 | AS4: =MIN(OFFSET(Male!AR$18,'Male Rev'!$A4-35,0),0.03999) -> -0.0004 | AT4: =MIN(OFFSET(Male!AS$18,'Male Rev'!$A4-35,0),0.03999) -> -0.0003 | AU4: =MIN(OFFSET(Male!AT$18,'Male Rev'!$A4-35,0),0.03999) -> -0.0001 | AV4: =MIN(OFFSET(Male!AU$18,'Male Rev'!$A4-35,0),0.03999) -> 0.0002 | AW4: =MIN(OFFSET(Male!AV$18,'Male Rev'!$A4-35,0),0.03999) -> 0.0006 | AX4: =MIN(OFFSET(Male!AW$18,'Male Rev'!$A4-35,0),0.03999) -> 0.001 | AY4: =MIN(OFFSET(Male!AX$18,'Male Rev'!$A4-35,0),0.03999) -> 0.0015 | AZ4: =MIN(OFFSET(Male!AY$18,'Male Rev'!$A4-35,0),0.03999) -> 0.002 | BA4: =MIN(OFFSET(Male!AZ$18,'Male Rev'!$A4-35,0),0.03999) -> 0.0025 | BB4: =MIN(OFFSET(Male!BA$18,'Male Rev'!$A4-35,0),0.03999) -> 0.0031 | BC4: =MIN(OFFSET(Male!BB$18,'Male Rev'!$A4-35,0),0.03999) -> 0.0037 | BD4: =MIN(OFFSET(Male!BC$18,'Male Rev'!$A4-35,0),0.03999) -> 0.0042 | BE4: =MIN(OFFSET(Male!BD$18,'Male Rev'!$A4-35,0),0.03999) -> 0.0047 | BF4: =MIN(OFFSET(Male!BE$18,'Male Rev'!$A4-35,0),0.03999) -> 0.0052 | BG4: =MIN(OFFSET(Male!BF$18,'Male Rev'!$A4-35,0),0.03999) -> 0.0056 | BH4: =MIN(OFFSET(Male!BG$18,'Male Rev'!$A4-35,0),0.03999) -> 0.0059 | BI4: =MIN(OFFSET(Male!BH$18,'Male Rev'!$A4-35,0),0.03999) -> 0.0062 | BJ4: =MIN(OFFSET(Male!BI$18,'Male Rev'!$A4-35,0),0.03999) -> 0.0064 | BK4: =MIN(OFFSET(Male!BJ$18,'Male Rev'!$A4-35,0),0.03999) -> 0.0065 | BL4: =MIN(OFFSET(Male!BK$18,'Male Rev'!$A4-35,0),0.03999) -> 0.0066 | BM4: =MIN(OFFSET(Male!BL$18,'Male Rev'!$A4-35,0),0.03999) -> 0.0067 | BN4: =MIN(OFFSET(Male!BM$18,'Male Rev'!$A4-35,0),0.03999) -> 0.0067 | BO4: =MIN(OFFSET(Male!BN$18,'Male Rev'!$A4-35,0),0.03999) -> 0.0068 | BP4: =MIN(OFFSET(Male!BO$18,'Male Rev'!$A4-35,0),0.03999) -> 0.007 | BQ4: =MIN(OFFSET(Male!BP$18,'Male Rev'!$A4-35,0),0.03999) -> 0.0073 | BR4: =MIN(OFFSET(Male!BQ$18,'Male Rev'!$A4-35,0),0.03999) -> 0.0076 | BS4: =MIN(OFFSET(Male!BR$18,'Male Rev'!$A4-35,0),0.03999) -> 0.0078 | BT4: =MIN(OFFSET(Male!BS$18,'Male Rev'!$A4-35,0),0.03999) -> 0.008 | BU4: =MIN(OFFSET(Male!BT$18,'Male Rev'!$A4-35,0),0.03999) -> 0.0082 | BV4: =MIN(OFFSET(Male!BU$18,'Male Rev'!$A4-35,0),0.03999) -> 0.0083 | BW4: =MIN(OFFSET(Male!BV$18,'Male Rev'!$A4-35,0),0.03999) -> 0.0084 | BX4: =MIN(OFFSET(Male!BW$18,'Male Rev'!$A4-35,0),0.03999) -> 0.0084 | BY4: =MIN(OFFSET(Male!BX$18,'Male Rev'!$A4-35,0),0.03999) -> 0.0084 | BZ4: =MIN(OFFSET(Male!BY$18,'Male Rev'!$A4-35,0),0.03999) -> 0.0083 | CA4: =MIN(OFFSET(Male!BZ$18,'Male Rev'!$A4-35,0),0.03999) -> 0.0083 | CB4: =MIN(OFFSET(Male!CA$18,'Male Rev'!$A4-35,0),0.03999) -> 0.0082 | CC4: =MIN(OFFSET(Male!CB$18,'Male Rev'!$A4-35,0),0.03999) -> 0.0082 | CD4: =MIN(OFFSET(Male!CC$18,'Male Rev'!$A4-35,0),0.03999) -> 0.0082 | CE4: =MIN(OFFSET(Male!CD$18,'Male Rev'!$A4-35,0),0.03999) -> 0.0082 | CF4: =MIN(OFFSET(Male!CE$18,'Male Rev'!$A4-35,0),0.03999) -> 0.0083 | CG4: =MIN(OFFSET(Male!CF$18,'Male Rev'!$A4-35,0),0.03999) -> 0.0084 | CH4: =MIN(OFFSET(Male!CG$18,'Male Rev'!$A4-35,0),0.03999) -> 0.0086 | CI4: =MIN(OFFSET(Male!CH$18,'Male Rev'!$A4-35,0),0.03999) -> 0.0087
A5: =A4-1 -> 93 | B5: 93 | C5: =MIN(OFFSET(Male!B$18,'Male Rev'!$A5-35,0),0.03999) -> 0.0021 | D5: =MIN(OFFSET(Male!C$18,'Male Rev'!$A5-35,0),0.03999) -> 0.0021 | E5: =MIN(OFFSET(Male!D$18,'Male Rev'!$A5-35,0),0.03999) -> 0.0021 | F5: =MIN(OFFSET(Male!E$18,'Male Rev'!$A5-35,0),0.03999) -> 0.0021 | G5: =MIN(OFFSET(Male!F$18,'Male Rev'!$A5-35,0),0.03999) -> 0.0021 | H5: =MIN(OFFSET(Male!G$18,'Male Rev'!$A5-35,0),0.03999) -> 0.0022 | I5: =MIN(OFFSET(Male!H$18,'Male Rev'!$A5-35,0),0.03999) -> 0.0023 | J5: =MIN(OFFSET(Male!I$18,'Male Rev'!$A5-35,0),0.03999) -> 0.0024 | K5: =MIN(OFFSET(Male!J$18,'Male Rev'!$A5-35,0),0.03999) -> 0.0026 | L5: =MIN(OFFSET(Male!K$18,'Male Rev'!$A5-35,0),0.03999) -> 0.0028 | M5: =MIN(OFFSET(Male!L$18,'Male Rev'!$A5-35,0),0.03999) -> 0.003 | N5: =MIN(OFFSET(Male!M$18,'Male Rev'!$A5-35,0),0.03999) -> 0.0033 | O5: =MIN(OFFSET(Male!N$18,'Male Rev'!$A5-35,0),0.03999) -> 0.0036 | P5: =MIN(OFFSET(Male!O$18,'Male Rev'!$A5-35,0),0.03999) -> 0.0039 | Q5: =MIN(OFFSET(Male!P$18,'Male Rev'!$A5-35,0),0.03999) -> 0.0042 | R5: =MIN(OFFSET(Male!Q$18,'Male Rev'!$A5-35,0),0.03999) -> 0.0045 | S5: =MIN(OFFSET(Male!R$18,'Male Rev'!$A5-35,0),0.03999) -> 0.0048 | T5: =MIN(OFFSET(Male!S$18,'Male Rev'!$A5-35,0),0.03999) -> 0.005 | U5: =MIN(OFFSET(Male!T$18,'Male Rev'!$A5-35,0),0.03999) -> 0.0052 | V5: =MIN(OFFSET(Male!U$18,'Male Rev'!$A5-35,0),0.03999) -> 0.0054 | W5: =MIN(OFFSET(Male!V$18,'Male Rev'!$A5-35,0),0.03999) -> 0.0055 | X5: =MIN(OFFSET(Male!W$18,'Male Rev'!$A5-35,0),0.03999) -> 0.0056 | Y5: =MIN(OFFSET(Male!X$18,'Male Rev'!$A5-35,0),0.03999) -> 0.0056 | Z5: =MIN(OFFSET(Male!Y$18,'Male Rev'!$A5-35,0),0.03999) -> 0.0055 | AA5: =MIN(OFFSET(Male!Z$18,'Male Rev'!$A5-35,0),0.03999) -> 0.0054 | AB5: =MIN(OFFSET(Male!AA$18,'Male Rev'!$A5-35,0),0.03999) -> 0.0052 | AC5: =MIN(OFFSET(Male!AB$18,'Male Rev'!$A5-35,0),0.03999) -> 0.005 | AD5: =MIN(OFFSET(Male!AC$18,'Male Rev'!$A5-35,0),0.03999) -> 0.0047 | AE5: =MIN(OFFSET(Male!AD$18,'Male Rev'!$A5-35,0),0.03999) -> 0.0043 | AF5: =MIN(OFFSET(Male!AE$18,'Male Rev'!$A5-35,0),0.03999) -> 0.0039 | AG5: =MIN(OFFSET(Male!AF$18,'Male Rev'!$A5-35,0),0.03999) -> 0.0035 | AH5: =MIN(OFFSET(Male!AG$18,'Male Rev'!$A5-35,0),0.03999) -> 0.003 | AI5: =MIN(OFFSET(Male!AH$18,'Male Rev'!$A5-35,0),0.03999) -> 0.0026 | AJ5: =MIN(OFFSET(Male!AI$18,'Male Rev'!$A5-35,0),0.03999) -> 0.0021 | AK5: =MIN(OFFSET(Male!AJ$18,'Male Rev'!$A5-35,0),0.03999) -> 0.0017 | AL5: =MIN(OFFSET(Male!AK$18,'Male Rev'!$A5-35,0),0.03999) -> 0.0013 | AM5: =MIN(OFFSET(Male!AL$18,'Male Rev'!$A5-35,0),0.03999) -> 0.001 | AN5: =MIN(OFFSET(Male!AM$18,'Male Rev'!$A5-35,0),0.03999) -> 0.0007 | AO5: =MIN(OFFSET(Male!AN$18,'Male Rev'!$A5-35,0),0.03999) -> 0.0005 | AP5: =MIN(OFFSET(Male!AO$18,'Male Rev'!$A5-35,0),0.03999) -> 0.0003 | AQ5: =MIN(OFFSET(Male!AP$18,'Male Rev'!$A5-35,0),0.03999) -> 0.0002 | AR5: =MIN(OFFSET(Male!AQ$18,'Male Rev'!$A5-35,0),0.03999) -> 0.0002 | AS5: =MIN(OFFSET(Male!AR$18,'Male Rev'!$A5-35,0),0.03999) -> 0.0003 | AT5: =MIN(OFFSET(Male!AS$18,'Male Rev'!$A5-35,0),0.03999) -> 0.0005 | AU5: =MIN(OFFSET(Male!AT$18,'Male Rev'!$A5-35,0),0.03999) -> 0.0007 | AV5: =MIN(OFFSET(Male!AU$18,'Male Rev'!$A5-35,0),0.03999) -> 0.0011 | AW5: =MIN(OFFSET(Male!AV$18,'Male Rev'!$A5-35,0),0.03999) -> 0.0015 | AX5: =MIN(OFFSET(Male!AW$18,'Male Rev'!$A5-35,0),0.03999) -> 0.002 | AY5: =MIN(OFFSET(Male!AX$18,'Male Rev'!$A5-35,0),0.03999) -> 0.0025 | AZ5: =MIN(OFFSET(Male!AY$18,'Male Rev'!$A5-35,0),0.03999) -> 0.003 | BA5: =MIN(OFFSET(Male!AZ$18,'Male Rev'!$A5-35,0),0.03999) -> 0.0036 | BB5: =MIN(OFFSET(Male!BA$18,'Male Rev'!$A5-35,0),0.03999) -> 0.0042 | BC5: =MIN(OFFSET(Male!BB$18,'Male Rev'!$A5-35,0),0.03999) -> 0.0048 | BD5: =MIN(OFFSET(Male!BC$18,'Male Rev'!$A5-35,0),0.03999) -> 0.0053 | BE5: =MIN(OFFSET(Male!BD$18,'Male Rev'!$A5-35,0),0.03999) -> 0.0058 | BF5: =MIN(OFFSET(Male!BE$18,'Male Rev'!$A5-35,0),0.03999) -> 0.0062 | BG5: =MIN(OFFSET(Male!BF$18,'Male Rev'!$A5-35,0),0.03999) -> 0.0066 | BH5: =MIN(OFFSET(Male!BG$18,'Male Rev'!$A5-35,0),0.03999) -> 0.0069 | BI5: =MIN(OFFSET(Male!BH$18,'Male Rev'!$A5-35,0),0.03999) -> 0.0071 | BJ5: =MIN(OFFSET(Male!BI$18,'Male Rev'!$A5-35,0),0.03999) -> 0.0072 | BK5: =MIN(OFFSET(Male!BJ$18,'Male Rev'!$A5-35,0),0.03999) -> 0.0073 | BL5: =MIN(OFFSET(Male!BK$18,'Male Rev'!$A5-35,0),0.03999) -> 0.0073 | BM5: =MIN(OFFSET(Male!BL$18,'Male Rev'!$A5-35,0),0.03999) -> 0.0073 | BN5: =MIN(OFFSET(Male!BM$18,'Male Rev'!$A5-35,0),0.03999) -> 0.0073 | BO5: =MIN(OFFSET(Male!BN$18,'Male Rev'!$A5-35,0),0.03999) -> 0.0073 | BP5: =MIN(OFFSET(Male!BO$18,'Male Rev'!$A5-35,0),0.03999) -> 0.0076 | BQ5: =MIN(OFFSET(Male!BP$18,'Male Rev'!$A5-35,0),0.03999) -> 0.0078 | BR5: =MIN(OFFSET(Male!BQ$18,'Male Rev'!$A5-35,0),0.03999) -> 0.0081 | BS5: =MIN(OFFSET(Male!BR$18,'Male Rev'!$A5-35,0),0.03999) -> 0.0083 | BT5: =MIN(OFFSET(Male!BS$18,'Male Rev'!$A5-35,0),0.03999) -> 0.0085 | BU5: =MIN(OFFSET(Male!BT$18,'Male Rev'!$A5-35,0),0.03999) -> 0.0086 | BV5: =MIN(OFFSET(Male!BU$18,'Male Rev'!$A5-35,0),0.03999) -> 0.0087 | BW5: =MIN(OFFSET(Male!BV$18,'Male Rev'!$A5-35,0),0.03999) -> 0.0087 | BX5: =MIN(OFFSET(Male!BW$18,'Male Rev'!$A5-35,0),0.03999) -> 0.0087 | BY5: =MIN(OFFSET(Male!BX$18,'Male Rev'!$A5-35,0),0.03999) -> 0.0086 | BZ5: =MIN(OFFSET(Male!BY$18,'Male Rev'!$A5-35,0),0.03999) -> 0.0086 | CA5: =MIN(OFFSET(Male!BZ$18,'Male Rev'!$A5-35,0),0.03999) -> 0.0085 | CB5: =MIN(OFFSET(Male!CA$18,'Male Rev'!$A5-35,0),0.03999) -> 0.0084 | CC5: =MIN(OFFSET(Male!CB$18,'Male Rev'!$A5-35,0),0.03999) -> 0.0084 | CD5: =MIN(OFFSET(Male!CC$18,'Male Rev'!$A5-35,0),0.03999) -> 0.0084 | CE5: =MIN(OFFSET(Male!CD$18,'Male Rev'!$A5-35,0),0.03999) -> 0.0085 | CF5: =MIN(OFFSET(Male!CE$18,'Male Rev'!$A5-35,0),0.03999) -> 0.0086 | CG5: =MIN(OFFSET(Male!CF$18,'Male Rev'!$A5-35,0),0.03999) -> 0.0087 | CH5: =MIN(OFFSET(Male!CG$18,'Male Rev'!$A5-35,0),0.03999) -> 0.0087 | CI5: =MIN(OFFSET(Male!CH$18,'Male Rev'!$A5-35,0),0.03999) -> 0.0088
A6: 92 | B6: 92 | C6: =MIN(OFFSET(Male!B$18,'Male Rev'!$A6-35,0),0.03999) -> 0.0019 | D6: =MIN(OFFSET(Male!C$18,'Male Rev'!$A6-35,0),0.03999) -> 0.0019 | E6: =MIN(OFFSET(Male!D$18,'Male Rev'!$A6-35,0),0.03999) -> 0.0019 | F6: =MIN(OFFSET(Male!E$18,'Male Rev'!$A6-35,0),0.03999) -> 0.0019 | G6: =MIN(OFFSET(Male!F$18,'Male Rev'!$A6-35,0),0.03999) -> 0.002 | H6: =MIN(OFFSET(Male!G$18,'Male Rev'!$A6-35,0),0.03999) -> 0.002 | I6: =MIN(OFFSET(Male!H$18,'Male Rev'!$A6-35,0),0.03999) -> 0.0021 | J6: =MIN(OFFSET(Male!I$18,'Male Rev'!$A6-35,0),0.03999) -> 0.0022 | K6: =MIN(OFFSET(Male!J$18,'Male Rev'!$A6-35,0),0.03999) -> 0.0024 | L6: =MIN(OFFSET(Male!K$18,'Male Rev'!$A6-35,0),0.03999) -> 0.0026 | M6: =MIN(OFFSET(Male!L$18,'Male Rev'!$A6-35,0),0.03999) -> 0.0028 | N6: =MIN(OFFSET(Male!M$18,'Male Rev'!$A6-35,0),0.03999) -> 0.0031 | O6: =MIN(OFFSET(Male!N$18,'Male Rev'!$A6-35,0),0.03999) -> 0.0034 | P6: =MIN(OFFSET(Male!O$18,'Male Rev'!$A6-35,0),0.03999) -> 0.0037 | Q6: =MIN(OFFSET(Male!P$18,'Male Rev'!$A6-35,0),0.03999) -> 0.0041 | R6: =MIN(OFFSET(Male!Q$18,'Male Rev'!$A6-35,0),0.03999) -> 0.0044 | S6: =MIN(OFFSET(Male!R$18,'Male Rev'!$A6-35,0),0.03999) -> 0.0047 | T6: =MIN(OFFSET(Male!S$18,'Male Rev'!$A6-35,0),0.03999) -> 0.005 | U6: =MIN(OFFSET(Male!T$18,'Male Rev'!$A6-35,0),0.03999) -> 0.0053 | V6: =MIN(OFFSET(Male!U$18,'Male Rev'!$A6-35,0),0.03999) -> 0.0055 | W6: =MIN(OFFSET(Male!V$18,'Male Rev'!$A6-35,0),0.03999) -> 0.0057 | X6: =MIN(OFFSET(Male!W$18,'Male Rev'!$A6-35,0),0.03999) -> 0.0058 | Y6: =MIN(OFFSET(Male!X$18,'Male Rev'!$A6-35,0),0.03999) -> 0.0058 | Z6: =MIN(OFFSET(Male!Y$18,'Male Rev'!$A6-35,0),0.03999) -> 0.0058 | AA6: =MIN(OFFSET(Male!Z$18,'Male Rev'!$A6-35,0),0.03999) -> 0.0057 | AB6: =MIN(OFFSET(Male!AA$18,'Male Rev'!$A6-35,0),0.03999) -> 0.0056 | AC6: =MIN(OFFSET(Male!AB$18,'Male Rev'!$A6-35,0),0.03999) -> 0.0053 | AD6: =MIN(OFFSET(Male!AC$18,'Male Rev'!$A6-35,0),0.03999) -> 0.0051 | AE6: =MIN(OFFSET(Male!AD$18,'Male Rev'!$A6-35,0),0.03999) -> 0.0047 | AF6: =MIN(OFFSET(Male!AE$18,'Male Rev'!$A6-35,0),0.03999) -> 0.0043 | AG6: =MIN(OFFSET(Male!AF$18,'Male Rev'!$A6-35,0),0.03999) -> 0.0039 | AH6: =MIN(OFFSET(Male!AG$18,'Male Rev'!$A6-35,0),0.03999) -> 0.0035 | AI6: =MIN(OFFSET(Male!AH$18,'Male Rev'!$A6-35,0),0.03999) -> 0.003 | AJ6: =MIN(OFFSET(Male!AI$18,'Male Rev'!$A6-35,0),0.03999) -> 0.0026 | AK6: =MIN(OFFSET(Male!AJ$18,'Male Rev'!$A6-35,0),0.03999) -> 0.0022 | AL6: =MIN(OFFSET(Male!AK$18,'Male Rev'!$A6-35,0),0.03999) -> 0.0018 | AM6: =MIN(OFFSET(Male!AL$18,'Male Rev'!$A6-35,0),0.03999) -> 0.0015 | AN6: =MIN(OFFSET(Male!AM$18,'Male Rev'!$A6-35,0),0.03999) -> 0.0013 | AO6: =MIN(OFFSET(Male!AN$18,'Male Rev'!$A6-35,0),0.03999) -> 0.0011 | AP6: =MIN(OFFSET(Male!AO$18,'Male Rev'!$A6-35,0),0.03999) -> 0.001 | AQ6: =MIN(OFFSET(Male!AP$18,'Male Rev'!$A6-35,0),0.03999) -> 0.001 | AR6: =MIN(OFFSET(Male!AQ$18,'Male Rev'!$A6-35,0),0.03999) -> 0.001 | AS6: =MIN(OFFSET(Male!AR$18,'Male Rev'!$A6-35,0),0.03999) -> 0.0011 | AT6: =MIN(OFFSET(Male!AS$18,'Male Rev'!$A6-35,0),0.03999) -> 0.0013 | AU6: =MIN(OFFSET(Male!AT$18,'Male Rev'!$A6-35,0),0.03999) -> 0.0016 | AV6: =MIN(OFFSET(Male!AU$18,'Male Rev'!$A6-35,0),0.03999) -> 0.002 | AW6: =MIN(OFFSET(Male!AV$18,'Male Rev'!$A6-35,0),0.03999) -> 0.0024 | AX6: =MIN(OFFSET(Male!AW$18,'Male Rev'!$A6-35,0),0.03999) -> 0.0029 | AY6: =MIN(OFFSET(Male!AX$18,'Male Rev'!$A6-35,0),0.03999) -> 0.0035 | AZ6: =MIN(OFFSET(Male!AY$18,'Male Rev'!$A6-35,0),0.03999) -> 0.0041 | BA6: =MIN(OFFSET(Male!AZ$18,'Male Rev'!$A6-35,0),0.03999) -> 0.0047 | BB6: =MIN(OFFSET(Male!BA$18,'Male Rev'!$A6-35,0),0.03999) -> 0.0053 | BC6: =MIN(OFFSET(Male!BB$18,'Male Rev'!$A6-35,0),0.03999) -> 0.0059 | BD6: =MIN(OFFSET(Male!BC$18,'Male Rev'!$A6-35,0),0.03999) -> 0.0065 | BE6: =MIN(OFFSET(Male!BD$18,'Male Rev'!$A6-35,0),0.03999) -> 0.0069 | BF6: =MIN(OFFSET(Male!BE$18,'Male Rev'!$A6-35,0),0.03999) -> 0.0073 | BG6: =MIN(OFFSET(Male!BF$18,'Male Rev'!$A6-35,0),0.03999) -> 0.0076 | BH6: =MIN(OFFSET(Male!BG$18,'Male Rev'!$A6-35,0),0.03999) -> 0.0078 | BI6: =MIN(OFFSET(Male!BH$18,'Male Rev'!$A6-35,0),0.03999) -> 0.008 | BJ6: =MIN(OFFSET(Male!BI$18,'Male Rev'!$A6-35,0),0.03999) -> 0.008 | BK6: =MIN(OFFSET(Male!BJ$18,'Male Rev'!$A6-35,0),0.03999) -> 0.008 | BL6: =MIN(OFFSET(Male!BK$18,'Male Rev'!$A6-35,0),0.03999) -> 0.008 | BM6: =MIN(OFFSET(Male!BL$18,'Male Rev'!$A6-35,0),0.03999) -> 0.008 | BN6: =MIN(OFFSET(Male!BM$18,'Male Rev'!$A6-35,0),0.03999) -> 0.0079 | BO6: =MIN(OFFSET(Male!BN$18,'Male Rev'!$A6-35,0),0.03999) -> 0.0079 | BP6: =MIN(OFFSET(Male!BO$18,'Male Rev'!$A6-35,0),0.03999) -> 0.0081 | BQ6: =MIN(OFFSET(Male!BP$18,'Male Rev'!$A6-35,0),0.03999) -> 0.0084 | BR6: =MIN(OFFSET(Male!BQ$18,'Male Rev'!$A6-35,0),0.03999) -> 0.0086 | BS6: =MIN(OFFSET(Male!BR$18,'Male Rev'!$A6-35,0),0.03999) -> 0.0087 | BT6: =MIN(OFFSET(Male!BS$18,'Male Rev'!$A6-35,0),0.03999) -> 0.0089 | BU6: =MIN(OFFSET(Male!BT$18,'Male Rev'!$A6-35,0),0.03999) -> 0.0089 | BV6: =MIN(OFFSET(Male!BU$18,'Male Rev'!$A6-35,0),0.03999) -> 0.009 | BW6: =MIN(OFFSET(Male!BV$18,'Male Rev'!$A6-35,0),0.03999) -> 0.009 | BX6: =MIN(OFFSET(Male!BW$18,'Male Rev'!$A6-35,0),0.03999) -> 0.009 | BY6: =MIN(OFFSET(Male!BX$18,'Male Rev'!$A6-35,0),0.03999) -> 0.0089 | BZ6: =MIN(OFFSET(Male!BY$18,'Male Rev'!$A6-35,0),0.03999) -> 0.0088 | CA6: =MIN(OFFSET(Male!BZ$18,'Male Rev'!$A6-35,0),0.03999) -> 0.0087 | CB6: =MIN(OFFSET(Male!CA$18,'Male Rev'!$A6-35,0),0.03999) -> 0.0087 | CC6: =MIN(OFFSET(Male!CB$18,'Male Rev'!$A6-35,0),0.03999) -> 0.0086 | CD6: =MIN(OFFSET(Male!CC$18,'Male Rev'!$A6-35,0),0.03999) -> 0.0087 | CE6: =MIN(OFFSET(Male!CD$18,'Male Rev'!$A6-35,0),0.03999) -> 0.0087 | CF6: =MIN(OFFSET(Male!CE$18,'Male Rev'!$A6-35,0),0.03999) -> 0.0088 | CG6: =MIN(OFFSET(Male!CF$18,'Male Rev'!$A6-35,0),0.03999) -> 0.0088 | CH6: =MIN(OFFSET(Male!CG$18,'Male Rev'!$A6-35,0),0.03999) -> 0.0089 | CI6: =MIN(OFFSET(Male!CH$18,'Male Rev'!$A6-35,0),0.03999) -> 0.009
A7: 91 | B7: 91 | C7: =MIN(OFFSET(Male!B$18,'Male Rev'!$A7-35,0),0.03999) -> 0.0018 | D7: =MIN(OFFSET(Male!C$18,'Male Rev'!$A7-35,0),0.03999) -> 0.0018 | E7: =MIN(OFFSET(Male!D$18,'Male Rev'!$A7-35,0),0.03999) -> 0.0018 | F7: =MIN(OFFSET(Male!E$18,'Male Rev'!$A7-35,0),0.03999) -> 0.0018 | G7: =MIN(OFFSET(Male!F$18,'Male Rev'!$A7-35,0),0.03999) -> 0.0018 | H7: =MIN(OFFSET(Male!G$18,'Male Rev'!$A7-35,0),0.03999) -> 0.0018 | I7: =MIN(OFFSET(Male!H$18,'Male Rev'!$A7-35,0),0.03999) -> 0.0019 | J7: =MIN(OFFSET(Male!I$18,'Male Rev'!$A7-35,0),0.03999) -> 0.002 | K7: =MIN(OFFSET(Male!J$18,'Male Rev'!$A7-35,0),0.03999) -> 0.0022 | L7: =MIN(OFFSET(Male!K$18,'Male Rev'!$A7-35,0),0.03999) -> 0.0024 | M7: =MIN(OFFSET(Male!L$18,'Male Rev'!$A7-35,0),0.03999) -> 0.0026 | N7: =MIN(OFFSET(Male!M$18,'Male Rev'!$A7-35,0),0.03999) -> 0.0029 | O7: =MIN(OFFSET(Male!N$18,'Male Rev'!$A7-35,0),0.03999) -> 0.0032 | P7: =MIN(OFFSET(Male!O$18,'Male Rev'!$A7-35,0),0.03999) -> 0.0036 | Q7: =MIN(OFFSET(Male!P$18,'Male Rev'!$A7-35,0),0.03999) -> 0.0039 | R7: =MIN(OFFSET(Male!Q$18,'Male Rev'!$A7-35,0),0.03999) -> 0.0043 | S7: =MIN(OFFSET(Male!R$18,'Male Rev'!$A7-35,0),0.03999) -> 0.0047 | T7: =MIN(OFFSET(Male!S$18,'Male Rev'!$A7-35,0),0.03999) -> 0.005 | U7: =MIN(OFFSET(Male!T$18,'Male Rev'!$A7-35,0),0.03999) -> 0.0053 | V7: =MIN(OFFSET(Male!U$18,'Male Rev'!$A7-35,0),0.03999) -> 0.0056 | W7: =MIN(OFFSET(Male!V$18,'Male Rev'!$A7-35,0),0.03999) -> 0.0058 | X7: =MIN(OFFSET(Male!W$18,'Male Rev'!$A7-35,0),0.03999) -> 0.006 | Y7: =MIN(OFFSET(Male!X$18,'Male Rev'!$A7-35,0),0.03999) -> 0.0061 | Z7: =MIN(OFFSET(Male!Y$18,'Male Rev'!$A7-35,0),0.03999) -> 0.0061 | AA7: =MIN(OFFSET(Male!Z$18,'Male Rev'!$A7-35,0),0.03999) -> 0.0061 | AB7: =MIN(OFFSET(Male!AA$18,'Male Rev'!$A7-35,0),0.03999) -> 0.0059 | AC7: =MIN(OFFSET(Male!AB$18,'Male Rev'!$A7-35,0),0.03999) -> 0.0057 | AD7: =MIN(OFFSET(Male!AC$18,'Male Rev'!$A7-35,0),0.03999) -> 0.0055 | AE7: =MIN(OFFSET(Male!AD$18,'Male Rev'!$A7-35,0),0.03999) -> 0.0051 | AF7: =MIN(OFFSET(Male!AE$18,'Male Rev'!$A7-35,0),0.03999) -> 0.0048 | AG7: =MIN(OFFSET(Male!AF$18,'Male Rev'!$A7-35,0),0.03999) -> 0.0044 | AH7: =MIN(OFFSET(Male!AG$18,'Male Rev'!$A7-35,0),0.03999) -> 0.0039 | AI7: =MIN(OFFSET(Male!AH$18,'Male Rev'!$A7-35,0),0.03999) -> 0.0035 | AJ7: =MIN(OFFSET(Male!AI$18,'Male Rev'!$A7-35,0),0.03999) -> 0.0031 | AK7: =MIN(OFFSET(Male!AJ$18,'Male Rev'!$A7-35,0),0.03999) -> 0.0027 | AL7: =MIN(OFFSET(Male!AK$18,'Male Rev'!$A7-35,0),0.03999) -> 0.0024 | AM7: =MIN(OFFSET(Male!AL$18,'Male Rev'!$A7-35,0),0.03999) -> 0.0021 | AN7: =MIN(OFFSET(Male!AM$18,'Male Rev'!$A7-35,0),0.03999) -> 0.0019 | AO7: =MIN(OFFSET(Male!AN$18,'Male Rev'!$A7-35,0),0.03999) -> 0.0018 | AP7: =MIN(OFFSET(Male!AO$18,'Male Rev'!$A7-35,0),0.03999) -> 0.0017 | AQ7: =MIN(OFFSET(Male!AP$18,'Male Rev'!$A7-35,0),0.03999) -> 0.0017 | AR7: =MIN(OFFSET(Male!AQ$18,'Male Rev'!$A7-35,0),0.03999) -> 0.0017 | AS7: =MIN(OFFSET(Male!AR$18,'Male Rev'!$A7-35,0),0.03999) -> 0.0019 | AT7: =MIN(OFFSET(Male!AS$18,'Male Rev'!$A7-35,0),0.03999) -> 0.0021 | AU7: =MIN(OFFSET(Male!AT$18,'Male Rev'!$A7-35,0),0.03999) -> 0.0024 | AV7: =MIN(OFFSET(Male!AU$18,'Male Rev'!$A7-35,0),0.03999) -> 0.0028 | AW7: =MIN(OFFSET(Male!AV$18,'Male Rev'!$A7-35,0),0.03999) -> 0.0033 | AX7: =MIN(OFFSET(Male!AW$18,'Male Rev'!$A7-35,0),0.03999) -> 0.0039 | AY7: =MIN(OFFSET(Male!AX$18,'Male Rev'!$A7-35,0),0.03999) -> 0.0045 | AZ7: =MIN(OFFSET(Male!AY$18,'Male Rev'!$A7-35,0),0.03999) -> 0.0051 | BA7: =MIN(OFFSET(Male!AZ$18,'Male Rev'!$A7-35,0),0.03999) -> 0.0058 | BB7: =MIN(OFFSET(Male!BA$18,'Male Rev'!$A7-35,0),0.03999) -> 0.0064 | BC7: =MIN(OFFSET(Male!BB$18,'Male Rev'!$A7-35,0),0.03999) -> 0.007 | BD7: =MIN(OFFSET(Male!BC$18,'Male Rev'!$A7-35,0),0.03999) -> 0.0076 | BE7: =MIN(OFFSET(Male!BD$18,'Male Rev'!$A7-35,0),0.03999) -> 0.008 | BF7: =MIN(OFFSET(Male!BE$18,'Male Rev'!$A7-35,0),0.03999) -> 0.0084 | BG7: =MIN(OFFSET(Male!BF$18,'Male Rev'!$A7-35,0),0.03999) -> 0.0087 | BH7: =MIN(OFFSET(Male!BG$18,'Male Rev'!$A7-35,0),0.03999) -> 0.0088 | BI7: =MIN(OFFSET(Male!BH$18,'Male Rev'!$A7-35,0),0.03999) -> 0.0089 | BJ7: =MIN(OFFSET(Male!BI$18,'Male Rev'!$A7-35,0),0.03999) -> 0.0088 | BK7: =MIN(OFFSET(Male!BJ$18,'Male Rev'!$A7-35,0),0.03999) -> 0.0088 | BL7: =MIN(OFFSET(Male!BK$18,'Male Rev'!$A7-35,0),0.03999) -> 0.0087 | BM7: =MIN(OFFSET(Male!BL$18,'Male Rev'!$A7-35,0),0.03999) -> 0.0086 | BN7: =MIN(OFFSET(Male!BM$18,'Male Rev'!$A7-35,0),0.03999) -> 0.0085 | BO7: =MIN(OFFSET(Male!BN$18,'Male Rev'!$A7-35,0),0.03999) -> 0.0084 | BP7: =MIN(OFFSET(Male!BO$18,'Male Rev'!$A7-35,0),0.03999) -> 0.0087 | BQ7: =MIN(OFFSET(Male!BP$18,'Male Rev'!$A7-35,0),0.03999) -> 0.0089 | BR7: =MIN(OFFSET(Male!BQ$18,'Male Rev'!$A7-35,0),0.03999) -> 0.009 | BS7: =MIN(OFFSET(Male!BR$18,'Male Rev'!$A7-35,0),0.03999) -> 0.0092 | BT7: =MIN(OFFSET(Male!BS$18,'Male Rev'!$A7-35,0),0.03999) -> 0.0092 | BU7: =MIN(OFFSET(Male!BT$18,'Male Rev'!$A7-35,0),0.03999) -> 0.0093 | BV7: =MIN(OFFSET(Male!BU$18,'Male Rev'!$A7-35,0),0.03999) -> 0.0093 | BW7: =MIN(OFFSET(Male!BV$18,'Male Rev'!$A7-35,0),0.03999) -> 0.0093 | BX7: =MIN(OFFSET(Male!BW$18,'Male Rev'!$A7-35,0),0.03999) -> 0.0092 | BY7: =MIN(OFFSET(Male!BX$18,'Male Rev'!$A7-35,0),0.03999) -> 0.0091 | BZ7: =MIN(OFFSET(Male!BY$18,'Male Rev'!$A7-35,0),0.03999) -> 0.009 | CA7: =MIN(OFFSET(Male!BZ$18,'Male Rev'!$A7-35,0),0.03999) -> 0.0089 | CB7: =MIN(OFFSET(Male!CA$18,'Male Rev'!$A7-35,0),0.03999) -> 0.0089 | CC7: =MIN(OFFSET(Male!CB$18,'Male Rev'!$A7-35,0),0.03999) -> 0.0089 | CD7: =MIN(OFFSET(Male!CC$18,'Male Rev'!$A7-35,0),0.03999) -> 0.0089 | CE7: =MIN(OFFSET(Male!CD$18,'Male Rev'!$A7-35,0),0.03999) -> 0.009 | CF7: =MIN(OFFSET(Male!CE$18,'Male Rev'!$A7-35,0),0.03999) -> 0.009 | CG7: =MIN(OFFSET(Male!CF$18,'Male Rev'!$A7-35,0),0.03999) -> 0.009 | CH7: =MIN(OFFSET(Male!CG$18,'Male Rev'!$A7-35,0),0.03999) -> 0.009 | CI7: =MIN(OFFSET(Male!CH$18,'Male Rev'!$A7-35,0),0.03999) -> 0.0091
A8: 90 | B8: 90 | C8: =MIN(OFFSET(Male!B$18,'Male Rev'!$A8-35,0),0.03999) -> 0.0017 | D8: =MIN(OFFSET(Male!C$18,'Male Rev'!$A8-35,0),0.03999) -> 0.0017 | E8: =MIN(OFFSET(Male!D$18,'Male Rev'!$A8-35,0),0.03999) -> 0.0016 | F8: =MIN(OFFSET(Male!E$18,'Male Rev'!$A8-35,0),0.03999) -> 0.0016 | G8: =MIN(OFFSET(Male!F$18,'Male Rev'!$A8-35,0),0.03999) -> 0.0016 | H8: =MIN(OFFSET(Male!G$18,'Male Rev'!$A8-35,0),0.03999) -> 0.0016 | I8: =MIN(OFFSET(Male!H$18,'Male Rev'!$A8-35,0),0.03999) -> 0.0017 | J8: =MIN(OFFSET(Male!I$18,'Male Rev'!$A8-35,0),0.03999) -> 0.0018 | K8: =MIN(OFFSET(Male!J$18,'Male Rev'!$A8-35,0),0.03999) -> 0.002 | L8: =MIN(OFFSET(Male!K$18,'Male Rev'!$A8-35,0),0.03999) -> 0.0022 | M8: =MIN(OFFSET(Male!L$18,'Male Rev'!$A8-35,0),0.03999) -> 0.0024 | N8: =MIN(OFFSET(Male!M$18,'Male Rev'!$A8-35,0),0.03999) -> 0.0027 | O8: =MIN(OFFSET(Male!N$18,'Male Rev'!$A8-35,0),0.03999) -> 0.003 | P8: =MIN(OFFSET(Male!O$18,'Male Rev'!$A8-35,0),0.03999) -> 0.0034 | Q8: =MIN(OFFSET(Male!P$18,'Male Rev'!$A8-35,0),0.03999) -> 0.0038 | R8: =MIN(OFFSET(Male!Q$18,'Male Rev'!$A8-35,0),0.03999) -> 0.0042 | S8: =MIN(OFFSET(Male!R$18,'Male Rev'!$A8-35,0),0.03999) -> 0.0046 | T8: =MIN(OFFSET(Male!S$18,'Male Rev'!$A8-35,0),0.03999) -> 0.005 | U8: =MIN(OFFSET(Male!T$18,'Male Rev'!$A8-35,0),0.03999) -> 0.0054 | V8: =MIN(OFFSET(Male!U$18,'Male Rev'!$A8-35,0),0.03999) -> 0.0057 | W8: =MIN(OFFSET(Male!V$18,'Male Rev'!$A8-35,0),0.03999) -> 0.006 | X8: =MIN(OFFSET(Male!W$18,'Male Rev'!$A8-35,0),0.03999) -> 0.0062 | Y8: =MIN(OFFSET(Male!X$18,'Male Rev'!$A8-35,0),0.03999) -> 0.0063 | Z8: =MIN(OFFSET(Male!Y$18,'Male Rev'!$A8-35,0),0.03999) -> 0.0064 | AA8: =MIN(OFFSET(Male!Z$18,'Male Rev'!$A8-35,0),0.03999) -> 0.0064 | AB8: =MIN(OFFSET(Male!AA$18,'Male Rev'!$A8-35,0),0.03999) -> 0.0063 | AC8: =MIN(OFFSET(Male!AB$18,'Male Rev'!$A8-35,0),0.03999) -> 0.0061 | AD8: =MIN(OFFSET(Male!AC$18,'Male Rev'!$A8-35,0),0.03999) -> 0.0058 | AE8: =MIN(OFFSET(Male!AD$18,'Male Rev'!$A8-35,0),0.03999) -> 0.0055 | AF8: =MIN(OFFSET(Male!AE$18,'Male Rev'!$A8-35,0),0.03999) -> 0.0052 | AG8: =MIN(OFFSET(Male!AF$18,'Male Rev'!$A8-35,0),0.03999) -> 0.0048 | AH8: =MIN(OFFSET(Male!AG$18,'Male Rev'!$A8-35,0),0.03999) -> 0.0044 | AI8: =MIN(OFFSET(Male!AH$18,'Male Rev'!$A8-35,0),0.03999) -> 0.0039 | AJ8: =MIN(OFFSET(Male!AI$18,'Male Rev'!$A8-35,0),0.03999) -> 0.0036 | AK8: =MIN(OFFSET(Male!AJ$18,'Male Rev'!$A8-35,0),0.03999) -> 0.0032 | AL8: =MIN(OFFSET(Male!AK$18,'Male Rev'!$A8-35,0),0.03999) -> 0.0029 | AM8: =MIN(OFFSET(Male!AL$18,'Male Rev'!$A8-35,0),0.03999) -> 0.0027 | AN8: =MIN(OFFSET(Male!AM$18,'Male Rev'!$A8-35,0),0.03999) -> 0.0025 | AO8: =MIN(OFFSET(Male!AN$18,'Male Rev'!$A8-35,0),0.03999) -> 0.0024 | AP8: =MIN(OFFSET(Male!AO$18,'Male Rev'!$A8-35,0),0.03999) -> 0.0024 | AQ8: =MIN(OFFSET(Male!AP$18,'Male Rev'!$A8-35,0),0.03999) -> 0.0024 | AR8: =MIN(OFFSET(Male!AQ$18,'Male Rev'!$A8-35,0),0.03999) -> 0.0025 | AS8: =MIN(OFFSET(Male!AR$18,'Male Rev'!$A8-35,0),0.03999) -> 0.0027 | AT8: =MIN(OFFSET(Male!AS$18,'Male Rev'!$A8-35,0),0.03999) -> 0.0029 | AU8: =MIN(OFFSET(Male!AT$18,'Male Rev'!$A8-35,0),0.03999) -> 0.0033 | AV8: =MIN(OFFSET(Male!AU$18,'Male Rev'!$A8-35,0),0.03999) -> 0.0037 | AW8: =MIN(OFFSET(Male!AV$18,'Male Rev'!$A8-35,0),0.03999) -> 0.0042 | AX8: =MIN(OFFSET(Male!AW$18,'Male Rev'!$A8-35,0),0.03999) -> 0.0048 | AY8: =MIN(OFFSET(Male!AX$18,'Male Rev'!$A8-35,0),0.03999) -> 0.0055 | AZ8: =MIN(OFFSET(Male!AY$18,'Male Rev'!$A8-35,0),0.03999) -> 0.0062 | BA8: =MIN(OFFSET(Male!AZ$18,'Male Rev'!$A8-35,0),0.03999) -> 0.0069 | BB8: =MIN(OFFSET(Male!BA$18,'Male Rev'!$A8-35,0),0.03999) -> 0.0075 | BC8: =MIN(OFFSET(Male!BB$18,'Male Rev'!$A8-35,0),0.03999) -> 0.0082 | BD8: =MIN(OFFSET(Male!BC$18,'Male Rev'!$A8-35,0),0.03999) -> 0.0087 | BE8: =MIN(OFFSET(Male!BD$18,'Male Rev'!$A8-35,0),0.03999) -> 0.0092 | BF8: =MIN(OFFSET(Male!BE$18,'Male Rev'!$A8-35,0),0.03999) -> 0.0095 | BG8: =MIN(OFFSET(Male!BF$18,'Male Rev'!$A8-35,0),0.03999) -> 0.0097 | BH8: =MIN(OFFSET(Male!BG$18,'Male Rev'!$A8-35,0),0.03999) -> 0.0098 | BI8: =MIN(OFFSET(Male!BH$18,'Male Rev'!$A8-35,0),0.03999) -> 0.0097 | BJ8: =MIN(OFFSET(Male!BI$18,'Male Rev'!$A8-35,0),0.03999) -> 0.0096 | BK8: =MIN(OFFSET(Male!BJ$18,'Male Rev'!$A8-35,0),0.03999) -> 0.0095 | BL8: =MIN(OFFSET(Male!BK$18,'Male Rev'!$A8-35,0),0.03999) -> 0.0093 | BM8: =MIN(OFFSET(Male!BL$18,'Male Rev'!$A8-35,0),0.03999) -> 0.0092 | BN8: =MIN(OFFSET(Male!BM$18,'Male Rev'!$A8-35,0),0.03999) -> 0.009 | BO8: =MIN(OFFSET(Male!BN$18,'Male Rev'!$A8-35,0),0.03999) -> 0.0089 | BP8: =MIN(OFFSET(Male!BO$18,'Male Rev'!$A8-35,0),0.03999) -> 0.0092 | BQ8: =MIN(OFFSET(Male!BP$18,'Male Rev'!$A8-35,0),0.03999) -> 0.0094 | BR8: =MIN(OFFSET(Male!BQ$18,'Male Rev'!$A8-35,0),0.03999) -> 0.0095 | BS8: =MIN(OFFSET(Male!BR$18,'Male Rev'!$A8-35,0),0.03999) -> 0.0096 | BT8: =MIN(OFFSET(Male!BS$18,'Male Rev'!$A8-35,0),0.03999) -> 0.0096 | BU8: =MIN(OFFSET(Male!BT$18,'Male Rev'!$A8-35,0),0.03999) -> 0.0096 | BV8: =MIN(OFFSET(Male!BU$18,'Male Rev'!$A8-35,0),0.03999) -> 0.0096 | BW8: =MIN(OFFSET(Male!BV$18,'Male Rev'!$A8-35,0),0.03999) -> 0.0095 | BX8: =MIN(OFFSET(Male!BW$18,'Male Rev'!$A8-35,0),0.03999) -> 0.0094 | BY8: =MIN(OFFSET(Male!BX$18,'Male Rev'!$A8-35,0),0.03999) -> 0.0093 | BZ8: =MIN(OFFSET(Male!BY$18,'Male Rev'!$A8-35,0),0.03999) -> 0.0092 | CA8: =MIN(OFFSET(Male!BZ$18,'Male Rev'!$A8-35,0),0.03999) -> 0.0091 | CB8: =MIN(OFFSET(Male!CA$18,'Male Rev'!$A8-35,0),0.03999) -> 0.0091 | CC8: =MIN(OFFSET(Male!CB$18,'Male Rev'!$A8-35,0),0.03999) -> 0.0091 | CD8: =MIN(OFFSET(Male!CC$18,'Male Rev'!$A8-35,0),0.03999) -> 0.0091 | CE8: =MIN(OFFSET(Male!CD$18,'Male Rev'!$A8-35,0),0.03999) -> 0.0091 | CF8: =MIN(OFFSET(Male!CE$18,'Male Rev'!$A8-35,0),0.03999) -> 0.0091 | CG8: =MIN(OFFSET(Male!CF$18,'Male Rev'!$A8-35,0),0.03999) -> 0.0091 | CH8: =MIN(OFFSET(Male!CG$18,'Male Rev'!$A8-35,0),0.03999) -> 0.0092 | CI8: =MIN(OFFSET(Male!CH$18,'Male Rev'!$A8-35,0),0.03999) -> 0.0093
